Workbook

Sheet Leaderboard
A5: No. | B5: Name | C5: Team | D5: 2025-08-01 | E5: 2025-09-01 | F5: 2025-10-01 | G5: 2025-11-01 | H5: 2025-12-01 | I5: 2026-01-01 | J5: 2026-02-01 | K5: 2026-03-01 | L5: 2026-04-01 | M5: 2026-05-01 | N5: Total
A6: 1 | B6: Chris Keohan | C6: Nancy's Warriors | D6: =HLOOKUP(B6,August!$H$1:$DC$73,73,FALSE) -> 105 | E6: =HLOOKUP(B6,September!$H$1:$DC$73,73,FALSE) -> 112 | F6: =HLOOKUP(B6,October!$H$1:$DC$51,51,FALSE) -> 109 | G6: =HLOOKUP(B6,November!$H$1:$DC$61,61,FALSE) -> 160 | H6: =HLOOKUP(B6,December!$H$1:$DC$81,81,FALSE) -> 113 | N6: =SUM(D6:M6) -> 599
A7: 2 | B7: Helen Fadian | C7: Keelwestkats | D7: =HLOOKUP(B7,August!$H$1:$DC$73,73,FALSE) -> 105 | E7: =HLOOKUP(B7,September!$H$1:$DC$73,73,FALSE) -> 99 | F7: =HLOOKUP(B7,October!$H$1:$DC$51,51,FALSE) -> 106 | G7: =HLOOKUP(B7,November!$H$1:$DC$61,61,FALSE) -> 141 | H7: =HLOOKUP(B7,December!$H$1:$DC$81,81,FALSE) -> 121 | N7: =SUM(D7:M7) -> 572
A8: 3 | B8: Jason Maloney | C8: Time Out Hoops | D8: =HLOOKUP(B8,August!$H$1:$DC$73,73,FALSE) -> 108 | E8: =HLOOKUP(B8,September!$H$1:$DC$73,73,FALSE) -> 104 | F8: =HLOOKUP(B8,October!$H$1:$DC$51,51,FALSE) -> 108 | G8: =HLOOKUP(B8,November!$H$1:$DC$61,61,FALSE) -> 138 | H8: =HLOOKUP(B8,December!$H$1:$DC$81,81,FALSE) -> 113 | N8: =SUM(D8:M8) -> 571
A9: 4 | B9: Gavin Morgan | C9: FC Lorem Ipsum | D9: =HLOOKUP(B9,August!$H$1:$DC$73,73,FALSE) -> 94 | E9: =HLOOKUP(B9,September!$H$1:$DC$73,73,FALSE) -> 94 | F9: =HLOOKUP(B9,October!$H$1:$DC$51,51,FALSE) -> 126 | G9: =HLOOKUP(B9,November!$H$1:$DC$61,61,FALSE) -> 123 | H9: =HLOOKUP(B9,December!$H$1:$DC$81,81,FALSE) -> 129 | N9: =SUM(D9:M9) -> 566
A10: 5 | B10: Peter Lavelle | C10: Lavfavs | D10: =HLOOKUP(B10,August!$H$1:$DC$73,73,FALSE) -> 103 | E10: =HLOOKUP(B10,September!$H$1:$DC$73,73,FALSE) -> 94 | F10: =HLOOKUP(B10,October!$H$1:$DC$51,51,FALSE) -> 133 | G10: =HLOOKUP(B10,November!$H$1:$DC$61,61,FALSE) -> 128 | H10: =HLOOKUP(B10,December!$H$1:$DC$81,81,FALSE) -> 103 | N10: =SUM(D10:M10) -> 561
A11: 6 | B11: Carl Toner | C11: COYI | D11: =HLOOKUP(B11,August!$H$1:$DC$73,73,FALSE) -> 90 | E11: =HLOOKUP(B11,September!$H$1:$DC$73,73,FALSE) -> 99 | F11: =HLOOKUP(B11,October!$H$1:$DC$51,51,FALSE) -> 106 | G11: =HLOOKUP(B11,November!$H$1:$DC$61,61,FALSE) -> 148 | H11: =HLOOKUP(B11,December!$H$1:$DC$81,81,FALSE) -> 113 | N11: =SUM(D11:M11) -> 556
A12: 7 | B12: Brendan Maguire | C12: Cantthinkofone | D12: =HLOOKUP(B12,August!$H$1:$DC$73,73,FALSE) -> 102 | E12: =HLOOKUP(B12,September!$H$1:$DC$73,73,FALSE) -> 89 | F12: =HLOOKUP(B12,October!$H$1:$DC$51,51,FALSE) -> 113 | G12: =HLOOKUP(B12,November!$H$1:$DC$61,61,FALSE) -> 145 | H12: =HLOOKUP(B12,December!$H$1:$DC$81,81,FALSE) -> 106 | N12: =SUM(D12:M12) -> 555
A13: 8 | B13: Jim Foley | C13: Ronaldo's A Cod | D13: =HLOOKUP(B13,August!$H$1:$DC$73,73,FALSE) -> 82 | E13: =HLOOKUP(B13,September!$H$1:$DC$73,73,FALSE) -> 99 | F13: =HLOOKUP(B13,October!$H$1:$DC$51,51,FALSE) -> 103 | G13: =HLOOKUP(B13,November!$H$1:$DC$61,61,FALSE) -> 170 | H13: =HLOOKUP(B13,December!$H$1:$DC$81,81,FALSE) -> 101 | N13: =SUM(D13:M13) -> 555
A14: 9 | B14: Robert Gaffney | C14: Fiorentina Turner | D14: =HLOOKUP(B14,August!$H$1:$DC$73,73,FALSE) -> 83 | E14: =HLOOKUP(B14,September!$H$1:$DC$73,73,FALSE) -> 122 | F14: =HLOOKUP(B14,October!$H$1:$DC$51,51,FALSE) -> 103 | G14: =HLOOKUP(B14,November!$H$1:$DC$61,61,FALSE) -> 153 | H14: =HLOOKUP(B14,December!$H$1:$DC$81,81,FALSE) -> 91 | N14: =SUM(D14:M14) -> 552
A15: 10 | B15: Tommy Walsh | C15: Toon Army | D15: =HLOOKUP(B15,August!$H$1:$DC$73,73,FALSE) -> 102 | E15: =HLOOKUP(B15,September!$H$1:$DC$73,73,FALSE) -> 89 | F15: =HLOOKUP(B15,October!$H$1:$DC$51,51,FALSE) -> 103 | G15: =HLOOKUP(B15,November!$H$1:$DC$61,61,FALSE) -> 143 | H15: =HLOOKUP(B15,December!$H$1:$DC$81,81,FALSE) -> 114 | N15: =SUM(D15:M15) -> 551
A16: 11 | B16: Aidan White | C16: The Emery Board | D16: =HLOOKUP(B16,August!$H$1:$DC$73,73,FALSE) -> 101 | E16: =HLOOKUP(B16,September!$H$1:$DC$73,73,FALSE) -> 106 | F16: =HLOOKUP(B16,October!$H$1:$DC$51,51,FALSE) -> 82 | G16: =HLOOKUP(B16,November!$H$1:$DC$61,61,FALSE) -> 139 | H16: =HLOOKUP(B16,December!$H$1:$DC$81,81,FALSE) -> 117 | N16: =SUM(D16:M16) -> 545
A17: 12 | B17: Keith Nerney | C17: Now I'm A Baleba | D17: =HLOOKUP(B17,August!$H$1:$DC$73,73,FALSE) -> 87 | E17: =HLOOKUP(B17,September!$H$1:$DC$73,73,FALSE) -> 94 | F17: =HLOOKUP(B17,October!$H$1:$DC$51,51,FALSE) -> 123 | G17: =HLOOKUP(B17,November!$H$1:$DC$61,61,FALSE) -> 150 | H17: =HLOOKUP(B17,December!$H$1:$DC$81,81,FALSE) -> 91 | N17: =SUM(D17:M17) -> 545
A18: 13 | B18: Joseph Kavanagh | C18: CherryOrchardThieves | D18: =HLOOKUP(B18,August!$H$1:$DC$73,73,FALSE) -> 110 | E18: =HLOOKUP(B18,September!$H$1:$DC$73,73,FALSE) -> 82 | F18: =HLOOKUP(B18,October!$H$1:$DC$51,51,FALSE) -> 91 | G18: =HLOOKUP(B18,November!$H$1:$DC$61,61,FALSE) -> 153 | H18: =HLOOKUP(B18,December!$H$1:$DC$81,81,FALSE) -> 106 | N18: =SUM(D18:M18) -> 542
A19: 14 | B19: Brian Haughton | C19: Poolabu | D19: =HLOOKUP(B19,August!$H$1:$DC$73,73,FALSE) -> 92 | E19: =HLOOKUP(B19,September!$H$1:$DC$73,73,FALSE) -> 124 | F19: =HLOOKUP(B19,October!$H$1:$DC$51,51,FALSE) -> 93 | G19: =HLOOKUP(B19,November!$H$1:$DC$61,61,FALSE) -> 128 | H19: =HLOOKUP(B19,December!$H$1:$DC$81,81,FALSE) -> 104 | N19: =SUM(D19:M19) -> 541
A20: 15 | B20: Aaron Nealon | C20: Backstreet Moyes | D20: =HLOOKUP(B20,August!$H$1:$DC$73,73,FALSE) -> 92 | E20: =HLOOKUP(B20,September!$H$1:$DC$73,73,FALSE) -> 114 | F20: =HLOOKUP(B20,October!$H$1:$DC$51,51,FALSE) -> 118 | G20: =HLOOKUP(B20,November!$H$1:$DC$61,61,FALSE) -> 135 | H20: =HLOOKUP(B20,December!$H$1:$DC$81,81,FALSE) -> 81 | N20: =SUM(D20:M20) -> 540
A21: 16 | B21: Darren O'Gorman | C21: Pass n Move | D21: =HLOOKUP(B21,August!$H$1:$DC$73,73,FALSE) -> 87 | E21: =HLOOKUP(B21,September!$H$1:$DC$73,73,FALSE) -> 94 | F21: =HLOOKUP(B21,October!$H$1:$DC$51,51,FALSE) -> 103 | G21: =HLOOKUP(B21,November!$H$1:$DC$61,61,FALSE) -> 140 | H21: =HLOOKUP(B21,December!$H$1:$DC$81,81,FALSE) -> 116 | N21: =SUM(D21:M21) -> 540
A22: 17 | B22: Monica Collins | C22: Monchester United | D22: =HLOOKUP(B22,August!$H$1:$DC$73,73,FALSE) -> 85 | E22: =HLOOKUP(B22,September!$H$1:$DC$73,73,FALSE) -> 102 | F22: =HLOOKUP(B22,October!$H$1:$DC$51,51,FALSE) -> 129 | G22: =HLOOKUP(B22,November!$H$1:$DC$61,61,FALSE) -> 150 | H22: =HLOOKUP(B22,December!$H$1:$DC$81,81,FALSE) -> 73 | N22: =SUM(D22:M22) -> 539
A23: 18 | B23: Thomas Nolan | C23: Sons of Pitches | D23: =HLOOKUP(B23,August!$H$1:$DC$73,73,FALSE) -> 98 | E23: =HLOOKUP(B23,September!$H$1:$DC$73,73,FALSE) -> 87 | F23: =HLOOKUP(B23,October!$H$1:$DC$51,51,FALSE) -> 113 | G23: =HLOOKUP(B23,November!$H$1:$DC$61,61,FALSE) -> 128 | H23: =HLOOKUP(B23,December!$H$1:$DC$81,81,FALSE) -> 111 | N23: =SUM(D23:M23) -> 537
A24: 19 | B24: Graham Pierpoint | C24: Que Salah Salah | D24: =HLOOKUP(B24,August!$H$1:$DC$73,73,FALSE) -> 88 | E24: =HLOOKUP(B24,September!$H$1:$DC$73,73,FALSE) -> 109 | F24: =HLOOKUP(B24,October!$H$1:$DC$51,51,FALSE) -> 93 | G24: =HLOOKUP(B24,November!$H$1:$DC$61,61,FALSE) -> 143 | H24: =HLOOKUP(B24,December!$H$1:$DC$81,81,FALSE) -> 103 | N24: =SUM(D24:M24) -> 536
A25: 20 | B25: Jonathan Fox | C25: He's A Lad From Portugal, Better Than Figo Don’t You Know | D25: =HLOOKUP(B25,August!$H$1:$DC$73,73,FALSE) -> 97 | E25: =HLOOKUP(B25,September!$H$1:$DC$73,73,FALSE) -> 94 | F25: =HLOOKUP(B25,October!$H$1:$DC$51,51,FALSE) -> 103 | G25: =HLOOKUP(B25,November!$H$1:$DC$61,61,FALSE) -> 145 | H25: =HLOOKUP(B25,December!$H$1:$DC$81,81,FALSE) -> 96 | N25: =SUM(D25:M25) -> 535
A26: 21 | B26: Con McSweeney | C26: Queer-Hawks | D26: =HLOOKUP(B26,August!$H$1:$DC$73,73,FALSE) -> 87 | E26: =HLOOKUP(B26,September!$H$1:$DC$73,73,FALSE) -> 99 | F26: =HLOOKUP(B26,October!$H$1:$DC$51,51,FALSE) -> 113 | G26: =HLOOKUP(B26,November!$H$1:$DC$61,61,FALSE) -> 145 | H26: =HLOOKUP(B26,December!$H$1:$DC$81,81,FALSE) -> 86 | N26: =SUM(D26:M26) -> 530
A27: 22 | B27: Dave McGinley | C27: Reservoir Dubs | D27: =HLOOKUP(B27,August!$H$1:$DC$73,73,FALSE) -> 77 | E27: =HLOOKUP(B27,September!$H$1:$DC$73,73,FALSE) -> 129 | F27: =HLOOKUP(B27,October!$H$1:$DC$51,51,FALSE) -> 108 | G27: =HLOOKUP(B27,November!$H$1:$DC$61,61,FALSE) -> 125 | H27: =HLOOKUP(B27,December!$H$1:$DC$81,81,FALSE) -> 91 | N27: =SUM(D27:M27) -> 530
A28: 23 | B28: Roisin Joyce | C28: Joyce's Choices | D28: =HLOOKUP(B28,August!$H$1:$DC$73,73,FALSE) -> 78 | E28: =HLOOKUP(B28,September!$H$1:$DC$73,73,FALSE) -> 117 | F28: =HLOOKUP(B28,October!$H$1:$DC$51,51,FALSE) -> 122 | G28: =HLOOKUP(B28,November!$H$1:$DC$61,61,FALSE) -> 123 | H28: =HLOOKUP(B28,December!$H$1:$DC$81,81,FALSE) -> 90 | N28: =SUM(D28:M28) -> 530
A29: 24 | B29: Anastas Popov | C29: Golden State Saints | D29: =HLOOKUP(B29,August!$H$1:$DC$73,73,FALSE) -> 88 | E29: =HLOOKUP(B29,September!$H$1:$DC$73,73,FALSE) -> 84 | F29: =HLOOKUP(B29,October!$H$1:$DC$51,51,FALSE) -> 108 | G29: =HLOOKUP(B29,November!$H$1:$DC$61,61,FALSE) -> 133 | H29: =HLOOKUP(B29,December!$H$1:$DC$81,81,FALSE) -> 113 | N29: =SUM(D29:M29) -> 526
A30: 25 | B30: Caroline Carroll | C30: Glenview | D30: =HLOOKUP(B30,August!$H$1:$DC$73,73,FALSE) -> 88 | E30: =HLOOKUP(B30,September!$H$1:$DC$73,73,FALSE) -> 104 | F30: =HLOOKUP(B30,October!$H$1:$DC$51,51,FALSE) -> 103 | G30: =HLOOKUP(B30,November!$H$1:$DC$61,61,FALSE) -> 143 | H30: =HLOOKUP(B30,December!$H$1:$DC$81,81,FALSE) -> 88 | N30: =SUM(D30:M30) -> 526
A31: 26 | B31: Christina Morgan | C31: I'll Try 2-1 Again This Year | D31: =HLOOKUP(B31,August!$H$1:$DC$73,73,FALSE) -> 97 | E31: =HLOOKUP(B31,September!$H$1:$DC$73,73,FALSE) -> 94 | F31: =HLOOKUP(B31,October!$H$1:$DC$51,51,FALSE) -> 128 | G31: =HLOOKUP(B31,November!$H$1:$DC$61,61,FALSE) -> 123 | H31: =HLOOKUP(B31,December!$H$1:$DC$81,81,FALSE) -> 84 | N31: =SUM(D31:M31) -> 526
A32: 27 | B32: Frank McSweeney | C32: Poolabu 1 | D32: =HLOOKUP(B32,August!$H$1:$DC$73,73,FALSE) -> 77 | E32: =HLOOKUP(B32,September!$H$1:$DC$73,73,FALSE) -> 99 | F32: =HLOOKUP(B32,October!$H$1:$DC$51,51,FALSE) -> 108 | G32: =HLOOKUP(B32,November!$H$1:$DC$61,61,FALSE) -> 140 | H32: =HLOOKUP(B32,December!$H$1:$DC$81,81,FALSE) -> 101 | N32: =SUM(D32:M32) -> 525
A33: 28 | B33: Joseph Leppla | C33: Play Jaya Frimpong | D33: =HLOOKUP(B33,August!$H$1:$DC$73,73,FALSE) -> 77 | E33: =HLOOKUP(B33,September!$H$1:$DC$73,73,FALSE) -> 114 | F33: =HLOOKUP(B33,October!$H$1:$DC$51,51,FALSE) -> 108 | G33: =HLOOKUP(B33,November!$H$1:$DC$61,61,FALSE) -> 135 | H33: =HLOOKUP(B33,December!$H$1:$DC$81,81,FALSE) -> 91 | N33: =SUM(D33:M33) -> 525
A34: 29 | B34: Craig Calvert | C34: Cunha Win A Few Games United? | D34: =HLOOKUP(B34,August!$H$1:$DC$73,73,FALSE) -> 95 | E34: =HLOOKUP(B34,September!$H$1:$DC$73,73,FALSE) -> 87 | F34: =HLOOKUP(B34,October!$H$1:$DC$51,51,FALSE) -> 104 | G34: =HLOOKUP(B34,November!$H$1:$DC$61,61,FALSE) -> 115 | H34: =HLOOKUP(B34,December!$H$1:$DC$81,81,FALSE) -> 123 | N34: =SUM(D34:M34) -> 524
A35: 30 | B35: Brian Mullen | C35: Are They My Feet? | D35: =HLOOKUP(B35,August!$H$1:$DC$73,73,FALSE) -> 73 | E35: =HLOOKUP(B35,September!$H$1:$DC$73,73,FALSE) -> 92 | F35: =HLOOKUP(B35,October!$H$1:$DC$51,51,FALSE) -> 118 | G35: =HLOOKUP(B35,November!$H$1:$DC$61,61,FALSE) -> 128 | H35: =HLOOKUP(B35,December!$H$1:$DC$81,81,FALSE) -> 111 | N35: =SUM(D35:M35) -> 522
A36: 31 | B36: Joe Turner | C36: The Coutinho Money | D36: =HLOOKUP(B36,August!$H$1:$DC$73,73,FALSE) -> 89 | E36: =HLOOKUP(B36,September!$H$1:$DC$73,73,FALSE) -> 106 | F36: =HLOOKUP(B36,October!$H$1:$DC$51,51,FALSE) -> 113 | G36: =HLOOKUP(B36,November!$H$1:$DC$61,61,FALSE) -> 126 | H36: =HLOOKUP(B36,December!$H$1:$DC$81,81,FALSE) -> 87 | N36: =SUM(D36:M36) -> 521
A37: 32 | B37: Richard Johnston | C37: Oumuamua FC | D37: =HLOOKUP(B37,August!$H$1:$DC$73,73,FALSE) -> 107 | E37: =HLOOKUP(B37,September!$H$1:$DC$73,73,FALSE) -> 104 | F37: =HLOOKUP(B37,October!$H$1:$DC$51,51,FALSE) -> 113 | G37: =HLOOKUP(B37,November!$H$1:$DC$61,61,FALSE) -> 130 | H37: =HLOOKUP(B37,December!$H$1:$DC$81,81,FALSE) -> 66 | N37: =SUM(D37:M37) -> 520
A38: 33 | B38: Bobby Hynes | C38: Born To Run | D38: =HLOOKUP(B38,August!$H$1:$DC$73,73,FALSE) -> 103 | E38: =HLOOKUP(B38,September!$H$1:$DC$73,73,FALSE) -> 92 | F38: =HLOOKUP(B38,October!$H$1:$DC$51,51,FALSE) -> 113 | G38: =HLOOKUP(B38,November!$H$1:$DC$61,61,FALSE) -> 143 | H38: =HLOOKUP(B38,December!$H$1:$DC$81,81,FALSE) -> 66 | N38: =SUM(D38:M38) -> 517
A39: 34 | B39: Eoghan Farrelly | C39: Maybe This Year | D39: =HLOOKUP(B39,August!$H$1:$DC$73,73,FALSE) -> 93 | E39: =HLOOKUP(B39,September!$H$1:$DC$73,73,FALSE) -> 87 | F39: =HLOOKUP(B39,October!$H$1:$DC$51,51,FALSE) -> 103 | G39: =HLOOKUP(B39,November!$H$1:$DC$61,61,FALSE) -> 123 | H39: =HLOOKUP(B39,December!$H$1:$DC$81,81,FALSE) -> 111 | N39: =SUM(D39:M39) -> 517
A40: 35 | B40: Craig Whelan | C40: Saints | D40: =HLOOKUP(B40,August!$H$1:$DC$73,73,FALSE) -> 106 | E40: =HLOOKUP(B40,September!$H$1:$DC$73,73,FALSE) -> 94 | F40: =HLOOKUP(B40,October!$H$1:$DC$51,51,FALSE) -> 127 | G40: =HLOOKUP(B40,November!$H$1:$DC$61,61,FALSE) -> 89 | H40: =HLOOKUP(B40,December!$H$1:$DC$81,81,FALSE) -> 100 | N40: =SUM(D40:M40) -> 516
A41: 36 | B41: Liam Keohan | C41: Stranger Wings | D41: =HLOOKUP(B41,August!$H$1:$DC$73,73,FALSE) -> 70 | E41: =HLOOKUP(B41,September!$H$1:$DC$73,73,FALSE) -> 96 | F41: =HLOOKUP(B41,October!$H$1:$DC$51,51,FALSE) -> 111 | G41: =HLOOKUP(B41,November!$H$1:$DC$61,61,FALSE) -> 141 | H41: =HLOOKUP(B41,December!$H$1:$DC$81,81,FALSE) -> 98 | N41: =SUM(D41:M41) -> 516
A42: 37 | B42: Eamonn Gallagher | C42: Gally's Prem Hoops | D42: =HLOOKUP(B42,August!$H$1:$DC$73,73,FALSE) -> 98 | E42: =HLOOKUP(B42,September!$H$1:$DC$73,73,FALSE) -> 82 | F42: =HLOOKUP(B42,October!$H$1:$DC$51,51,FALSE) -> 103 | G42: =HLOOKUP(B42,November!$H$1:$DC$61,61,FALSE) -> 143 | H42: =HLOOKUP(B42,December!$H$1:$DC$81,81,FALSE) -> 86 | N42: =SUM(D42:M42) -> 512
A43: 38 | B43: Paul Moore | C43: Wirtz The Story, Morning Glory | D43: =HLOOKUP(B43,August!$H$1:$DC$73,73,FALSE) -> 98 | E43: =HLOOKUP(B43,September!$H$1:$DC$73,73,FALSE) -> 117 | F43: =HLOOKUP(B43,October!$H$1:$DC$51,51,FALSE) -> 113 | G43: =HLOOKUP(B43,November!$H$1:$DC$61,61,FALSE) -> 98 | H43: =HLOOKUP(B43,December!$H$1:$DC$81,81,FALSE) -> 86 | N43: =SUM(D43:M43) -> 512
A44: 39 | B44: Sean O'Mairtin | C44: Creweless | D44: =HLOOKUP(B44,August!$H$1:$DC$73,73,FALSE) -> 75 | E44: =HLOOKUP(B44,September!$H$1:$DC$73,73,FALSE) -> 109 | F44: =HLOOKUP(B44,October!$H$1:$DC$51,51,FALSE) -> 94 | G44: =HLOOKUP(B44,November!$H$1:$DC$61,61,FALSE) -> 147 | H44: =HLOOKUP(B44,December!$H$1:$DC$81,81,FALSE) -> 86 | N44: =SUM(D44:M44) -> 511
A45: 40 | B45: Kev Dalton | C45: Don't Know Why I Bother! | D45: =HLOOKUP(B45,August!$H$1:$DC$73,73,FALSE) -> 87 | E45: =HLOOKUP(B45,September!$H$1:$DC$73,73,FALSE) -> 79 | F45: =HLOOKUP(B45,October!$H$1:$DC$51,51,FALSE) -> 118 | G45: =HLOOKUP(B45,November!$H$1:$DC$61,61,FALSE) -> 135 | H45: =HLOOKUP(B45,December!$H$1:$DC$81,81,FALSE) -> 91 | N45: =SUM(D45:M45) -> 510
A46: 41 | B46: John Cafferkey | C46: Beach Boys | D46: =HLOOKUP(B46,August!$H$1:$DC$73,73,FALSE) -> 93 | E46: =HLOOKUP(B46,September!$H$1:$DC$73,73,FALSE) -> 82 | F46: =HLOOKUP(B46,October!$H$1:$DC$51,51,FALSE) -> 108 | G46: =HLOOKUP(B46,November!$H$1:$DC$61,61,FALSE) -> 148 | H46: =HLOOKUP(B46,December!$H$1:$DC$81,81,FALSE) -> 76 | N46: =SUM(D46:M46) -> 507
A47: 42 | B47: Brian Hearne | C47: Team Phoenix | D47: =HLOOKUP(B47,August!$H$1:$DC$73,73,FALSE) -> 102 | E47: =HLOOKUP(B47,September!$H$1:$DC$73,73,FALSE) -> 72 | F47: =HLOOKUP(B47,October!$H$1:$DC$51,51,FALSE) -> 128 | G47: =HLOOKUP(B47,November!$H$1:$DC$61,61,FALSE) -> 118 | H47: =HLOOKUP(B47,December!$H$1:$DC$81,81,FALSE) -> 86 | N47: =SUM(D47:M47) -> 506
A48: 43 | B48: Johno Percy | C48: Moves Like Agger | D48: =HLOOKUP(B48,August!$H$1:$DC$73,73,FALSE) -> 78 | E48: =HLOOKUP(B48,September!$H$1:$DC$73,73,FALSE) -> 109 | F48: =HLOOKUP(B48,October!$H$1:$DC$51,51,FALSE) -> 128 | G48: =HLOOKUP(B48,November!$H$1:$DC$61,61,FALSE) -> 108 | H48: =HLOOKUP(B48,December!$H$1:$DC$81,81,FALSE) -> 83 | N48: =SUM(D48:M48) -> 506
A49: 44 | B49: Gareth Pierpoint | C49: Wirtz A Fortune | D49: =HLOOKUP(B49,August!$H$1:$DC$73,73,FALSE) -> 97 | E49: =HLOOKUP(B49,September!$H$1:$DC$73,73,FALSE) -> 79 | F49: =HLOOKUP(B49,October!$H$1:$DC$51,51,FALSE) -> 88 | G49: =HLOOKUP(B49,November!$H$1:$DC$61,61,FALSE) -> 150 | H49: =HLOOKUP(B49,December!$H$1:$DC$81,81,FALSE) -> 91 | N49: =SUM(D49:M49) -> 505
A50: 45 | B50: Tommy Hamill | C50: Omeath All-Stars | D50: =HLOOKUP(B50,August!$H$1:$DC$73,73,FALSE) -> 97 | E50: =HLOOKUP(B50,September!$H$1:$DC$73,73,FALSE) -> 89 | F50: =HLOOKUP(B50,October!$H$1:$DC$51,51,FALSE) -> 113 | G50: =HLOOKUP(B50,November!$H$1:$DC$61,61,FALSE) -> 120 | H50: =HLOOKUP(B50,December!$H$1:$DC$81,81,FALSE) -> 86 | N50: =SUM(D50:M50) -> 505
A51: 46 | B51: Andy Dunne | C51: Escape To Victory FC | D51: =HLOOKUP(B51,August!$H$1:$DC$73,73,FALSE) -> 73 | E51: =HLOOKUP(B51,September!$H$1:$DC$73,73,FALSE) -> 92 | F51: =HLOOKUP(B51,October!$H$1:$DC$51,51,FALSE) -> 113 | G51: =HLOOKUP(B51,November!$H$1:$DC$61,61,FALSE) -> 133 | H51: =HLOOKUP(B51,December!$H$1:$DC$81,81,FALSE) -> 91 | N51: =SUM(D51:M51) -> 502
A52: 47 | B52: Paul Prendergast | C52: The Untouchables | D52: =HLOOKUP(B52,August!$H$1:$DC$73,73,FALSE) -> 73 | E52: =HLOOKUP(B52,September!$H$1:$DC$73,73,FALSE) -> 92 | F52: =HLOOKUP(B52,October!$H$1:$DC$51,51,FALSE) -> 113 | G52: =HLOOKUP(B52,November!$H$1:$DC$61,61,FALSE) -> 148 | H52: =HLOOKUP(B52,December!$H$1:$DC$81,81,FALSE) -> 76 | N52: =SUM(D52:M52) -> 502
A53: 48 | B53: Sean Cafferkey | C53: Yoryies | D53: =HLOOKUP(B53,August!$H$1:$DC$73,73,FALSE) -> 73 | E53: =HLOOKUP(B53,September!$H$1:$DC$73,73,FALSE) -> 77 | F53: =HLOOKUP(B53,October!$H$1:$DC$51,51,FALSE) -> 113 | G53: =HLOOKUP(B53,November!$H$1:$DC$61,61,FALSE) -> 168 | H53: =HLOOKUP(B53,December!$H$1:$DC$81,81,FALSE) -> 71 | N53: =SUM(D53:M53) -> 502
A54: 49 | B54: Greg Donaghy | C54: Champagne Super Rovers | D54: =HLOOKUP(B54,August!$H$1:$DC$73,73,FALSE) -> 97 | E54: =HLOOKUP(B54,September!$H$1:$DC$73,73,FALSE) -> 94 | F54: =HLOOKUP(B54,October!$H$1:$DC$51,51,FALSE) -> 103 | G54: =HLOOKUP(B54,November!$H$1:$DC$61,61,FALSE) -> 130 | H54: =HLOOKUP(B54,December!$H$1:$DC$81,81,FALSE) -> 76 | N54: =SUM(D54:M54) -> 500
A55: 50 | B55: Gary Fitzpatrick | C55: Can't Get Any Wirtz | D55: =HLOOKUP(B55,August!$H$1:$DC$73,73,FALSE) -> 71 | E55: =HLOOKUP(B55,September!$H$1:$DC$73,73,FALSE) -> 79 | F55: =HLOOKUP(B55,October!$H$1:$DC$51,51,FALSE) -> 97 | G55: =HLOOKUP(B55,November!$H$1:$DC$61,61,FALSE) -> 154 | H55: =HLOOKUP(B55,December!$H$1:$DC$81,81,FALSE) -> 95 | N55: =SUM(D55:M55) -> 496
A56: 51 | B56: Lionel Knott | C56: Knott's Landing | D56: =HLOOKUP(B56,August!$H$1:$DC$73,73,FALSE) -> 72 | E56: =HLOOKUP(B56,September!$H$1:$DC$73,73,FALSE) -> 104 | F56: =HLOOKUP(B56,October!$H$1:$DC$51,51,FALSE) -> 118 | G56: =HLOOKUP(B56,November!$H$1:$DC$61,61,FALSE) -> 128 | H56: =HLOOKUP(B56,December!$H$1:$DC$81,81,FALSE) -> 74 | N56: =SUM(D56:M56) -> 496
A57: 52 | B57: Darragh Kenny | C57: Tony Fitz | D57: =HLOOKUP(B57,August!$H$1:$DC$73,73,FALSE) -> 101 | E57: =HLOOKUP(B57,September!$H$1:$DC$73,73,FALSE) -> 86 | F57: =HLOOKUP(B57,October!$H$1:$DC$51,51,FALSE) -> 87 | G57: =HLOOKUP(B57,November!$H$1:$DC$61,61,FALSE) -> 139 | H57: =HLOOKUP(B57,December!$H$1:$DC$81,81,FALSE) -> 82 | N57: =SUM(D57:M57) -> 495
A58: 53 | B58: Robert Foley | C58: Alisson Wonderland | D58: =HLOOKUP(B58,August!$H$1:$DC$73,73,FALSE) -> 106 | E58: =HLOOKUP(B58,September!$H$1:$DC$73,73,FALSE) -> 86 | F58: =HLOOKUP(B58,October!$H$1:$DC$51,51,FALSE) -> 102 | G58: =HLOOKUP(B58,November!$H$1:$DC$61,61,FALSE) -> 114 | H58: =HLOOKUP(B58,December!$H$1:$DC$81,81,FALSE) -> 87 | N58: =SUM(D58:M58) -> 495
A59: 54 | B59: Sean Cleary | C59: Sean's Stars | D59: =HLOOKUP(B59,August!$H$1:$DC$73,73,FALSE) -> 62 | E59: =HLOOKUP(B59,September!$H$1:$DC$73,73,FALSE) -> 99 | F59: =HLOOKUP(B59,October!$H$1:$DC$51,51,FALSE) -> 128 | G59: =HLOOKUP(B59,November!$H$1:$DC$61,61,FALSE) -> 115 | H59: =HLOOKUP(B59,December!$H$1:$DC$81,81,FALSE) -> 91 | N59: =SUM(D59:M59) -> 495
A60: 55 | B60: Alain Verjans | C60: TheCoysAreBackInTown | D60: =HLOOKUP(B60,August!$H$1:$DC$73,73,FALSE) -> 81 | E60: =HLOOKUP(B60,September!$H$1:$DC$73,73,FALSE) -> 132 | F60: =HLOOKUP(B60,October!$H$1:$DC$51,51,FALSE) -> 81 | G60: =HLOOKUP(B60,November!$H$1:$DC$61,61,FALSE) -> 121 | H60: =HLOOKUP(B60,December!$H$1:$DC$81,81,FALSE) -> 78 | N60: =SUM(D60:M60) -> 493
A61: 56 | B61: Daniel Dorrian | C61: Donegallad97 | D61: =HLOOKUP(B61,August!$H$1:$DC$73,73,FALSE) -> 72 | E61: =HLOOKUP(B61,September!$H$1:$DC$73,73,FALSE) -> 84 | F61: =HLOOKUP(B61,October!$H$1:$DC$51,51,FALSE) -> 112 | G61: =HLOOKUP(B61,November!$H$1:$DC$61,61,FALSE) -> 127 | H61: =HLOOKUP(B61,December!$H$1:$DC$81,81,FALSE) -> 94 | N61: =SUM(D61:M61) -> 489
A62: 57 | B62: Kevin Lawless | C62: Delays FC | D62: =HLOOKUP(B62,August!$H$1:$DC$73,73,FALSE) -> 88 | E62: =HLOOKUP(B62,September!$H$1:$DC$73,73,FALSE) -> 92 | F62: =HLOOKUP(B62,October!$H$1:$DC$51,51,FALSE) -> 105 | G62: =HLOOKUP(B62,November!$H$1:$DC$61,61,FALSE) -> 108 | H62: =HLOOKUP(B62,December!$H$1:$DC$81,81,FALSE) -> 96 | N62: =SUM(D62:M62) -> 489
A63: 58 | B63: Philip Jordan | C63: Frankie's Army | D63: =HLOOKUP(B63,August!$H$1:$DC$73,73,FALSE) -> 71 | E63: =HLOOKUP(B63,September!$H$1:$DC$73,73,FALSE) -> 64 | F63: =HLOOKUP(B63,October!$H$1:$DC$51,51,FALSE) -> 101 | G63: =HLOOKUP(B63,November!$H$1:$DC$61,61,FALSE) -> 144 | H63: =HLOOKUP(B63,December!$H$1:$DC$81,81,FALSE) -> 108 | N63: =SUM(D63:M63) -> 488
A64: 59 | B64: Paul Foley | C64: Foley's Sublime 11 | D64: =HLOOKUP(B64,August!$H$1:$DC$73,73,FALSE) -> 83 | E64: =HLOOKUP(B64,September!$H$1:$DC$73,73,FALSE) -> 92 | F64: =HLOOKUP(B64,October!$H$1:$DC$51,51,FALSE) -> 78 | G64: =HLOOKUP(B64,November!$H$1:$DC$61,61,FALSE) -> 138 | H64: =HLOOKUP(B64,December!$H$1:$DC$81,81,FALSE) -> 96 | N64: =SUM(D64:M64) -> 487
A65: 60 | B65: Kieran Killeen | C65: Olde Gold Gloom | D65: =HLOOKUP(B65,August!$H$1:$DC$73,73,FALSE) -> 99 | E65: =HLOOKUP(B65,September!$H$1:$DC$73,73,FALSE) -> 109 | F65: =HLOOKUP(B65,October!$H$1:$DC$51,51,FALSE) -> 85 | G65: =HLOOKUP(B65,November!$H$1:$DC$61,61,FALSE) -> 100 | H65: =HLOOKUP(B65,December!$H$1:$DC$81,81,FALSE) -> 91 | N65: =SUM(D65:M65) -> 484
A66: 61 | B66: Keith Ryan | C66: Cunha Please Hurry Up | D66: =HLOOKUP(B66,August!$H$1:$DC$73,73,FALSE) -> 78 | E66: =HLOOKUP(B66,September!$H$1:$DC$73,73,FALSE) -> 94 | F66: =HLOOKUP(B66,October!$H$1:$DC$51,51,FALSE) -> 93 | G66: =HLOOKUP(B66,November!$H$1:$DC$61,61,FALSE) -> 108 | H66: =HLOOKUP(B66,December!$H$1:$DC$81,81,FALSE) -> 108 | N66: =SUM(D66:M66) -> 481
A67: 62 | B67: Derek McDonald | C67: United We Stand | D67: =HLOOKUP(B67,August!$H$1:$DC$73,73,FALSE) -> 57 | E67: =HLOOKUP(B67,September!$H$1:$DC$73,73,FALSE) -> 67 | F67: =HLOOKUP(B67,October!$H$1:$DC$51,51,FALSE) -> 112 | G67: =HLOOKUP(B67,November!$H$1:$DC$61,61,FALSE) -> 138 | H67: =HLOOKUP(B67,December!$H$1:$DC$81,81,FALSE) -> 106 | N67: =SUM(D67:M67) -> 480
A68: 63 | B68: Javier Suarez | C68: Loseronius FC | D68: =HLOOKUP(B68,August!$H$1:$DC$73,73,FALSE) -> 83 | E68: =HLOOKUP(B68,September!$H$1:$DC$73,73,FALSE) -> 67 | F68: =HLOOKUP(B68,October!$H$1:$DC$51,51,FALSE) -> 93 | G68: =HLOOKUP(B68,November!$H$1:$DC$61,61,FALSE) -> 153 | H68: =HLOOKUP(B68,December!$H$1:$DC$81,81,FALSE) -> 81 | N68: =SUM(D68:M68) -> 477
A69: 64 | B69: David Cooney | C69: London Is Blue | D69: =HLOOKUP(B69,August!$H$1:$DC$73,73,FALSE) -> 85 | E69: =HLOOKUP(B69,September!$H$1:$DC$73,73,FALSE) -> 119 | F69: =HLOOKUP(B69,October!$H$1:$DC$51,51,FALSE) -> 91 | G69: =HLOOKUP(B69,November!$H$1:$DC$61,61,FALSE) -> 103 | H69: =HLOOKUP(B69,December!$H$1:$DC$81,81,FALSE) -> 78 | N69: =SUM(D69:M69) -> 476
A70: 65 | B70: Eamon Fox | C70: Deus Ex Machina | D70: =HLOOKUP(B70,August!$H$1:$DC$73,73,FALSE) -> 92 | E70: =HLOOKUP(B70,September!$H$1:$DC$73,73,FALSE) -> 79 | F70: =HLOOKUP(B70,October!$H$1:$DC$51,51,FALSE) -> 83 | G70: =HLOOKUP(B70,November!$H$1:$DC$61,61,FALSE) -> 125 | H70: =HLOOKUP(B70,December!$H$1:$DC$81,81,FALSE) -> 96 | N70: =SUM(D70:M70) -> 475
A71: 66 | B71: Kevin Nolan | C71: Frimpong Frimpong | D71: =HLOOKUP(B71,August!$H$1:$DC$73,73,FALSE) -> 77 | E71: =HLOOKUP(B71,September!$H$1:$DC$73,73,FALSE) -> 84 | F71: =HLOOKUP(B71,October!$H$1:$DC$51,51,FALSE) -> 103 | G71: =HLOOKUP(B71,November!$H$1:$DC$61,61,FALSE) -> 130 | H71: =HLOOKUP(B71,December!$H$1:$DC$81,81,FALSE) -> 81 | N71: =SUM(D71:M71) -> 475
A72: 67 | B72: Dylan O'Riordan | C72: Friday Night Slots | D72: =HLOOKUP(B72,August!$H$1:$DC$73,73,FALSE) -> 78 | E72: =HLOOKUP(B72,September!$H$1:$DC$73,73,FALSE) -> 77 | F72: =HLOOKUP(B72,October!$H$1:$DC$51,51,FALSE) -> 108 | G72: =HLOOKUP(B72,November!$H$1:$DC$61,61,FALSE) -> 138 | H72: =HLOOKUP(B72,December!$H$1:$DC$81,81,FALSE) -> 71 | N72: =SUM(D72:M72) -> 472
A73: 68 | B73: Micheal Joyce | C73: Whiter Shade Of Pale | D73: =HLOOKUP(B73,August!$H$1:$DC$73,73,FALSE) -> 73 | E73: =HLOOKUP(B73,September!$H$1:$DC$73,73,FALSE) -> 94 | F73: =HLOOKUP(B73,October!$H$1:$DC$51,51,FALSE) -> 98 | G73: =HLOOKUP(B73,November!$H$1:$DC$61,61,FALSE) -> 98 | H73: =HLOOKUP(B73,December!$H$1:$DC$81,81,FALSE) -> 103 | N73: =SUM(D73:M73) -> 466
A74: 69 | B74: Realtin Dunne | C74: Little Stars FC | D74: =HLOOKUP(B74,August!$H$1:$DC$73,73,FALSE) -> 63 | E74: =HLOOKUP(B74,September!$H$1:$DC$73,73,FALSE) -> 94 | F74: =HLOOKUP(B74,October!$H$1:$DC$51,51,FALSE) -> 93 | G74: =HLOOKUP(B74,November!$H$1:$DC$61,61,FALSE) -> 123 | H74: =HLOOKUP(B74,December!$H$1:$DC$81,81,FALSE) -> 90 | N74: =SUM(D74:M74) -> 463
A75: 70 | B75: Finbarr Corkery | C75: Firies FC | D75: =HLOOKUP(B75,August!$H$1:$DC$73,73,FALSE) -> 93 | E75: =HLOOKUP(B75,September!$H$1:$DC$73,73,FALSE) -> 97 | F75: =HLOOKUP(B75,October!$H$1:$DC$51,51,FALSE) -> 103 | G75: =HLOOKUP(B75,November!$H$1:$DC$61,61,FALSE) -> 88 | H75: =HLOOKUP(B75,December!$H$1:$DC$81,81,FALSE) -> 81 | N75: =SUM(D75:M75) -> 462
A76: 71 | B76: David Doyle | C76: Ekitike Max | D76: =HLOOKUP(B76,August!$H$1:$DC$73,73,FALSE) -> 90 | E76: =HLOOKUP(B76,September!$H$1:$DC$73,73,FALSE) -> 96 | F76: =HLOOKUP(B76,October!$H$1:$DC$51,51,FALSE) -> 107 | G76: =HLOOKUP(B76,November!$H$1:$DC$61,61,FALSE) -> 124 | H76: =HLOOKUP(B76,December!$H$1:$DC$81,81,FALSE) -> 43 | N76: =SUM(D76:M76) -> 460
A77: 72 | B77: Shane Horan | C77: Welsh Xavi | D77: =HLOOKUP(B77,August!$H$1:$DC$73,73,FALSE) -> 77 | E77: =HLOOKUP(B77,September!$H$1:$DC$73,73,FALSE) -> 94 | F77: =HLOOKUP(B77,October!$H$1:$DC$51,51,FALSE) -> 68 | G77: =HLOOKUP(B77,November!$H$1:$DC$61,61,FALSE) -> 135 | H77: =HLOOKUP(B77,December!$H$1:$DC$81,81,FALSE) -> 86 | N77: =SUM(D77:M77) -> 460
A78: 73 | B78: Gerry Draper | C78: Everton10 | D78: =HLOOKUP(B78,August!$H$1:$DC$73,73,FALSE) -> 68 | E78: =HLOOKUP(B78,September!$H$1:$DC$73,73,FALSE) -> 79 | F78: =HLOOKUP(B78,October!$H$1:$DC$51,51,FALSE) -> 98 | G78: =HLOOKUP(B78,November!$H$1:$DC$61,61,FALSE) -> 133 | H78: =HLOOKUP(B78,December!$H$1:$DC$81,81,FALSE) -> 78 | N78: =SUM(D78:M78) -> 456
A79: 74 | B79: Billy McGinley | C79: Seagulls Flying High | D79: =HLOOKUP(B79,August!$H$1:$DC$73,73,FALSE) -> 86 | E79: =HLOOKUP(B79,September!$H$1:$DC$73,73,FALSE) -> 81 | F79: =HLOOKUP(B79,October!$H$1:$DC$51,51,FALSE) -> 62 | G79: =HLOOKUP(B79,November!$H$1:$DC$61,61,FALSE) -> 149 | H79: =HLOOKUP(B79,December!$H$1:$DC$81,81,FALSE) -> 77 | N79: =SUM(D79:M79) -> 455
A80: 75 | B80: Gary Donnelly | C80: Drop It Like It's Slot | D80: =HLOOKUP(B80,August!$H$1:$DC$73,73,FALSE) -> 104 | E80: =HLOOKUP(B80,September!$H$1:$DC$73,73,FALSE) -> 64 | F80: =HLOOKUP(B80,October!$H$1:$DC$51,51,FALSE) -> 90 | G80: =HLOOKUP(B80,November!$H$1:$DC$61,61,FALSE) -> 110 | H80: =HLOOKUP(B80,December!$H$1:$DC$81,81,FALSE) -> 85 | N80: =SUM(D80:M80) -> 453
A81: 76 | B81: Aidan Scanlon | C81: St Pats | D81: =HLOOKUP(B81,August!$H$1:$DC$73,73,FALSE) -> 70 | E81: =HLOOKUP(B81,September!$H$1:$DC$73,73,FALSE) -> 77 | F81: =HLOOKUP(B81,October!$H$1:$DC$51,51,FALSE) -> 101 | G81: =HLOOKUP(B81,November!$H$1:$DC$61,61,FALSE) -> 113 | H81: =HLOOKUP(B81,December!$H$1:$DC$81,81,FALSE) -> 91 | N81: =SUM(D81:M81) -> 452
A82: 77 | B82: Jack Draper | C82: Always Losing | D82: =HLOOKUP(B82,August!$H$1:$DC$73,73,FALSE) -> 68 | E82: =HLOOKUP(B82,September!$H$1:$DC$73,73,FALSE) -> 62 | F82: =HLOOKUP(B82,October!$H$1:$DC$51,51,FALSE) -> 113 | G82: =HLOOKUP(B82,November!$H$1:$DC$61,61,FALSE) -> 103 | H82: =HLOOKUP(B82,December!$H$1:$DC$81,81,FALSE) -> 106 | N82: =SUM(D82:M82) -> 452
A83: 78 | B83: Niall Carroll | C83: Yellow Bellies | D83: =HLOOKUP(B83,August!$H$1:$DC$73,73,FALSE) -> 72 | E83: =HLOOKUP(B83,September!$H$1:$DC$73,73,FALSE) -> 69 | F83: =HLOOKUP(B83,October!$H$1:$DC$51,51,FALSE) -> 107 | G83: =HLOOKUP(B83,November!$H$1:$DC$61,61,FALSE) -> 137 | H83: =HLOOKUP(B83,December!$H$1:$DC$81,81,FALSE) -> 62 | N83: =SUM(D83:M83) -> 447
A84: 79 | B84: John Brophy | C84: Carrig ABU | D84: =HLOOKUP(B84,August!$H$1:$DC$73,73,FALSE) -> 88 | E84: =HLOOKUP(B84,September!$H$1:$DC$73,73,FALSE) -> 64 | F84: =HLOOKUP(B84,October!$H$1:$DC$51,51,FALSE) -> 108 | G84: =HLOOKUP(B84,November!$H$1:$DC$61,61,FALSE) -> 103 | H84: =HLOOKUP(B84,December!$H$1:$DC$81,81,FALSE) -> 83 | N84: =SUM(D84:M84) -> 446
A85: 80 | B85: Micheal Munnelly | C85: The Cunning Stunts | D85: =HLOOKUP(B85,August!$H$1:$DC$73,73,FALSE) -> 72 | E85: =HLOOKUP(B85,September!$H$1:$DC$73,73,FALSE) -> 82 | F85: =HLOOKUP(B85,October!$H$1:$DC$51,51,FALSE) -> 93 | G85: =HLOOKUP(B85,November!$H$1:$DC$61,61,FALSE) -> 118 | H85: =HLOOKUP(B85,December!$H$1:$DC$81,81,FALSE) -> 81 | N85: =SUM(D85:M85) -> 446
A86: 81 | B86: Simon Scanlon | C86: Amorin's United Red Devils | D86: =HLOOKUP(B86,August!$H$1:$DC$73,73,FALSE) -> 77 | E86: =HLOOKUP(B86,September!$H$1:$DC$73,73,FALSE) -> 77 | F86: =HLOOKUP(B86,October!$H$1:$DC$51,51,FALSE) -> 112 | G86: =HLOOKUP(B86,November!$H$1:$DC$61,61,FALSE) -> 115 | H86: =HLOOKUP(B86,December!$H$1:$DC$81,81,FALSE) -> 63 | N86: =SUM(D86:M86) -> 444
A87: 82 | B87: Phil Doyle | C87: FC Muertos Erraticos | D87: =HLOOKUP(B87,August!$H$1:$DC$73,73,FALSE) -> 81 | E87: =HLOOKUP(B87,September!$H$1:$DC$73,73,FALSE) -> 49 | F87: =HLOOKUP(B87,October!$H$1:$DC$51,51,FALSE) -> 114 | G87: =HLOOKUP(B87,November!$H$1:$DC$61,61,FALSE) -> 114 | H87: =HLOOKUP(B87,December!$H$1:$DC$81,81,FALSE) -> 85 | N87: =SUM(D87:M87) -> 443
A88: 83 | B88: Joe Behan | C88: NC750X | D88: =HLOOKUP(B88,August!$H$1:$DC$73,73,FALSE) -> 82 | E88: =HLOOKUP(B88,September!$H$1:$DC$73,73,FALSE) -> 79 | F88: =HLOOKUP(B88,October!$H$1:$DC$51,51,FALSE) -> 83 | G88: =HLOOKUP(B88,November!$H$1:$DC$61,61,FALSE) -> 120 | H88: =HLOOKUP(B88,December!$H$1:$DC$81,81,FALSE) -> 76 | N88: =SUM(D88:M88) -> 440
A89: 84 | B89: Martin Kimmins | C89: Los Pollos Hermanos | D89: =HLOOKUP(B89,August!$H$1:$DC$73,73,FALSE) -> 77 | E89: =HLOOKUP(B89,September!$H$1:$DC$73,73,FALSE) -> 94 | F89: =HLOOKUP(B89,October!$H$1:$DC$51,51,FALSE) -> 93 | G89: =HLOOKUP(B89,November!$H$1:$DC$61,61,FALSE) -> 100 | H89: =HLOOKUP(B89,December!$H$1:$DC$81,81,FALSE) -> 76 | N89: =SUM(D89:M89) -> 440
A90: 85 | B90: Ciaran O'Hart | C90: Riverchapel Plate | D90: =HLOOKUP(B90,August!$H$1:$DC$73,73,FALSE) -> 68 | E90: =HLOOKUP(B90,September!$H$1:$DC$73,73,FALSE) -> 79 | F90: =HLOOKUP(B90,October!$H$1:$DC$51,51,FALSE) -> 73 | G90: =HLOOKUP(B90,November!$H$1:$DC$61,61,FALSE) -> 118 | H90: =HLOOKUP(B90,December!$H$1:$DC$81,81,FALSE) -> 93 | N90: =SUM(D90:M90) -> 431
A91: 86 | B91: Tommy Tormey | C91: Shay Brennan's Testimonial XI | D91: =HLOOKUP(B91,August!$H$1:$DC$73,73,FALSE) -> 82 | E91: =HLOOKUP(B91,September!$H$1:$DC$73,73,FALSE) -> 77 | F91: =HLOOKUP(B91,October!$H$1:$DC$51,51,FALSE) -> 103 | G91: =HLOOKUP(B91,November!$H$1:$DC$61,61,FALSE) -> 113 | H91: =HLOOKUP(B91,December!$H$1:$DC$81,81,FALSE) -> 56 | N91: =SUM(D91:M91) -> 431
A92: 87 | B92: Phoebe Suarez Behan | C92: Unicorn FC | D92: =HLOOKUP(B92,August!$H$1:$DC$73,73,FALSE) -> 73 | E92: =HLOOKUP(B92,September!$H$1:$DC$73,73,FALSE) -> 97 | F92: =HLOOKUP(B92,October!$H$1:$DC$51,51,FALSE) -> 90 | G92: =HLOOKUP(B92,November!$H$1:$DC$61,61,FALSE) -> 83 | H92: =HLOOKUP(B92,December!$H$1:$DC$81,81,FALSE) -> 81 | N92: =SUM(D92:M92) -> 424
A93: 88 | B93: Jimmy Maguire | C93: Jimmy's Jewels | D93: =HLOOKUP(B93,August!$H$1:$DC$73,73,FALSE) -> 48 | E93: =HLOOKUP(B93,September!$H$1:$DC$73,73,FALSE) -> 77 | F93: =HLOOKUP(B93,October!$H$1:$DC$51,51,FALSE) -> 103 | G93: =HLOOKUP(B93,November!$H$1:$DC$61,61,FALSE) -> 108 | H93: =HLOOKUP(B93,December!$H$1:$DC$81,81,FALSE) -> 86 | N93: =SUM(D93:M93) -> 422
A94: 89 | B94: Rhea Suarez Behan | C94: Rhea's Reds | D94: =HLOOKUP(B94,August!$H$1:$DC$73,73,FALSE) -> 68 | E94: =HLOOKUP(B94,September!$H$1:$DC$73,73,FALSE) -> 102 | F94: =HLOOKUP(B94,October!$H$1:$DC$51,51,FALSE) -> 68 | G94: =HLOOKUP(B94,November!$H$1:$DC$61,61,FALSE) -> 103 | H94: =HLOOKUP(B94,December!$H$1:$DC$81,81,FALSE) -> 71 | N94: =SUM(D94:M94) -> 412
A95: 90 | B95: Caoimhin McEnteggart | C95: Macs Marvels | D95: =HLOOKUP(B95,August!$H$1:$DC$73,73,FALSE) -> 102 | E95: =HLOOKUP(B95,September!$H$1:$DC$73,73,FALSE) -> 82 | F95: =HLOOKUP(B95,October!$H$1:$DC$51,51,FALSE) -> 68 | G95: =HLOOKUP(B95,November!$H$1:$DC$61,61,FALSE) -> 73 | H95: =HLOOKUP(B95,December!$H$1:$DC$81,81,FALSE) -> 86 | N95: =SUM(D95:M95) -> 411
A96: 91 | B96: Dylan Delaney | C96: Amorin's At The Wheel | D96: =HLOOKUP(B96,August!$H$1:$DC$73,73,FALSE) -> 58 | E96: =HLOOKUP(B96,September!$H$1:$DC$73,73,FALSE) -> 107 | F96: =HLOOKUP(B96,October!$H$1:$DC$51,51,FALSE) -> 118 | G96: =HLOOKUP(B96,November!$H$1:$DC$61,61,FALSE) -> 118 | H96: =HLOOKUP(B96,December!$H$1:$DC$81,81,FALSE) -> 6 | N96: =SUM(D96:M96) -> 407
A97: 92 | B97: Paddy Devereux | C97: Wirtz The Story Lads | D97: =HLOOKUP(B97,August!$H$1:$DC$73,73,FALSE) -> 55 | E97: =HLOOKUP(B97,September!$H$1:$DC$73,73,FALSE) -> 62 | F97: =HLOOKUP(B97,October!$H$1:$DC$51,51,FALSE) -> 107 | G97: =HLOOKUP(B97,November!$H$1:$DC$61,61,FALSE) -> 100 | H97: =HLOOKUP(B97,December!$H$1:$DC$81,81,FALSE) -> 82 | N97: =SUM(D97:M97) -> 406
A98: 93 | B98: Gerry Moore | C98: Victor! For Mikel | D98: =HLOOKUP(B98,August!$H$1:$DC$73,73,FALSE) -> 66 | E98: =HLOOKUP(B98,September!$H$1:$DC$73,73,FALSE) -> 84 | F98: =HLOOKUP(B98,October!$H$1:$DC$51,51,FALSE) -> 109 | G98: =HLOOKUP(B98,November!$H$1:$DC$61,61,FALSE) -> 79 | H98: =HLOOKUP(B98,December!$H$1:$DC$81,81,FALSE) -> 60 | N98: =SUM(D98:M98) -> 398
A99: 94 | B99: Sam Calvert | C99: Samchester United | D99: =HLOOKUP(B99,August!$H$1:$DC$73,73,FALSE) -> 69 | E99: =HLOOKUP(B99,September!$H$1:$DC$73,73,FALSE) -> 76 | F99: =HLOOKUP(B99,October!$H$1:$DC$51,51,FALSE) -> 98 | G99: =HLOOKUP(B99,November!$H$1:$DC$61,61,FALSE) -> 86 | H99: =HLOOKUP(B99,December!$H$1:$DC$81,81,FALSE) -> 47 | N99: =SUM(D99:M99) -> 376
A100: 95 | B100: David King | C100: Alisson Wonderland | D100: =HLOOKUP(B100,August!$H$1:$DC$73,73,FALSE) -> 101 | E100: =HLOOKUP(B100,September!$H$1:$DC$73,73,FALSE) -> 59 | F100: =HLOOKUP(B100,October!$H$1:$DC$51,51,FALSE) -> 107 | G100: =HLOOKUP(B100,November!$H$1:$DC$61,61,FALSE) -> 67 | H100: =HLOOKUP(B100,December!$H$1:$DC$81,81,FALSE) -> 8 | N100: =SUM(D100:M100) -> 342
A101: 96 | B101: Gavin Goodwin | C101: Gorey United | D101: =HLOOKUP(B101,August!$H$1:$DC$73,73,FALSE) -> 93 | E101: =HLOOKUP(B101,September!$H$1:$DC$73,73,FALSE) -> 107 | F101: =HLOOKUP(B101,October!$H$1:$DC$51,51,FALSE) -> 128 | G101: =HLOOKUP(B101,November!$H$1:$DC$61,61,FALSE) -> 8 | H101: =HLOOKUP(B101,December!$H$1:$DC$81,81,FALSE) -> 6 | N101: =SUM(D101:M101) -> 342
A102: 97 | B102: Colin Butterly | C102: Butters FC | D102: =HLOOKUP(B102,August!$H$1:$DC$73,73,FALSE) -> 68 | E102: =HLOOKUP(B102,September!$H$1:$DC$73,73,FALSE) -> 77 | F102: =HLOOKUP(B102,October!$H$1:$DC$51,51,FALSE) -> 108 | G102: =HLOOKUP(B102,November!$H$1:$DC$61,61,FALSE) -> 43 | H102: =HLOOKUP(B102,December!$H$1:$DC$81,81,FALSE) -> 6 | N102: =SUM(D102:M102) -> 302
A103: 98 | B103: Benny McCarthy | C103: Brendan's Navigators | D103: =HLOOKUP(B103,August!$H$1:$DC$73,73,FALSE) -> 80 | E103: =HLOOKUP(B103,September!$H$1:$DC$73,73,FALSE) -> 77 | F103: =HLOOKUP(B103,October!$H$1:$DC$51,51,FALSE) -> 74 | G103: =HLOOKUP(B103,November!$H$1:$DC$61,61,FALSE) -> 20 | H103: =HLOOKUP(B103,December!$H$1:$DC$81,81,FALSE) -> 2 | N103: =SUM(D103:M103) -> 253
A104: 99 | B104: Calvin McGettigan | C104: Right Behind United | D104: =HLOOKUP(B104,August!$H$1:$DC$73,73,FALSE) -> 62 | E104: =HLOOKUP(B104,September!$H$1:$DC$73,73,FALSE) -> 69 | F104: =HLOOKUP(B104,October!$H$1:$DC$51,51,FALSE) -> 8 | G104: =HLOOKUP(B104,November!$H$1:$DC$61,61,FALSE) -> 40 | H104: =HLOOKUP(B104,December!$H$1:$DC$81,81,FALSE) -> 6 | N104: =SUM(D104:M104) -> 185
A105: 100 | B105: Dave Lavelle | C105: Isak Is A Red | D105: =HLOOKUP(B105,August!$H$1:$DC$73,73,FALSE) -> 75 | E105: =HLOOKUP(B105,September!$H$1:$DC$73,73,FALSE) -> 72 | F105: =HLOOKUP(B105,October!$H$1:$DC$51,51,FALSE) -> 6 | G105: =HLOOKUP(B105,November!$H$1:$DC$61,61,FALSE) -> 8 | H105: =HLOOKUP(B105,December!$H$1:$DC$81,81,FALSE) -> 6 | N105: =SUM(D105:M105) -> 167

Sheet August
H1: Aaron Nealon | I1: Aidan Scanlon | J1: Aidan White | K1: Alain Verjans | L1: Anastas Popov | M1: Andy Dunne | N1: Benny McCarthy | O1: Billy McGinley | P1: Bobby Hynes | Q1: Brendan Maguire | R1: Brian Haughton | S1: Brian Hearne | T1: Brian Mullen | U1: Calvin McGettigan | V1: Caoimhin McEnteggart | W1: Carl Toner | X1: Caroline Carroll | Y1: Chris Keohan | Z1: Christina Morgan | AA1: Ciaran O'Hart | AB1: Colin Butterly | AC1: Con McSweeney | AD1: Craig Calvert | AE1: Craig Whelan | AF1: Daniel Dorrian | AG1: Darragh Kenny | AH1: Darren O'Gorman | AI1: Dave Lavelle | AJ1: Dave McGinley | AK1: David Cooney | AL1: David Doyle | AM1: David King | AN1: Derek McDonald | AO1: Dylan Delaney | AP1: Dylan O'Riordan | AQ1: Eamon Fox | AR1: Eamonn Gallagher | AS1: Eoghan Farrelly | AT1: Finbarr Corkery | AU1: Frank McSweeney | AV1: Gareth Pierpoint | AW1: Gary Donnelly | AX1: Gary Fitzpatrick | AY1: Gavin Goodwin | AZ1: Gavin Morgan | BA1: Gerry Draper | BB1: Gerry Moore | BC1: Graham Pierpoint | BD1: Greg Donaghy | BE1: Helen Fadian | BF1: Jack Draper | BG1: Jason Maloney | BH1: Javier Suarez | BI1: Jim Foley | BJ1: Jimmy Maguire | BK1: Joe Behan | BL1: Joe Turner | BM1: John Brophy | BN1: John Cafferkey | BO1: Johno Percy | BP1: Jonathan Fox | BQ1: Joseph Kavanagh | BR1: Joseph Leppla | BS1: Keith Nerney | BT1: Keith Ryan | BU1: Kev Dalton | BV1: Kevin Lawless | BW1: Kevin Nolan | BX1: Kieran Killeen | BY1: Liam Keohan | BZ1: Lionel Knott | CA1: Martin Kimmins | CB1: Micheal Joyce | CC1: Micheal Munnelly | CD1: Monica Collins | CE1: Niall Carroll | CF1: Paddy Devereux | CG1: Paul Foley | CH1: Paul Moore | CI1: Paul Prendergast | CJ1: Peter Lavelle | CK1: Phil Doyle | CL1: Philip Jordan | CM1: Phoebe Suarez Behan | CN1: Realtin Dunne | CO1: Rhea Suarez Behan | CP1: Richard Johnston | CQ1: Robert Foley | CR1: Robert Gaffney | CS1: Roisin Joyce | CT1: Sam Calvert | CU1: Sean Cafferkey | CV1: Sean Cleary | CW1: Sean O'Mairtin | CX1: Shane Horan | CY1: Simon Scanlon | CZ1: Thomas Nolan | DA1: Tommy Hamill | DB1: Tommy Tormey | DC1: Tommy Walsh
A2: Date | B2: Teams | F2: Time
A3: 2025-08-15 | B3: Liverpool | C3: 4 | D3: 2 | E3: Bournemouth | F3: 45884.83333 | H3: 5 | I3: 5 | J3: 5 | K3: 5 | L3: 5 | M3: 5 | N3: 0 | O3: 5 | P3: 5 | Q3: 5 | R3: 5 | S3: 5 | T3: 5 | U3: 5 | V3: 5 | W3: 5 | X3: 5 | Y3: 5 | Z3: 5 | AA3: 5 | AB3: - | AC3: 5 | AD3: 5 | AE3: 5 | AF3: 5 | AG3: 5 | AH3: 5 | AI3: 5 | AJ3: 5 | AK3: 5 | AL3: 5 | AM3: 5 | AN3: 5 | AO3: 5 | AP3: 5 | AQ3: 5 | AR3: 5 | AS3: 5 | AT3: 5 | AU3: 5 | AV3: 5 | AW3: 5 | AX3: 5 | AY3: 5 | AZ3: 5 | BA3: 5 | BB3: 5 | BC3: 5 | BD3: 5 | BE3: 5 | BF3: 5 | BG3: 5 | BH3: 5 | BI3: 5 | BJ3: - | BK3: 5 | BL3: 5 | BM3: 5 | BN3: 5 | BO3: 5 | BP3: 5 | BQ3: 5 | BR3: 5 | BS3: 5 | BT3: 5 | BU3: 5 | BV3: 5 | BW3: 5 | BX3: 5 | BY3: 5 | BZ3: 5 | CA3: 5 | CB3: 5 | CC3: 5 | CD3: 5 | CE3: 5 | CF3: 5 | CG3: 5 | CH3: 5 | CI3: 5 | CJ3: 5 | CK3: 5 | CL3: 5 | CM3: 5 | CN3: 5 | CO3: 5 | CP3: 5 | CQ3: 5 | CR3: 5 | CS3: 5 | CT3: 0 | CU3: 5 | CV3: 5 | CW3: 5 | CX3: 5 | CY3: 5 | CZ3: 5 | DA3: 5 | DB3: 5 | DC3: 5
A4: 2025-08-16 | B4: Aston Villa | C4: 0 | D4: 0 | E4: Newcastle | F4: 45885.52083 | H4: 5 | I4: 5 | J4: 0 | K4: 5 | L4: 5 | M4: 0 | N4: 5 | O4: 5 | P4: 5 | Q4: 5 | R4: 0 | S4: 5 | T4: 0 | U4: 0 | V4: 5 | W4: 5 | X4: 0 | Y4: 0 | Z4: 0 | AA4: 5 | AB4: - | AC4: 5 | AD4: 0 | AE4: 5 | AF4: 5 | AG4: 5 | AH4: 0 | AI4: 0 | AJ4: 5 | AK4: 0 | AL4: 0 | AM4: 5 | AN4: 5 | AO4: 0 | AP4: 0 | AQ4: 0 | AR4: 0 | AS4: 0 | AT4: 5 | AU4: 0 | AV4: 5 | AW4: 5 | AX4: 5 | AY4: 0 | AZ4: 5 | BA4: 0 | BB4: 5 | BC4: 5 | BD4: 0 | BE4: 5 | BF4: 0 | BG4: 5 | BH4: 0 | BI4: 0 | BJ4: - | BK4: 0 | BL4: 0 | BM4: 5 | BN4: 0 | BO4: 0 | BP4: 0 | BQ4: 0 | BR4: 0 | BS4: 0 | BT4: 5 | BU4: 0 | BV4: 0 | BW4: 5 | BX4: 5 | BY4: 0 | BZ4: 0 | CA4: 5 | CB4: 5 | CC4: 5 | CD4: 0 | CE4: 0 | CF4: 0 | CG4: 0 | CH4: 5 | CI4: 0 | CJ4: 5 | CK4: 0 | CL4: 5 | CM4: 0 | CN4: 0 | CO4: 0 | CP4: 0 | CQ4: 5 | CR4: 0 | CS4: 0 | CT4: 0 | CU4: 0 | CV4: 0 | CW4: 0 | CX4: 5 | CY4: 5 | CZ4: 5 | DA4: 5 | DB4: 0 | DC4: 5
A5: 2025-08-16 | B5: Brighton | C5: 1 | D5: 1 | E5: Fulham | F5: 45885.625 | H5: 0 | I5: 0 | J5: 10 | K5: 0 | L5: 0 | M5: 0 | N5: 5 | O5: 0 | P5: 10 | Q5: 0 | R5: 0 | S5: 0 | T5: 10 | U5: 0 | V5: 10 | W5: 0 | X5: 0 | Y5: 0 | Z5: 0 | AA5: 0 | AB5: - | AC5: 5 | AD5: 10 | AE5: 10 | AF5: 0 | AG5: 10 | AH5: 0 | AI5: 0 | AJ5: 0 | AK5: 5 | AL5: 0 | AM5: 5 | AN5: 0 | AO5: 0 | AP5: 0 | AQ5: 0 | AR5: 0 | AS5: 0 | AT5: 10 | AU5: 0 | AV5: 0 | AW5: 0 | AX5: 5 | AY5: 10 | AZ5: 0 | BA5: 0 | BB5: 10 | BC5: 0 | BD5: 10 | BE5: 0 | BF5: 0 | BG5: 5 | BH5: 0 | BI5: 5 | BJ5: - | BK5: 0 | BL5: 0 | BM5: 0 | BN5: 10 | BO5: 5 | BP5: 0 | BQ5: 10 | BR5: 0 | BS5: 0 | BT5: 0 | BU5: 0 | BV5: 10 | BW5: 0 | BX5: 5 | BY5: 0 | BZ5: 0 | CA5: 0 | CB5: 0 | CC5: 0 | CD5: 0 | CE5: 10 | CF5: 0 | CG5: 5 | CH5: 0 | CI5: 0 | CJ5: 0 | CK5: 10 | CL5: 0 | CM5: 0 | CN5: 0 | CO5: 0 | CP5: 10 | CQ5: 0 | CR5: 10 | CS5: 0 | CT5: 5 | CU5: 0 | CV5: 0 | CW5: 0 | CX5: 0 | CY5: 0 | CZ5: 0 | DA5: 0 | DB5: 0 | DC5: 0
A6: 2025-08-16 | B6: Spurs | C6: 3 | D6: 0 | E6: Burnley | F6: 45885.625 | H6: 5 | I6: 5 | J6: 5 | K6: 5 | L6: 5 | M6: 5 | N6: 10 | O6: 5 | P6: 5 | Q6: 5 | R6: 10 | S6: 5 | T6: 5 | U6: 5 | V6: 5 | W6: 5 | X6: 10 | Y6: 5 | Z6: 5 | AA6: 5 | AB6: - | AC6: 5 | AD6: 5 | AE6: 5 | AF6: 10 | AG6: 5 | AH6: 10 | AI6: 5 | AJ6: 5 | AK6: 5 | AL6: 10 | AM6: 5 | AN6: 5 | AO6: 5 | AP6: 5 | AQ6: 10 | AR6: 5 | AS6: 5 | AT6: 5 | AU6: 5 | AV6: 5 | AW6: 5 | AX6: 5 | AY6: 5 | AZ6: 5 | BA6: 5 | BB6: 5 | BC6: 5 | BD6: 5 | BE6: 5 | BF6: 5 | BG6: 5 | BH6: 5 | BI6: 5 | BJ6: - | BK6: 10 | BL6: 5 | BM6: 10 | BN6: 5 | BO6: 5 | BP6: 5 | BQ6: 10 | BR6: 5 | BS6: 5 | BT6: 5 | BU6: 10 | BV6: 5 | BW6: 5 | BX6: 5 | BY6: 5 | BZ6: 5 | CA6: 0 | CB6: 0 | CC6: 5 | CD6: 5 | CE6: 5 | CF6: 5 | CG6: 5 | CH6: 5 | CI6: 5 | CJ6: 5 | CK6: 0 | CL6: 5 | CM6: 5 | CN6: 5 | CO6: 5 | CP6: 5 | CQ6: 5 | CR6: 5 | CS6: 5 | CT6: 5 | CU6: 5 | CV6: 10 | CW6: 5 | CX6: 10 | CY6: 5 | CZ6: 5 | DA6: 5 | DB6: 5 | DC6: 5
A7: 2025-08-16 | B7: Sunderland | C7: 3 | D7: 0 | E7: West Ham | F7: 45885.625 | H7: 5 | I7: 0 | J7: 5 | K7: 0 | L7: 0 | M7: 0 | N7: 0 | O7: 0 | P7: 5 | Q7: 0 | R7: 0 | S7: 0 | T7: 0 | U7: 0 | V7: 0 | W7: 0 | X7: 0 | Y7: 0 | Z7: 5 | AA7: 0 | AB7: - | AC7: 0 | AD7: 0 | AE7: 0 | AF7: 0 | AG7: 0 | AH7: 0 | AI7: 0 | AJ7: 0 | AK7: 0 | AL7: 0 | AM7: 0 | AN7: 0 | AO7: 0 | AP7: 0 | AQ7: 0 | AR7: 0 | AS7: 0 | AT7: 0 | AU7: 0 | AV7: 0 | AW7: 5 | AX7: 5 | AY7: 0 | AZ7: 0 | BA7: 5 | BB7: 0 | BC7: 0 | BD7: 0 | BE7: 0 | BF7: 0 | BG7: 0 | BH7: 0 | BI7: 0 | BJ7: - | BK7: 0 | BL7: 5 | BM7: 5 | BN7: 0 | BO7: 0 | BP7: 0 | BQ7: 0 | BR7: 0 | BS7: 0 | BT7: 0 | BU7: 0 | BV7: 0 | BW7: 0 | BX7: 0 | BY7: 0 | BZ7: 0 | CA7: 5 | CB7: 0 | CC7: 0 | CD7: 0 | CE7: 5 | CF7: 0 | CG7: 0 | CH7: 0 | CI7: 0 | CJ7: 0 | CK7: 0 | CL7: 0 | CM7: 0 | CN7: 0 | CO7: 0 | CP7: 0 | CQ7: 0 | CR7: 0 | CS7: 5 | CT7: 0 | CU7: 0 | CV7: 0 | CW7: 0 | CX7: 0 | CY7: 0 | CZ7: 0 | DA7: 0 | DB7: 5 | DC7: 0
A8: 2025-08-16 | B8: Wolves | C8: 0 | D8: 4 | E8: Man City | F8: 45885.72917 | H8: 5 | I8: 5 | J8: 5 | K8: 5 | L8: 5 | M8: 5 | N8: 10 | O8: 5 | P8: 5 | Q8: 5 | R8: 5 | S8: 5 | T8: 5 | U8: 5 | V8: 5 | W8: 5 | X8: 5 | Y8: 5 | Z8: 0 | AA8: 5 | AB8: - | AC8: 5 | AD8: 5 | AE8: 5 | AF8: 5 | AG8: 5 | AH8: 5 | AI8: 5 | AJ8: 5 | AK8: 5 | AL8: 5 | AM8: 5 | AN8: 5 | AO8: 5 | AP8: 5 | AQ8: 5 | AR8: 5 | AS8: 5 | AT8: 5 | AU8: 5 | AV8: 5 | AW8: 5 | AX8: 5 | AY8: 5 | AZ8: 5 | BA8: 0 | BB8: 5 | BC8: 5 | BD8: 5 | BE8: 5 | BF8: 5 | BG8: 5 | BH8: 5 | BI8: 5 | BJ8: - | BK8: 5 | BL8: 5 | BM8: 5 | BN8: 5 | BO8: 5 | BP8: 5 | BQ8: 5 | BR8: 5 | BS8: 5 | BT8: 5 | BU8: 5 | BV8: 5 | BW8: 5 | BX8: 5 | BY8: 5 | BZ8: 0 | CA8: 5 | CB8: 5 | CC8: 5 | CD8: 5 | CE8: 5 | CF8: 5 | CG8: 5 | CH8: 5 | CI8: 5 | CJ8: 10 | CK8: 5 | CL8: 5 | CM8: 5 | CN8: 5 | CO8: 5 | CP8: 5 | CQ8: 5 | CR8: 5 | CS8: 5 | CT8: 5 | CU8: 5 | CV8: 5 | CW8: 5 | CX8: 5 | CY8: 5 | CZ8: 5 | DA8: 5 | DB8: 5 | DC8: 5
A9: 2025-08-17 | B9: Chelsea | C9: 0 | D9: 0 | E9: Crystal Palace | F9: 45886.58333 | H9: 0 | I9: 0 | J9: 5 | K9: 0 | L9: 0 | M9: 0 | N9: 0 | O9: 0 | P9: 0 | Q9: 0 | R9: 0 | S9: 5 | T9: 0 | U9: 0 | V9: 0 | W9: 0 | X9: 0 | Y9: 0 | Z9: 0 | AA9: 0 | AB9: - | AC9: 0 | AD9: 0 | AE9: 0 | AF9: 0 | AG9: 0 | AH9: 0 | AI9: 0 | AJ9: 0 | AK9: 0 | AL9: 0 | AM9: 0 | AN9: 0 | AO9: 0 | AP9: 0 | AQ9: 0 | AR9: 0 | AS9: 0 | AT9: 5 | AU9: 0 | AV9: 0 | AW9: 5 | AX9: 0 | AY9: 5 | AZ9: 0 | BA9: 0 | BB9: 0 | BC9: 0 | BD9: 0 | BE9: 0 | BF9: 0 | BG9: 0 | BH9: 0 | BI9: 0 | BJ9: - | BK9: 0 | BL9: 0 | BM9: 0 | BN9: 0 | BO9: 0 | BP9: 0 | BQ9: 0 | BR9: 0 | BS9: 0 | BT9: 0 | BU9: 0 | BV9: 0 | BW9: 0 | BX9: 5 | BY9: 0 | BZ9: 0 | CA9: 0 | CB9: 5 | CC9: 0 | CD9: 0 | CE9: 0 | CF9: 0 | CG9: 0 | CH9: 0 | CI9: 0 | CJ9: 0 | CK9: 0 | CL9: 0 | CM9: 0 | CN9: 0 | CO9: 0 | CP9: 5 | CQ9: 5 | CR9: 0 | CS9: 0 | CT9: 0 | CU9: 0 | CV9: 0 | CW9: 0 | CX9: 0 | CY9: 0 | CZ9: 0 | DA9: 0 | DB9: 0 | DC9: 5
A10: 2025-08-17 | B10: Nott'm Forest | C10: 3 | D10: 1 | E10: Brentford | F10: 45886.58333 | H10: 5 | I10: 5 | J10: 0 | K10: 0 | L10: 5 | M10: 5 | N10: 0 | O10: 5 | P10: 5 | Q10: 5 | R10: 0 | S10: 5 | T10: 5 | U10: 5 | V10: 0 | W10: 0 | X10: 5 | Y10: 5 | Z10: 5 | AA10: 5 | AB10: - | AC10: 5 | AD10: 5 | AE10: 10 | AF10: 5 | AG10: 5 | AH10: 0 | AI10: 0 | AJ10: 5 | AK10: 5 | AL10: 5 | AM10: 0 | AN10: 0 | AO10: 0 | AP10: 0 | AQ10: 5 | AR10: 10 | AS10: 5 | AT10: 5 | AU10: 5 | AV10: 5 | AW10: 0 | AX10: 5 | AY10: 5 | AZ10: 5 | BA10: 5 | BB10: 0 | BC10: 0 | BD10: 0 | BE10: 5 | BF10: 0 | BG10: 5 | BH10: 0 | BI10: 5 | BJ10: - | BK10: 5 | BL10: 5 | BM10: 0 | BN10: 5 | BO10: 5 | BP10: 5 | BQ10: 5 | BR10: 5 | BS10: 5 | BT10: 5 | BU10: 5 | BV10: 5 | BW10: 5 | BX10: 5 | BY10: 5 | BZ10: 0 | CA10: 0 | CB10: 5 | CC10: 5 | CD10: 0 | CE10: 5 | CF10: 0 | CG10: 0 | CH10: 5 | CI10: 5 | CJ10: 5 | CK10: 5 | CL10: 5 | CM10: 0 | CN10: 5 | CO10: 5 | CP10: 5 | CQ10: 5 | CR10: 5 | CS10: 0 | CT10: 5 | CU10: 5 | CV10: 5 | CW10: 0 | CX10: 5 | CY10: 5 | CZ10: 5 | DA10: 5 | DB10: 10 | DC10: 5
A11: 2025-08-17 | B11: Man Utd | C11: 0 | D11: 1 | E11: Arsenal | F11: 45886.6875 | H11: 0 | I11: 0 | J11: 5 | K11: 0 | L11: 5 | M11: 5 | N11: 0 | O11: 5 | P11: 0 | Q11: 0 | R11: 0 | S11: 5 | T11: 5 | U11: 0 | V11: 0 | W11: 10 | X11: 0 | Y11: 5 | Z11: 0 | AA11: 0 | AB11: - | AC11: 5 | AD11: 0 | AE11: 0 | AF11: 0 | AG11: 0 | AH11: 5 | AI11: 0 | AJ11: 0 | AK11: 0 | AL11: 5 | AM11: 5 | AN11: 0 | AO11: 0 | AP11: 0 | AQ11: 5 | AR11: 10 | AS11: 0 | AT11: 0 | AU11: 5 | AV11: 5 | AW11: 0 | AX11: 5 | AY11: 0 | AZ11: 0 | BA11: 0 | BB11: 0 | BC11: 5 | BD11: 0 | BE11: 5 | BF11: 5 | BG11: 0 | BH11: 5 | BI11: 0 | BJ11: 0 | BK11: 5 | BL11: 0 | BM11: 10 | BN11: 0 | BO11: 5 | BP11: 10 | BQ11: 0 | BR11: 0 | BS11: 5 | BT11: 0 | BU11: 5 | BV11: 0 | BW11: 10 | BX11: 5 | BY11: 5 | BZ11: 5 | CA11: 5 | CB11: 5 | CC11: 5 | CD11: 0 | CE11: 0 | CF11: 0 | CG11: 5 | CH11: 0 | CI11: 0 | CJ11: 5 | CK11: 0 | CL11: 0 | CM11: 0 | CN11: 5 | CO11: 5 | CP11: 5 | CQ11: 5 | CR11: 0 | CS11: 5 | CT11: 0 | CU11: 0 | CV11: 0 | CW11: 0 | CX11: 0 | CY11: 0 | CZ11: 5 | DA11: 5 | DB11: 0 | DC11: 5
A12: 2025-08-18 | B12: Leeds Utd | C12: 1 | D12: 0 | E12: Everton | F12: 45887.83333 | H12: 0 | I12: 0 | J12: 0 | K12: 10 | L12: 10 | M12: 5 | N12: 0 | O12: 0 | P12: 0 | Q12: 0 | R12: 0 | S12: 0 | T12: 0 | U12: 0 | V12: 0 | W12: 0 | X12: 0 | Y12: 5 | Z12: 5 | AA12: 0 | AB12: - | AC12: 0 | AD12: 5 | AE12: 0 | AF12: 0 | AG12: 0 | AH12: 0 | AI12: 0 | AJ12: 0 | AK12: 10 | AL12: 0 | AM12: 0 | AN12: 0 | AO12: 0 | AP12: 0 | AQ12: 0 | AR12: 0 | AS12: 5 | AT12: 0 | AU12: 0 | AV12: 0 | AW12: 0 | AX12: 0 | AY12: 0 | AZ12: 10 | BA12: 0 | BB12: 0 | BC12: 0 | BD12: 0 | BE12: 0 | BF12: 0 | BG12: 0 | BH12: 0 | BI12: 0 | BJ12: 0 | BK12: 0 | BL12: 10 | BM12: 0 | BN12: 0 | BO12: 0 | BP12: 10 | BQ12: 0 | BR12: 0 | BS12: 5 | BT12: 5 | BU12: 5 | BV12: 0 | BW12: 0 | BX12: 5 | BY12: 0 | BZ12: 0 | CA12: 0 | CB12: 0 | CC12: 0 | CD12: 0 | CE12: 0 | CF12: 0 | CG12: 0 | CH12: 10 | CI12: 5 | CJ12: 0 | CK12: 0 | CL12: 0 | CM12: 0 | CN12: 0 | CO12: 0 | CP12: 0 | CQ12: 0 | CR12: 0 | CS12: 0 | CT12: 0 | CU12: 0 | CV12: 0 | CW12: 0 | CX12: 0 | CY12: 0 | CZ12: 0 | DA12: 0 | DB12: 0 | DC12: 0
A13: 2025-08-22 | B13: West Ham | C13: 1 | D13: 5 | E13: Chelsea | F13: 20:00:00 | H13: 5 | I13: 5 | J13: 5 | K13: 5 | L13: 5 | M13: 0 | N13: 0 | O13: 5 | P13: 5 | Q13: 5 | R13: 5 | S13: 5 | T13: 5 | U13: 0 | V13: 5 | W13: 5 | X13: 5 | Y13: 0 | Z13: 0 | AA13: 5 | AB13: 0 | AC13: 5 | AD13: 5 | AE13: 5 | AF13: 5 | AG13: 5 | AH13: 5 | AI13: 5 | AJ13: 0 | AK13: 5 | AL13: 5 | AM13: 5 | AN13: 5 | AO13: 5 | AP13: 5 | AQ13: 5 | AR13: 5 | AS13: 5 | AT13: 0 | AU13: 5 | AV13: 5 | AW13: 5 | AX13: 5 | AY13: 5 | AZ13: 5 | BA13: 5 | BB13: 5 | BC13: 5 | BD13: 5 | BE13: 5 | BF13: 5 | BG13: 5 | BH13: 5 | BI13: 5 | BJ13: 5 | BK13: 5 | BL13: 5 | BM13: 5 | BN13: 5 | BO13: 5 | BP13: 5 | BQ13: 5 | BR13: 5 | BS13: 5 | BT13: 5 | BU13: 5 | BV13: 0 | BW13: 0 | BX13: 5 | BY13: 0 | BZ13: 5 | CA13: 5 | CB13: 5 | CC13: 5 | CD13: 5 | CE13: 5 | CF13: 5 | CG13: 5 | CH13: 5 | CI13: 0 | CJ13: 5 | CK13: 5 | CL13: 5 | CM13: 5 | CN13: 0 | CO13: 5 | CP13: 5 | CQ13: 5 | CR13: 5 | CS13: 5 | CT13: 5 | CU13: 5 | CV13: 5 | CW13: 5 | CX13: 5 | CY13: 5 | CZ13: 0 | DA13: 5 | DB13: 5 | DC13: 5
A14: 2025-08-23 | B14: Man City | C14: 0 | D14: 2 | E14: Spurs | F14: 12:30:00 | H14: 0 | I14: 0 | J14: 0 | K14: 0 | L14: 0 | M14: 0 | N14: 0 | O14: 0 | P14: 0 | Q14: 0 | R14: 0 | S14: 0 | T14: 0 | U14: 0 | V14: 0 | W14: 0 | X14: 0 | Y14: 0 | Z14: 0 | AA14: 0 | AB14: 0 | AC14: 0 | AD14: 0 | AE14: 0 | AF14: 0 | AG14: 0 | AH14: 0 | AI14: 0 | AJ14: 0 | AK14: 0 | AL14: 0 | AM14: 0 | AN14: 0 | AO14: 0 | AP14: 0 | AQ14: 0 | AR14: 0 | AS14: 0 | AT14: 0 | AU14: 0 | AV14: 0 | AW14: 0 | AX14: 0 | AY14: 0 | AZ14: 0 | BA14: 0 | BB14: 0 | BC14: 0 | BD14: 0 | BE14: 0 | BF14: 0 | BG14: 0 | BH14: 0 | BI14: 0 | BJ14: 0 | BK14: 0 | BL14: 0 | BM14: 0 | BN14: 0 | BO14: 0 | BP14: 0 | BQ14: 0 | BR14: 0 | BS14: 0 | BT14: 0 | BU14: 0 | BV14: 0 | BW14: 0 | BX14: 0 | BY14: 0 | BZ14: 0 | CA14: 0 | CB14: 0 | CC14: 0 | CD14: 0 | CE14: 0 | CF14: 0 | CG14: 0 | CH14: 0 | CI14: 0 | CJ14: 0 | CK14: 0 | CL14: 0 | CM14: 0 | CN14: 0 | CO14: 0 | CP14: 0 | CQ14: 0 | CR14: 0 | CS14: 0 | CT14: 0 | CU14: 0 | CV14: 0 | CW14: 0 | CX14: 0 | CY14: 0 | CZ14: 0 | DA14: 0 | DB14: 0 | DC14: 0
A15: 2025-08-23 | B15: Bournemouth | C15: 1 | D15: 0 | E15: Wolves | F15: 45892.625 | H15: 5 | I15: 0 | J15: 5 | K15: 5 | L15: 5 | M15: 5 | N15: 5 | O15: 5 | P15: 5 | Q15: 10 | R15: 5 | S15: 5 | T15: 0 | U15: 0 | V15: 0 | W15: 10 | X15: 5 | Y15: 5 | Z15: 5 | AA15: 5 | AB15: 5 | AC15: 5 | AD15: 5 | AE15: 5 | AF15: 5 | AG15: 5 | AH15: 5 | AI15: 5 | AJ15: 0 | AK15: 5 | AL15: 5 | AM15: 5 | AN15: 0 | AO15: 5 | AP15: 10 | AQ15: 10 | AR15: 10 | AS15: 10 | AT15: 5 | AU15: 5 | AV15: 5 | AW15: 5 | AX15: 5 | AY15: 5 | AZ15: 5 | BA15: 5 | BB15: 10 | BC15: 5 | BD15: 5 | BE15: 5 | BF15: 5 | BG15: 5 | BH15: 10 | BI15: 5 | BJ15: 5 | BK15: 0 | BL15: 5 | BM15: 5 | BN15: 5 | BO15: 5 | BP15: 10 | BQ15: 5 | BR15: 5 | BS15: 5 | BT15: 5 | BU15: 5 | BV15: 5 | BW15: 5 | BX15: 0 | BY15: 5 | BZ15: 5 | CA15: 5 | CB15: 5 | CC15: 0 | CD15: 10 | CE15: 5 | CF15: 5 | CG15: 5 | CH15: 5 | CI15: 5 | CJ15: 5 | CK15: 10 | CL15: 0 | CM15: 0 | CN15: 0 | CO15: 0 | CP15: 10 | CQ15: 5 | CR15: 5 | CS15: 5 | CT15: 10 | CU15: 5 | CV15: 5 | CW15: 5 | CX15: 5 | CY15: 5 | CZ15: 10 | DA15: 10 | DB15: 0 | DC15: 5
A16: 2025-08-23 | B16: Brentford | C16: 1 | D16: 0 | E16: Aston Villa | F16: 45892.625 | H16: 0 | I16: 0 | J16: 0 | K16: 0 | L16: 0 | M16: 0 | N16: 0 | O16: 0 | P16: 0 | Q16: 0 | R16: 0 | S16: 0 | T16: 0 | U16: 0 | V16: 0 | W16: 0 | X16: 0 | Y16: 5 | Z16: 5 | AA16: 0 | AB16: 0 | AC16: 0 | AD16: 0 | AE16: 0 | AF16: 0 | AG16: 0 | AH16: 0 | AI16: 0 | AJ16: 0 | AK16: 0 | AL16: 0 | AM16: 0 | AN16: 0 | AO16: 0 | AP16: 5 | AQ16: 0 | AR16: 0 | AS16: 0 | AT16: 0 | AU16: 0 | AV16: 0 | AW16: 0 | AX16: 0 | AY16: 0 | AZ16: 0 | BA16: 0 | BB16: 0 | BC16: 0 | BD16: 0 | BE16: 0 | BF16: 0 | BG16: 0 | BH16: 0 | BI16: 0 | BJ16: 0 | BK16: 0 | BL16: 0 | BM16: 0 | BN16: 0 | BO16: 0 | BP16: 0 | BQ16: 0 | BR16: 0 | BS16: 0 | BT16: 0 | BU16: 0 | BV16: 0 | BW16: 0 | BX16: 0 | BY16: 0 | BZ16: 0 | CA16: 0 | CB16: 0 | CC16: 0 | CD16: 0 | CE16: 0 | CF16: 0 | CG16: 0 | CH16: 0 | CI16: 0 | CJ16: 0 | CK16: 5 | CL16: 0 | CM16: 0 | CN16: 0 | CO16: 0 | CP16: 0 | CQ16: 0 | CR16: 0 | CS16: 0 | CT16: 0 | CU16: 0 | CV16: 0 | CW16: 0 | CX16: 0 | CY16: 0 | CZ16: 0 | DA16: 0 | DB16: 0 | DC16: 0
A17: 2025-08-23 | B17: Burnley | C17: 2 | D17: 0 | E17: Sunderland | F17: 45892.625 | H17: 5 | I17: 0 | J17: 0 | K17: 0 | L17: 0 | M17: 5 | N17: 0 | O17: 0 | P17: 0 | Q17: 5 | R17: 0 | S17: 0 | T17: 0 | U17: 0 | V17: 0 | W17: 0 | X17: 0 | Y17: 10 | Z17: 5 | AA17: 0 | AB17: 0 | AC17: 0 | AD17: 0 | AE17: 0 | AF17: 0 | AG17: 0 | AH17: 0 | AI17: 0 | AJ17: 5 | AK17: 0 | AL17: 0 | AM17: 0 | AN17: 0 | AO17: 0 | AP17: 0 | AQ17: 0 | AR17: 0 | AS17: 0 | AT17: 0 | AU17: 0 | AV17: 0 | AW17: 0 | AX17: 0 | AY17: 0 | AZ17: 0 | BA17: 0 | BB17: 0 | BC17: 0 | BD17: 0 | BE17: 10 | BF17: 5 | BG17: 0 | BH17: 5 | BI17: 0 | BJ17: 0 | BK17: 0 | BL17: 0 | BM17: 0 | BN17: 5 | BO17: 5 | BP17: 5 | BQ17: 0 | BR17: 0 | BS17: 5 | BT17: 0 | BU17: 0 | BV17: 0 | BW17: 0 | BX17: 0 | BY17: 0 | BZ17: 0 | CA17: 0 | CB17: 0 | CC17: 0 | CD17: 5 | CE17: 0 | CF17: 0 | CG17: 0 | CH17: 0 | CI17: 0 | CJ17: 5 | CK17: 0 | CL17: 0 | CM17: 0 | CN17: 0 | CO17: 0 | CP17: 5 | CQ17: 0 | CR17: 0 | CS17: 5 | CT17: 0 | CU17: 0 | CV17: 0 | CW17: 0 | CX17: 0 | CY17: 0 | CZ17: 0 | DA17: 0 | DB17: 0 | DC17: 0
A18: 2025-08-23 | B18: Arsenal | C18: 5 | D18: 0 | E18: Leeds Utd | F18: 17:30:00 | H18: 5 | I18: 5 | J18: 5 | K18: 5 | L18: 5 | M18: 5 | N18: 5 | O18: 5 | P18: 5 | Q18: 5 | R18: 5 | S18: 5 | T18: 5 | U18: 0 | V18: 5 | W18: 5 | X18: 5 | Y18: 5 | Z18: 5 | AA18: 5 | AB18: 5 | AC18: 5 | AD18: 5 | AE18: 5 | AF18: 5 | AG18: 5 | AH18: 5 | AI18: 5 | AJ18: 5 | AK18: 5 | AL18: 5 | AM18: 5 | AN18: 5 | AO18: 5 | AP18: 5 | AQ18: 5 | AR18: 5 | AS18: 5 | AT18: 5 | AU18: 5 | AV18: 5 | AW18: 5 | AX18: 5 | AY18: 5 | AZ18: 5 | BA18: 5 | BB18: 5 | BC18: 5 | BD18: 5 | BE18: 5 | BF18: 5 | BG18: 5 | BH18: 5 | BI18: 5 | BJ18: 5 | BK18: 5 | BL18: 5 | BM18: 5 | BN18: 5 | BO18: 5 | BP18: 5 | BQ18: 5 | BR18: 10 | BS18: 5 | BT18: 5 | BU18: 5 | BV18: 5 | BW18: 5 | BX18: 5 | BY18: 5 | BZ18: 5 | CA18: 5 | CB18: 5 | CC18: 5 | CD18: 5 | CE18: 5 | CF18: 5 | CG18: 5 | CH18: 5 | CI18: 5 | CJ18: 5 | CK18: 5 | CL18: 5 | CM18: 5 | CN18: 5 | CO18: 5 | CP18: 5 | CQ18: 5 | CR18: 5 | CS18: 5 | CT18: 5 | CU18: 5 | CV18: 5 | CW18: 5 | CX18: 5 | CY18: 5 | CZ18: 5 | DA18: 5 | DB18: 0 | DC18: 5
A19: 2025-08-24 | B19: Crystal Palace | C19: 1 | D19: 1 | E19: Nott'm Forest | F19: 14:00:00 | H19: 0 | I19: 5 | J19: 5 | K19: 0 | L19: 0 | M19: 0 | N19: 5 | O19: 0 | P19: 0 | Q19: 10 | R19: 10 | S19: 5 | T19: 0 | U19: 5 | V19: 0 | W19: 10 | X19: 10 | Y19: 0 | Z19: 0 | AA19: 0 | AB19: 5 | AC19: 10 | AD19: 10 | AE19: 5 | AF19: 0 | AG19: 10 | AH19: 0 | AI19: 0 | AJ19: 10 | AK19: 5 | AL19: 0 | AM19: 5 | AN19: 0 | AO19: 0 | AP19: 5 | AQ19: 10 | AR19: 0 | AS19: 10 | AT19: 10 | AU19: 0 | AV19: 10 | AW19: 10 | AX19: 0 | AY19: 10 | AZ19: 0 | BA19: 10 | BB19: 0 | BC19: 10 | BD19: 10 | BE19: 10 | BF19: 0 | BG19: 10 | BH19: 0 | BI19: 10 | BJ19: 0 | BK19: 10 | BL19: 0 | BM19: 0 | BN19: 10 | BO19: 10 | BP19: 0 | BQ19: 10 | BR19: 5 | BS19: 0 | BT19: 10 | BU19: 0 | BV19: 10 | BW19: 0 | BX19: 5 | BY19: 0 | BZ19: 5 | CA19: 10 | CB19: 0 | CC19: 0 | CD19: 0 | CE19: 0 | CF19: 0 | CG19: 0 | CH19: 0 | CI19: 10 | CJ19: 10 | CK19: 0 | CL19: 0 | CM19: 5 | CN19: 5 | CO19: 5 | CP19: 0 | CQ19: 0 | CR19: 0 | CS19: 0 | CT19: 5 | CU19: 0 | CV19: 0 | CW19: 5 | CX19: 0 | CY19: 10 | CZ19: 10 | DA19: 5 | DB19: 0 | DC19: 10
A20: 2025-08-24 | B20: Everton | C20: 2 | D20: 0 | E20: Brighton | F20: 14:00:00 | H20: 5 | I20: 5 | J20: 5 | K20: 0 | L20: 0 | M20: 0 | N20: 0 | O20: 0 | P20: 5 | Q20: 5 | R20: 5 | S20: 0 | T20: 0 | U20: 0 | V20: 0 | W20: 0 | X20: 0 | Y20: 10 | Z20: 5 | AA20: 0 | AB20: 5 | AC20: 0 | AD20: 0 | AE20: 0 | AF20: 0 | AG20: 5 | AH20: 0 | AI20: 0 | AJ20: 0 | AK20: 5 | AL20: 0 | AM20: 0 | AN20: 5 | AO20: 0 | AP20: 5 | AQ20: 0 | AR20: 0 | AS20: 5 | AT20: 0 | AU20: 0 | AV20: 0 | AW20: 0 | AX20: 0 | AY20: 0 | AZ20: 5 | BA20: 0 | BB20: 0 | BC20: 0 | BD20: 5 | BE20: 0 | BF20: 0 | BG20: 5 | BH20: 10 | BI20: 0 | BJ20: 0 | BK20: 0 | BL20: 0 | BM20: 5 | BN20: 0 | BO20: 0 | BP20: 0 | BQ20: 5 | BR20: 0 | BS20: 0 | BT20: 0 | BU20: 5 | BV20: 0 | BW20: 0 | BX20: 5 | BY20: 0 | BZ20: 5 | CA20: 0 | CB20: 0 | CC20: 0 | CD20: 0 | CE20: 5 | CF20: 0 | CG20: 0 | CH20: 0 | CI20: 0 | CJ20: 5 | CK20: 5 | CL20: 5 | CM20: 0 | CN20: 0 | CO20: 0 | CP20: 5 | CQ20: 0 | CR20: 0 | CS20: 0 | CT20: 0 | CU20: 0 | CV20: 0 | CW20: 5 | CX20: 5 | CY20: 5 | CZ20: 5 | DA20: 0 | DB20: 5 | DC20: 0
A21: 2025-08-24 | B21: Fulham | C21: 1 | D21: 1 | E21: Man Utd | F21: 16:30:00 | H21: 10 | I21: 0 | J21: 0 | K21: 5 | L21: 0 | M21: 0 | N21: 0 | O21: 0 | P21: 10 | Q21: 0 | R21: 0 | S21: 10 | T21: 0 | U21: 5 | V21: 10 | W21: 0 | X21: 0 | Y21: 0 | Z21: 0 | AA21: 0 | AB21: 0 | AC21: 0 | AD21: 0 | AE21: 10 | AF21: 0 | AG21: 0 | AH21: 0 | AI21: 10 | AJ21: 10 | AK21: 0 | AL21: 0 | AM21: 10 | AN21: 0 | AO21: 0 | AP21: 0 | AQ21: 0 | AR21: 0 | AS21: 0 | AT21: 0 | AU21: 0 | AV21: 0 | AW21: 10 | AX21: 0 | AY21: 0 | AZ21: 0 | BA21: 0 | BB21: 0 | BC21: 10 | BD21: 0 | BE21: 0 | BF21: 0 | BG21: 0 | BH21: 0 | BI21: 0 | BJ21: 0 | BK21: 0 | BL21: 5 | BM21: 0 | BN21: 0 | BO21: 0 | BP21: 0 | BQ21: 10 | BR21: 0 | BS21: 0 | BT21: 0 | BU21: 0 | BV21: 0 | BW21: 0 | BX21: 10 | BY21: 5 | BZ21: 0 | CA21: 5 | CB21: 10 | CC21: 10 | CD21: 0 | CE21: 5 | CF21: 0 | CG21: 10 | CH21: 10 | CI21: 0 | CJ21: 0 | CK21: 0 | CL21: 0 | CM21: 0 | CN21: 0 | CO21: 0 | CP21: 0 | CQ21: 0 | CR21: 0 | CS21: 0 | CT21: 0 | CU21: 0 | CV21: 0 | CW21: 10 | CX21: 0 | CY21: 0 | CZ21: 0 | DA21: 10 | DB21: 0 | DC21: 0
A22: 2025-08-25 | B22: Newcastle | C22: 2 | D22: 3 | E22: Liverpool | F22: 20:00:00 | H22: 5 | I22: 0 | J22: 5 | K22: 5 | L22: 5 | M22: 5 | N22: 0 | O22: 5 | P22: 5 | Q22: 10 | R22: 5 | S22: 5 | T22: 5 | U22: 0 | V22: 5 | W22: 5 | X22: 0 | Y22: 0 | Z22: 0 | AA22: 0 | AB22: 5 | AC22: 5 | AD22: 5 | AE22: 5 | AF22: 10 | AG22: 5 | AH22: 5 | AI22: 5 | AJ22: 0 | AK22: 0 | AL22: 5 | AM22: 5 | AN22: 0 | AO22: 0 | AP22: 5 | AQ22: 5 | AR22: 5 | AS22: 5 | AT22: 5 | AU22: 5 | AV22: 5 | AW22: 5 | AX22: 0 | AY22: 5 | AZ22: 5 | BA22: 5 | BB22: 0 | BC22: 5 | BD22: 5 | BE22: 5 | BF22: 5 | BG22: 5 | BH22: 0 | BI22: 5 | BJ22: 10 | BK22: 5 | BL22: 5 | BM22: 5 | BN22: 10 | BO22: 0 | BP22: 5 | BQ22: 5 | BR22: 5 | BS22: 5 | BT22: 0 | BU22: 10 | BV22: 10 | BW22: 5 | BX22: 5 | BY22: 5 | BZ22: 5 | CA22: 0 | CB22: 0 | CC22: 5 | CD22: 5 | CE22: 0 | CF22: 5 | CG22: 0 | CH22: 5 | CI22: 5 | CJ22: 5 | CK22: 5 | CL22: 5 | CM22: 5 | CN22: 5 | CO22: 5 | CP22: 5 | CQ22: 5 | CR22: 0 | CS22: 5 | CT22: 5 | CU22: 5 | CV22: 0 | CW22: 0 | CX22: 0 | CY22: 0 | CZ22: 10 | DA22: 5 | DB22: 10 | DC22: 5
A23: 2025-08-30 | B23: Chelsea | C23: 2 | D23: 0 | E23: Fulham | F23: 12:30:00 | H23: 5 | I23: 5 | J23: 10 | K23: 5 | L23: 5 | M23: 10 | N23: 5 | O23: 5 | P23: 5 | Q23: 10 | R23: 5 | S23: 5 | T23: 5 | U23: 10 | V23: 5 | W23: 5 | X23: 10 | Y23: 10 | Z23: 5 | AA23: 10 | AB23: 10 | AC23: 5 | AD23: 5 | AE23: 10 | AF23: 5 | AG23: 5 | AH23: 5 | AI23: 5 | AJ23: 5 | AK23: 10 | AL23: 10 | AM23: 5 | AN23: 5 | AO23: 5 | AP23: 5 | AQ23: 5 | AR23: 10 | AS23: 10 | AT23: 0 | AU23: 5 | AV23: 10 | AW23: 10 | AX23: 5 | AY23: 5 | AZ23: 5 | BA23: 5 | BB23: 5 | BC23: 10 | BD23: 10 | BE23: 10 | BF23: 5 | BG23: 10 | BH23: 5 | BI23: 10 | BJ23: 5 | BK23: 5 | BL23: 5 | BM23: 5 | BN23: 5 | BO23: 5 | BP23: 10 | BQ23: 5 | BR23: 5 | BS23: 10 | BT23: 10 | BU23: 5 | BV23: 10 | BW23: 10 | BX23: 5 | BY23: 5 | BZ23: 0 | CA23: 10 | CB23: 5 | CC23: 5 | CD23: 10 | CE23: 5 | CF23: 5 | CG23: 10 | CH23: 5 | CI23: 5 | CJ23: 10 | CK23: 5 | CL23: 5 | CM23: 5 | CN23: 5 | CO23: 5 | CP23: 5 | CQ23: 10 | CR23: 5 | CS23: 5 | CT23: 5 | CU23: 10 | CV23: 5 | CW23: 10 | CX23: 5 | CY23: 5 | CZ23: 10 | DA23: 10 | DB23: 10 | DC23: 5
A24: 2025-08-30 | B24: Man Utd | C24: 3 | D24: 2 | E24: Burnley | F24: 45899.625 | H24: 5 | I24: 5 | J24: 5 | K24: 5 | L24: 5 | M24: 0 | N24: 5 | O24: 5 | P24: 5 | Q24: 5 | R24: 5 | S24: 5 | T24: 5 | U24: 5 | V24: 5 | W24: 5 | X24: 5 | Y24: 5 | Z24: 5 | AA24: 5 | AB24: 5 | AC24: 5 | AD24: 0 | AE24: 5 | AF24: 5 | AG24: 5 | AH24: 5 | AI24: 5 | AJ24: 5 | AK24: 5 | AL24: 0 | AM24: 0 | AN24: 5 | AO24: 5 | AP24: 5 | AQ24: 5 | AR24: 5 | AS24: 5 | AT24: 5 | AU24: 5 | AV24: 5 | AW24: 5 | AX24: 0 | AY24: 5 | AZ24: 5 | BA24: 5 | BB24: 5 | BC24: 5 | BD24: 5 | BE24: 5 | BF24: 5 | BG24: 5 | BH24: 5 | BI24: 5 | BJ24: 5 | BK24: 5 | BL24: 5 | BM24: 0 | BN24: 5 | BO24: 5 | BP24: 5 | BQ24: 5 | BR24: 5 | BS24: 5 | BT24: 5 | BU24: 5 | BV24: 5 | BW24: 5 | BX24: 5 | BY24: 5 | BZ24: 5 | CA24: 0 | CB24: 0 | CC24: 0 | CD24: 5 | CE24: 0 | CF24: 0 | CG24: 5 | CH24: 5 | CI24: 5 | CJ24: 5 | CK24: 5 | CL24: 5 | CM24: 0 | CN24: 0 | CO24: 5 | CP24: 5 | CQ24: 5 | CR24: 10 | CS24: 5 | CT24: 5 | CU24: 5 | CV24: 5 | CW24: 5 | CX24: 5 | CY24: 5 | CZ24: 5 | DA24: 5 | DB24: 5 | DC24: 5
A25: 2025-08-30 | B25: Sunderland | C25: 2 | D25: 1 | E25: Brentford | F25: 45899.625 | H25: 0 | I25: 0 | J25: 0 | K25: 0 | L25: 0 | M25: 0 | N25: 10 | O25: 0 | P25: 0 | Q25: 0 | R25: 10 | S25: 0 | T25: 0 | U25: 0 | V25: 10 | W25: 0 | X25: 0 | Y25: 5 | Z25: 10 | AA25: 0 | AB25: 10 | AC25: 0 | AD25: 0 | AE25: 0 | AF25: 0 | AG25: 10 | AH25: 0 | AI25: 0 | AJ25: 0 | AK25: 0 | AL25: 5 | AM25: 0 | AN25: 0 | AO25: 0 | AP25: 0 | AQ25: 0 | AR25: 5 | AS25: 0 | AT25: 10 | AU25: 0 | AV25: 0 | AW25: 0 | AX25: 0 | AY25: 0 | AZ25: 5 | BA25: 0 | BB25: 0 | BC25: 0 | BD25: 0 | BE25: 0 | BF25: 0 | BG25: 10 | BH25: 0 | BI25: 0 | BJ25: 0 | BK25: 0 | BL25: 5 | BM25: 0 | BN25: 0 | BO25: 0 | BP25: 0 | BQ25: 0 | BR25: 0 | BS25: 0 | BT25: 0 | BU25: 0 | BV25: 0 | BW25: 0 | BX25: 0 | BY25: 0 | BZ25: 0 | CA25: 0 | CB25: 0 | CC25: 0 | CD25: 10 | CE25: 0 | CF25: 5 | CG25: 0 | CH25: 0 | CI25: 0 | CJ25: 0 | CK25: 0 | CL25: 0 | CM25: 5 | CN25: 0 | CO25: 0 | CP25: 0 | CQ25: 10 | CR25: 0 | CS25: 0 | CT25: 0 | CU25: 0 | CV25: 0 | CW25: 0 | CX25: 0 | CY25: 0 | CZ25: 0 | DA25: 0 | DB25: 5 | DC25: 0
A26: 2025-08-30 | B26: Spurs | C26: 0 | D26: 1 | E26: Bournemouth | F26: 45899.625 | H26: 0 | I26: 0 | J26: 0 | K26: 0 | L26: 0 | M26: 0 | N26: 0 | O26: 0 | P26: 0 | Q26: 0 | R26: 0 | S26: 0 | T26: 0 | U26: 0 | V26: 0 | W26: 0 | X26: 0 | Y26: 0 | Z26: 0 | AA26: 0 | AB26: 0 | AC26: 0 | AD26: 0 | AE26: 0 | AF26: 0 | AG26: 0 | AH26: 0 | AI26: 0 | AJ26: 0 | AK26: 0 | AL26: 0 | AM26: 0 | AN26: 0 | AO26: 0 | AP26: 0 | AQ26: 0 | AR26: 0 | AS26: 0 | AT26: 0 | AU26: 0 | AV26: 0 | AW26: 0 | AX26: 0 | AY26: 0 | AZ26: 0 | BA26: 0 | BB26: 0 | BC26: 0 | BD26: 0 | BE26: 0 | BF26: 0 | BG26: 0 | BH26: 0 | BI26: 0 | BJ26: 0 | BK26: 0 | BL26: 0 | BM26: 0 | BN26: 0 | BO26: 0 | BP26: 0 | BQ26: 0 | BR26: 0 | BS26: 0 | BT26: 0 | BU26: 0 | BV26: 0 | BW26: 0 | BX26: 0 | BY26: 0 | BZ26: 0 | CA26: 0 | CB26: 0 | CC26: 0 | CD26: 0 | CE26: 0 | CF26: 0 | CG26: 0 | CH26: 0 | CI26: 0 | CJ26: 0 | CK26: 0 | CL26: 0 | CM26: 0 | CN26: 0 | CO26: 0 | CP26: 0 | CQ26: 0 | CR26: 0 | CS26: 0 | CT26: 0 | CU26: 0 | CV26: 0 | CW26: 0 | CX26: 0 | CY26: 0 | CZ26: 0 | DA26: 0 | DB26: 0 | DC26: 0
A27: 2025-08-30 | B27: Wolves | C27: 2 | D27: 3 | E27: Everton | F27: 45899.625 | H27: 0 | I27: 5 | J27: 0 | K27: 5 | L27: 0 | M27: 0 | N27: 0 | O27: 5 | P27: 0 | Q27: 0 | R27: 0 | S27: 5 | T27: 5 | U27: 5 | V27: 0 | W27: 5 | X27: 5 | Y27: 0 | Z27: 0 | AA27: 0 | AB27: 5 | AC27: 0 | AD27: 0 | AE27: 5 | AF27: 0 | AG27: 5 | AH27: 5 | AI27: 5 | AJ27: 0 | AK27: 0 | AL27: 5 | AM27: 5 | AN27: 0 | AO27: 5 | AP27: 5 | AQ27: 0 | AR27: 0 | AS27: 5 | AT27: 5 | AU27: 5 | AV27: 5 | AW27: 5 | AX27: 0 | AY27: 5 | AZ27: 0 | BA27: 0 | BB27: 0 | BC27: 0 | BD27: 5 | BE27: 5 | BF27: 0 | BG27: 0 | BH27: 5 | BI27: 0 | BJ27: 0 | BK27: 0 | BL27: 0 | BM27: 0 | BN27: 0 | BO27: 0 | BP27: 0 | BQ27: 5 | BR27: 0 | BS27: 5 | BT27: 0 | BU27: 0 | BV27: 0 | BW27: 0 | BX27: 0 | BY27: 5 | BZ27: 5 | CA27: 0 | CB27: 0 | CC27: 0 | CD27: 0 | CE27: 5 | CF27: 5 | CG27: 0 | CH27: 0 | CI27: 5 | CJ27: 0 | CK27: 0 | CL27: 5 | CM27: 5 | CN27: 0 | CO27: 5 | CP27: 5 | CQ27: 5 | CR27: 5 | CS27: 5 | CT27: 0 | CU27: 0 | CV27: 0 | CW27: 0 | CX27: 5 | CY27: 0 | CZ27: 0 | DA27: 0 | DB27: 0 | DC27: 5
A28: 2025-08-30 | B28: Leeds Utd | C28: 0 | D28: 0 | E28: Newcastle | F28: 17:30:00 | H28: 0 | I28: 0 | J28: 0 | K28: 5 | L28: 5 | M28: 0 | N28: 0 | O28: 0 | P28: 5 | Q28: 0 | R28: 0 | S28: 0 | T28: 0 | U28: 0 | V28: 0 | W28: 0 | X28: 5 | Y28: 0 | Z28: 0 | AA28: 5 | AB28: 0 | AC28: 0 | AD28: 0 | AE28: 0 | AF28: 0 | AG28: 0 | AH28: 5 | AI28: 0 | AJ28: 0 | AK28: 0 | AL28: 0 | AM28: 0 | AN28: 0 | AO28: 5 | AP28: 0 | AQ28: 5 | AR28: 0 | AS28: 0 | AT28: 0 | AU28: 0 | AV28: 0 | AW28: 5 | AX28: 5 | AY28: 0 | AZ28: 0 | BA28: 0 | BB28: 0 | BC28: 0 | BD28: 0 | BE28: 0 | BF28: 0 | BG28: 5 | BH28: 0 | BI28: 0 | BJ28: 5 | BK28: 0 | BL28: 5 | BM28: 0 | BN28: 0 | BO28: 0 | BP28: 0 | BQ28: 0 | BR28: 0 | BS28: 0 | BT28: 0 | BU28: 0 | BV28: 5 | BW28: 0 | BX28: 0 | BY28: 0 | BZ28: 0 | CA28: 0 | CB28: 0 | CC28: 0 | CD28: 0 | CE28: 0 | CF28: 0 | CG28: 0 | CH28: 5 | CI28: 0 | CJ28: 0 | CK28: 5 | CL28: 0 | CM28: 5 | CN28: 5 | CO28: 0 | CP28: 0 | CQ28: 0 | CR28: 0 | CS28: 5 | CT28: 0 | CU28: 5 | CV28: 0 | CW28: 0 | CX28: 0 | CY28: 0 | CZ28: 0 | DA28: 0 | DB28: 0 | DC28: 0
A29: 2025-08-31 | B29: Brighton | C29: 2 | D29: 1 | E29: Man City | F29: 14:00:00 | H29: 0 | I29: 0 | J29: 0 | K29: 0 | L29: 0 | M29: 0 | N29: 10 | O29: 10 | P29: 0 | Q29: 0 | R29: 0 | S29: 0 | T29: 0 | U29: 0 | V29: 10 | W29: 0 | X29: 0 | Y29: 5 | Z29: 10 | AA29: 0 | AB29: 0 | AC29: 0 | AD29: 10 | AE29: 0 | AF29: 0 | AG29: 0 | AH29: 0 | AI29: 0 | AJ29: 0 | AK29: 0 | AL29: 0 | AM29: 10 | AN29: 0 | AO29: 0 | AP29: 0 | AQ29: 0 | AR29: 5 | AS29: 0 | AT29: 0 | AU29: 0 | AV29: 0 | AW29: 0 | AX29: 0 | AY29: 0 | AZ29: 0 | BA29: 0 | BB29: 0 | BC29: 0 | BD29: 0 | BE29: 0 | BF29: 0 | BG29: 0 | BH29: 0 | BI29: 0 | BJ29: 0 | BK29: 0 | BL29: 0 | BM29: 5 | BN29: 0 | BO29: 0 | BP29: 0 | BQ29: 0 | BR29: 0 | BS29: 0 | BT29: 0 | BU29: 0 | BV29: 0 | BW29: 0 | BX29: 0 | BY29: 0 | BZ29: 0 | CA29: 0 | CB29: 0 | CC29: 0 | CD29: 0 | CE29: 0 | CF29: 0 | CG29: 0 | CH29: 0 | CI29: 0 | CJ29: 0 | CK29: 0 | CL29: 0 | CM29: 0 | CN29: 0 | CO29: 0 | CP29: 0 | CQ29: 10 | CR29: 10 | CS29: 0 | CT29: 0 | CU29: 0 | CV29: 0 | CW29: 0 | CX29: 0 | CY29: 0 | CZ29: 0 | DA29: 0 | DB29: 0 | DC29: 0
A30: 2025-08-31 | B30: Nott'm Forest | C30: 0 | D30: 3 | E30: West Ham | F30: 14:00:00 | H30: 0 | I30: 0 | J30: 0 | K30: 0 | L30: 0 | M30: 0 | N30: 0 | O30: 0 | P30: 0 | Q30: 0 | R30: 0 | S30: 0 | T30: 0 | U30: 0 | V30: 0 | W30: 0 | X30: 0 | Y30: 0 | Z30: 0 | AA30: 0 | AB30: 0 | AC30: 0 | AD30: 0 | AE30: 0 | AF30: 0 | AG30: 0 | AH30: 0 | AI30: 0 | AJ30: 0 | AK30: 0 | AL30: 0 | AM30: 0 | AN30: 0 | AO30: 0 | AP30: 0 | AQ30: 0 | AR30: 0 | AS30: 0 | AT30: 0 | AU30: 0 | AV30: 0 | AW30: 0 | AX30: 0 | AY30: 0 | AZ30: 0 | BA30: 0 | BB30: 0 | BC30: 0 | BD30: 0 | BE30: 0 | BF30: 0 | BG30: 0 | BH30: 0 | BI30: 0 | BJ30: 0 | BK30: 0 | BL30: 0 | BM30: 0 | BN30: 0 | BO30: 0 | BP30: 0 | BQ30: 0 | BR30: 0 | BS30: 0 | BT30: 0 | BU30: 0 | BV30: 0 | BW30: 0 | BX30: 0 | BY30: 0 | BZ30: 0 | CA30: 0 | CB30: 0 | CC30: 0 | CD30: 0 | CE30: 0 | CF30: 0 | CG30: 0 | CH30: 0 | CI30: 0 | CJ30: 0 | CK30: 0 | CL30: 0 | CM30: 5 | CN30: 0 | CO30: 0 | CP30: 0 | CQ30: 0 | CR30: 0 | CS30: 0 | CT30: 0 | CU30: 0 | CV30: 0 | CW30: 0 | CX30: 0 | CY30: 0 | CZ30: 0 | DA30: 0 | DB30: 0 | DC30: 0
A31: 2025-08-31 | B31: Liverpool | C31: 1 | D31: 0 | E31: Arsenal | F31: 16:30:00 | H31: 0 | I31: 0 | J31: 5 | K31: 0 | L31: 5 | M31: 5 | N31: 5 | O31: 5 | P31: 5 | Q31: 0 | R31: 5 | S31: 0 | T31: 0 | U31: 0 | V31: 5 | W31: 0 | X31: 5 | Y31: 5 | Z31: 5 | AA31: 0 | AB31: 5 | AC31: 0 | AD31: 5 | AE31: 5 | AF31: 5 | AG31: 0 | AH31: 5 | AI31: 5 | AJ31: 0 | AK31: 0 | AL31: 5 | AM31: 5 | AN31: 0 | AO31: 0 | AP31: 0 | AQ31: 0 | AR31: 5 | AS31: 0 | AT31: 0 | AU31: 5 | AV31: 5 | AW31: 5 | AX31: 0 | AY31: 5 | AZ31: 5 | BA31: 0 | BB31: 0 | BC31: 0 | BD31: 5 | BE31: 5 | BF31: 0 | BG31: 5 | BH31: 5 | BI31: 0 | BJ31: 0 | BK31: 5 | BL31: 5 | BM31: 5 | BN31: 5 | BO31: 0 | BP31: 0 | BQ31: 5 | BR31: 5 | BS31: 0 | BT31: 0 | BU31: 0 | BV31: 0 | BW31: 0 | BX31: 0 | BY31: 0 | BZ31: 5 | CA31: 0 | CB31: 0 | CC31: 0 | CD31: 5 | CE31: 0 | CF31: 0 | CG31: 10 | CH31: 5 | CI31: 0 | CJ31: 5 | CK31: 0 | CL31: 5 | CM31: 0 | CN31: 5 | CO31: 0 | CP31: 5 | CQ31: 5 | CR31: 0 | CS31: 0 | CT31: 0 | CU31: 5 | CV31: 0 | CW31: 0 | CX31: 0 | CY31: 0 | CZ31: 5 | DA31: 0 | DB31: 0 | DC31: 5
A32: 2025-08-31 | B32: Aston Villa | C32: 0 | D32: 3 | E32: Crystal Palace | F32: 19:00:00 | H32: 0 | I32: 0 | J32: 5 | K32: 0 | L32: 0 | M32: 0 | N32: 0 | O32: 0 | P32: 0 | Q32: 0 | R32: 0 | S32: 5 | T32: 0 | U32: 0 | V32: 0 | W32: 0 | X32: 0 | Y32: 0 | Z32: 0 | AA32: 0 | AB32: 0 | AC32: 0 | AD32: 0 | AE32: 0 | AF32: 0 | AG32: 0 | AH32: 5 | AI32: 0 | AJ32: 0 | AK32: 0 | AL32: 5 | AM32: 5 | AN32: 0 | AO32: 0 | AP32: 0 | AQ32: 0 | AR32: 0 | AS32: 0 | AT32: 0 | AU32: 0 | AV32: 0 | AW32: 0 | AX32: 0 | AY32: 0 | AZ32: 0 | BA32: 0 | BB32: 0 | BC32: 0 | BD32: 0 | BE32: 0 | BF32: 5 | BG32: 0 | BH32: 0 | BI32: 0 | BJ32: 0 | BK32: 0 | BL32: 0 | BM32: 0 | BN32: 0 | BO32: 0 | BP32: 0 | BQ32: 0 | BR32: 0 | BS32: 0 | BT32: 0 | BU32: 0 | BV32: 0 | BW32: 0 | BX32: 5 | BY32: 0 | BZ32: 0 | CA32: 0 | CB32: 5 | CC32: 0 | CD32: 0 | CE32: 0 | CF32: 5 | CG32: 0 | CH32: 5 | CI32: 0 | CJ32: 0 | CK32: 0 | CL32: 0 | CM32: 5 | CN32: 0 | CO32: 0 | CP32: 0 | CQ32: 0 | CR32: 0 | CS32: 0 | CT32: 5 | CU32: 0 | CV32: 0 | CW32: 0 | CX32: 0 | CY32: 0 | CZ32: 0 | DA32: 0 | DB32: 0 | DC32: 5
A34: Golden Boots
A35: Alexander Isak - Newcastle United | D35: =COUNT(H35:JB35) -> 31 | E35: =0+0+0 -> 0 | I35: =$E35*2 -> 0 | K35: =$E35*2 -> 0 | M35: =$E35*2 -> 0 | P35: =$E35*2 -> 0 | T35: =$E35*2 -> 0 | AB35: =$E35*2 -> 0 | AE35: =$E35*2 -> 0 | AF35: 0 | AI35: 0 | AM35: =$E35*2 -> 0 | AO35: 0 | AP35: 0 | AR35: 0 | AS35: 0 | AT35: 0 | AW35: =$E35*2 -> 0 | AX35: 0 | AY35: 0 | BF35: 0 | BH35: 0 | BJ35: =$E35*2 -> 0 | BN35: =$E35*2 -> 0 | BQ35: 0 | CE35: =$E35*2 -> 0 | CF35: =$E35*2 -> 0 | CG35: =$E35*2 -> 0 | CH35: =$E35*2 -> 0 | CI35: =$E35*2 -> 0 | CR35: =$E35*2 -> 0 | CU35: =$E35*2 -> 0 | CZ35: =$E35*2 -> 0
A36: Bryan Mbeumo - Man United | D36: 6 | E36: =0+0+1 -> 1 | Y36: =$E36*2 -> 2 | AD36: 2 | AN36: 2 | CD36: =$E36*2 -> 2 | CS36: =$E36*2 -> 2 | CY36: =$E36*2 -> 2
A37: Chris Wood - Nottingham Forest | D37: 5 | E37: =2+0+0 -> 2 | S37: =$E37*2 -> 4 | V37: =$E37*2 -> 4 | BX37: =$E37*2 -> 4 | CC37: =$E37*2 -> 4 | DB37: =$E37*2 -> 4
A38: Cole Palmer - Chelsea | D38: 27 | E38: =0+0+0 -> 0 | J38: =$E38*2 -> 0 | K38: =$E38*2 -> 0 | L38: =$E38*2 -> 0 | N38: =$E38*2 -> 0 | O38: =$E38*2 -> 0 | W38: =$E38*2 -> 0 | X38: =$E38*2 -> 0 | AA38: =$E38*2 -> 0 | AG38: 0 | AK38: =$E38*2 -> 0 | AW38: =$E38*2 -> 0 | BA38: 0 | BC38: =$E38*2 -> 0 | BE38: =$E38*2 -> 0 | BG38: 0 | BL38: =$E38*2 -> 0 | BM38: =$E38*2 -> 0 | BO38: 0 | BT38: 0 | BX38: =$E38*2 -> 0 | CB38: =$E38*2 -> 0 | CE38: =$E38*2 -> 0 | CF38: =$E38*2 -> 0 | CJ38: =$E38*2 -> 0 | CQ38: =$E38*2 -> 0 | CS38: =$E38*2 -> 0 | CT38: =$E38*2 -> 0
A39: Erling Haaland - Man City | D39: 80 | E39: =2+0+1 -> 3 | H39: =$E39*2 -> 6 | I39: =$E39*2 -> 6 | K39: =$E39*2 -> 6 | L39: =$E39*2 -> 6 | M39: =$E39*2 -> 6 | P39: =$E39*2 -> 6 | Q39: 6 | R39: 6 | S39: 6 | T39: 6 | U39: =$E39*2 -> 6 | V39: 6 | W39: =$E39*2 -> 6 | X39: =$E39*2 -> 6 | Y39: =$E39*2 -> 6 | Z39: =$E39*2 -> 6 | AA39: =$E39*2 -> 6 | AB39: =$E39*2 -> 6 | AC39: =$E39*2 -> 6 | AD39: =$E39*2 -> 6 | AH39: =$E39*2 -> 6 | AI39: =$E39*2 -> 6 | AJ39: 6 | AK39: 6 | AN39: =$E39*2 -> 6 | AO39: =$E39*2 -> 6 | AP39: =$E39*2 -> 6 | AQ39: =$E39*2 -> 6 | AR39: =$E39*2 -> 6 | AS39: =$E39*2 -> 6 | AT39: =$E39*2 -> 6 | AU39: 6 | AV39: 6 | AY39: =$E39*2 -> 6 | AZ39: 6 | BA39: =$E39*2 -> 6 | BC39: =$E39*2 -> 6 | BD39: 6 | BE39: =$E39*2 -> 6 | BF39: =$E39*2 -> 6 | BG39: 6 | BH39: =$E39*2 -> 6 | BI39: =$E39*2 -> 6 | BJ39: 6 | BK39: =$E39*2 -> 6 | BM39: 6 | BN39: 6 | BO39: 6 | BP39: 6 | BQ39: 6 | BR39: 6 | BS39: 6 | BT39: 6 | BU39: 6 | BV39: =$E39*2 -> 6 | BW39: =$E39*2 -> 6 | BZ39: =$E39*2 -> 6 | CA39: =$E39*2 -> 6 | CB39: =$E39*2 -> 6 | CC39: =$E39*2 -> 6 | CD39: =$E39*2 -> 6 | CG39: =$E39*2 -> 6 | CH39: =$E39*2 -> 6 | CI39: =$E39*2 -> 6 | CJ39: =$E39*2 -> 6 | CM39: =$E39*2 -> 6 | CN39: =$E39*2 -> 6 | CO39: =$E39*2 -> 6 | CP39: =$E39*2 -> 6 | CR39: =$E39*2 -> 6 | CS39: =$E39*2 -> 6 | CU39: =$E39*2 -> 6 | CV39: =$E39*2 -> 6 | CW39: 6 | CX39: 6 | CY39: 6 | CZ39: 6 | DA39: 6 | DB39: 6 | DC39: 6
A40: Hugo Ekitike - Liverpool | D40: 12 | E40: =1+1+0 -> 2 | R40: =$E40*2 -> 4 | Z40: =$E40*2 -> 4 | AL40: 4 | AM40: =$E40*2 -> 4 | AN40: =$E40*2 -> 4 | AW40: 4 | AZ40: 4 | BE40: 4 | BY40: =$E40*2 -> 4 | BZ40: =$E40*2 -> 4 | CL40: =$E40*2 -> 4 | DC40: =$E40*2 -> 4
A41: Jean-Philippe Mateta - Crystal Palace | D41: 5 | E41: =0+0+1 -> 1 | BL41: =$E41*2 -> 2 | BY41: =$E41*2 -> 2 | CL41: =$E41*2 -> 2 | CT41: =$E41*2 -> 2 | CW41: =$E41*2 -> 2
A42: Jorgen Strand Larsen - Wolves | D42: 1 | E42: =0+0+0 -> 0 | BV42: =$E42*2 -> 0
A43: Justin Kluivert - Bournemouth | D43: 1 | E43: =0+0+0 -> 0 | N43: =$E43*2 -> 0
A44: Liam Delap - Chelsea | D44: 1 | E44: =0+0+0 -> 0 | CL44: =$E44*2 -> 0
A45: Matheus Cunha - Man United | D45: 5 | E45: =0+0+0 -> 0 | N45: =$E45*2 -> 0 | BB45: =$E45*2 -> 0 | CF45: =$E45*2 -> 0 | CK45: =$E45*2 -> 0 | CM45: =$E45*2 -> 0
A46: Mohamed Salah - Liverpool | D46: 83 | E46: =1+0+0 -> 1 | H46: =$E46*2 -> 2 | J46: =$E46*2 -> 2 | L46: =$E46*2 -> 2 | M46: =$E46*2 -> 2 | O46: =$E46*2 -> 2 | P46: =$E46*2 -> 2 | Q46: =$E46*2 -> 2 | R46: =$E46*2 -> 2 | S46: =$E46*2 -> 2 | T46: =$E46*2 -> 2 | U46: =$E46*2 -> 2 | V46: =$E46*2 -> 2 | X46: 2 | Y46: =$E46*2 -> 2 | Z46: =$E46*2 -> 2 | AA46: 2 | AB46: =$E46*2 -> 2 | AC46: =$E46*2 -> 2 | AD46: 2 | AE46: 2 | AF46: 2 | AG46: 2 | AH46: 2 | AJ46: =$E46*2 -> 2 | AL46: =$E46*2 -> 2 | AM46: 2 | AO46: 2 | AP46: 2 | AQ46: 2 | AR46: 2 | AS46: =$E46*2 -> 2 | AT46: =$E46*2 -> 2 | AU46: 2 | AV46: 2 | AX46: =$E46*2 -> 2 | AY46: =$E46*2 -> 2 | BA46: =$E46*2 -> 2 | BB46: 2 | BC46: 2 | BD46: 2 | BF46: =$E46*2 -> 2 | BG46: =$E46*2 -> 2 | BH46: =$E46*2 -> 2 | BI46: =$E46*2 -> 2 | BJ46: =$E46*2 -> 2 | BK46: =$E46*2 -> 2 | BL46: =$E46*2 -> 2 | BM46: 2 | BN46: 2 | BO46: 2 | BP46: 2 | BR46: =$E46*2 -> 2 | BS46: 2 | BT46: 2 | BU46: 2 | BV46: =$E46*2 -> 2 | BW46: =$E46*2 -> 2 | BZ46: =$E46*2 -> 2 | CA46: 2 | CB46: =$E46*2 -> 2 | CC46: =$E46*2 -> 2 | CD46: 2 | CE46: =$E46*2 -> 2 | CG46: =$E46*2 -> 2 | CH46: =$E46*2 -> 2 | CI46: =$E46*2 -> 2 | CJ46: =$E46*2 -> 2 | CK46: =$E46*2 -> 2 | CM46: =$E46*2 -> 2 | CN46: =$E46*2 -> 2 | CO46: =$E46*2 -> 2 | CP46: =$E46*2 -> 2 | CQ46: =$E46*2 -> 2 | CR46: =$E46*2 -> 2 | CT46: =$E46*2 -> 2 | CU46: 2 | CV46: =$E46*2 -> 2 | CW46: 2 | CX46: =$E46*2 -> 2 | CZ46: 2 | DA46: 2 | DB46: =$E46*2 -> 2 | DC46: 2
A47: Ollie Watkins - Aston Villa | D47: 3 | E47: =0+0+0 -> 0 | AF47: 0 | BX47: =$E47*2 -> 0 | CN47: =$E47*2 -> 0
A48: Viktor Gyokeres - Arsenal | D48: 39 | E48: =0+2+0 -> 2 | H48: =$E48*2 -> 4 | I48: =$E48*2 -> 4 | J48: =$E48*2 -> 4 | O48: =$E48*2 -> 4 | Q48: =$E48*2 -> 4 | U48: =$E48*2 -> 4 | W48: =$E48*2 -> 4 | AC48: =$E48*2 -> 4 | AE48: =$E48*2 -> 4 | AG48: =$E48*2 -> 4 | AH48: =$E48*2 -> 4 | AI48: =$E48*2 -> 4 | AJ48: 4 | AK48: =$E48*2 -> 4 | AL48: 4 | AQ48: =$E48*2 -> 4 | AU48: =$E48*2 -> 4 | AV48: 4 | AX48: =$E48*2 -> 4 | AZ48: =$E48*2 -> 4 | BB48: =$E48*2 -> 4 | BD48: =$E48*2 -> 4 | BI48: =$E48*2 -> 4 | BK48: =$E48*2 -> 4 | BP48: =$E48*2 -> 4 | BQ48: =$E48*2 -> 4 | BR48: 4 | BS48: 4 | BU48: =$E48*2 -> 4 | BW48: =$E48*2 -> 4 | BY48: =$E48*2 -> 4 | CA48: =$E48*2 -> 4 | CK48: =$E48*2 -> 4 | CP48: =$E48*2 -> 4 | CQ48: =$E48*2 -> 4 | CV48: =$E48*2 -> 4 | CX48: =$E48*2 -> 4 | CY48: =$E48*2 -> 4 | DA48: =$E48*2 -> 4
A49: Yoane Wissa - Brentford | D49: 1 | E49: =0+0+0 -> 0 | CO49: =$E49*2 -> 0
A51: Sack Race
A52: Andoni Iraola - Bournemouth | D52: =COUNT(H52:JB52) -> 2 | BG52: =$E52*15 -> 0 | CS52: =$E52*15 -> 0
A53: Arne Slot - Liverpool | D53: 0
A54: Daniel Farke - Leeds United | D54: 16 | I54: =$E54*15 -> 0 | P54: =$E54*15 -> 0 | V54: =$E54*15 -> 0 | AE54: =$E54*15 -> 0 | AR54: =$E54*15 -> 0 | BE54: =$E54*15 -> 0 | BH54: =$E54*15 -> 0 | BM54: =$E54*15 -> 0 | BR54: =$E54*15 -> 0 | CD54: =$E54*15 -> 0 | CG54: =$E54*15 -> 0 | CN54: =$E54*15 -> 0 | CR54: =$E54*15 -> 0 | CT54: =$E54*15 -> 0 | CZ54: =$E54*15 -> 0 | DC54: =$E54*15 -> 0
A55: David Moyes - Everton | D55: 0
A56: Eddie Howe - Newcastle United | D56: 2 | AA56: =$E56*15 -> 0 | AP56: =$E56*15 -> 0
A57: Enzo Maresca - Chelsea | D57: 0
A58: Fabian Hurzeler - Brighton | D58: 2 | AN58: =$E58*15 -> 0 | CA58: =$E58*15 -> 0
A59: Graham Potter - West Ham | D59: 5 | AB59: =$E59*15 -> 0 | AV59: =$E59*15 -> 0 | BC59: =$E59*15 -> 0 | BJ59: =$E59*15 -> 0 | BZ59: =$E59*15 -> 0
A60: Keith Andrews - Brentford | D60: 34 | L60: =$E60*15 -> 0 | O60: =$E60*15 -> 0 | R60: =$E60*15 -> 0 | T60: =$E60*15 -> 0 | X60: =$E60*15 -> 0 | AC60: =$E60*15 -> 0 | AD60: =$E60*15 -> 0 | AG60: =$E60*15 -> 0 | AL60: =$E60*15 -> 0 | AM60: =$E60*15 -> 0 | AO60: =$E60*15 -> 0 | AS60: =$E60*15 -> 0 | AU60: =$E60*15 -> 0 | AX60: =$E60*15 -> 0 | BA60: =$E60*15 -> 0 | BD60: =$E60*15 -> 0 | BI60: =$E60*15 -> 0 | BN60: =$E60*15 -> 0 | BP60: =$E60*15 -> 0 | BQ60: =$E60*15 -> 0 | BS60: =$E60*15 -> 0 | BT60: =$E60*15 -> 0 | BW60: =$E60*15 -> 0 | BY60: =$E60*15 -> 0 | CB60: =$E60*15 -> 0 | CC60: =$E60*15 -> 0 | CH60: =$E60*15 -> 0 | CI60: =$E60*15 -> 0 | CP60: =$E60*15 -> 0 | CQ60: =$E60*15 -> 0 | CU60: =$E60*15 -> 0 | CV60: =$E60*15 -> 0 | CX60: =$E60*15 -> 0 | CY60: =$E60*15 -> 0
A61: Marco Silva - Fulham | D61: 1 | CM61: =$E61*15 -> 0
A62: Mikel Arteta - Arsenal | D62: 1 | N62: =$E62*15 -> 0
A63: Nuno Espirito Santo - Nottingham Forest | D63: 6 | H63: =$E63*15 -> 0 | K63: =$E63*15 -> 0 | AJ63: =$E63*15 -> 0 | BL63: =$E63*15 -> 0 | BO63: =$E63*15 -> 0 | CW63: =$E63*15 -> 0
A64: Oliver Glasner - Crystal Palace | D64: 0
A65: Pep Guardiola - Man City | D65: 1 | S65: =$E65*15 -> 0
A66: Regis Le Bris - Southampton | D66: 10 | AF66: =$E66*15 -> 0 | AI66: =$E66*15 -> 0 | AT66: =$E66*15 -> 0 | AZ66: =$E66*15 -> 0 | BU66: =$E66*15 -> 0 | BX66: =$E66*15 -> 0 | CE66: =$E66*15 -> 0 | CJ66: =$E66*15 -> 0 | CO66: =$E66*15 -> 0 | DA66: =$E66*15 -> 0
A67: Ruben Almiron - Man United | D67: 2 | M67: =$E67*15 -> 0 | BF67: =$E67*15 -> 0
A68: Scott Parker - Burnley | D68: 10 | J68: =$E68*15 -> 0 | Q68: =$E68*15 -> 0 | U68: =$E68*15 -> 0 | Z68: =$E68*15 -> 0 | AK68: =$E68*15 -> 0 | AQ68: =$E68*15 -> 0 | BB68: =$E68*15 -> 0 | BV68: =$E68*15 -> 0 | CK68: =$E68*15 -> 0 | CL68: =$E68*15 -> 0
A69: Thomas Frank - Spurs | D69: 2 | BK69: =$E69*15 -> 0 | CF69: =$E69*15 -> 0
A70: Unai Emery - Aston Villa | D70: 0
A71: Vitor Pereira - Wolves | D71: 6 | W71: =$E71*15 -> 0 | Y71: =$E71*15 -> 0 | AH71: =$E71*15 -> 0 | AW71: =$E71*15 -> 0 | AY71: =$E71*15 -> 0 | DB71: =$E71*15 -> 0
A73: Total Points - August | H73: =SUM(H$3:H72) -> 92 | I73: =SUM(I$3:I72) -> 70 | J73: =SUM(J$3:J72) -> 101 | K73: =SUM(K$3:K72) -> 81 | L73: =SUM(L$3:L72) -> 88 | M73: =SUM(M$3:M72) -> 73 | N73: =SUM(N$3:N72) -> 80 | O73: =SUM(O$3:O72) -> 86 | P73: =SUM(P$3:P72) -> 103 | Q73: =SUM(Q$3:Q72) -> 102 | R73: =SUM(R$3:R72) -> 92 | S73: =SUM(S$3:S72) -> 102 | T73: =SUM(T$3:T72) -> 73 | U73: =SUM(U$3:U72) -> 62 | V73: =SUM(V$3:V72) -> 102 | W73: =SUM(W$3:W72) -> 90 | X73: =SUM(X$3:X72) -> 88 | Y73: =SUM(Y$3:Y72) -> 105 | Z73: =SUM(Z$3:Z72) -> 97 | AA73: =SUM(AA$3:AA72) -> 68 | AB73: =SUM(AB$3:AB72) -> 68 | AC73: =SUM(AC$3:AC72) -> 87 | AD73: =SUM(AD$3:AD72) -> 95 | AE73: =SUM(AE$3:AE72) -> 106 | AF73: =SUM(AF$3:AF72) -> 72 | AG73: =SUM(AG$3:AG72) -> 101 | AH73: =SUM(AH$3:AH72) -> 87 | AI73: =SUM(AI$3:AI72) -> 75 | AJ73: =SUM(AJ$3:AJ72) -> 77 | AK73: =SUM(AK$3:AK72) -> 85 | AL73: =SUM(AL$3:AL72) -> 90 | AM73: =SUM(AM$3:AM72) -> 101 | AN73: =SUM(AN$3:AN72) -> 57 | AO73: =SUM(AO$3:AO72) -> 58 | AP73: =SUM(AP$3:AP72) -> 78 | AQ73: =SUM(AQ$3:AQ72) -> 92 | AR73: =SUM(AR$3:AR72) -> 98 | AS73: =SUM(AS$3:AS72) -> 93 | AT73: =SUM(AT$3:AT72) -> 93 | AU73: =SUM(AU$3:AU72) -> 77 | AV73: =SUM(AV$3:AV72) -> 97 | AW73: =SUM(AW$3:AW72) -> 104 | AX73: =SUM(AX$3:AX72) -> 71 | AY73: =SUM(AY$3:AY72) -> 93 | AZ73: =SUM(AZ$3:AZ72) -> 94 | BA73: =SUM(BA$3:BA72) -> 68 | BB73: =SUM(BB$3:BB72) -> 66 | BC73: =SUM(BC$3:BC72) -> 88 | BD73: =SUM(BD$3:BD72) -> 97 | BE73: =SUM(BE$3:BE72) -> 105 | BF73: =SUM(BF$3:BF72) -> 68 | BG73: =SUM(BG$3:BG72) -> 108 | BH73: =SUM(BH$3:BH72) -> 83 | BI73: =SUM(BI$3:BI72) -> 82 | BJ73: =SUM(BJ$3:BJ72) -> 48 | BK73: =SUM(BK$3:BK72) -> 82 | BL73: =SUM(BL$3:BL72) -> 89 | BM73: =SUM(BM$3:BM72) -> 88 | BN73: =SUM(BN$3:BN72) -> 93 | BO73: =SUM(BO$3:BO72) -> 78 | BP73: =SUM(BP$3:BP72) -> 97 | BQ73: =SUM(BQ$3:BQ72) -> 110 | BR73: =SUM(BR$3:BR72) -> 77 | BS73: =SUM(BS$3:BS72) -> 87 | BT73: =SUM(BT$3:BT72) -> 78 | BU73: =SUM(BU$3:BU72) -> 87 | BV73: =SUM(BV$3:BV72) -> 88 | BW73: =SUM(BW$3:BW72) -> 77 | BX73: =SUM(BX$3:BX72) -> 99 | BY73: =SUM(BY$3:BY72) -> 70 | BZ73: =SUM(BZ$3:BZ72) -> 72 | CA73: =SUM(CA$3:CA72) -> 77 | CB73: =SUM(CB$3:CB72) -> 73 | CC73: =SUM(CC$3:CC72) -> 72 | CD73: =SUM(CD$3:CD72) -> 85 | CE73: =SUM(CE$3:CE72) -> 72 | CF73: =SUM(CF$3:CF72) -> 55 | CG73: =SUM(CG$3:CG72) -> 83 | CH73: =SUM(CH$3:CH72) -> 98 | CI73: =SUM(CI$3:CI72) -> 73 | CJ73: =SUM(CJ$3:CJ72) -> 103 | CK73: =SUM(CK$3:CK72) -> 81 | CL73: =SUM(CL$3:CL72) -> 71 | CM73: =SUM(CM$3:CM72) -> 73 | CN73: =SUM(CN$3:CN72) -> 63 | CO73: =SUM(CO$3:CO72) -> 68 | CP73: =SUM(CP$3:CP72) -> 107 | CQ73: =SUM(CQ$3:CQ72) -> 106 | CR73: =SUM(CR$3:CR72) -> 83 | CS73: =SUM(CS$3:CS72) -> 78 | CT73: =SUM(CT$3:CT72) -> 69 | CU73: =SUM(CU$3:CU72) -> 73 | CV73: =SUM(CV$3:CV72) -> 62 | CW73: =SUM(CW$3:CW72) -> 75 | CX73: =SUM(CX$3:CX72) -> 77 | CY73: =SUM(CY$3:CY72) -> 77 | CZ73: =SUM(CZ$3:CZ72) -> 98 | DA73: =SUM(DA$3:DA72) -> 97 | DB73: =SUM(DB$3:DB72) -> 82 | DC73: =SUM(DC$3:DC72) -> 102

Sheet September
H1: Aaron Nealon | I1: Aidan Scanlon | J1: Aidan White | K1: Alain Verjans | L1: Anastas Popov | M1: Andy Dunne | N1: Benny McCarthy | O1: Billy McGinley | P1: Bobby Hynes | Q1: Brendan Maguire | R1: Brian Haughton | S1: Brian Hearne | T1: Brian Mullen | U1: Calvin McGettigan | V1: Caoimhin McEnteggart | W1: Carl Toner | X1: Caroline Carroll | Y1: Chris Keohan | Z1: Christina Morgan | AA1: Ciaran O'Hart | AB1: Colin Butterly | AC1: Con McSweeney | AD1: Craig Calvert | AE1: Craig Whelan | AF1: Daniel Dorrian | AG1: Darragh Kenny | AH1: Darren O'Gorman | AI1: Dave Lavelle | AJ1: Dave McGinley | AK1: David Cooney | AL1: David Doyle | AM1: David King | AN1: Derek McDonald | AO1: Dylan Delaney | AP1: Dylan O'Riordan | AQ1: Eamon Fox | AR1: Eamonn Gallagher | AS1: Eoghan Farrelly | AT1: Finbarr Corkery | AU1: Frank McSweeney | AV1: Gareth Pierpoint | AW1: Gary Donnelly | AX1: Gary Fitzpatrick | AY1: Gavin Goodwin | AZ1: Gavin Morgan | BA1: Gerry Draper | BB1: Gerry Moore | BC1: Graham Pierpoint | BD1: Greg Donaghy | BE1: Helen Fadian | BF1: Jack Draper | BG1: Jason Maloney | BH1: Javier Suarez | BI1: Jim Foley | BJ1: Jimmy Maguire | BK1: Joe Behan | BL1: Joe Turner | BM1: John Brophy | BN1: John Cafferkey | BO1: Johno Percy | BP1: Jonathan Fox | BQ1: Joseph Kavanagh | BR1: Joseph Leppla | BS1: Keith Nerney | BT1: Keith Ryan | BU1: Kev Dalton | BV1: Kevin Lawless | BW1: Kevin Nolan | BX1: Kieran Killeen | BY1: Liam Keohan | BZ1: Lionel Knott | CA1: Martin Kimmins | CB1: Micheal Joyce | CC1: Micheal Munnelly | CD1: Monica Collins | CE1: Niall Carroll | CF1: Paddy Devereux | CG1: Paul Foley | CH1: Paul Moore | CI1: Paul Prendergast | CJ1: Peter Lavelle | CK1: Phil Doyle | CL1: Philip Jordan | CM1: Phoebe Suarez Behan | CN1: Realtin Dunne | CO1: Rhea Suarez Behan | CP1: Richard Johnston | CQ1: Robert Foley | CR1: Robert Gaffney | CS1: Roisin Joyce | CT1: Sam Calvert | CU1: Sean Cafferkey | CV1: Sean Cleary | CW1: Sean O'Mairtin | CX1: Shane Horan | CY1: Simon Scanlon | CZ1: Thomas Nolan | DA1: Tommy Hamill | DB1: Tommy Tormey | DC1: Tommy Walsh
A2: Date | B2: Teams | F2: Time
A3: 2025-09-13 | B3: Arsenal | C3: 3 | D3: 0 | E3: Nott'm Forest | F3: 12:30:00 | H3: 5 | I3: 5 | J3: 5 | K3: 5 | L3: 5 | M3: 5 | N3: 5 | O3: 5 | P3: 5 | Q3: 10 | R3: 10 | S3: 5 | T3: 5 | U3: 0 | V3: 5 | W3: 5 | X3: 10 | Y3: 5 | Z3: 5 | AA3: 5 | AB3: 5 | AC3: 5 | AD3: 5 | AE3: 5 | AF3: 5 | AG3: 5 | AH3: 10 | AI3: 5 | AJ3: 5 | AK3: 5 | AL3: 5 | AM3: 5 | AN3: 5 | AO3: 5 | AP3: 5 | AQ3: 5 | AR3: 5 | AS3: 5 | AT3: 5 | AU3: 5 | AV3: 5 | AW3: 5 | AX3: 5 | AY3: 5 | AZ3: 10 | BA3: 5 | BB3: 10 | BC3: 5 | BD3: 10 | BE3: 5 | BF3: 5 | BG3: 5 | BH3: 5 | BI3: 10 | BJ3: 5 | BK3: 5 | BL3: 5 | BM3: 5 | BN3: 10 | BO3: 5 | BP3: 5 | BQ3: 5 | BR3: 5 | BS3: 5 | BT3: 5 | BU3: 10 | BV3: 10 | BW3: 5 | BX3: 10 | BY3: 5 | BZ3: 5 | CA3: 5 | CB3: 5 | CC3: 5 | CD3: 5 | CE3: 5 | CF3: 5 | CG3: 10 | CH3: 5 | CI3: 5 | CJ3: 5 | CK3: 5 | CL3: 5 | CM3: 10 | CN3: 5 | CO3: 5 | CP3: 5 | CQ3: 5 | CR3: 5 | CS3: 5 | CT3: 5 | CU3: 5 | CV3: 5 | CW3: 5 | CX3: 5 | CY3: 0 | CZ3: 5 | DA3: 5 | DB3: 0 | DC3: 5
A4: 2025-09-13 | B4: Bournemouth | C4: 2 | D4: 1 | E4: Brighton | F4: 45913.625 | H4: 0 | I4: 0 | J4: 5 | K4: 10 | L4: 0 | M4: 0 | N4: 10 | O4: 0 | P4: 0 | Q4: 0 | R4: 10 | S4: 0 | T4: 0 | U4: 0 | V4: 0 | W4: 0 | X4: 10 | Y4: 10 | Z4: 10 | AA4: 0 | AB4: 10 | AC4: 10 | AD4: 10 | AE4: 10 | AF4: 10 | AG4: 0 | AH4: 10 | AI4: 5 | AJ4: 0 | AK4: 0 | AL4: 10 | AM4: 0 | AN4: 0 | AO4: 0 | AP4: 0 | AQ4: 0 | AR4: 0 | AS4: 0 | AT4: 0 | AU4: 10 | AV4: 0 | AW4: 5 | AX4: 0 | AY4: 10 | AZ4: 10 | BA4: 5 | BB4: 0 | BC4: 10 | BD4: 10 | BE4: 5 | BF4: 0 | BG4: 10 | BH4: 0 | BI4: 0 | BJ4: 0 | BK4: 0 | BL4: 5 | BM4: 0 | BN4: 0 | BO4: 10 | BP4: 5 | BQ4: 10 | BR4: 10 | BS4: 10 | BT4: 0 | BU4: 10 | BV4: 10 | BW4: 0 | BX4: 0 | BY4: 10 | BZ4: 10 | CA4: 10 | CB4: 0 | CC4: 0 | CD4: 10 | CE4: 0 | CF4: 5 | CG4: 5 | CH4: 0 | CI4: 10 | CJ4: 0 | CK4: 0 | CL4: 0 | CM4: 0 | CN4: 10 | CO4: 0 | CP4: 10 | CQ4: 0 | CR4: 10 | CS4: 5 | CT4: 0 | CU4: 0 | CV4: 10 | CW4: 0 | CX4: 0 | CY4: 0 | CZ4: 10 | DA4: 0 | DB4: 0 | DC4: 10
A5: 2025-09-13 | B5: Crystal Palace | C5: 0 | D5: 0 | E5: Sunderland | F5: 45913.625 | H5: 0 | I5: 0 | J5: 5 | K5: 0 | L5: 0 | M5: 0 | N5: 0 | O5: 0 | P5: 0 | Q5: 0 | R5: 0 | S5: 0 | T5: 0 | U5: 10 | V5: 0 | W5: 0 | X5: 0 | Y5: 5 | Z5: 0 | AA5: 0 | AB5: 0 | AC5: 0 | AD5: 0 | AE5: 0 | AF5: 0 | AG5: 0 | AH5: 0 | AI5: 0 | AJ5: 0 | AK5: 0 | AL5: 0 | AM5: 0 | AN5: 0 | AO5: 0 | AP5: 0 | AQ5: 0 | AR5: 0 | AS5: 0 | AT5: 0 | AU5: 0 | AV5: 0 | AW5: 0 | AX5: 0 | AY5: 0 | AZ5: 0 | BA5: 0 | BB5: 5 | BC5: 0 | BD5: 0 | BE5: 0 | BF5: 0 | BG5: 0 | BH5: 0 | BI5: 0 | BJ5: 0 | BK5: 0 | BL5: 0 | BM5: 0 | BN5: 0 | BO5: 0 | BP5: 0 | BQ5: 0 | BR5: 0 | BS5: 0 | BT5: 0 | BU5: 0 | BV5: 0 | BW5: 0 | BX5: 0 | BY5: 0 | BZ5: 0 | CA5: 0 | CB5: 0 | CC5: 0 | CD5: 5 | CE5: 5 | CF5: 0 | CG5: 0 | CH5: 0 | CI5: 0 | CJ5: 0 | CK5: 0 | CL5: 0 | CM5: 0 | CN5: 0 | CO5: 5 | CP5: 5 | CQ5: 0 | CR5: 0 | CS5: 0 | CT5: 0 | CU5: 0 | CV5: 0 | CW5: 0 | CX5: 0 | CY5: 5 | CZ5: 0 | DA5: 0 | DB5: 0 | DC5: 0
A6: 2025-09-13 | B6: Everton | C6: 0 | D6: 0 | E6: Aston Villa | F6: 45913.625 | H6: 5 | I6: 0 | J6: 5 | K6: 5 | L6: 0 | M6: 5 | N6: 0 | O6: 0 | P6: 5 | Q6: 0 | R6: 5 | S6: 0 | T6: 0 | U6: 10 | V6: 0 | W6: 5 | X6: 0 | Y6: 0 | Z6: 0 | AA6: 0 | AB6: 0 | AC6: 0 | AD6: 0 | AE6: 5 | AF6: 0 | AG6: 5 | AH6: 0 | AI6: 0 | AJ6: 5 | AK6: 5 | AL6: 0 | AM6: 0 | AN6: 5 | AO6: 0 | AP6: 0 | AQ6: 0 | AR6: 5 | AS6: 0 | AT6: 0 | AU6: 5 | AV6: 0 | AW6: 5 | AX6: 5 | AY6: 5 | AZ6: 0 | BA6: 0 | BB6: 5 | BC6: 5 | BD6: 0 | BE6: 0 | BF6: 0 | BG6: 5 | BH6: 0 | BI6: 5 | BJ6: 5 | BK6: 0 | BL6: 0 | BM6: 0 | BN6: 0 | BO6: 0 | BP6: 0 | BQ6: 5 | BR6: 5 | BS6: 0 | BT6: 0 | BU6: 0 | BV6: 0 | BW6: 0 | BX6: 0 | BY6: 0 | BZ6: 0 | CA6: 5 | CB6: 0 | CC6: 0 | CD6: 5 | CE6: 0 | CF6: 5 | CG6: 0 | CH6: 5 | CI6: 5 | CJ6: 5 | CK6: 5 | CL6: 0 | CM6: 5 | CN6: 0 | CO6: 5 | CP6: 0 | CQ6: 5 | CR6: 5 | CS6: 0 | CT6: 0 | CU6: 0 | CV6: 5 | CW6: 5 | CX6: 0 | CY6: 5 | CZ6: 0 | DA6: 5 | DB6: 0 | DC6: 0
A7: 2025-09-13 | B7: Fulham | C7: 1 | D7: 0 | E7: Leeds Utd | F7: 45913.625 | H7: 5 | I7: 5 | J7: 0 | K7: 10 | L7: 5 | M7: 10 | N7: 5 | O7: 5 | P7: 5 | Q7: 5 | R7: 5 | S7: 0 | T7: 0 | U7: 0 | V7: 0 | W7: 10 | X7: 5 | Y7: 5 | Z7: 5 | AA7: 0 | AB7: 5 | AC7: 5 | AD7: 5 | AE7: 5 | AF7: 5 | AG7: 5 | AH7: 0 | AI7: 5 | AJ7: 10 | AK7: 10 | AL7: 5 | AM7: 0 | AN7: 0 | AO7: 5 | AP7: 0 | AQ7: 5 | AR7: 10 | AS7: 0 | AT7: 5 | AU7: 5 | AV7: 5 | AW7: 0 | AX7: 5 | AY7: 5 | AZ7: 10 | BA7: 5 | BB7: 10 | BC7: 5 | BD7: 5 | BE7: 10 | BF7: 0 | BG7: 5 | BH7: 0 | BI7: 5 | BJ7: 0 | BK7: 5 | BL7: 10 | BM7: 5 | BN7: 5 | BO7: 5 | BP7: 10 | BQ7: 5 | BR7: 5 | BS7: 10 | BT7: 0 | BU7: 0 | BV7: 5 | BW7: 5 | BX7: 10 | BY7: 10 | BZ7: 0 | CA7: 10 | CB7: 0 | CC7: 0 | CD7: 5 | CE7: 5 | CF7: 0 | CG7: 5 | CH7: 5 | CI7: 10 | CJ7: 5 | CK7: 0 | CL7: 5 | CM7: 0 | CN7: 5 | CO7: 5 | CP7: 0 | CQ7: 5 | CR7: 5 | CS7: 0 | CT7: 10 | CU7: 5 | CV7: 5 | CW7: 5 | CX7: 10 | CY7: 0 | CZ7: 0 | DA7: 5 | DB7: 5 | DC7: 0
A8: 2025-09-13 | B8: Newcastle | C8: 1 | D8: 0 | E8: Wolves | F8: 45913.625 | H8: 5 | I8: 5 | J8: 5 | K8: 5 | L8: 5 | M8: 5 | N8: 5 | O8: 5 | P8: 5 | Q8: 5 | R8: 5 | S8: 5 | T8: 5 | U8: 0 | V8: 0 | W8: 5 | X8: 5 | Y8: 5 | Z8: 5 | AA8: 5 | AB8: 5 | AC8: 5 | AD8: 5 | AE8: 5 | AF8: 5 | AG8: 5 | AH8: 5 | AI8: 5 | AJ8: 5 | AK8: 5 | AL8: 5 | AM8: 5 | AN8: 5 | AO8: 5 | AP8: 5 | AQ8: 5 | AR8: 5 | AS8: 5 | AT8: 5 | AU8: 5 | AV8: 5 | AW8: 5 | AX8: 5 | AY8: 5 | AZ8: 5 | BA8: 5 | BB8: 5 | BC8: 5 | BD8: 5 | BE8: 5 | BF8: 5 | BG8: 5 | BH8: 5 | BI8: 5 | BJ8: 5 | BK8: 5 | BL8: 5 | BM8: 5 | BN8: 5 | BO8: 5 | BP8: 10 | BQ8: 5 | BR8: 5 | BS8: 5 | BT8: 5 | BU8: 5 | BV8: 5 | BW8: 5 | BX8: 5 | BY8: 5 | BZ8: 5 | CA8: 5 | CB8: 5 | CC8: 5 | CD8: 5 | CE8: 5 | CF8: 10 | CG8: 5 | CH8: 5 | CI8: 5 | CJ8: 5 | CK8: 5 | CL8: 5 | CM8: 5 | CN8: 5 | CO8: 5 | CP8: 0 | CQ8: 5 | CR8: 5 | CS8: 5 | CT8: 5 | CU8: 5 | CV8: 5 | CW8: 5 | CX8: 5 | CY8: 0 | CZ8: 5 | DA8: 5 | DB8: 5 | DC8: 5
A9: 2025-09-13 | B9: West Ham | C9: 0 | D9: 3 | E9: Spurs | F9: 17:30:00 | H9: 5 | I9: 5 | J9: 5 | K9: 5 | L9: 5 | M9: 5 | N9: 0 | O9: 5 | P9: 0 | Q9: 5 | R9: 5 | S9: 5 | T9: 5 | U9: 0 | V9: 5 | W9: 5 | X9: 0 | Y9: 5 | Z9: 0 | AA9: 5 | AB9: 0 | AC9: 5 | AD9: 0 | AE9: 5 | AF9: 0 | AG9: 5 | AH9: 5 | AI9: 0 | AJ9: 5 | AK9: 0 | AL9: 5 | AM9: 5 | AN9: 5 | AO9: 5 | AP9: 0 | AQ9: 5 | AR9: 5 | AS9: 5 | AT9: 5 | AU9: 5 | AV9: 5 | AW9: 0 | AX9: 5 | AY9: 5 | AZ9: 5 | BA9: 0 | BB9: 0 | BC9: 5 | BD9: 5 | BE9: 5 | BF9: 10 | BG9: 5 | BH9: 5 | BI9: 5 | BJ9: 5 | BK9: 5 | BL9: 0 | BM9: 0 | BN9: 0 | BO9: 5 | BP9: 5 | BQ9: 5 | BR9: 5 | BS9: 5 | BT9: 5 | BU9: 5 | BV9: 5 | BW9: 0 | BX9: 0 | BY9: 5 | BZ9: 5 | CA9: 0 | CB9: 10 | CC9: 0 | CD9: 0 | CE9: 5 | CF9: 5 | CG9: 5 | CH9: 5 | CI9: 5 | CJ9: 5 | CK9: 5 | CL9: 5 | CM9: 5 | CN9: 0 | CO9: 5 | CP9: 5 | CQ9: 5 | CR9: 5 | CS9: 5 | CT9: 5 | CU9: 0 | CV9: 5 | CW9: 5 | CX9: 0 | CY9: 0 | CZ9: 5 | DA9: 5 | DB9: 0 | DC9: 5
A10: 2025-09-13 | B10: Brentford | C10: 2 | D10: 2 | E10: Chelsea | F10: 20:00:00 | H10: 0 | I10: 0 | J10: 0 | K10: 0 | L10: 0 | M10: 0 | N10: 0 | O10: 0 | P10: 0 | Q10: 0 | R10: 0 | S10: 0 | T10: 0 | U10: 5 | V10: 0 | W10: 0 | X10: 0 | Y10: 0 | Z10: 0 | AA10: 0 | AB10: 0 | AC10: 0 | AD10: 0 | AE10: 5 | AF10: 0 | AG10: 0 | AH10: 0 | AI10: 0 | AJ10: 5 | AK10: 0 | AL10: 0 | AM10: 0 | AN10: 0 | AO10: 0 | AP10: 0 | AQ10: 0 | AR10: 0 | AS10: 0 | AT10: 0 | AU10: 5 | AV10: 0 | AW10: 0 | AX10: 0 | AY10: 0 | AZ10: 0 | BA10: 0 | BB10: 0 | BC10: 0 | BD10: 0 | BE10: 0 | BF10: 0 | BG10: 0 | BH10: 0 | BI10: 0 | BJ10: 0 | BK10: 0 | BL10: 5 | BM10: 0 | BN10: 0 | BO10: 0 | BP10: 0 | BQ10: 0 | BR10: 10 | BS10: 0 | BT10: 0 | BU10: 0 | BV10: 0 | BW10: 0 | BX10: 0 | BY10: 0 | BZ10: 0 | CA10: 0 | CB10: 0 | CC10: 0 | CD10: 0 | CE10: 0 | CF10: 0 | CG10: 5 | CH10: 0 | CI10: 0 | CJ10: 0 | CK10: 0 | CL10: 0 | CM10: 0 | CN10: 0 | CO10: 0 | CP10: 0 | CQ10: 0 | CR10: 10 | CS10: 0 | CT10: 0 | CU10: 0 | CV10: 0 | CW10: 0 | CX10: 10 | CY10: 5 | CZ10: 0 | DA10: 0 | DB10: 10 | DC10: 0
A11: 2025-09-14 | B11: Burnley | C11: 0 | D11: 1 | E11: Liverpool | F11: 14:00:00 | H11: 5 | I11: 5 | J11: 5 | K11: 5 | L11: 5 | M11: 5 | N11: 5 | O11: 5 | P11: 5 | Q11: 5 | R11: 5 | S11: 5 | T11: 5 | U11: 0 | V11: 5 | W11: 5 | X11: 5 | Y11: 5 | Z11: 0 | AA11: 5 | AB11: 5 | AC11: 5 | AD11: 5 | AE11: 5 | AF11: 5 | AG11: 5 | AH11: 5 | AI11: 0 | AJ11: 5 | AK11: 5 | AL11: 5 | AM11: 5 | AN11: 5 | AO11: 5 | AP11: 5 | AQ11: 5 | AR11: 5 | AS11: 5 | AT11: 5 | AU11: 5 | AV11: 5 | AW11: 5 | AX11: 0 | AY11: 5 | AZ11: 5 | BA11: 5 | BB11: 5 | BC11: 5 | BD11: 5 | BE11: 5 | BF11: 5 | BG11: 5 | BH11: 5 | BI11: 5 | BJ11: 5 | BK11: 5 | BL11: 5 | BM11: 0 | BN11: 5 | BO11: 5 | BP11: 5 | BQ11: 5 | BR11: 5 | BS11: 5 | BT11: 5 | BU11: 5 | BV11: 5 | BW11: 10 | BX11: 5 | BY11: 5 | BZ11: 5 | CA11: 5 | CB11: 5 | CC11: 5 | CD11: 5 | CE11: 10 | CF11: 5 | CG11: 5 | CH11: 5 | CI11: 5 | CJ11: 5 | CK11: 5 | CL11: 5 | CM11: 5 | CN11: 0 | CO11: 5 | CP11: 5 | CQ11: 5 | CR11: 5 | CS11: 5 | CT11: 5 | CU11: 5 | CV11: 5 | CW11: 5 | CX11: 5 | CY11: 0 | CZ11: 5 | DA11: 5 | DB11: 5 | DC11: 5
A12: 2025-09-14 | B12: Man City | C12: 3 | D12: 0 | E12: Man Utd | F12: 16:30:00 | H12: 5 | I12: 10 | J12: 5 | K12: 5 | L12: 5 | M12: 5 | N12: 0 | O12: 5 | P12: 5 | Q12: 0 | R12: 5 | S12: 5 | T12: 5 | U12: 0 | V12: 5 | W12: 5 | X12: 0 | Y12: 10 | Z12: 5 | AA12: 0 | AB12: 0 | AC12: 5 | AD12: 5 | AE12: 5 | AF12: 5 | AG12: 5 | AH12: 5 | AI12: 5 | AJ12: 0 | AK12: 5 | AL12: 5 | AM12: 5 | AN12: 0 | AO12: 0 | AP12: 5 | AQ12: 5 | AR12: 5 | AS12: 0 | AT12: 0 | AU12: 5 | AV12: 5 | AW12: 5 | AX12: 5 | AY12: 0 | AZ12: 5 | BA12: 5 | BB12: 0 | BC12: 10 | BD12: 5 | BE12: 5 | BF12: 5 | BG12: 5 | BH12: 10 | BI12: 0 | BJ12: 5 | BK12: 5 | BL12: 5 | BM12: 5 | BN12: 5 | BO12: 5 | BP12: 5 | BQ12: 10 | BR12: 5 | BS12: 5 | BT12: 0 | BU12: 5 | BV12: 0 | BW12: 5 | BX12: 5 | BY12: 0 | BZ12: 5 | CA12: 5 | CB12: 10 | CC12: 5 | CD12: 5 | CE12: 5 | CF12: 0 | CG12: 0 | CH12: 10 | CI12: 5 | CJ12: 5 | CK12: 0 | CL12: 5 | CM12: 5 | CN12: 5 | CO12: 5 | CP12: 10 | CQ12: 0 | CR12: 5 | CS12: 5 | CT12: 0 | CU12: 5 | CV12: 0 | CW12: 0 | CX12: 10 | CY12: 0 | CZ12: 5 | DA12: 5 | DB12: 5 | DC12: 5
A13: 2025-09-20 | B13: Liverpool | C13: 2 | D13: 1 | E13: Everton | F13: 12:30:00 | H13: 5 | I13: 0 | J13: 0 | K13: 5 | L13: 5 | M13: 5 | N13: 5 | O13: 5 | P13: 5 | Q13: 5 | R13: 0 | S13: 5 | T13: 10 | U13: 0 | V13: 10 | W13: 5 | X13: 10 | Y13: 10 | Z13: 10 | AA13: 5 | AB13: 5 | AC13: 5 | AD13: 5 | AE13: 5 | AF13: 5 | AG13: 5 | AH13: 5 | AI13: 5 | AJ13: 10 | AK13: 5 | AL13: 10 | AM13: 5 | AN13: 0 | AO13: 10 | AP13: 10 | AQ13: 5 | AR13: 5 | AS13: 10 | AT13: 10 | AU13: 5 | AV13: 5 | AW13: 5 | AX13: 5 | AY13: 5 | AZ13: 10 | BA13: 5 | BB13: 0 | BC13: 10 | BD13: 5 | BE13: 5 | BF13: 5 | BG13: 10 | BH13: 5 | BI13: 5 | BJ13: 5 | BK13: 5 | BL13: 5 | BM13: 5 | BN13: 5 | BO13: 10 | BP13: 10 | BQ13: 5 | BR13: 5 | BS13: 5 | BT13: 5 | BU13: 5 | BV13: 5 | BW13: 5 | BX13: 10 | BY13: 10 | BZ13: 5 | CA13: 0 | CB13: 5 | CC13: 10 | CD13: 5 | CE13: 5 | CF13: 0 | CG13: 5 | CH13: 5 | CI13: 5 | CJ13: 5 | CK13: 5 | CL13: 5 | CM13: 5 | CN13: 10 | CO13: 10 | CP13: 5 | CQ13: 5 | CR13: 10 | CS13: 10 | CT13: 10 | CU13: 5 | CV13: 5 | CW13: 10 | CX13: 10 | CY13: 10 | CZ13: 5 | DA13: 5 | DB13: 0 | DC13: 10
A14: 2025-09-20 | B14: Brighton | C14: 2 | D14: 2 | E14: Spurs | F14: 45920.625 | H14: 10 | I14: 0 | J14: 5 | K14: 5 | L14: 5 | M14: 5 | N14: 5 | O14: 0 | P14: 5 | Q14: 5 | R14: 5 | S14: 0 | T14: 0 | U14: 5 | V14: 5 | W14: 0 | X14: 0 | Y14: 0 | Z14: 0 | AA14: 0 | AB14: 0 | AC14: 0 | AD14: 5 | AE14: 0 | AF14: 5 | AG14: 0 | AH14: 0 | AI14: 0 | AJ14: 5 | AK14: 10 | AL14: 0 | AM14: 0 | AN14: 0 | AO14: 0 | AP14: 5 | AQ14: 0 | AR14: 0 | AS14: 0 | AT14: 5 | AU14: 5 | AV14: 0 | AW14: 0 | AX14: 0 | AY14: 0 | AZ14: 0 | BA14: 0 | BB14: 10 | BC14: 5 | BD14: 0 | BE14: 5 | BF14: 0 | BG14: 0 | BH14: 0 | BI14: 0 | BJ14: 5 | BK14: 5 | BL14: 10 | BM14: 5 | BN14: 5 | BO14: 5 | BP14: 0 | BQ14: 0 | BR14: 5 | BS14: 0 | BT14: 5 | BU14: 0 | BV14: 0 | BW14: 5 | BX14: 5 | BY14: 0 | BZ14: 10 | CA14: 5 | CB14: 0 | CC14: 5 | CD14: 5 | CE14: 0 | CF14: 0 | CG14: 5 | CH14: 10 | CI14: 0 | CJ14: 0 | CK14: 0 | CL14: 0 | CM14: 10 | CN14: 0 | CO14: 10 | CP14: 0 | CQ14: 10 | CR14: 5 | CS14: 5 | CT14: 0 | CU14: 0 | CV14: 0 | CW14: 10 | CX14: 5 | CY14: 0 | CZ14: 0 | DA14: 5 | DB14: 0 | DC14: 0
A15: 2025-09-20 | B15: Burnley | C15: 1 | D15: 1 | E15: Nott'm Forest | F15: 45920.625 | H15: 0 | I15: 5 | J15: 0 | K15: 10 | L15: 0 | M15: 0 | N15: 10 | O15: 10 | P15: 10 | Q15: 0 | R15: 10 | S15: 0 | T15: 10 | U15: 5 | V15: 5 | W15: 0 | X15: 10 | Y15: 10 | Z15: 0 | AA15: 10 | AB15: 0 | AC15: 10 | AD15: 0 | AE15: 10 | AF15: 0 | AG15: 0 | AH15: 10 | AI15: 0 | AJ15: 5 | AK15: 0 | AL15: 0 | AM15: 0 | AN15: 0 | AO15: 0 | AP15: 0 | AQ15: 0 | AR15: 0 | AS15: 0 | AT15: 10 | AU15: 0 | AV15: 0 | AW15: 0 | AX15: 10 | AY15: 0 | AZ15: 0 | BA15: 10 | BB15: 0 | BC15: 0 | BD15: 10 | BE15: 0 | BF15: 0 | BG15: 10 | BH15: 0 | BI15: 0 | BJ15: 0 | BK15: 0 | BL15: 0 | BM15: 5 | BN15: 0 | BO15: 10 | BP15: 0 | BQ15: 0 | BR15: 0 | BS15: 0 | BT15: 10 | BU15: 0 | BV15: 0 | BW15: 0 | BX15: 0 | BY15: 0 | BZ15: 10 | CA15: 0 | CB15: 10 | CC15: 0 | CD15: 0 | CE15: 0 | CF15: 0 | CG15: 0 | CH15: 10 | CI15: 0 | CJ15: 0 | CK15: 0 | CL15: 0 | CM15: 0 | CN15: 0 | CO15: 5 | CP15: 10 | CQ15: 10 | CR15: 0 | CS15: 10 | CT15: 0 | CU15: 0 | CV15: 0 | CW15: 0 | CX15: 0 | CY15: 5 | CZ15: 0 | DA15: 0 | DB15: 0 | DC15: 0
A16: 2025-09-20 | B16: West Ham | C16: 1 | D16: 2 | E16: Crystal Palace | F16: 45920.625 | H16: 0 | I16: 5 | J16: 5 | K16: 0 | L16: 10 | M16: 5 | N16: 5 | O16: 5 | P16: 0 | Q16: 0 | R16: 0 | S16: 5 | T16: 5 | U16: 0 | V16: 0 | W16: 0 | X16: 5 | Y16: 0 | Z16: 0 | AA16: 0 | AB16: 0 | AC16: 10 | AD16: 10 | AE16: 10 | AF16: 5 | AG16: 5 | AH16: 10 | AI16: 0 | AJ16: 0 | AK16: 10 | AL16: 10 | AM16: 5 | AN16: 10 | AO16: 10 | AP16: 5 | AQ16: 5 | AR16: 0 | AS16: 0 | AT16: 5 | AU16: 5 | AV16: 0 | AW16: 0 | AX16: 10 | AY16: 0 | AZ16: 5 | BA16: 5 | BB16: 10 | BC16: 0 | BD16: 5 | BE16: 0 | BF16: 5 | BG16: 0 | BH16: 0 | BI16: 5 | BJ16: 0 | BK16: 5 | BL16: 0 | BM16: 5 | BN16: 0 | BO16: 5 | BP16: 5 | BQ16: 0 | BR16: 10 | BS16: 10 | BT16: 10 | BU16: 5 | BV16: 0 | BW16: 0 | BX16: 5 | BY16: 5 | BZ16: 5 | CA16: 5 | CB16: 10 | CC16: 0 | CD16: 0 | CE16: 5 | CF16: 5 | CG16: 5 | CH16: 10 | CI16: 0 | CJ16: 0 | CK16: 0 | CL16: 0 | CM16: 0 | CN16: 0 | CO16: 0 | CP16: 0 | CQ16: 5 | CR16: 10 | CS16: 10 | CT16: 5 | CU16: 0 | CV16: 0 | CW16: 0 | CX16: 0 | CY16: 0 | CZ16: 0 | DA16: 0 | DB16: 5 | DC16: 0
A17: 2025-09-20 | B17: Wolves | C17: 1 | D17: 3 | E17: Leeds Utd | F17: 45920.625 | H17: 0 | I17: 0 | J17: 5 | K17: 0 | L17: 0 | M17: 5 | N17: 0 | O17: 0 | P17: 0 | Q17: 0 | R17: 0 | S17: 5 | T17: 0 | U17: 0 | V17: 0 | W17: 0 | X17: 0 | Y17: 0 | Z17: 0 | AA17: 0 | AB17: 0 | AC17: 0 | AD17: 0 | AE17: 0 | AF17: 0 | AG17: 0 | AH17: 0 | AI17: 0 | AJ17: 0 | AK17: 0 | AL17: 5 | AM17: 0 | AN17: 0 | AO17: 0 | AP17: 0 | AQ17: 0 | AR17: 0 | AS17: 5 | AT17: 5 | AU17: 0 | AV17: 0 | AW17: 5 | AX17: 0 | AY17: 0 | AZ17: 0 | BA17: 0 | BB17: 0 | BC17: 0 | BD17: 0 | BE17: 0 | BF17: 0 | BG17: 0 | BH17: 0 | BI17: 0 | BJ17: 0 | BK17: 0 | BL17: 0 | BM17: 0 | BN17: 0 | BO17: 0 | BP17: 0 | BQ17: 0 | BR17: 0 | BS17: 5 | BT17: 5 | BU17: 0 | BV17: 0 | BW17: 0 | BX17: 0 | BY17: 0 | BZ17: 5 | CA17: 0 | CB17: 0 | CC17: 0 | CD17: 0 | CE17: 5 | CF17: 5 | CG17: 0 | CH17: 0 | CI17: 0 | CJ17: 0 | CK17: 5 | CL17: 0 | CM17: 0 | CN17: 0 | CO17: 0 | CP17: 0 | CQ17: 0 | CR17: 0 | CS17: 0 | CT17: 0 | CU17: 0 | CV17: 0 | CW17: 0 | CX17: 0 | CY17: 0 | CZ17: 5 | DA17: 0 | DB17: 5 | DC17: 0
A18: 2025-09-20 | B18: Man Utd | C18: 2 | D18: 1 | E18: Chelsea | F18: 17:30:00 | H18: 0 | I18: 0 | J18: 0 | K18: 0 | L18: 0 | M18: 0 | N18: 0 | O18: 0 | P18: 0 | Q18: 0 | R18: 0 | S18: 0 | T18: 0 | U18: 0 | V18: 0 | W18: 0 | X18: 0 | Y18: 0 | Z18: 10 | AA18: 0 | AB18: 5 | AC18: 0 | AD18: 0 | AE18: 0 | AF18: 10 | AG18: 0 | AH18: 0 | AI18: 5 | AJ18: 10 | AK18: 0 | AL18: 0 | AM18: 0 | AN18: 0 | AO18: 10 | AP18: 0 | AQ18: 0 | AR18: 0 | AS18: 0 | AT18: 10 | AU18: 0 | AV18: 0 | AW18: 0 | AX18: 0 | AY18: 0 | AZ18: 0 | BA18: 0 | BB18: 0 | BC18: 0 | BD18: 0 | BE18: 0 | BF18: 0 | BG18: 0 | BH18: 0 | BI18: 0 | BJ18: 0 | BK18: 0 | BL18: 0 | BM18: 0 | BN18: 0 | BO18: 0 | BP18: 0 | BQ18: 0 | BR18: 0 | BS18: 0 | BT18: 0 | BU18: 0 | BV18: 0 | BW18: 0 | BX18: 0 | BY18: 10 | BZ18: 0 | CA18: 0 | CB18: 0 | CC18: 0 | CD18: 0 | CE18: 0 | CF18: 0 | CG18: 0 | CH18: 0 | CI18: 0 | CJ18: 0 | CK18: 0 | CL18: 10 | CM18: 0 | CN18: 10 | CO18: 0 | CP18: 0 | CQ18: 0 | CR18: 0 | CS18: 0 | CT18: 5 | CU18: 0 | CV18: 10 | CW18: 0 | CX18: 0 | CY18: 10 | CZ18: 5 | DA18: 0 | DB18: 0 | DC18: 10
A19: 2025-09-20 | B19: Fulham | C19: 3 | D19: 1 | E19: Brentford | F19: 20:00:00 | H19: 0 | I19: 0 | J19: 0 | K19: 5 | L19: 0 | M19: 5 | N19: 0 | O19: 0 | P19: 5 | Q19: 5 | R19: 0 | S19: 0 | T19: 5 | U19: 0 | V19: 0 | W19: 0 | X19: 0 | Y19: 5 | Z19: 5 | AA19: 5 | AB19: 0 | AC19: 5 | AD19: 5 | AE19: 5 | AF19: 0 | AG19: 0 | AH19: 0 | AI19: 5 | AJ19: 0 | AK19: 5 | AL19: 5 | AM19: 5 | AN19: 5 | AO19: 5 | AP19: 0 | AQ19: 5 | AR19: 5 | AS19: 0 | AT19: 0 | AU19: 0 | AV19: 5 | AW19: 5 | AX19: 5 | AY19: 5 | AZ19: 5 | BA19: 5 | BB19: 0 | BC19: 0 | BD19: 5 | BE19: 5 | BF19: 0 | BG19: 5 | BH19: 0 | BI19: 5 | BJ19: 0 | BK19: 0 | BL19: 5 | BM19: 0 | BN19: 5 | BO19: 5 | BP19: 5 | BQ19: 5 | BR19: 0 | BS19: 5 | BT19: 5 | BU19: 5 | BV19: 5 | BW19: 5 | BX19: 0 | BY19: 5 | BZ19: 5 | CA19: 5 | CB19: 0 | CC19: 0 | CD19: 0 | CE19: 0 | CF19: 0 | CG19: 0 | CH19: 5 | CI19: 5 | CJ19: 5 | CK19: 0 | CL19: 5 | CM19: 0 | CN19: 5 | CO19: 0 | CP19: 5 | CQ19: 5 | CR19: 5 | CS19: 5 | CT19: 5 | CU19: 5 | CV19: 0 | CW19: 5 | CX19: 5 | CY19: 0 | CZ19: 0 | DA19: 0 | DB19: 0 | DC19: 5
A20: 2025-09-21 | B20: Bournemouth | C20: 0 | D20: 0 | E20: Newcastle | F20: 14:00:00 | H20: 0 | I20: 0 | J20: 5 | K20: 0 | L20: 0 | M20: 0 | N20: 0 | O20: 0 | P20: 5 | Q20: 5 | R20: 5 | S20: 0 | T20: 0 | U20: 10 | V20: 10 | W20: 0 | X20: 5 | Y20: 0 | Z20: 0 | AA20: 5 | AB20: 0 | AC20: 0 | AD20: 5 | AE20: 0 | AF20: 0 | AG20: 0 | AH20: 5 | AI20: 0 | AJ20: 5 | AK20: 0 | AL20: 0 | AM20: 5 | AN20: 0 | AO20: 5 | AP20: 0 | AQ20: 0 | AR20: 0 | AS20: 0 | AT20: 5 | AU20: 5 | AV20: 5 | AW20: 0 | AX20: 0 | AY20: 0 | AZ20: 5 | BA20: 0 | BB20: 5 | BC20: 0 | BD20: 0 | BE20: 5 | BF20: 0 | BG20: 5 | BH20: 0 | BI20: 5 | BJ20: 0 | BK20: 5 | BL20: 0 | BM20: 0 | BN20: 0 | BO20: 0 | BP20: 0 | BQ20: 0 | BR20: 0 | BS20: 0 | BT20: 0 | BU20: 0 | BV20: 0 | BW20: 0 | BX20: 0 | BY20: 0 | BZ20: 0 | CA20: 0 | CB20: 0 | CC20: 0 | CD20: 5 | CE20: 0 | CF20: 0 | CG20: 5 | CH20: 0 | CI20: 0 | CJ20: 5 | CK20: 0 | CL20: 0 | CM20: 0 | CN20: 0 | CO20: 0 | CP20: 0 | CQ20: 0 | CR20: 5 | CS20: 0 | CT20: 0 | CU20: 5 | CV20: 0 | CW20: 0 | CX20: 0 | CY20: 0 | CZ20: 0 | DA20: 5 | DB20: 0 | DC20: 0
A21: 2025-09-21 | B21: Sunderland | C21: 1 | D21: 1 | E21: Aston Villa | F21: 14:00:00 | H21: 0 | I21: 0 | J21: 10 | K21: 10 | L21: 5 | M21: 0 | N21: 5 | O21: 0 | P21: 0 | Q21: 0 | R21: 10 | S21: 0 | T21: 10 | U21: 5 | V21: 0 | W21: 0 | X21: 0 | Y21: 10 | Z21: 0 | AA21: 0 | AB21: 0 | AC21: 0 | AD21: 0 | AE21: 0 | AF21: 0 | AG21: 0 | AH21: 0 | AI21: 0 | AJ21: 10 | AK21: 10 | AL21: 0 | AM21: 0 | AN21: 10 | AO21: 0 | AP21: 0 | AQ21: 0 | AR21: 0 | AS21: 10 | AT21: 0 | AU21: 0 | AV21: 0 | AW21: 0 | AX21: 10 | AY21: 10 | AZ21: 0 | BA21: 5 | BB21: 0 | BC21: 0 | BD21: 0 | BE21: 0 | BF21: 0 | BG21: 0 | BH21: 0 | BI21: 10 | BJ21: 0 | BK21: 0 | BL21: 10 | BM21: 0 | BN21: 0 | BO21: 0 | BP21: 0 | BQ21: 0 | BR21: 10 | BS21: 0 | BT21: 0 | BU21: 0 | BV21: 10 | BW21: 0 | BX21: 10 | BY21: 0 | BZ21: 0 | CA21: 10 | CB21: 10 | CC21: 10 | CD21: 10 | CE21: 0 | CF21: 0 | CG21: 5 | CH21: 10 | CI21: 0 | CJ21: 0 | CK21: 0 | CL21: 0 | CM21: 0 | CN21: 0 | CO21: 0 | CP21: 10 | CQ21: 0 | CR21: 10 | CS21: 10 | CT21: 0 | CU21: 0 | CV21: 0 | CW21: 0 | CX21: 0 | CY21: 0 | CZ21: 0 | DA21: 0 | DB21: 0 | DC21: 0
A22: 2025-09-21 | B22: Arsenal | C22: 1 | D22: 1 | E22: Man City | F22: 16:30:00 | H22: 10 | I22: 5 | J22: 5 | K22: 5 | L22: 0 | M22: 0 | N22: 5 | O22: 0 | P22: 10 | Q22: 0 | R22: 10 | S22: 0 | T22: 0 | U22: 5 | V22: 0 | W22: 10 | X22: 10 | Y22: 5 | Z22: 0 | AA22: 10 | AB22: 0 | AC22: 0 | AD22: 0 | AE22: 5 | AF22: 10 | AG22: 10 | AH22: 0 | AI22: 0 | AJ22: 0 | AK22: 5 | AL22: 0 | AM22: 0 | AN22: 0 | AO22: 5 | AP22: 0 | AQ22: 0 | AR22: 10 | AS22: 0 | AT22: 0 | AU22: 0 | AV22: 10 | AW22: 5 | AX22: 0 | AY22: 10 | AZ22: 0 | BA22: 0 | BB22: 0 | BC22: 10 | BD22: 5 | BE22: 0 | BF22: 0 | BG22: 0 | BH22: 0 | BI22: 0 | BJ22: 10 | BK22: 0 | BL22: 5 | BM22: 0 | BN22: 0 | BO22: 0 | BP22: 0 | BQ22: 0 | BR22: 5 | BS22: 0 | BT22: 10 | BU22: 0 | BV22: 5 | BW22: 10 | BX22: 5 | BY22: 5 | BZ22: 10 | CA22: 0 | CB22: 0 | CC22: 0 | CD22: 0 | CE22: 5 | CF22: 0 | CG22: 0 | CH22: 5 | CI22: 0 | CJ22: 10 | CK22: 0 | CL22: 0 | CM22: 5 | CN22: 0 | CO22: 5 | CP22: 5 | CQ22: 0 | CR22: 0 | CS22: 10 | CT22: 5 | CU22: 5 | CV22: 0 | CW22: 0 | CX22: 5 | CY22: 5 | CZ22: 10 | DA22: 10 | DB22: 5 | DC22: 0
A23: 2025-09-27 | B23: Brentford | C23: 3 | D23: 1 | E23: Man Utd | F23: 12:30:00 | H23: 5 | I23: 5 | J23: 0 | K23: 0 | L23: 0 | M23: 5 | N23: 0 | O23: 0 | P23: 0 | Q23: 0 | R23: 0 | S23: 0 | T23: 0 | U23: - | V23: 0 | W23: 5 | X23: 0 | Y23: 0 | Z23: 5 | AA23: 0 | AB23: 0 | AC23: 0 | AD23: 0 | AE23: 0 | AF23: 0 | AG23: 0 | AH23: 0 | AI23: 5 | AJ23: 0 | AK23: 5 | AL23: 0 | AM23: 0 | AN23: 0 | AO23: 0 | AP23: 0 | AQ23: 0 | AR23: 0 | AS23: 5 | AT23: 0 | AU23: 0 | AV23: 0 | AW23: 0 | AX23: 0 | AY23: 0 | AZ23: 0 | BA23: 0 | BB23: 0 | BC23: 0 | BD23: 0 | BE23: 0 | BF23: 0 | BG23: 0 | BH23: 0 | BI23: 0 | BJ23: 0 | BK23: 0 | BL23: 0 | BM23: 5 | BN23: 0 | BO23: 0 | BP23: 0 | BQ23: 0 | BR23: 0 | BS23: 0 | BT23: 0 | BU23: 0 | BV23: 0 | BW23: 0 | BX23: 5 | BY23: 0 | BZ23: 0 | CA23: 0 | CB23: 0 | CC23: 5 | CD23: 0 | CE23: 0 | CF23: 0 | CG23: 5 | CH23: 0 | CI23: 0 | CJ23: 0 | CK23: 0 | CL23: 0 | CM23: 0 | CN23: 5 | CO23: 0 | CP23: 0 | CQ23: 5 | CR23: 0 | CS23: 0 | CT23: 0 | CU23: 0 | CV23: 5 | CW23: 0 | CX23: 0 | CY23: 0 | CZ23: 0 | DA23: 5 | DB23: 0 | DC23: 5
A24: 2025-09-27 | B24: Chelsea | C24: 1 | D24: 3 | E24: Brighton | F24: 45927.625 | H24: 0 | I24: 0 | J24: 0 | K24: 0 | L24: 0 | M24: 0 | N24: 5 | O24: 0 | P24: 0 | Q24: 0 | R24: 0 | S24: 0 | T24: 0 | U24: - | V24: 0 | W24: 0 | X24: 0 | Y24: 0 | Z24: 0 | AA24: 0 | AB24: 5 | AC24: 0 | AD24: 0 | AE24: 0 | AF24: 0 | AG24: 0 | AH24: 0 | AI24: 0 | AJ24: 0 | AK24: 0 | AL24: 0 | AM24: 0 | AN24: 0 | AO24: 0 | AP24: 0 | AQ24: 0 | AR24: 0 | AS24: 0 | AT24: 0 | AU24: 0 | AV24: 0 | AW24: 0 | AX24: 0 | AY24: 0 | AZ24: 0 | BA24: 0 | BB24: 0 | BC24: 0 | BD24: 0 | BE24: 0 | BF24: 0 | BG24: 0 | BH24: 0 | BI24: 0 | BJ24: 0 | BK24: 0 | BL24: 0 | BM24: 0 | BN24: 0 | BO24: 0 | BP24: 0 | BQ24: 0 | BR24: 0 | BS24: 0 | BT24: 0 | BU24: 0 | BV24: 0 | BW24: 0 | BX24: 0 | BY24: 0 | BZ24: 0 | CA24: 0 | CB24: 0 | CC24: 0 | CD24: 0 | CE24: 0 | CF24: 0 | CG24: 0 | CH24: 0 | CI24: 0 | CJ24: 0 | CK24: 0 | CL24: 0 | CM24: 0 | CN24: 0 | CO24: 0 | CP24: 0 | CQ24: 0 | CR24: 0 | CS24: 0 | CT24: 0 | CU24: 0 | CV24: 0 | CW24: 0 | CX24: 0 | CY24: 0 | CZ24: 0 | DA24: 0 | DB24: 0 | DC24: 0
A25: 2025-09-27 | B25: Crystal Palace | C25: 2 | D25: 1 | E25: Liverpool | F25: 45927.625 | H25: 0 | I25: 0 | J25: 0 | K25: 0 | L25: 0 | M25: 0 | N25: 0 | O25: 5 | P25: 0 | Q25: 0 | R25: 0 | S25: 0 | T25: 0 | U25: - | V25: 0 | W25: 5 | X25: 0 | Y25: 0 | Z25: 10 | AA25: 0 | AB25: 0 | AC25: 0 | AD25: 0 | AE25: 0 | AF25: 0 | AG25: 0 | AH25: 0 | AI25: 5 | AJ25: 0 | AK25: 0 | AL25: 0 | AM25: 0 | AN25: 0 | AO25: 0 | AP25: 0 | AQ25: 0 | AR25: 0 | AS25: 0 | AT25: 0 | AU25: 0 | AV25: 0 | AW25: 0 | AX25: 0 | AY25: 0 | AZ25: 0 | BA25: 0 | BB25: 0 | BC25: 0 | BD25: 0 | BE25: 0 | BF25: 0 | BG25: 0 | BH25: 0 | BI25: 0 | BJ25: 0 | BK25: 0 | BL25: 0 | BM25: 0 | BN25: 0 | BO25: 0 | BP25: 0 | BQ25: 0 | BR25: 0 | BS25: 0 | BT25: 0 | BU25: 0 | BV25: 0 | BW25: 0 | BX25: 10 | BY25: 0 | BZ25: 0 | CA25: 0 | CB25: 0 | CC25: 0 | CD25: 0 | CE25: 0 | CF25: 0 | CG25: 0 | CH25: 0 | CI25: 0 | CJ25: 0 | CK25: 0 | CL25: 0 | CM25: 0 | CN25: 10 | CO25: 0 | CP25: 0 | CQ25: 0 | CR25: 0 | CS25: 0 | CT25: 0 | CU25: 0 | CV25: 5 | CW25: 0 | CX25: 0 | CY25: 0 | CZ25: 0 | DA25: 0 | DB25: 0 | DC25: 0
A26: 2025-09-27 | B26: Leeds Utd | C26: 2 | D26: 2 | E26: Bournemouth | F26: 45927.625 | H26: 5 | I26: 0 | J26: 5 | K26: 5 | L26: 0 | M26: 0 | N26: 0 | O26: 0 | P26: 0 | Q26: 10 | R26: 0 | S26: 0 | T26: 0 | U26: - | V26: 0 | W26: 0 | X26: 0 | Y26: 0 | Z26: 0 | AA26: 0 | AB26: 0 | AC26: 0 | AD26: 5 | AE26: 0 | AF26: 0 | AG26: 5 | AH26: 0 | AI26: 0 | AJ26: 5 | AK26: 0 | AL26: 0 | AM26: 0 | AN26: 0 | AO26: 10 | AP26: 5 | AQ26: 5 | AR26: 0 | AS26: 0 | AT26: 0 | AU26: 0 | AV26: 0 | AW26: 5 | AX26: 0 | AY26: 5 | AZ26: 0 | BA26: 0 | BB26: 5 | BC26: 0 | BD26: 0 | BE26: 5 | BF26: 0 | BG26: 5 | BH26: 10 | BI26: 0 | BJ26: 0 | BK26: 0 | BL26: 0 | BM26: 0 | BN26: 5 | BO26: 0 | BP26: 0 | BQ26: 0 | BR26: 0 | BS26: 0 | BT26: 0 | BU26: 0 | BV26: 5 | BW26: 0 | BX26: 0 | BY26: 5 | BZ26: 0 | CA26: 0 | CB26: 0 | CC26: 5 | CD26: 5 | CE26: 0 | CF26: 0 | CG26: 0 | CH26: 5 | CI26: 0 | CJ26: 0 | CK26: 0 | CL26: 0 | CM26: 10 | CN26: 0 | CO26: 5 | CP26: 0 | CQ26: 5 | CR26: 0 | CS26: 5 | CT26: 0 | CU26: 5 | CV26: 0 | CW26: 0 | CX26: 0 | CY26: 10 | CZ26: 5 | DA26: 5 | DB26: 10 | DC26: 0
A27: 2025-09-27 | B27: Man City | C27: 5 | D27: 1 | E27: Burnley | F27: 45927.625 | H27: 5 | I27: 5 | J27: 5 | K27: 5 | L27: 5 | M27: 5 | N27: 5 | O27: 5 | P27: 5 | Q27: 5 | R27: 5 | S27: 5 | T27: 5 | U27: - | V27: 5 | W27: 5 | X27: 5 | Y27: 5 | Z27: 5 | AA27: 5 | AB27: 5 | AC27: 5 | AD27: 5 | AE27: 5 | AF27: 5 | AG27: 5 | AH27: 5 | AI27: 5 | AJ27: 5 | AK27: 5 | AL27: 5 | AM27: 5 | AN27: 5 | AO27: 5 | AP27: 5 | AQ27: 5 | AR27: 5 | AS27: 5 | AT27: 5 | AU27: 5 | AV27: 5 | AW27: 5 | AX27: 5 | AY27: 5 | AZ27: 5 | BA27: 5 | BB27: 5 | BC27: 5 | BD27: 5 | BE27: 5 | BF27: 5 | BG27: 5 | BH27: 5 | BI27: 5 | BJ27: 5 | BK27: 5 | BL27: 5 | BM27: 5 | BN27: 5 | BO27: 5 | BP27: 5 | BQ27: 5 | BR27: 5 | BS27: 5 | BT27: 5 | BU27: 5 | BV27: 5 | BW27: 5 | BX27: 5 | BY27: 5 | BZ27: 5 | CA27: 5 | CB27: 5 | CC27: 5 | CD27: 5 | CE27: 5 | CF27: 5 | CG27: 5 | CH27: 5 | CI27: 5 | CJ27: 5 | CK27: 5 | CL27: 5 | CM27: 5 | CN27: 5 | CO27: 5 | CP27: 5 | CQ27: 5 | CR27: 5 | CS27: 5 | CT27: 5 | CU27: 5 | CV27: 5 | CW27: 5 | CX27: 5 | CY27: 5 | CZ27: 5 | DA27: 5 | DB27: 5 | DC27: 5
A28: 2025-09-27 | B28: Nott'm Forest | C28: 0 | D28: 1 | E28: Sunderland | F28: 17:30:00 | H28: 0 | I28: 0 | J28: 0 | K28: 0 | L28: 0 | M28: 0 | N28: 0 | O28: 10 | P28: 0 | Q28: 0 | R28: 0 | S28: 0 | T28: 0 | U28: - | V28: 10 | W28: 0 | X28: 0 | Y28: 0 | Z28: 0 | AA28: 0 | AB28: 0 | AC28: 0 | AD28: 0 | AE28: 0 | AF28: 0 | AG28: 0 | AH28: 0 | AI28: 0 | AJ28: 0 | AK28: 0 | AL28: 5 | AM28: 5 | AN28: 0 | AO28: 0 | AP28: 0 | AQ28: 0 | AR28: 0 | AS28: 5 | AT28: 0 | AU28: 0 | AV28: 0 | AW28: 0 | AX28: 0 | AY28: 0 | AZ28: 0 | BA28: 0 | BB28: 0 | BC28: 0 | BD28: 0 | BE28: 0 | BF28: 0 | BG28: 0 | BH28: 0 | BI28: 5 | BJ28: 0 | BK28: 0 | BL28: 0 | BM28: 0 | BN28: 0 | BO28: 0 | BP28: 0 | BQ28: 0 | BR28: 0 | BS28: 0 | BT28: 0 | BU28: 0 | BV28: 0 | BW28: 0 | BX28: 0 | BY28: 0 | BZ28: 0 | CA28: 0 | CB28: 0 | CC28: 0 | CD28: 0 | CE28: 0 | CF28: 0 | CG28: 0 | CH28: 0 | CI28: 0 | CJ28: 0 | CK28: 0 | CL28: 0 | CM28: 5 | CN28: 0 | CO28: 0 | CP28: 0 | CQ28: 0 | CR28: 0 | CS28: 0 | CT28: 5 | CU28: 0 | CV28: 0 | CW28: 0 | CX28: 0 | CY28: 0 | CZ28: 0 | DA28: 0 | DB28: 0 | DC28: 0
A29: 2025-09-27 | B29: Spurs | C29: 1 | D29: 1 | E29: Wolves | F29: 20:00:00 | H29: 0 | I29: 0 | J29: 0 | K29: 0 | L29: 0 | M29: 0 | N29: 0 | O29: 0 | P29: 0 | Q29: 0 | R29: 0 | S29: 0 | T29: 0 | U29: - | V29: 0 | W29: 0 | X29: 0 | Y29: 0 | Z29: 0 | AA29: 0 | AB29: 0 | AC29: 0 | AD29: 0 | AE29: 0 | AF29: 0 | AG29: 0 | AH29: 0 | AI29: 0 | AJ29: 0 | AK29: 0 | AL29: 0 | AM29: 0 | AN29: 0 | AO29: 0 | AP29: 0 | AQ29: 0 | AR29: 0 | AS29: 0 | AT29: 0 | AU29: 0 | AV29: 0 | AW29: 0 | AX29: 0 | AY29: 0 | AZ29: 0 | BA29: 0 | BB29: 0 | BC29: 0 | BD29: 0 | BE29: 0 | BF29: 0 | BG29: 0 | BH29: 0 | BI29: 0 | BJ29: 0 | BK29: 0 | BL29: 0 | BM29: 0 | BN29: 0 | BO29: 0 | BP29: 0 | BQ29: 0 | BR29: 0 | BS29: 0 | BT29: 0 | BU29: 0 | BV29: 0 | BW29: 0 | BX29: 0 | BY29: 0 | BZ29: 0 | CA29: 0 | CB29: 0 | CC29: 0 | CD29: 0 | CE29: 0 | CF29: 0 | CG29: 0 | CH29: 0 | CI29: 0 | CJ29: 0 | CK29: 0 | CL29: 0 | CM29: 0 | CN29: 0 | CO29: 5 | CP29: 0 | CQ29: 0 | CR29: 0 | CS29: 0 | CT29: 0 | CU29: 0 | CV29: 0 | CW29: 0 | CX29: 0 | CY29: 0 | CZ29: 0 | DA29: 0 | DB29: 0 | DC29: 0
A30: 2025-09-28 | B30: Aston Villa | C30: 3 | D30: 1 | E30: Fulham | F30: 14:00:00 | H30: 5 | I30: 5 | J30: 5 | K30: 5 | L30: 0 | M30: 5 | N30: 0 | O30: 0 | P30: 0 | Q30: 0 | R30: 5 | S30: 0 | T30: 0 | U30: - | V30: 0 | W30: 0 | X30: 0 | Y30: 5 | Z30: 5 | AA30: 5 | AB30: 5 | AC30: 0 | AD30: 0 | AE30: 0 | AF30: 0 | AG30: 5 | AH30: 5 | AI30: 5 | AJ30: 5 | AK30: 5 | AL30: 0 | AM30: 0 | AN30: 0 | AO30: 0 | AP30: 5 | AQ30: 0 | AR30: 5 | AS30: 5 | AT30: 0 | AU30: 0 | AV30: 5 | AW30: 0 | AX30: 0 | AY30: 5 | AZ30: 0 | BA30: 0 | BB30: 0 | BC30: 5 | BD30: 0 | BE30: 5 | BF30: 0 | BG30: 5 | BH30: 5 | BI30: 0 | BJ30: 0 | BK30: 0 | BL30: 5 | BM30: 0 | BN30: 5 | BO30: 0 | BP30: 5 | BQ30: 5 | BR30: 0 | BS30: 0 | BT30: 0 | BU30: 5 | BV30: 0 | BW30: 0 | BX30: 0 | BY30: 0 | BZ30: 0 | CA30: 0 | CB30: 0 | CC30: 0 | CD30: 0 | CE30: 0 | CF30: 0 | CG30: 5 | CH30: 0 | CI30: 5 | CJ30: 5 | CK30: 0 | CL30: 0 | CM30: 5 | CN30: 5 | CO30: 0 | CP30: 5 | CQ30: 0 | CR30: 5 | CS30: 0 | CT30: 0 | CU30: 5 | CV30: 5 | CW30: 5 | CX30: 5 | CY30: 5 | CZ30: 5 | DA30: 0 | DB30: 0 | DC30: 5
A31: 2025-09-28 | B31: Newcastle | C31: 1 | D31: 2 | E31: Arsenal | F31: 16:30:00 | H31: 5 | I31: 0 | J31: 10 | K31: 0 | L31: 10 | M31: 0 | N31: 0 | O31: 5 | P31: 5 | Q31: 10 | R31: 10 | S31: 5 | T31: 10 | U31: - | V31: 0 | W31: 5 | X31: 10 | Y31: 0 | Z31: 0 | AA31: 0 | AB31: 10 | AC31: 10 | AD31: 0 | AE31: 0 | AF31: 5 | AG31: 10 | AH31: 0 | AI31: 0 | AJ31: 0 | AK31: 10 | AL31: 10 | AM31: 0 | AN31: 0 | AO31: 10 | AP31: 10 | AQ31: 10 | AR31: 0 | AS31: 10 | AT31: 5 | AU31: 10 | AV31: 0 | AW31: 0 | AX31: 0 | AY31: 10 | AZ31: 0 | BA31: 0 | BB31: 5 | BC31: 10 | BD31: 0 | BE31: 10 | BF31: 5 | BG31: 0 | BH31: 0 | BI31: 10 | BJ31: 10 | BK31: 10 | BL31: 0 | BM31: 0 | BN31: 10 | BO31: 0 | BP31: 5 | BQ31: 0 | BR31: 5 | BS31: 5 | BT31: 5 | BU31: 0 | BV31: 5 | BW31: 10 | BX31: 10 | BY31: 5 | BZ31: 0 | CA31: 5 | CB31: 5 | CC31: 10 | CD31: 10 | CE31: 0 | CF31: 10 | CG31: 0 | CH31: 0 | CI31: 10 | CJ31: 10 | CK31: 5 | CL31: 5 | CM31: 0 | CN31: 0 | CO31: 5 | CP31: 5 | CQ31: 0 | CR31: 0 | CS31: 5 | CT31: 0 | CU31: 5 | CV31: 10 | CW31: 10 | CX31: 0 | CY31: 0 | CZ31: 0 | DA31: 0 | DB31: 0 | DC31: 0
A32: 2025-09-29 | B32: Everton | C32: 1 | D32: 1 | E32: West Ham | F32: 20:00:00 | H32: 0 | I32: 0 | J32: 0 | K32: 0 | L32: 0 | M32: 0 | N32: 0 | O32: 0 | P32: 0 | Q32: 0 | R32: 0 | S32: 10 | T32: 0 | U32: - | V32: 5 | W32: 10 | X32: 0 | Y32: 0 | Z32: 0 | AA32: 0 | AB32: 0 | AC32: 0 | AD32: 0 | AE32: 0 | AF32: 0 | AG32: 0 | AH32: 0 | AI32: - | AJ32: 0 | AK32: 0 | AL32: 0 | AM32: 0 | AN32: 0 | AO32: 0 | AP32: 0 | AQ32: 0 | AR32: 0 | AS32: 0 | AT32: 0 | AU32: 0 | AV32: 0 | AW32: 0 | AX32: 0 | AY32: 0 | AZ32: 0 | BA32: 0 | BB32: 0 | BC32: 0 | BD32: 0 | BE32: 0 | BF32: 0 | BG32: 0 | BH32: 0 | BI32: 0 | BJ32: 0 | BK32: 0 | BL32: 0 | BM32: 0 | BN32: 0 | BO32: 0 | BP32: 0 | BQ32: 0 | BR32: 0 | BS32: 0 | BT32: 0 | BU32: 0 | BV32: 0 | BW32: 0 | BX32: 5 | BY32: 0 | BZ32: 0 | CA32: 0 | CB32: 0 | CC32: 0 | CD32: 0 | CE32: 0 | CF32: 0 | CG32: 0 | CH32: 0 | CI32: 0 | CJ32: 0 | CK32: 0 | CL32: 0 | CM32: 5 | CN32: 0 | CO32: 0 | CP32: 0 | CQ32: 0 | CR32: 0 | CS32: 0 | CT32: 0 | CU32: 0 | CV32: 0 | CW32: 5 | CX32: 0 | CY32: 0 | CZ32: 0 | DA32: 0 | DB32: 5 | DC32: 0
A34: Golden Boots
A35: Alexander Isak - Liverpool | D35: =COUNT(H35:JB35) -> 31 | E35: =0+0+0 -> 0 | I35: =$E35*2 -> 0 | K35: =$E35*2 -> 0 | M35: =$E35*2 -> 0 | P35: =$E35*2 -> 0 | T35: =$E35*2 -> 0 | AB35: =$E35*2 -> 0 | AE35: =$E35*2 -> 0 | AF35: 0 | AI35: 0 | AM35: =$E35*2 -> 0 | AO35: 0 | AP35: 0 | AR35: 0 | AS35: 0 | AT35: 0 | AW35: =$E35*2 -> 0 | AX35: 0 | AY35: 0 | BF35: 0 | BH35: 0 | BJ35: =$E35*2 -> 0 | BN35: =$E35*2 -> 0 | BQ35: 0 | CE35: =$E35*2 -> 0 | CF35: =$E35*2 -> 0 | CG35: =$E35*2 -> 0 | CH35: =$E35*2 -> 0 | CI35: =$E35*2 -> 0 | CR35: =$E35*2 -> 0 | CU35: =$E35*2 -> 0 | CZ35: =$E35*2 -> 0
A36: Bryan Mbeumo - Man United | D36: 6 | E36: =0+0+0 -> 0 | Y36: =$E36*2 -> 0 | AD36: 0 | AN36: 0 | CD36: =$E36*2 -> 0 | CS36: =$E36*2 -> 0 | CY36: =$E36*2 -> 0
A37: Chris Wood - Nottingham Forest | D37: 5 | E37: =0+0+0 -> 0 | S37: =$E37*2 -> 0 | V37: =$E37*2 -> 0 | BX37: =$E37*2 -> 0 | CC37: =$E37*2 -> 0 | DB37: =$E37*2 -> 0
A38: Cole Palmer - Chelsea | D38: 27 | E38: =1+0+0 -> 1 | J38: =$E38*2 -> 2 | K38: =$E38*2 -> 2 | L38: =$E38*2 -> 2 | N38: =$E38*2 -> 2 | O38: =$E38*2 -> 2 | W38: =$E38*2 -> 2 | X38: =$E38*2 -> 2 | AA38: =$E38*2 -> 2 | AG38: 2 | AK38: =$E38*2 -> 2 | AW38: =$E38*2 -> 2 | BA38: 2 | BC38: =$E38*2 -> 2 | BE38: =$E38*2 -> 2 | BG38: 2 | BL38: =$E38*2 -> 2 | BM38: =$E38*2 -> 2 | BO38: 2 | BT38: 2 | BX38: =$E38*2 -> 2 | CB38: =$E38*2 -> 2 | CE38: =$E38*2 -> 2 | CF38: =$E38*2 -> 2 | CJ38: =$E38*2 -> 2 | CQ38: =$E38*2 -> 2 | CS38: =$E38*2 -> 2 | CT38: =$E38*2 -> 2
A39: Erling Haaland - Man City | D39: 80 | E39: =2+1+2 -> 5 | H39: =$E39*2 -> 10 | I39: =$E39*2 -> 10 | K39: =$E39*2 -> 10 | L39: =$E39*2 -> 10 | M39: =$E39*2 -> 10 | P39: =$E39*2 -> 10 | Q39: 10 | R39: 10 | S39: 10 | T39: 10 | U39: =$E39*2 -> 10 | V39: 10 | W39: =$E39*2 -> 10 | X39: =$E39*2 -> 10 | Y39: =$E39*2 -> 10 | Z39: =$E39*2 -> 10 | AA39: =$E39*2 -> 10 | AB39: =$E39*2 -> 10 | AC39: =$E39*2 -> 10 | AD39: =$E39*2 -> 10 | AH39: =$E39*2 -> 10 | AI39: 10 | AJ39: 10 | AK39: 10 | AN39: =$E39*2 -> 10 | AO39: 10 | AP39: 10 | AQ39: =$E39*2 -> 10 | AR39: =$E39*2 -> 10 | AS39: =$E39*2 -> 10 | AT39: =$E39*2 -> 10 | AU39: 10 | AV39: 10 | AY39: =$E39*2 -> 10 | AZ39: 10 | BA39: 10 | BC39: 10 | BD39: 10 | BE39: 10 | BF39: =$E39*2 -> 10 | BG39: 10 | BH39: 10 | BI39: 10 | BJ39: =$E39*2 -> 10 | BK39: =$E39*2 -> 10 | BM39: 10 | BN39: 10 | BO39: 10 | BP39: 10 | BQ39: 10 | BR39: 10 | BS39: 10 | BT39: 10 | BU39: 10 | BV39: =$E39*2 -> 10 | BW39: =$E39*2 -> 10 | BZ39: =$E39*2 -> 10 | CA39: =$E39*2 -> 10 | CB39: =$E39*2 -> 10 | CC39: =$E39*2 -> 10 | CD39: =$E39*2 -> 10 | CG39: =$E39*2 -> 10 | CH39: =$E39*2 -> 10 | CI39: =$E39*2 -> 10 | CJ39: =$E39*2 -> 10 | CM39: =$E39*2 -> 10 | CN39: =$E39*2 -> 10 | CO39: =$E39*2 -> 10 | CP39: =$E39*2 -> 10 | CR39: =$E39*2 -> 10 | CS39: =$E39*2 -> 10 | CU39: =$E39*2 -> 10 | CV39: =$E39*2 -> 10 | CW39: 10 | CX39: 10 | CY39: 10 | CZ39: 10 | DA39: 10 | DB39: 10 | DC39: 10
A40: Hugo Ekitike - Liverpool | D40: 12 | E40: =0+1+0 -> 1 | R40: =$E40*2 -> 2 | Z40: =$E40*2 -> 2 | AL40: =$E40*2 -> 2 | AM40: =$E40*2 -> 2 | AN40: 2 | AW40: 2 | AZ40: 2 | BE40: 2 | BY40: =$E40*2 -> 2 | BZ40: =$E40*2 -> 2 | CL40: =$E40*2 -> 2 | DC40: =$E40*2 -> 2
A41: Jean-Philippe Mateta - Crystal Palace | D41: 5 | E41: =0+1+0 -> 1 | BL41: =$E41*2 -> 2 | BY41: =$E41*2 -> 2 | CL41: =$E41*2 -> 2 | CT41: =$E41*2 -> 2 | CW41: =$E41*2 -> 2
A42: Jorgen Strand Larsen - Wolves | D42: 1 | E42: =0+0+0 -> 0 | BV42: =$E42*2 -> 0
A43: Justin Kluivert - Bournemouth | D43: 1 | E43: =0+0+0 -> 0 | N43: =$E43*2 -> 0
A44: Liam Delap - Chelsea | D44: 1 | E44: =0+0+0 -> 0 | CL44: =$E44*2 -> 0
A45: Matheus Cunha - Man United | D45: 5 | E45: =0+0+0 -> 0 | N45: =$E45*2 -> 0 | BB45: =$E45*2 -> 0 | CF45: =$E45*2 -> 0 | CK45: =$E45*2 -> 0 | CM45: =$E45*2 -> 0
A46: Mohamed Salah - Liverpool | D46: 83 | E46: =1+0+0 -> 1 | H46: =$E46*2 -> 2 | J46: =$E46*2 -> 2 | L46: =$E46*2 -> 2 | M46: =$E46*2 -> 2 | O46: =$E46*2 -> 2 | P46: =$E46*2 -> 2 | Q46: =$E46*2 -> 2 | R46: =$E46*2 -> 2 | S46: =$E46*2 -> 2 | T46: =$E46*2 -> 2 | U46: =$E46*2 -> 2 | V46: =$E46*2 -> 2 | X46: 2 | Y46: =$E46*2 -> 2 | Z46: =$E46*2 -> 2 | AA46: 2 | AB46: =$E46*2 -> 2 | AC46: =$E46*2 -> 2 | AD46: 2 | AE46: 2 | AF46: 2 | AG46: 2 | AH46: 2 | AJ46: =$E46*2 -> 2 | AL46: =$E46*2 -> 2 | AM46: 2 | AO46: 2 | AP46: 2 | AQ46: 2 | AR46: 2 | AS46: =$E46*2 -> 2 | AT46: 2 | AU46: 2 | AV46: 2 | AX46: =$E46*2 -> 2 | AY46: 2 | BA46: =$E46*2 -> 2 | BB46: 2 | BC46: 2 | BD46: 2 | BF46: =$E46*2 -> 2 | BG46: =$E46*2 -> 2 | BH46: 2 | BI46: =$E46*2 -> 2 | BJ46: =$E46*2 -> 2 | BK46: =$E46*2 -> 2 | BL46: =$E46*2 -> 2 | BM46: 2 | BN46: 2 | BO46: 2 | BP46: 2 | BR46: =$E46*2 -> 2 | BS46: 2 | BT46: 2 | BU46: 2 | BV46: =$E46*2 -> 2 | BW46: =$E46*2 -> 2 | BZ46: =$E46*2 -> 2 | CA46: 2 | CB46: =$E46*2 -> 2 | CC46: =$E46*2 -> 2 | CD46: 2 | CE46: =$E46*2 -> 2 | CG46: =$E46*2 -> 2 | CH46: =$E46*2 -> 2 | CI46: =$E46*2 -> 2 | CJ46: =$E46*2 -> 2 | CK46: =$E46*2 -> 2 | CM46: =$E46*2 -> 2 | CN46: =$E46*2 -> 2 | CO46: =$E46*2 -> 2 | CP46: =$E46*2 -> 2 | CQ46: =$E46*2 -> 2 | CR46: =$E46*2 -> 2 | CT46: =$E46*2 -> 2 | CU46: 2 | CV46: =$E46*2 -> 2 | CW46: 2 | CX46: =$E46*2 -> 2 | CZ46: 2 | DA46: 2 | DB46: =$E46*2 -> 2 | DC46: 2
A47: Ollie Watkins - Aston Villa | D47: 3 | E47: =0+0+1 -> 1 | AF47: 2 | BX47: =$E47*2 -> 2 | CN47: =$E47*2 -> 2
A48: Viktor Gyokeres - Arsenal | D48: 39 | E48: =1+0+0 -> 1 | H48: =$E48*2 -> 2 | I48: =$E48*2 -> 2 | J48: =$E48*2 -> 2 | O48: =$E48*2 -> 2 | Q48: =$E48*2 -> 2 | U48: =$E48*2 -> 2 | W48: =$E48*2 -> 2 | AC48: =$E48*2 -> 2 | AE48: =$E48*2 -> 2 | AG48: =$E48*2 -> 2 | AH48: 2 | AI48: 2 | AJ48: 2 | AK48: 2 | AL48: 2 | AQ48: =$E48*2 -> 2 | AU48: =$E48*2 -> 2 | AV48: 2 | AX48: =$E48*2 -> 2 | AZ48: =$E48*2 -> 2 | BB48: =$E48*2 -> 2 | BD48: =$E48*2 -> 2 | BI48: =$E48*2 -> 2 | BK48: =$E48*2 -> 2 | BP48: =$E48*2 -> 2 | BQ48: 2 | BR48: 2 | BS48: 2 | BU48: =$E48*2 -> 2 | BW48: =$E48*2 -> 2 | BY48: =$E48*2 -> 2 | CA48: =$E48*2 -> 2 | CK48: =$E48*2 -> 2 | CP48: =$E48*2 -> 2 | CQ48: =$E48*2 -> 2 | CV48: =$E48*2 -> 2 | CX48: =$E48*2 -> 2 | CY48: =$E48*2 -> 2 | DA48: =$E48*2 -> 2
A49: Yoane Wissa - Newcastle | D49: 1 | E49: =0+0+0 -> 0 | CO49: =$E49*2 -> 0
A51: Sack Race
A52: Andoni Iraola - Bournemouth | D52: =COUNT(H52:JB52) -> 2 | BG52: =$E52*15 -> 0 | CS52: =$E52*15 -> 0
A53: Arne Slot - Liverpool | D53: 0
A54: Daniel Farke - Leeds United | D54: 16 | I54: =$E54*15 -> 0 | P54: =$E54*15 -> 0 | V54: =$E54*15 -> 0 | AE54: =$E54*15 -> 0 | AR54: =$E54*15 -> 0 | BE54: =$E54*15 -> 0 | BH54: =$E54*15 -> 0 | BM54: =$E54*15 -> 0 | BR54: =$E54*15 -> 0 | CD54: =$E54*15 -> 0 | CG54: =$E54*15 -> 0 | CN54: =$E54*15 -> 0 | CR54: =$E54*15 -> 0 | CT54: =$E54*15 -> 0 | CZ54: =$E54*15 -> 0 | DC54: =$E54*15 -> 0
A55: David Moyes - Everton | D55: 0
A56: Eddie Howe - Newcastle United | D56: 2 | AA56: =$E56*15 -> 0 | AP56: =$E56*15 -> 0
A57: Enzo Maresca - Chelsea | D57: 0
A58: Fabian Hurzeler - Brighton | D58: 2 | AN58: =$E58*15 -> 0 | CA58: =$E58*15 -> 0
A59: Graham Potter - West Ham | D59: 5 | AB59: =$E59*15 -> 0 | AV59: =$E59*15 -> 0 | BC59: =$E59*15 -> 0 | BJ59: =$E59*15 -> 0 | BZ59: =$E59*15 -> 0
A60: Keith Andrews - Brentford | D60: 34 | L60: =$E60*15 -> 0 | O60: =$E60*15 -> 0 | R60: =$E60*15 -> 0 | T60: =$E60*15 -> 0 | X60: =$E60*15 -> 0 | AC60: =$E60*15 -> 0 | AD60: =$E60*15 -> 0 | AG60: =$E60*15 -> 0 | AL60: =$E60*15 -> 0 | AM60: =$E60*15 -> 0 | AO60: =$E60*15 -> 0 | AS60: =$E60*15 -> 0 | AU60: =$E60*15 -> 0 | AX60: =$E60*15 -> 0 | BA60: =$E60*15 -> 0 | BD60: =$E60*15 -> 0 | BI60: =$E60*15 -> 0 | BN60: =$E60*15 -> 0 | BP60: =$E60*15 -> 0 | BQ60: =$E60*15 -> 0 | BS60: =$E60*15 -> 0 | BT60: =$E60*15 -> 0 | BW60: =$E60*15 -> 0 | BY60: =$E60*15 -> 0 | CB60: =$E60*15 -> 0 | CC60: =$E60*15 -> 0 | CH60: =$E60*15 -> 0 | CI60: =$E60*15 -> 0 | CP60: =$E60*15 -> 0 | CQ60: =$E60*15 -> 0 | CU60: =$E60*15 -> 0 | CV60: =$E60*15 -> 0 | CX60: =$E60*15 -> 0 | CY60: =$E60*15 -> 0
A61: Marco Silva - Fulham | D61: 1 | CM61: =$E61*15 -> 0
A62: Mikel Arteta - Arsenal | D62: 1 | N62: =$E62*15 -> 0
A63: Nuno Espirito Santo - Nottingham Forest | D63: 6 | E63: 1 | H63: =$E63*15 -> 15 | K63: =$E63*15 -> 15 | AJ63: =$E63*15 -> 15 | BL63: =$E63*15 -> 15 | BO63: =$E63*15 -> 15 | CW63: =$E63*15 -> 15
A64: Oliver Glasner - Crystal Palace | D64: 0
A65: Pep Guardiola - Man City | D65: 1 | S65: =$E65*15 -> 0
A66: Regis Le Bris - Southampton | D66: 10 | AF66: =$E66*15 -> 0 | AI66: =$E66*15 -> 0 | AT66: =$E66*15 -> 0 | AZ66: =$E66*15 -> 0 | BU66: =$E66*15 -> 0 | BX66: =$E66*15 -> 0 | CE66: =$E66*15 -> 0 | CJ66: =$E66*15 -> 0 | CO66: =$E66*15 -> 0 | DA66: =$E66*15 -> 0
A67: Ruben Almiron - Man United | D67: 2 | M67: =$E67*15 -> 0 | BF67: =$E67*15 -> 0
A68: Scott Parker - Burnley | D68: 10 | J68: =$E68*15 -> 0 | Q68: =$E68*15 -> 0 | U68: =$E68*15 -> 0 | Z68: =$E68*15 -> 0 | AK68: =$E68*15 -> 0 | AQ68: =$E68*15 -> 0 | BB68: =$E68*15 -> 0 | BV68: =$E68*15 -> 0 | CK68: =$E68*15 -> 0 | CL68: =$E68*15 -> 0
A69: Thomas Frank - Spurs | D69: 2 | BK69: =$E69*15 -> 0 | CF69: =$E69*15 -> 0
A70: Unai Emery - Aston Villa | D70: 0
A71: Vitor Pereira - Wolves | D71: 6 | W71: =$E71*15 -> 0 | Y71: =$E71*15 -> 0 | AH71: =$E71*15 -> 0 | AW71: =$E71*15 -> 0 | AY71: =$E71*15 -> 0 | DB71: =$E71*15 -> 0
A73: Total Points - September | H73: =SUM(H$3:H72) -> 114 | I73: =SUM(I$3:I72) -> 77 | J73: =SUM(J$3:J72) -> 106 | K73: =SUM(K$3:K72) -> 132 | L73: =SUM(L$3:L72) -> 84 | M73: =SUM(M$3:M72) -> 92 | N73: =SUM(N$3:N72) -> 77 | O73: =SUM(O$3:O72) -> 81 | P73: =SUM(P$3:P72) -> 92 | Q73: =SUM(Q$3:Q72) -> 89 | R73: =SUM(R$3:R72) -> 124 | S73: =SUM(S$3:S72) -> 72 | T73: =SUM(T$3:T72) -> 92 | U73: =SUM(U$3:U72) -> 69 | V73: =SUM(V$3:V72) -> 82 | W73: =SUM(W$3:W72) -> 99 | X73: =SUM(X$3:X72) -> 104 | Y73: =SUM(Y$3:Y72) -> 112 | Z73: =SUM(Z$3:Z72) -> 94 | AA73: =SUM(AA$3:AA72) -> 79 | AB73: =SUM(AB$3:AB72) -> 77 | AC73: =SUM(AC$3:AC72) -> 99 | AD73: =SUM(AD$3:AD72) -> 87 | AE73: =SUM(AE$3:AE72) -> 94 | AF73: =SUM(AF$3:AF72) -> 84 | AG73: =SUM(AG$3:AG72) -> 86 | AH73: =SUM(AH$3:AH72) -> 94 | AI73: =SUM(AI$3:AI72) -> 72 | AJ73: =SUM(AJ$3:AJ72) -> 129 | AK73: =SUM(AK$3:AK72) -> 119 | AL73: =SUM(AL$3:AL72) -> 96 | AM73: =SUM(AM$3:AM72) -> 59 | AN73: =SUM(AN$3:AN72) -> 67 | AO73: =SUM(AO$3:AO72) -> 107 | AP73: =SUM(AP$3:AP72) -> 77 | AQ73: =SUM(AQ$3:AQ72) -> 79 | AR73: =SUM(AR$3:AR72) -> 82 | AS73: =SUM(AS$3:AS72) -> 87 | AT73: =SUM(AT$3:AT72) -> 97 | AU73: =SUM(AU$3:AU72) -> 99 | AV73: =SUM(AV$3:AV72) -> 79 | AW73: =SUM(AW$3:AW72) -> 64 | AX73: =SUM(AX$3:AX72) -> 79 | AY73: =SUM(AY$3:AY72) -> 107 | AZ73: =SUM(AZ$3:AZ72) -> 94 | BA73: =SUM(BA$3:BA72) -> 79 | BB73: =SUM(BB$3:BB72) -> 84 | BC73: =SUM(BC$3:BC72) -> 109 | BD73: =SUM(BD$3:BD72) -> 94 | BE73: =SUM(BE$3:BE72) -> 99 | BF73: =SUM(BF$3:BF72) -> 62 | BG73: =SUM(BG$3:BG72) -> 104 | BH73: =SUM(BH$3:BH72) -> 67 | BI73: =SUM(BI$3:BI72) -> 99 | BJ73: =SUM(BJ$3:BJ72) -> 77 | BK73: =SUM(BK$3:BK72) -> 79 | BL73: =SUM(BL$3:BL72) -> 106 | BM73: =SUM(BM$3:BM72) -> 64 | BN73: =SUM(BN$3:BN72) -> 82 | BO73: =SUM(BO$3:BO72) -> 109 | BP73: =SUM(BP$3:BP72) -> 94 | BQ73: =SUM(BQ$3:BQ72) -> 82 | BR73: =SUM(BR$3:BR72) -> 114 | BS73: =SUM(BS$3:BS72) -> 94 | BT73: =SUM(BT$3:BT72) -> 94 | BU73: =SUM(BU$3:BU72) -> 79 | BV73: =SUM(BV$3:BV72) -> 92 | BW73: =SUM(BW$3:BW72) -> 84 | BX73: =SUM(BX$3:BX72) -> 109 | BY73: =SUM(BY$3:BY72) -> 96 | BZ73: =SUM(BZ$3:BZ72) -> 104 | CA73: =SUM(CA$3:CA72) -> 94 | CB73: =SUM(CB$3:CB72) -> 94 | CC73: =SUM(CC$3:CC72) -> 82 | CD73: =SUM(CD$3:CD72) -> 102 | CE73: =SUM(CE$3:CE72) -> 69 | CF73: =SUM(CF$3:CF72) -> 62 | CG73: =SUM(CG$3:CG72) -> 92 | CH73: =SUM(CH$3:CH72) -> 117 | CI73: =SUM(CI$3:CI72) -> 92 | CJ73: =SUM(CJ$3:CJ72) -> 94 | CK73: =SUM(CK$3:CK72) -> 49 | CL73: =SUM(CL$3:CL72) -> 64 | CM73: =SUM(CM$3:CM72) -> 97 | CN73: =SUM(CN$3:CN72) -> 94 | CO73: =SUM(CO$3:CO72) -> 102 | CP73: =SUM(CP$3:CP72) -> 104 | CQ73: =SUM(CQ$3:CQ72) -> 86 | CR73: =SUM(CR$3:CR72) -> 122 | CS73: =SUM(CS$3:CS72) -> 117 | CT73: =SUM(CT$3:CT72) -> 76 | CU73: =SUM(CU$3:CU72) -> 77 | CV73: =SUM(CV$3:CV72) -> 99 | CW73: =SUM(CW$3:CW72) -> 109 | CX73: =SUM(CX$3:CX72) -> 94 | CY73: =SUM(CY$3:CY72) -> 77 | CZ73: =SUM(CZ$3:CZ72) -> 87 | DA73: =SUM(DA$3:DA72) -> 89 | DB73: =SUM(DB$3:DB72) -> 77 | DC73: =SUM(DC$3:DC72) -> 89

Sheet October
H1: Aaron Nealon | I1: Aidan Scanlon | J1: Aidan White | K1: Alain Verjans | L1: Anastas Popov | M1: Andy Dunne | N1: Benny McCarthy | O1: Billy McGinley | P1: Bobby Hynes | Q1: Brendan Maguire | R1: Brian Haughton | S1: Brian Hearne | T1: Brian Mullen | U1: Calvin McGettigan | V1: Caoimhin McEnteggart | W1: Carl Toner | X1: Caroline Carroll | Y1: Chris Keohan | Z1: Christina Morgan | AA1: Ciaran O'Hart | AB1: Colin Butterly | AC1: Con McSweeney | AD1: Craig Calvert | AE1: Craig Whelan | AF1: Daniel Dorrian | AG1: Darragh Kenny | AH1: Darren O'Gorman | AI1: Dave Lavelle | AJ1: Dave McGinley | AK1: David Cooney | AL1: David Doyle | AM1: David King | AN1: Derek McDonald | AO1: Dylan Delaney | AP1: Dylan O'Riordan | AQ1: Eamon Fox | AR1: Eamonn Gallagher | AS1: Eoghan Farrelly | AT1: Finbarr Corkery | AU1: Frank McSweeney | AV1: Gareth Pierpoint | AW1: Gary Donnelly | AX1: Gary Fitzpatrick | AY1: Gavin Goodwin | AZ1: Gavin Morgan | BA1: Gerry Draper | BB1: Gerry Moore | BC1: Graham Pierpoint | BD1: Greg Donaghy | BE1: Helen Fadian | BF1: Jack Draper | BG1: Jason Maloney | BH1: Javier Suarez | BI1: Jim Foley | BJ1: Jimmy Maguire | BK1: Joe Behan | BL1: Joe Turner | BM1: John Brophy | BN1: John Cafferkey | BO1: Johno Percy | BP1: Jonathan Fox | BQ1: Joseph Kavanagh | BR1: Joseph Leppla | BS1: Keith Nerney | BT1: Keith Ryan | BU1: Kev Dalton | BV1: Kevin Lawless | BW1: Kevin Nolan | BX1: Kieran Killeen | BY1: Liam Keohan | BZ1: Lionel Knott | CA1: Martin Kimmins | CB1: Micheal Joyce | CC1: Micheal Munnelly | CD1: Monica Collins | CE1: Niall Carroll | CF1: Paddy Devereux | CG1: Paul Foley | CH1: Paul Moore | CI1: Paul Prendergast | CJ1: Peter Lavelle | CK1: Phil Doyle | CL1: Philip Jordan | CM1: Phoebe Suarez Behan | CN1: Realtin Dunne | CO1: Rhea Suarez Behan | CP1: Richard Johnston | CQ1: Robert Foley | CR1: Robert Gaffney | CS1: Roisin Joyce | CT1: Sam Calvert | CU1: Sean Cafferkey | CV1: Sean Cleary | CW1: Sean O'Mairtin | CX1: Shane Horan | CY1: Simon Scanlon | CZ1: Thomas Nolan | DA1: Tommy Hamill | DB1: Tommy Tormey | DC1: Tommy Walsh
A2: Date | B2: Teams | F2: Time
A3: 2025-10-03 | B3: Bournemouth | C3: 3 | D3: 1 | E3: Fulham | F3: 20:00:00 | H3: 5 | I3: 5 | J3: 5 | K3: 5 | L3: 5 | M3: 5 | N3: 5 | O3: 0 | P3: 5 | Q3: 5 | R3: 5 | S3: 5 | T3: 0 | U3: - | V3: 0 | W3: 0 | X3: 5 | Y3: 5 | Z3: 5 | AA3: 0 | AB3: 5 | AC3: 5 | AD3: 5 | AE3: 5 | AF3: 5 | AG3: 5 | AH3: 5 | AI3: - | AJ3: 5 | AK3: 5 | AL3: 5 | AM3: 5 | AN3: 5 | AO3: 5 | AP3: 0 | AQ3: 5 | AR3: 5 | AS3: 5 | AT3: 5 | AU3: 5 | AV3: 5 | AW3: 5 | AX3: 5 | AY3: 5 | AZ3: 5 | BA3: 5 | BB3: 5 | BC3: 5 | BD3: 5 | BE3: 5 | BF3: 5 | BG3: 5 | BH3: 5 | BI3: 5 | BJ3: 0 | BK3: 0 | BL3: 5 | BM3: 5 | BN3: 5 | BO3: 10 | BP3: 5 | BQ3: 5 | BR3: 5 | BS3: 5 | BT3: 5 | BU3: 5 | BV3: 10 | BW3: 5 | BX3: 0 | BY3: 5 | BZ3: 5 | CA3: 5 | CB3: 0 | CC3: 5 | CD3: 5 | CE3: 5 | CF3: 5 | CG3: 5 | CH3: 5 | CI3: 5 | CJ3: 5 | CK3: 5 | CL3: 5 | CM3: 5 | CN3: 5 | CO3: 0 | CP3: 5 | CQ3: 5 | CR3: 5 | CS3: 5 | CT3: 5 | CU3: 5 | CV3: 5 | CW3: 5 | CX3: 5 | CY3: 0 | CZ3: 0 | DA3: 5 | DB3: 5 | DC3: 5
A4: 2025-10-04 | B4: Leeds Utd | C4: 1 | D4: 2 | E4: Spurs | F4: 12:30:00 | H4: 5 | I4: 5 | J4: 10 | K4: 0 | L4: 5 | M4: 5 | N4: 0 | O4: 5 | P4: 0 | Q4: 0 | R4: 5 | S4: 0 | T4: 10 | U4: - | V4: 0 | W4: 5 | X4: 10 | Y4: 10 | Z4: 0 | AA4: 0 | AB4: 0 | AC4: 10 | AD4: 0 | AE4: 10 | AF4: 0 | AG4: 5 | AH4: 0 | AI4: - | AJ4: 0 | AK4: 5 | AL4: 0 | AM4: 10 | AN4: 10 | AO4: 0 | AP4: 10 | AQ4: 0 | AR4: 0 | AS4: 10 | AT4: 5 | AU4: 5 | AV4: 5 | AW4: 0 | AX4: 0 | AY4: 0 | AZ4: 0 | BA4: 0 | BB4: 10 | BC4: 0 | BD4: 5 | BE4: 10 | BF4: 5 | BG4: 10 | BH4: 5 | BI4: 10 | BJ4: 10 | BK4: 0 | BL4: 10 | BM4: 5 | BN4: 5 | BO4: 0 | BP4: 10 | BQ4: 5 | BR4: 10 | BS4: 0 | BT4: 0 | BU4: 10 | BV4: 0 | BW4: 5 | BX4: 5 | BY4: 10 | BZ4: 0 | CA4: 0 | CB4: 0 | CC4: 5 | CD4: 10 | CE4: 0 | CF4: 10 | CG4: 5 | CH4: 0 | CI4: 0 | CJ4: 10 | CK4: 0 | CL4: 10 | CM4: 0 | CN4: 10 | CO4: 5 | CP4: 10 | CQ4: 10 | CR4: 10 | CS4: 10 | CT4: 5 | CU4: 10 | CV4: 5 | CW4: 0 | CX4: 0 | CY4: 0 | CZ4: 10 | DA4: 10 | DB4: 5 | DC4: 0
A5: 2025-10-04 | B5: Arsenal | C5: 2 | D5: 0 | E5: West Ham | F5: 45934.625 | H5: 10 | I5: 10 | J5: 10 | K5: 10 | L5: 10 | M5: 5 | N5: 0 | O5: 5 | P5: 10 | Q5: 5 | R5: 5 | S5: 10 | T5: 10 | U5: - | V5: 10 | W5: 10 | X5: 5 | Y5: 5 | Z5: 5 | AA5: 0 | AB5: 5 | AC5: 5 | AD5: 10 | AE5: 10 | AF5: 10 | AG5: 5 | AH5: 5 | AI5: - | AJ5: 10 | AK5: 10 | AL5: 5 | AM5: 10 | AN5: 5 | AO5: 5 | AP5: 10 | AQ5: 5 | AR5: 5 | AS5: 10 | AT5: 10 | AU5: 5 | AV5: 5 | AW5: 5 | AX5: 5 | AY5: 5 | AZ5: 5 | BA5: 10 | BB5: 5 | BC5: 5 | BD5: 10 | BE5: 5 | BF5: 10 | BG5: 5 | BH5: 5 | BI5: 5 | BJ5: 5 | BK5: 10 | BL5: 5 | BM5: 5 | BN5: 5 | BO5: 10 | BP5: 5 | BQ5: 10 | BR5: 5 | BS5: 5 | BT5: 5 | BU5: 5 | BV5: 5 | BW5: 5 | BX5: 5 | BY5: 5 | BZ5: 10 | CA5: 5 | CB5: 5 | CC5: 5 | CD5: 10 | CE5: 10 | CF5: 5 | CG5: 5 | CH5: 5 | CI5: 5 | CJ5: 5 | CK5: 10 | CL5: 10 | CM5: 5 | CN5: 10 | CO5: 10 | CP5: 5 | CQ5: 5 | CR5: 5 | CS5: 5 | CT5: 5 | CU5: 5 | CV5: 5 | CW5: 10 | CX5: 5 | CY5: 5 | CZ5: 5 | DA5: 10 | DB5: 0 | DC5: 5
A6: 2025-10-04 | B6: Man Utd | C6: 2 | D6: 0 | E6: Sunderland | F6: 45934.625 | H6: 0 | I6: 5 | J6: 0 | K6: 5 | L6: 0 | M6: 5 | N6: 0 | O6: 0 | P6: 10 | Q6: 5 | R6: 10 | S6: 5 | T6: 5 | U6: - | V6: 0 | W6: 5 | X6: 0 | Y6: 5 | Z6: 5 | AA6: 0 | AB6: 5 | AC6: 10 | AD6: 5 | AE6: 10 | AF6: 10 | AG6: 5 | AH6: 5 | AI6: - | AJ6: 5 | AK6: 0 | AL6: 0 | AM6: 0 | AN6: 5 | AO6: 5 | AP6: 5 | AQ6: 5 | AR6: 10 | AS6: 5 | AT6: 0 | AU6: 10 | AV6: 5 | AW6: 5 | AX6: 0 | AY6: 5 | AZ6: 0 | BA6: 5 | BB6: 0 | BC6: 5 | BD6: 5 | BE6: 10 | BF6: 5 | BG6: 5 | BH6: 0 | BI6: 0 | BJ6: 0 | BK6: 0 | BL6: 5 | BM6: 0 | BN6: 5 | BO6: 5 | BP6: 10 | BQ6: 5 | BR6: 5 | BS6: 5 | BT6: 10 | BU6: 10 | BV6: 5 | BW6: 10 | BX6: 0 | BY6: 10 | BZ6: 10 | CA6: 0 | CB6: 0 | CC6: 0 | CD6: 5 | CE6: 0 | CF6: 5 | CG6: 0 | CH6: 5 | CI6: 5 | CJ6: 10 | CK6: 5 | CL6: 5 | CM6: 0 | CN6: 0 | CO6: 5 | CP6: 0 | CQ6: 5 | CR6: 0 | CS6: 5 | CT6: 5 | CU6: 5 | CV6: 5 | CW6: 10 | CX6: 5 | CY6: 5 | CZ6: 10 | DA6: 0 | DB6: 5 | DC6: 5
A7: 2025-10-04 | B7: Chelsea | C7: 2 | D7: 1 | E7: Liverpool | F7: 17:30:00 | H7: 0 | I7: 0 | J7: 0 | K7: 0 | L7: 0 | M7: 0 | N7: 0 | O7: 0 | P7: 0 | Q7: 0 | R7: 0 | S7: 0 | T7: 0 | U7: - | V7: 0 | W7: 0 | X7: 0 | Y7: 0 | Z7: 10 | AA7: 0 | AB7: 0 | AC7: 0 | AD7: 0 | AE7: 0 | AF7: 5 | AG7: 0 | AH7: 0 | AI7: - | AJ7: 0 | AK7: 0 | AL7: 0 | AM7: 10 | AN7: 0 | AO7: 10 | AP7: 0 | AQ7: 0 | AR7: 0 | AS7: 0 | AT7: 0 | AU7: 0 | AV7: 0 | AW7: 0 | AX7: 0 | AY7: 10 | AZ7: 0 | BA7: 0 | BB7: 0 | BC7: 0 | BD7: 0 | BE7: 0 | BF7: 0 | BG7: 0 | BH7: 0 | BI7: 0 | BJ7: 0 | BK7: 0 | BL7: 10 | BM7: 0 | BN7: 0 | BO7: 0 | BP7: 0 | BQ7: 0 | BR7: 0 | BS7: 0 | BT7: 0 | BU7: 10 | BV7: 0 | BW7: 10 | BX7: 0 | BY7: 0 | BZ7: 0 | CA7: 0 | CB7: 10 | CC7: 0 | CD7: 0 | CE7: 0 | CF7: 0 | CG7: 0 | CH7: 0 | CI7: 0 | CJ7: 0 | CK7: 0 | CL7: 0 | CM7: 0 | CN7: 0 | CO7: 0 | CP7: 0 | CQ7: 0 | CR7: 0 | CS7: 0 | CT7: 0 | CU7: 0 | CV7: 0 | CW7: 0 | CX7: 0 | CY7: 10 | CZ7: 0 | DA7: 5 | DB7: 5 | DC7: 10
A8: 2025-10-05 | B8: Aston Villa | C8: 2 | D8: 1 | E8: Burnley | F8: 14:00:00 | H8: 0 | I8: 5 | J8: 5 | K8: 5 | L8: 10 | M8: 10 | N8: 0 | O8: 5 | P8: 5 | Q8: 5 | R8: 5 | S8: 5 | T8: 10 | U8: - | V8: 0 | W8: 5 | X8: 5 | Y8: 5 | Z8: 10 | AA8: 0 | AB8: 10 | AC8: 0 | AD8: 5 | AE8: 5 | AF8: 5 | AG8: 5 | AH8: 5 | AI8: - | AJ8: 5 | AK8: 5 | AL8: 5 | AM8: 0 | AN8: 5 | AO8: 10 | AP8: 0 | AQ8: 10 | AR8: 5 | AS8: 5 | AT8: 5 | AU8: 5 | AV8: 5 | AW8: 10 | AX8: 10 | AY8: 10 | AZ8: 5 | BA8: 10 | BB8: 5 | BC8: 5 | BD8: 5 | BE8: 5 | BF8: 10 | BG8: 5 | BH8: 5 | BI8: 10 | BJ8: 5 | BK8: 5 | BL8: 5 | BM8: 5 | BN8: 5 | BO8: 5 | BP8: 5 | BQ8: 5 | BR8: 0 | BS8: 10 | BT8: 0 | BU8: 5 | BV8: 5 | BW8: 5 | BX8: 0 | BY8: 5 | BZ8: 10 | CA8: 10 | CB8: 10 | CC8: 0 | CD8: 0 | CE8: 10 | CF8: 5 | CG8: 5 | CH8: 10 | CI8: 10 | CJ8: 5 | CK8: 10 | CL8: 5 | CM8: 0 | CN8: 10 | CO8: 0 | CP8: 10 | CQ8: 0 | CR8: 5 | CS8: 10 | CT8: 5 | CU8: 5 | CV8: 5 | CW8: 5 | CX8: 5 | CY8: 10 | CZ8: 10 | DA8: 5 | DB8: 10 | DC8: 5
A9: 2025-10-05 | B9: Everton | C9: 2 | D9: 1 | E9: Crystal Palace | F9: 14:00:00 | H9: 0 | I9: 0 | J9: 0 | K9: 0 | L9: 0 | M9: 0 | N9: 0 | O9: 0 | P9: 0 | Q9: 0 | R9: 0 | S9: 0 | T9: 0 | U9: - | V9: 0 | W9: 0 | X9: 0 | Y9: 5 | Z9: 10 | AA9: 0 | AB9: 0 | AC9: 0 | AD9: 0 | AE9: 0 | AF9: 5 | AG9: 0 | AH9: 10 | AI9: - | AJ9: 0 | AK9: 0 | AL9: 0 | AM9: 0 | AN9: 0 | AO9: 10 | AP9: 5 | AQ9: 0 | AR9: 10 | AS9: 0 | AT9: 0 | AU9: 0 | AV9: 0 | AW9: 0 | AX9: 5 | AY9: 10 | AZ9: 0 | BA9: 0 | BB9: 0 | BC9: 0 | BD9: 0 | BE9: 0 | BF9: 0 | BG9: 0 | BH9: 0 | BI9: 0 | BJ9: 0 | BK9: 0 | BL9: 0 | BM9: 0 | BN9: 0 | BO9: 0 | BP9: 0 | BQ9: 0 | BR9: 0 | BS9: 10 | BT9: 0 | BU9: 0 | BV9: 0 | BW9: 0 | BX9: 0 | BY9: 0 | BZ9: 0 | CA9: 0 | CB9: 0 | CC9: 0 | CD9: 0 | CE9: 10 | CF9: 0 | CG9: 0 | CH9: 0 | CI9: 0 | CJ9: 0 | CK9: 0 | CL9: 0 | CM9: 0 | CN9: 0 | CO9: 0 | CP9: 10 | CQ9: 0 | CR9: 0 | CS9: 0 | CT9: 0 | CU9: 0 | CV9: 5 | CW9: 0 | CX9: 0 | CY9: 0 | CZ9: 0 | DA9: 0 | DB9: 5 | DC9: 0
A10: 2025-10-05 | B10: Newcastle | C10: 2 | D10: 0 | E10: Nott'm Forest | F10: 14:00:00 | H10: 5 | I10: 5 | J10: 10 | K10: 5 | L10: 5 | M10: 10 | N10: 0 | O10: 0 | P10: 10 | Q10: 10 | R10: 5 | S10: 10 | T10: 10 | U10: - | V10: 10 | W10: 5 | X10: 10 | Y10: 5 | Z10: 5 | AA10: 0 | AB10: 5 | AC10: 10 | AD10: 5 | AE10: 5 | AF10: 10 | AG10: 5 | AH10: 10 | AI10: - | AJ10: 10 | AK10: 5 | AL10: 10 | AM10: 0 | AN10: 10 | AO10: 5 | AP10: 5 | AQ10: 5 | AR10: 10 | AS10: 5 | AT10: 10 | AU10: 10 | AV10: 5 | AW10: 10 | AX10: 0 | AY10: 5 | AZ10: 10 | BA10: 10 | BB10: 5 | BC10: 10 | BD10: 5 | BE10: 5 | BF10: 10 | BG10: 5 | BH10: 5 | BI10: 5 | BJ10: 10 | BK10: 10 | BL10: 10 | BM10: 5 | BN10: 5 | BO10: 5 | BP10: 5 | BQ10: 10 | BR10: 10 | BS10: 10 | BT10: 5 | BU10: 5 | BV10: 0 | BW10: 5 | BX10: 10 | BY10: 5 | BZ10: 5 | CA10: 5 | CB10: 5 | CC10: 5 | CD10: 10 | CE10: 5 | CF10: 10 | CG10: 5 | CH10: 10 | CI10: 10 | CJ10: 10 | CK10: 10 | CL10: 5 | CM10: 0 | CN10: 5 | CO10: 0 | CP10: 5 | CQ10: 10 | CR10: 10 | CS10: 5 | CT10: 10 | CU10: 5 | CV10: 10 | CW10: 5 | CX10: 5 | CY10: 5 | CZ10: 5 | DA10: 5 | DB10: 5 | DC10: 10
A11: 2025-10-05 | B11: Wolves | C11: 1 | D11: 1 | E11: Brighton | F11: 14:00:00 | H11: 10 | I11: 0 | J11: 0 | K11: 0 | L11: 0 | M11: 0 | N11: 0 | O11: 0 | P11: 0 | Q11: 0 | R11: 0 | S11: 0 | T11: 10 | U11: - | V11: 5 | W11: 0 | X11: 5 | Y11: 10 | Z11: 0 | AA11: 10 | AB11: 0 | AC11: 0 | AD11: 0 | AE11: 10 | AF11: 0 | AG11: 0 | AH11: 0 | AI11: - | AJ11: 0 | AK11: 0 | AL11: 0 | AM11: 0 | AN11: 10 | AO11: 0 | AP11: 10 | AQ11: 0 | AR11: 10 | AS11: 0 | AT11: 0 | AU11: 0 | AV11: 0 | AW11: 10 | AX11: 0 | AY11: 0 | AZ11: 10 | BA11: 0 | BB11: 0 | BC11: 0 | BD11: 0 | BE11: 0 | BF11: 0 | BG11: 0 | BH11: 0 | BI11: 0 | BJ11: 10 | BK11: 0 | BL11: 0 | BM11: 5 | BN11: 10 | BO11: 10 | BP11: 0 | BQ11: 0 | BR11: 10 | BS11: 0 | BT11: 0 | BU11: 0 | BV11: 0 | BW11: 0 | BX11: 10 | BY11: 0 | BZ11: 0 | CA11: 0 | CB11: 10 | CC11: 0 | CD11: 10 | CE11: 0 | CF11: 0 | CG11: 0 | CH11: 0 | CI11: 10 | CJ11: 0 | CK11: 0 | CL11: 0 | CM11: 0 | CN11: 10 | CO11: 0 | CP11: 10 | CQ11: 0 | CR11: 0 | CS11: 0 | CT11: 0 | CU11: 10 | CV11: 0 | CW11: 5 | CX11: 0 | CY11: 5 | CZ11: 0 | DA11: 10 | DB11: 5 | DC11: 0
A12: 2025-10-05 | B12: Brentford | C12: 0 | D12: 1 | E12: Man City | F12: 16:30:00 | H12: 5 | I12: 5 | J12: 5 | K12: 5 | L12: 5 | M12: 5 | N12: 0 | O12: 5 | P12: 5 | Q12: 5 | R12: 5 | S12: 5 | T12: 5 | U12: - | V12: 5 | W12: 5 | X12: 5 | Y12: 5 | Z12: 0 | AA12: 0 | AB12: 5 | AC12: 5 | AD12: 5 | AE12: 5 | AF12: 0 | AG12: 5 | AH12: 5 | AI12: - | AJ12: 0 | AK12: 5 | AL12: 5 | AM12: 0 | AN12: 5 | AO12: 0 | AP12: 5 | AQ12: 5 | AR12: 0 | AS12: 5 | AT12: 5 | AU12: 5 | AV12: 5 | AW12: 5 | AX12: 5 | AY12: 0 | AZ12: 5 | BA12: 5 | BB12: 0 | BC12: 5 | BD12: 5 | BE12: 5 | BF12: 5 | BG12: 5 | BH12: 5 | BI12: 5 | BJ12: 5 | BK12: 5 | BL12: 5 | BM12: 0 | BN12: 5 | BO12: 5 | BP12: 5 | BQ12: 5 | BR12: 5 | BS12: 5 | BT12: 5 | BU12: 5 | BV12: 5 | BW12: 5 | BX12: 5 | BY12: 5 | BZ12: 5 | CA12: 5 | CB12: 5 | CC12: 0 | CD12: 5 | CE12: 5 | CF12: 5 | CG12: 5 | CH12: 5 | CI12: 5 | CJ12: 5 | CK12: 5 | CL12: 5 | CM12: 5 | CN12: 0 | CO12: 5 | CP12: 5 | CQ12: 0 | CR12: 0 | CS12: 5 | CT12: 5 | CU12: 5 | CV12: 5 | CW12: 5 | CX12: 5 | CY12: 5 | CZ12: 5 | DA12: 5 | DB12: 5 | DC12: 5
A13: 2025-10-18 | B13: Nott'm Forest | C13: 0 | D13: 3 | E13: Chelsea | F13: 12:30:00 | H13: 0 | I13: 5 | J13: 5 | K13: 5 | L13: 5 | M13: 5 | N13: 5 | O13: 5 | P13: 5 | Q13: 5 | R13: 5 | S13: 5 | T13: 5 | U13: - | V13: 5 | W13: 5 | X13: 10 | Y13: 5 | Z13: 0 | AA13: 0 | AB13: 0 | AC13: 5 | AD13: 5 | AE13: 5 | AF13: 5 | AG13: 5 | AH13: 5 | AI13: - | AJ13: 5 | AK13: 5 | AL13: 5 | AM13: 0 | AN13: 5 | AO13: 5 | AP13: 5 | AQ13: 5 | AR13: 5 | AS13: 5 | AT13: 5 | AU13: 5 | AV13: 5 | AW13: 0 | AX13: 5 | AY13: 0 | AZ13: 5 | BA13: 5 | BB13: 10 | BC13: 5 | BD13: 10 | BE13: 5 | BF13: 5 | BG13: 0 | BH13: 5 | BI13: 5 | BJ13: 5 | BK13: 5 | BL13: 5 | BM13: 5 | BN13: 5 | BO13: 5 | BP13: 5 | BQ13: 5 | BR13: 5 | BS13: 5 | BT13: 0 | BU13: 5 | BV13: 0 | BW13: 5 | BX13: 5 | BY13: 0 | BZ13: 5 | CA13: 5 | CB13: 10 | CC13: 10 | CD13: 5 | CE13: 5 | CF13: 5 | CG13: 0 | CH13: 5 | CI13: 5 | CJ13: 5 | CK13: 5 | CL13: 5 | CM13: 0 | CN13: 0 | CO13: 0 | CP13: 5 | CQ13: 10 | CR13: 0 | CS13: 5 | CT13: 5 | CU13: 5 | CV13: 5 | CW13: 0 | CX13: 0 | CY13: 5 | CZ13: 5 | DA13: 5 | DB13: 5 | DC13: 5
A14: 2025-10-18 | B14: Brighton | C14: 2 | D14: 1 | E14: Newcastle | F14: 45948.625 | H14: 10 | I14: 0 | J14: 0 | K14: 0 | L14: 10 | M14: 0 | N14: 0 | O14: 5 | P14: 0 | Q14: 0 | R14: 0 | S14: 0 | T14: 0 | U14: - | V14: 0 | W14: 0 | X14: 0 | Y14: 0 | Z14: 10 | AA14: 10 | AB14: 10 | AC14: 0 | AD14: 0 | AE14: 0 | AF14: 0 | AG14: 0 | AH14: 0 | AI14: - | AJ14: 10 | AK14: 0 | AL14: 10 | AM14: 10 | AN14: 0 | AO14: 0 | AP14: 0 | AQ14: 0 | AR14: 0 | AS14: 0 | AT14: 0 | AU14: 0 | AV14: 0 | AW14: 0 | AX14: 10 | AY14: 10 | AZ14: 10 | BA14: 0 | BB14: 0 | BC14: 0 | BD14: 0 | BE14: 0 | BF14: 0 | BG14: 0 | BH14: 0 | BI14: 0 | BJ14: 0 | BK14: 0 | BL14: 10 | BM14: 10 | BN14: 0 | BO14: 0 | BP14: 5 | BQ14: 0 | BR14: 0 | BS14: 0 | BT14: 0 | BU14: 5 | BV14: 0 | BW14: 0 | BX14: 0 | BY14: 10 | BZ14: 10 | CA14: 0 | CB14: 0 | CC14: 0 | CD14: 10 | CE14: 0 | CF14: 10 | CG14: 0 | CH14: 5 | CI14: 0 | CJ14: 10 | CK14: 0 | CL14: 0 | CM14: 5 | CN14: 0 | CO14: 5 | CP14: 5 | CQ14: 0 | CR14: 0 | CS14: 0 | CT14: 0 | CU14: 0 | CV14: 0 | CW14: 0 | CX14: 0 | CY14: 0 | CZ14: 0 | DA14: 0 | DB14: 0 | DC14: 0
A15: 2025-10-18 | B15: Burnley | C15: 2 | D15: 0 | E15: Leeds Utd | F15: 45948.625 | H15: 0 | I15: 5 | J15: 0 | K15: 0 | L15: 0 | M15: 5 | N15: 0 | O15: 0 | P15: 0 | Q15: 10 | R15: 0 | S15: 0 | T15: 0 | U15: - | V15: 0 | W15: 0 | X15: 5 | Y15: 0 | Z15: 5 | AA15: 0 | AB15: 5 | AC15: 0 | AD15: 0 | AE15: 0 | AF15: 0 | AG15: 5 | AH15: 0 | AI15: - | AJ15: 0 | AK15: 5 | AL15: 0 | AM15: 5 | AN15: 0 | AO15: 0 | AP15: 0 | AQ15: 0 | AR15: 0 | AS15: 0 | AT15: 0 | AU15: 0 | AV15: 0 | AW15: 0 | AX15: 0 | AY15: 5 | AZ15: 0 | BA15: 0 | BB15: 0 | BC15: 0 | BD15: 0 | BE15: 0 | BF15: 0 | BG15: 0 | BH15: 10 | BI15: 0 | BJ15: 5 | BK15: 0 | BL15: 0 | BM15: 0 | BN15: 0 | BO15: 5 | BP15: 5 | BQ15: 0 | BR15: 0 | BS15: 0 | BT15: 0 | BU15: 0 | BV15: 0 | BW15: 0 | BX15: 5 | BY15: 5 | BZ15: 0 | CA15: 5 | CB15: 0 | CC15: 5 | CD15: 0 | CE15: 0 | CF15: 0 | CG15: 0 | CH15: 5 | CI15: 5 | CJ15: 0 | CK15: 0 | CL15: 10 | CM15: 5 | CN15: 0 | CO15: 5 | CP15: 0 | CQ15: 0 | CR15: 5 | CS15: 5 | CT15: 0 | CU15: 5 | CV15: 10 | CW15: 0 | CX15: 0 | CY15: 0 | CZ15: 0 | DA15: 5 | DB15: 0 | DC15: 0
A16: 2025-10-18 | B16: Crystal Palace | C16: 3 | D16: 3 | E16: Bournemouth | F16: 45948.625 | H16: 5 | I16: 0 | J16: 0 | K16: 0 | L16: 0 | M16: 0 | N16: 0 | O16: 0 | P16: 5 | Q16: 5 | R16: 5 | S16: 5 | T16: 0 | U16: - | V16: 0 | W16: 5 | X16: 5 | Y16: 0 | Z16: 0 | AA16: 0 | AB16: 5 | AC16: 5 | AD16: 0 | AE16: 5 | AF16: 5 | AG16: 0 | AH16: 0 | AI16: - | AJ16: 0 | AK16: 5 | AL16: 0 | AM16: 0 | AN16: 0 | AO16: 5 | AP16: 5 | AQ16: 5 | AR16: 0 | AS16: 0 | AT16: 5 | AU16: 0 | AV16: 0 | AW16: 0 | AX16: 5 | AY16: 0 | AZ16: 0 | BA16: 0 | BB16: 5 | BC16: 0 | BD16: 0 | BE16: 0 | BF16: 0 | BG16: 5 | BH16: 0 | BI16: 5 | BJ16: 5 | BK16: 0 | BL16: 0 | BM16: 0 | BN16: 0 | BO16: 5 | BP16: 0 | BQ16: 0 | BR16: 5 | BS16: 0 | BT16: 0 | BU16: 0 | BV16: 5 | BW16: 0 | BX16: 0 | BY16: 0 | BZ16: 5 | CA16: 5 | CB16: 0 | CC16: 5 | CD16: 0 | CE16: 5 | CF16: 0 | CG16: 0 | CH16: 5 | CI16: 5 | CJ16: 0 | CK16: 0 | CL16: 0 | CM16: 0 | CN16: 0 | CO16: 0 | CP16: 5 | CQ16: 0 | CR16: 0 | CS16: 0 | CT16: 0 | CU16: 5 | CV16: 5 | CW16: 0 | CX16: 0 | CY16: 0 | CZ16: 5 | DA16: 5 | DB16: 0 | DC16: 5
A17: 2025-10-18 | B17: Man City | C17: 2 | D17: 0 | E17: Everton | F17: 45948.625 | H17: 10 | I17: 5 | J17: 5 | K17: 5 | L17: 10 | M17: 5 | N17: 5 | O17: 5 | P17: 10 | Q17: 5 | R17: 5 | S17: 10 | T17: 5 | U17: - | V17: 5 | W17: 10 | X17: 5 | Y17: 5 | Z17: 5 | AA17: 10 | AB17: 10 | AC17: 10 | AD17: 10 | AE17: 5 | AF17: 5 | AG17: 5 | AH17: 10 | AI17: - | AJ17: 10 | AK17: 5 | AL17: 5 | AM17: 5 | AN17: 5 | AO17: 5 | AP17: 5 | AQ17: 0 | AR17: 5 | AS17: 5 | AT17: 10 | AU17: 10 | AV17: 10 | AW17: 5 | AX17: 5 | AY17: 5 | AZ17: 10 | BA17: 5 | BB17: 5 | BC17: 5 | BD17: 5 | BE17: 5 | BF17: 5 | BG17: 5 | BH17: 5 | BI17: 10 | BJ17: 5 | BK17: 5 | BL17: 5 | BM17: 5 | BN17: 5 | BO17: 10 | BP17: 5 | BQ17: 5 | BR17: 5 | BS17: 5 | BT17: 5 | BU17: 5 | BV17: 5 | BW17: 10 | BX17: 5 | BY17: 5 | BZ17: 5 | CA17: 5 | CB17: 5 | CC17: 5 | CD17: 10 | CE17: 10 | CF17: 5 | CG17: 5 | CH17: 5 | CI17: 10 | CJ17: 5 | CK17: 5 | CL17: 5 | CM17: 5 | CN17: 5 | CO17: 5 | CP17: 5 | CQ17: 5 | CR17: 5 | CS17: 5 | CT17: 5 | CU17: 5 | CV17: 5 | CW17: 10 | CX17: 5 | CY17: 5 | CZ17: 5 | DA17: 10 | DB17: 5 | DC17: 10
A18: 2025-10-18 | B18: Sunderland | C18: 2 | D18: 0 | E18: Wolves | F18: 45948.625 | H18: 10 | I18: 0 | J18: 5 | K18: 0 | L18: 5 | M18: 5 | N18: 0 | O18: 5 | P18: 0 | Q18: 5 | R18: 5 | S18: 0 | T18: 0 | U18: - | V18: 0 | W18: 5 | X18: 0 | Y18: 0 | Z18: 5 | AA18: 5 | AB18: 5 | AC18: 0 | AD18: 5 | AE18: 5 | AF18: 5 | AG18: 5 | AH18: 10 | AI18: - | AJ18: 5 | AK18: 5 | AL18: 10 | AM18: 5 | AN18: 0 | AO18: 5 | AP18: 5 | AQ18: 0 | AR18: 5 | AS18: 5 | AT18: 5 | AU18: 5 | AV18: 5 | AW18: 0 | AX18: 5 | AY18: 5 | AZ18: 10 | BA18: 5 | BB18: 10 | BC18: 5 | BD18: 0 | BE18: 5 | BF18: 0 | BG18: 5 | BH18: 5 | BI18: 5 | BJ18: 0 | BK18: 10 | BL18: 5 | BM18: 5 | BN18: 5 | BO18: 0 | BP18: 0 | BQ18: 5 | BR18: 0 | BS18: 5 | BT18: 5 | BU18: 0 | BV18: 5 | BW18: 0 | BX18: 0 | BY18: 5 | BZ18: 10 | CA18: 5 | CB18: 0 | CC18: 5 | CD18: 0 | CE18: 0 | CF18: 5 | CG18: 10 | CH18: 0 | CI18: 5 | CJ18: 5 | CK18: 5 | CL18: 5 | CM18: 5 | CN18: 0 | CO18: 5 | CP18: 0 | CQ18: 10 | CR18: 10 | CS18: 5 | CT18: 5 | CU18: 0 | CV18: 0 | CW18: 5 | CX18: 0 | CY18: 0 | CZ18: 5 | DA18: 5 | DB18: 5 | DC18: 5
A19: 2025-10-18 | B19: Fulham | C19: 0 | D19: 1 | E19: Arsenal | F19: 17:30:00 | H19: 10 | I19: 5 | J19: 5 | K19: 5 | L19: 5 | M19: 5 | N19: 5 | O19: 5 | P19: 10 | Q19: 10 | R19: 5 | S19: 5 | T19: 5 | U19: - | V19: 10 | W19: 10 | X19: 5 | Y19: 5 | Z19: 0 | AA19: 5 | AB19: 5 | AC19: 5 | AD19: 5 | AE19: 5 | AF19: 0 | AG19: 5 | AH19: 5 | AI19: - | AJ19: 5 | AK19: 5 | AL19: 5 | AM19: 0 | AN19: 5 | AO19: 5 | AP19: 5 | AQ19: 0 | AR19: 5 | AS19: 5 | AT19: 5 | AU19: 5 | AV19: 10 | AW19: 0 | AX19: 5 | AY19: 0 | AZ19: 5 | BA19: 5 | BB19: 10 | BC19: 5 | BD19: 5 | BE19: 5 | BF19: 5 | BG19: 5 | BH19: 5 | BI19: 5 | BJ19: 5 | BK19: 5 | BL19: 0 | BM19: 10 | BN19: 5 | BO19: 10 | BP19: 5 | BQ19: 5 | BR19: 5 | BS19: 5 | BT19: 5 | BU19: 5 | BV19: 5 | BW19: 5 | BX19: 5 | BY19: 0 | BZ19: 5 | CA19: 5 | CB19: 5 | CC19: 5 | CD19: 5 | CE19: 10 | CF19: 5 | CG19: 5 | CH19: 5 | CI19: 0 | CJ19: 5 | CK19: 5 | CL19: 5 | CM19: 0 | CN19: 0 | CO19: 0 | CP19: 0 | CQ19: 5 | CR19: 5 | CS19: 5 | CT19: 5 | CU19: 5 | CV19: 5 | CW19: 5 | CX19: 5 | CY19: 5 | CZ19: 5 | DA19: 5 | DB19: 5 | DC19: 5
A20: 2025-10-19 | B20: Spurs | C20: 1 | D20: 2 | E20: Aston Villa | F20: 14:00:00 | H20: 0 | I20: 0 | J20: 0 | K20: 0 | L20: 0 | M20: 0 | N20: 0 | O20: 0 | P20: 0 | Q20: 0 | R20: 0 | S20: 10 | T20: 0 | U20: - | V20: 0 | W20: 0 | X20: 0 | Y20: 0 | Z20: 0 | AA20: 0 | AB20: 0 | AC20: 0 | AD20: 0 | AE20: 0 | AF20: 0 | AG20: 0 | AH20: 0 | AI20: - | AJ20: 0 | AK20: 0 | AL20: 0 | AM20: 0 | AN20: 0 | AO20: 0 | AP20: 0 | AQ20: 0 | AR20: 0 | AS20: 0 | AT20: 0 | AU20: 0 | AV20: 0 | AW20: 0 | AX20: 10 | AY20: 0 | AZ20: 0 | BA20: 0 | BB20: 0 | BC20: 0 | BD20: 0 | BE20: 0 | BF20: 0 | BG20: 0 | BH20: 0 | BI20: 0 | BJ20: 0 | BK20: 0 | BL20: 0 | BM20: 0 | BN20: 0 | BO20: 0 | BP20: 0 | BQ20: 0 | BR20: 0 | BS20: 0 | BT20: 0 | BU20: 0 | BV20: 0 | BW20: 0 | BX20: 5 | BY20: 0 | BZ20: 0 | CA20: 0 | CB20: 0 | CC20: 0 | CD20: 0 | CE20: 10 | CF20: 0 | CG20: 0 | CH20: 0 | CI20: 0 | CJ20: 0 | CK20: 0 | CL20: 0 | CM20: 0 | CN20: 0 | CO20: 0 | CP20: 0 | CQ20: 0 | CR20: 0 | CS20: 0 | CT20: 0 | CU20: 0 | CV20: 0 | CW20: 0 | CX20: 0 | CY20: 0 | CZ20: 0 | DA20: 0 | DB20: 0 | DC20: 0
A21: 2025-10-19 | B21: Liverpool | C21: 1 | D21: 2 | E21: Man Utd | F21: 16:30:00 | H21: 0 | I21: 0 | J21: 0 | K21: 0 | L21: 0 | M21: 0 | N21: 5 | O21: 0 | P21: 0 | Q21: 0 | R21: 0 | S21: 0 | T21: 0 | U21: - | V21: 0 | W21: 0 | X21: 0 | Y21: 0 | Z21: 0 | AA21: 0 | AB21: 0 | AC21: 0 | AD21: 0 | AE21: 0 | AF21: 0 | AG21: 0 | AH21: 0 | AI21: - | AJ21: 0 | AK21: 0 | AL21: 0 | AM21: 0 | AN21: 0 | AO21: 0 | AP21: 0 | AQ21: 0 | AR21: 0 | AS21: 0 | AT21: 0 | AU21: 0 | AV21: 0 | AW21: 0 | AX21: 0 | AY21: 0 | AZ21: 0 | BA21: 0 | BB21: 0 | BC21: 0 | BD21: 0 | BE21: 0 | BF21: 0 | BG21: 0 | BH21: 0 | BI21: 0 | BJ21: 0 | BK21: 0 | BL21: 0 | BM21: 0 | BN21: 0 | BO21: 0 | BP21: 0 | BQ21: 0 | BR21: 0 | BS21: 0 | BT21: 0 | BU21: 0 | BV21: 0 | BW21: 0 | BX21: 0 | BY21: 0 | BZ21: 0 | CA21: 0 | CB21: 0 | CC21: 0 | CD21: 0 | CE21: 0 | CF21: 0 | CG21: 0 | CH21: 0 | CI21: 0 | CJ21: 0 | CK21: 10 | CL21: 0 | CM21: 0 | CN21: 0 | CO21: 0 | CP21: 0 | CQ21: 0 | CR21: 0 | CS21: 0 | CT21: 10 | CU21: 0 | CV21: 10 | CW21: 0 | CX21: 0 | CY21: 10 | CZ21: 0 | DA21: 0 | DB21: 0 | DC21: 0
A22: 2025-10-20 | B22: West Ham | C22: 0 | D22: 2 | E22: Brentford | F22: 20:00:00 | H22: 0 | I22: 0 | J22: 0 | K22: 0 | L22: 0 | M22: 10 | N22: 0 | O22: 5 | P22: 0 | Q22: 0 | R22: 0 | S22: 5 | T22: 5 | U22: - | V22: 0 | W22: 0 | X22: 0 | Y22: 0 | Z22: 0 | AA22: 0 | AB22: 5 | AC22: 0 | AD22: 0 | AE22: 0 | AF22: 0 | AG22: 0 | AH22: 0 | AI22: - | AJ22: 0 | AK22: 0 | AL22: 5 | AM22: 0 | AN22: 5 | AO22: 5 | AP22: 0 | AQ22: 0 | AR22: 0 | AS22: 0 | AT22: 0 | AU22: 0 | AV22: 0 | AW22: 0 | AX22: 0 | AY22: 0 | AZ22: 5 | BA22: 0 | BB22: 0 | BC22: 5 | BD22: 0 | BE22: 0 | BF22: 5 | BG22: 0 | BH22: 0 | BI22: 0 | BJ22: 0 | BK22: 5 | BL22: 0 | BM22: 5 | BN22: 0 | BO22: 0 | BP22: 0 | BQ22: 0 | BR22: 5 | BS22: 0 | BT22: 0 | BU22: 0 | BV22: 0 | BW22: 0 | BX22: 5 | BY22: 0 | BZ22: 5 | CA22: 0 | CB22: 5 | CC22: 5 | CD22: 0 | CE22: 0 | CF22: 5 | CG22: 0 | CH22: 0 | CI22: 0 | CJ22: 0 | CK22: 0 | CL22: 0 | CM22: 0 | CN22: 0 | CO22: 0 | CP22: 0 | CQ22: 5 | CR22: 0 | CS22: 0 | CT22: 0 | CU22: 0 | CV22: 0 | CW22: 0 | CX22: 0 | CY22: 0 | CZ22: 5 | DA22: 0 | DB22: 5 | DC22: 5
A23: 2025-10-24 | B23: Leeds Utd | C23: 2 | D23: 1 | E23: West Ham | F23: 20:00:00 | H23: 0 | I23: 10 | J23: 5 | K23: 5 | L23: 5 | M23: 10 | N23: 10 | O23: 0 | P23: 0 | Q23: 5 | R23: 0 | S23: 10 | T23: 0 | U23: - | V23: 0 | W23: 5 | X23: 0 | Y23: 10 | Z23: 10 | AA23: 5 | AB23: 0 | AC23: 10 | AD23: 5 | AE23: 5 | AF23: 5 | AG23: 10 | AH23: 10 | AI23: - | AJ23: 10 | AK23: 0 | AL23: 10 | AM23: 10 | AN23: 10 | AO23: 10 | AP23: 5 | AQ23: 10 | AR23: 0 | AS23: 5 | AT23: 5 | AU23: 5 | AV23: 0 | AW23: 10 | AX23: 5 | AY23: 10 | AZ23: 5 | BA23: 10 | BB23: 5 | BC23: 0 | BD23: 10 | BE23: 5 | BF23: 5 | BG23: 10 | BH23: 0 | BI23: 0 | BJ23: 0 | BK23: 5 | BL23: 5 | BM23: 5 | BN23: 10 | BO23: 10 | BP23: 5 | BQ23: 0 | BR23: 0 | BS23: 5 | BT23: 5 | BU23: 10 | BV23: 5 | BW23: 5 | BX23: 0 | BY23: 10 | BZ23: 5 | CA23: 0 | CB23: 5 | CC23: 0 | CD23: 5 | CE23: 5 | CF23: 5 | CG23: 5 | CH23: 10 | CI23: 5 | CJ23: 10 | CK23: 10 | CL23: 0 | CM23: 10 | CN23: 5 | CO23: 0 | CP23: 10 | CQ23: 10 | CR23: 10 | CS23: 10 | CT23: 0 | CU23: 5 | CV23: 10 | CW23: 0 | CX23: 10 | CY23: 10 | CZ23: 0 | DA23: 0 | DB23: 10 | DC23: 0
A24: 2025-10-25 | B24: Chelsea | C24: 1 | D24: 2 | E24: Sunderland | F24: 45955.625 | H24: 0 | I24: 0 | J24: 0 | K24: 0 | L24: 0 | M24: 0 | N24: 0 | O24: 0 | P24: 0 | Q24: 0 | R24: 0 | S24: 0 | T24: 0 | U24: - | V24: 0 | W24: 0 | X24: 0 | Y24: 0 | Z24: 0 | AA24: 0 | AB24: 0 | AC24: 0 | AD24: 0 | AE24: 0 | AF24: 0 | AG24: 0 | AH24: 0 | AI24: - | AJ24: 0 | AK24: 0 | AL24: 0 | AM24: 0 | AN24: 0 | AO24: 0 | AP24: 0 | AQ24: 0 | AR24: 0 | AS24: 0 | AT24: 0 | AU24: 0 | AV24: 0 | AW24: 0 | AX24: 0 | AY24: 0 | AZ24: 0 | BA24: 0 | BB24: 0 | BC24: 0 | BD24: 0 | BE24: 0 | BF24: 0 | BG24: 0 | BH24: 0 | BI24: 0 | BJ24: 0 | BK24: 0 | BL24: 0 | BM24: 0 | BN24: 0 | BO24: 0 | BP24: 0 | BQ24: 0 | BR24: 0 | BS24: 0 | BT24: 0 | BU24: 0 | BV24: 0 | BW24: 0 | BX24: 0 | BY24: 0 | BZ24: 0 | CA24: 0 | CB24: 0 | CC24: 0 | CD24: 0 | CE24: 0 | CF24: 0 | CG24: 0 | CH24: 0 | CI24: 0 | CJ24: 0 | CK24: 0 | CL24: 0 | CM24: 0 | CN24: 0 | CO24: 0 | CP24: 0 | CQ24: 0 | CR24: 0 | CS24: 0 | CT24: 0 | CU24: 0 | CV24: 0 | CW24: 0 | CX24: 0 | CY24: 0 | CZ24: 0 | DA24: 0 | DB24: 0 | DC24: 0
A25: 2025-10-25 | B25: Newcastle | C25: 2 | D25: 1 | E25: Fulham | F25: 45955.625 | H25: 10 | I25: 10 | J25: 5 | K25: 10 | L25: 5 | M25: 5 | N25: 10 | O25: 0 | P25: 10 | Q25: 5 | R25: 5 | S25: 10 | T25: 10 | U25: - | V25: 5 | W25: 0 | X25: 5 | Y25: 5 | Z25: 10 | AA25: 5 | AB25: 5 | AC25: 10 | AD25: 5 | AE25: 10 | AF25: 5 | AG25: 5 | AH25: 5 | AI25: - | AJ25: 10 | AK25: 10 | AL25: 5 | AM25: 10 | AN25: 5 | AO25: 5 | AP25: 10 | AQ25: 5 | AR25: 10 | AS25: 10 | AT25: 10 | AU25: 10 | AV25: 5 | AW25: 10 | AX25: 5 | AY25: 10 | AZ25: 10 | BA25: 5 | BB25: 5 | BC25: 5 | BD25: 10 | BE25: 10 | BF25: 0 | BG25: 10 | BH25: 5 | BI25: 5 | BJ25: 10 | BK25: 0 | BL25: 10 | BM25: 0 | BN25: 5 | BO25: 5 | BP25: 5 | BQ25: 10 | BR25: 10 | BS25: 5 | BT25: 5 | BU25: 5 | BV25: 5 | BW25: 5 | BX25: 10 | BY25: 5 | BZ25: 5 | CA25: 0 | CB25: 10 | CC25: 10 | CD25: 0 | CE25: 5 | CF25: 10 | CG25: 5 | CH25: 5 | CI25: 5 | CJ25: 10 | CK25: 5 | CL25: 5 | CM25: 5 | CN25: 5 | CO25: 0 | CP25: 0 | CQ25: 10 | CR25: 10 | CS25: 10 | CT25: 5 | CU25: 5 | CV25: 10 | CW25: 5 | CX25: 5 | CY25: 5 | CZ25: 10 | DA25: 10 | DB25: 5 | DC25: 10
A26: 2025-10-25 | B26: Man Utd | C26: 4 | D26: 2 | E26: Brighton | F26: 17:30:00 | H26: 5 | I26: 5 | J26: 0 | K26: 0 | L26: 0 | M26: 0 | N26: 5 | O26: 0 | P26: 5 | Q26: 5 | R26: 5 | S26: 0 | T26: 5 | U26: - | V26: 0 | W26: 5 | X26: 5 | Y26: 5 | Z26: 5 | AA26: 5 | AB26: 5 | AC26: 0 | AD26: 5 | AE26: 5 | AF26: 5 | AG26: 0 | AH26: 0 | AI26: - | AJ26: 5 | AK26: 0 | AL26: 0 | AM26: 5 | AN26: 5 | AO26: 5 | AP26: 5 | AQ26: 0 | AR26: 0 | AS26: 5 | AT26: 0 | AU26: 0 | AV26: 0 | AW26: 0 | AX26: 0 | AY26: 5 | AZ26: 5 | BA26: 0 | BB26: 5 | BC26: 5 | BD26: 0 | BE26: 5 | BF26: 5 | BG26: 5 | BH26: 5 | BI26: 5 | BJ26: 0 | BK26: 0 | BL26: 0 | BM26: 0 | BN26: 5 | BO26: 5 | BP26: 0 | BQ26: 0 | BR26: 0 | BS26: 5 | BT26: 5 | BU26: 5 | BV26: 5 | BW26: 0 | BX26: 0 | BY26: 5 | BZ26: 0 | CA26: 0 | CB26: 0 | CC26: 0 | CD26: 5 | CE26: 5 | CF26: 0 | CG26: 0 | CH26: 0 | CI26: 5 | CJ26: 5 | CK26: 5 | CL26: 5 | CM26: 5 | CN26: 0 | CO26: 0 | CP26: 0 | CQ26: 0 | CR26: 0 | CS26: 5 | CT26: 5 | CU26: 5 | CV26: 5 | CW26: 0 | CX26: 0 | CY26: 5 | CZ26: 5 | DA26: 0 | DB26: 0 | DC26: 0
A27: 2025-10-25 | B27: Brentford | C27: 3 | D27: 2 | E27: Liverpool | F27: 20:00:00 | H27: 0 | I27: 5 | J27: 0 | K27: 0 | L27: 0 | M27: 0 | N27: 5 | O27: 0 | P27: 0 | Q27: 0 | R27: 0 | S27: 0 | T27: 0 | U27: - | V27: 0 | W27: 0 | X27: 0 | Y27: 0 | Z27: 5 | AA27: 0 | AB27: 0 | AC27: 0 | AD27: 5 | AE27: 0 | AF27: 5 | AG27: 0 | AH27: 0 | AI27: - | AJ27: 0 | AK27: 0 | AL27: 0 | AM27: 5 | AN27: 0 | AO27: 0 | AP27: 0 | AQ27: 0 | AR27: 0 | AS27: 0 | AT27: 0 | AU27: 0 | AV27: 0 | AW27: 0 | AX27: 0 | AY27: 5 | AZ27: 0 | BA27: 0 | BB27: 0 | BC27: 0 | BD27: 0 | BE27: 0 | BF27: 0 | BG27: 0 | BH27: 0 | BI27: 0 | BJ27: 0 | BK27: 0 | BL27: 0 | BM27: 5 | BN27: 0 | BO27: 5 | BP27: 0 | BQ27: 0 | BR27: 0 | BS27: 5 | BT27: 0 | BU27: 0 | BV27: 5 | BW27: 0 | BX27: 0 | BY27: 0 | BZ27: 0 | CA27: 5 | CB27: 0 | CC27: 0 | CD27: 0 | CE27: 0 | CF27: 0 | CG27: 0 | CH27: 0 | CI27: 0 | CJ27: 5 | CK27: 0 | CL27: 0 | CM27: 5 | CN27: 0 | CO27: 5 | CP27: 0 | CQ27: 0 | CR27: 0 | CS27: 0 | CT27: 0 | CU27: 0 | CV27: 0 | CW27: 0 | CX27: 0 | CY27: 0 | CZ27: 0 | DA27: 0 | DB27: 0 | DC27: 0
A28: 2025-10-26 | B28: Arsenal | C28: 1 | D28: 0 | E28: Crystal Palace | F28: 14:00:00 | H28: 5 | I28: 5 | J28: 5 | K28: 5 | L28: 5 | M28: 5 | N28: 5 | O28: 5 | P28: 5 | Q28: 5 | R28: 5 | S28: 5 | T28: 5 | U28: - | V28: 5 | W28: 10 | X28: 10 | Y28: 5 | Z28: 5 | AA28: 5 | AB28: 5 | AC28: 5 | AD28: 5 | AE28: 5 | AF28: 5 | AG28: 5 | AH28: 0 | AI28: - | AJ28: 5 | AK28: 5 | AL28: 5 | AM28: 5 | AN28: 5 | AO28: 5 | AP28: 5 | AQ28: 5 | AR28: 5 | AS28: 5 | AT28: 5 | AU28: 0 | AV28: 5 | AW28: 5 | AX28: 5 | AY28: 5 | AZ28: 5 | BA28: 5 | BB28: 10 | BC28: 5 | BD28: 5 | BE28: 5 | BF28: 5 | BG28: 5 | BH28: 5 | BI28: 10 | BJ28: 5 | BK28: 5 | BL28: 5 | BM28: 5 | BN28: 5 | BO28: 5 | BP28: 5 | BQ28: 5 | BR28: 5 | BS28: 10 | BT28: 5 | BU28: 5 | BV28: 10 | BW28: 10 | BX28: 0 | BY28: 5 | BZ28: 5 | CA28: 5 | CB28: 0 | CC28: 5 | CD28: 5 | CE28: 5 | CF28: 5 | CG28: 5 | CH28: 5 | CI28: 5 | CJ28: 5 | CK28: 10 | CL28: 5 | CM28: 5 | CN28: 10 | CO28: 5 | CP28: 5 | CQ28: 5 | CR28: 5 | CS28: 5 | CT28: 5 | CU28: 5 | CV28: 5 | CW28: 5 | CX28: 5 | CY28: 10 | CZ28: 5 | DA28: 5 | DB28: 5 | DC28: 0
A29: 2025-10-26 | B29: Aston Villa | C29: 1 | D29: 0 | E29: Man City | F29: 14:00:00 | H29: 0 | I29: 0 | J29: 0 | K29: 0 | L29: 0 | M29: 0 | N29: 5 | O29: 0 | P29: 0 | Q29: 0 | R29: 0 | S29: 0 | T29: 0 | U29: - | V29: 0 | W29: 0 | X29: 0 | Y29: 0 | Z29: 5 | AA29: 0 | AB29: 0 | AC29: 0 | AD29: 0 | AE29: 0 | AF29: 5 | AG29: 0 | AH29: 0 | AI29: - | AJ29: 0 | AK29: 0 | AL29: 0 | AM29: 5 | AN29: 0 | AO29: 0 | AP29: 0 | AQ29: 0 | AR29: 0 | AS29: 0 | AT29: 0 | AU29: 0 | AV29: 0 | AW29: 0 | AX29: 0 | AY29: 5 | AZ29: 0 | BA29: 0 | BB29: 0 | BC29: 0 | BD29: 0 | BE29: 0 | BF29: 0 | BG29: 0 | BH29: 0 | BI29: 0 | BJ29: 0 | BK29: 0 | BL29: 0 | BM29: 10 | BN29: 0 | BO29: 0 | BP29: 0 | BQ29: 0 | BR29: 0 | BS29: 10 | BT29: 0 | BU29: 0 | BV29: 10 | BW29: 0 | BX29: 0 | BY29: 0 | BZ29: 0 | CA29: 0 | CB29: 0 | CC29: 0 | CD29: 0 | CE29: 0 | CF29: 0 | CG29: 0 | CH29: 0 | CI29: 0 | CJ29: 5 | CK29: 0 | CL29: 0 | CM29: 0 | CN29: 0 | CO29: 0 | CP29: 0 | CQ29: 0 | CR29: 0 | CS29: 0 | CT29: 0 | CU29: 0 | CV29: 0 | CW29: 0 | CX29: 0 | CY29: 0 | CZ29: 0 | DA29: 0 | DB29: 0 | DC29: 0
A30: 2025-10-26 | B30: Bournemouth | C30: 2 | D30: 0 | E30: Nott'm Forest | F30: 14:00:00 | H30: 5 | I30: 0 | J30: 0 | K30: 5 | L30: 10 | M30: 5 | N30: 5 | O30: 0 | P30: 10 | Q30: 10 | R30: 5 | S30: 10 | T30: 5 | U30: - | V30: 0 | W30: 5 | X30: 0 | Y30: 0 | Z30: 5 | AA30: 5 | AB30: 5 | AC30: 10 | AD30: 5 | AE30: 10 | AF30: 10 | AG30: 5 | AH30: 5 | AI30: - | AJ30: 0 | AK30: 5 | AL30: 5 | AM30: 5 | AN30: 0 | AO30: 0 | AP30: 0 | AQ30: 10 | AR30: 5 | AS30: 5 | AT30: 0 | AU30: 10 | AV30: 5 | AW30: 10 | AX30: 5 | AY30: 5 | AZ30: 10 | BA30: 5 | BB30: 10 | BC30: 10 | BD30: 10 | BE30: 10 | BF30: 10 | BG30: 10 | BH30: 5 | BI30: 5 | BJ30: 10 | BK30: 0 | BL30: 5 | BM30: 5 | BN30: 10 | BO30: 5 | BP30: 5 | BQ30: 5 | BR30: 10 | BS30: 5 | BT30: 5 | BU30: 5 | BV30: 5 | BW30: 5 | BX30: 5 | BY30: 10 | BZ30: 5 | CA30: 10 | CB30: 0 | CC30: 5 | CD30: 10 | CE30: 0 | CF30: 5 | CG30: 0 | CH30: 10 | CI30: 5 | CJ30: 5 | CK30: 0 | CL30: 5 | CM30: 0 | CN30: 10 | CO30: 0 | CP30: 5 | CQ30: 5 | CR30: 10 | CS30: 10 | CT30: 5 | CU30: 10 | CV30: 5 | CW30: 5 | CX30: 0 | CY30: 0 | CZ30: 5 | DA30: 0 | DB30: 0 | DC30: 0
A31: 2025-10-26 | B31: Wolves | C31: 2 | D31: 3 | E31: Burnley | F31: 14:00:00 | H31: 0 | I31: 0 | J31: 0 | K31: 0 | L31: 0 | M31: 0 | N31: 0 | O31: 0 | P31: 0 | Q31: 0 | R31: 0 | S31: 0 | T31: 0 | U31: - | V31: 0 | W31: 0 | X31: 0 | Y31: 0 | Z31: 0 | AA31: 0 | AB31: 0 | AC31: 0 | AD31: 0 | AE31: 0 | AF31: 0 | AG31: 0 | AH31: 0 | AI31: - | AJ31: 0 | AK31: 0 | AL31: 5 | AM31: 0 | AN31: 0 | AO31: 0 | AP31: 0 | AQ31: 0 | AR31: 0 | AS31: 0 | AT31: 0 | AU31: 5 | AV31: 0 | AW31: 0 | AX31: 0 | AY31: 0 | AZ31: 0 | BA31: 0 | BB31: 0 | BC31: 0 | BD31: 0 | BE31: 0 | BF31: 5 | BG31: 0 | BH31: 0 | BI31: 0 | BJ31: 0 | BK31: 0 | BL31: 0 | BM31: 0 | BN31: 0 | BO31: 0 | BP31: 0 | BQ31: 0 | BR31: 0 | BS31: 0 | BT31: 10 | BU31: 0 | BV31: 0 | BW31: 0 | BX31: 0 | BY31: 0 | BZ31: 0 | CA31: 5 | CB31: 5 | CC31: 5 | CD31: 0 | CE31: 0 | CF31: 0 | CG31: 5 | CH31: 0 | CI31: 0 | CJ31: 0 | CK31: 5 | CL31: 0 | CM31: 10 | CN31: 0 | CO31: 0 | CP31: 0 | CQ31: 0 | CR31: 0 | CS31: 0 | CT31: 0 | CU31: 0 | CV31: 0 | CW31: 0 | CX31: 0 | CY31: 0 | CZ31: 0 | DA31: 0 | DB31: 0 | DC31: 0
A32: 2025-10-26 | B32: Everton | C32: 0 | D32: 3 | E32: Spurs | F32: 16:30:00 | H32: 0 | I32: 0 | J32: 0 | K32: 0 | L32: 0 | M32: 0 | N32: 0 | O32: 5 | P32: 0 | Q32: 0 | R32: 0 | S32: 5 | T32: 5 | U32: - | V32: 0 | W32: 5 | X32: 0 | Y32: 0 | Z32: 0 | AA32: 0 | AB32: 0 | AC32: 0 | AD32: 0 | AE32: 5 | AF32: 0 | AG32: 0 | AH32: 0 | AI32: - | AJ32: 0 | AK32: 0 | AL32: 5 | AM32: 0 | AN32: 0 | AO32: 5 | AP32: 0 | AQ32: 0 | AR32: 0 | AS32: 0 | AT32: 5 | AU32: 0 | AV32: 0 | AW32: 0 | AX32: 0 | AY32: 0 | AZ32: 0 | BA32: 0 | BB32: 0 | BC32: 0 | BD32: 0 | BE32: 0 | BF32: 5 | BG32: 0 | BH32: 5 | BI32: 0 | BJ32: 0 | BK32: 5 | BL32: 0 | BM32: 0 | BN32: 0 | BO32: 0 | BP32: 5 | BQ32: 0 | BR32: 0 | BS32: 0 | BT32: 5 | BU32: 5 | BV32: 0 | BW32: 0 | BX32: 5 | BY32: 0 | BZ32: 0 | CA32: 0 | CB32: 0 | CC32: 0 | CD32: 5 | CE32: 0 | CF32: 0 | CG32: 0 | CH32: 5 | CI32: 0 | CJ32: 0 | CK32: 0 | CL32: 0 | CM32: 5 | CN32: 0 | CO32: 5 | CP32: 5 | CQ32: 0 | CR32: 0 | CS32: 0 | CT32: 0 | CU32: 0 | CV32: 0 | CW32: 0 | CX32: 0 | CY32: 0 | CZ32: 5 | DA32: 0 | DB32: 0 | DC32: 5
A34: Golden Boots
A35: Alexander Isak - Liverpool | D35: =COUNT(H35:JB35) -> 31 | E35: =0+0+0 -> 0 | I35: =$E35*2 -> 0 | K35: =$E35*2 -> 0 | M35: =$E35*2 -> 0 | P35: =$E35*2 -> 0 | T35: =$E35*2 -> 0 | AB35: =$E35*2 -> 0 | AE35: =$E35*2 -> 0 | AF35: 0 | AI35: 0 | AM35: =$E35*2 -> 0 | AO35: 0 | AP35: 0 | AR35: 0 | AS35: 0 | AT35: 0 | AW35: =$E35*2 -> 0 | AX35: 0 | AY35: 0 | BF35: 0 | BH35: 0 | BJ35: =$E35*2 -> 0 | BN35: =$E35*2 -> 0 | BQ35: 0 | CE35: =$E35*2 -> 0 | CF35: =$E35*2 -> 0 | CG35: =$E35*2 -> 0 | CH35: =$E35*2 -> 0 | CI35: =$E35*2 -> 0 | CR35: =$E35*2 -> 0 | CU35: =$E35*2 -> 0 | CZ35: =$E35*2 -> 0
A36: Bryan Mbeumo - Man United | D36: 6 | E36: =0+1+2 -> 3 | Y36: =$E36*2 -> 6 | AD36: 6 | AN36: 6 | CD36: =$E36*2 -> 6 | CS36: =$E36*2 -> 6 | CY36: =$E36*2 -> 6
A37: Chris Wood - Nottingham Forest | D37: 5 | E37: =0+0+0 -> 0 | S37: =$E37*2 -> 0 | V37: =$E37*2 -> 0 | BX37: =$E37*2 -> 0 | CC37: =$E37*2 -> 0 | DB37: =$E37*2 -> 0
A38: Cole Palmer - Chelsea | D38: 27 | E38: =0+0+0 -> 0 | J38: =$E38*2 -> 0 | K38: =$E38*2 -> 0 | L38: =$E38*2 -> 0 | N38: =$E38*2 -> 0 | O38: =$E38*2 -> 0 | W38: =$E38*2 -> 0 | X38: =$E38*2 -> 0 | AA38: =$E38*2 -> 0 | AG38: 0 | AK38: =$E38*2 -> 0 | AW38: =$E38*2 -> 0 | BA38: 0 | BC38: =$E38*2 -> 0 | BE38: =$E38*2 -> 0 | BG38: 0 | BL38: =$E38*2 -> 0 | BM38: =$E38*2 -> 0 | BO38: 0 | BT38: 0 | BX38: =$E38*2 -> 0 | CB38: =$E38*2 -> 0 | CE38: =$E38*2 -> 0 | CF38: =$E38*2 -> 0 | CJ38: =$E38*2 -> 0 | CQ38: =$E38*2 -> 0 | CS38: =$E38*2 -> 0 | CT38: =$E38*2 -> 0
A39: Erling Haaland - Man City | D39: 80 | E39: =1+2+0 -> 3 | H39: =$E39*2 -> 6 | I39: =$E39*2 -> 6 | K39: =$E39*2 -> 6 | L39: =$E39*2 -> 6 | M39: =$E39*2 -> 6 | P39: =$E39*2 -> 6 | Q39: 6 | R39: 6 | S39: 6 | T39: 6 | U39: =$E39*2 -> 6 | V39: 6 | W39: =$E39*2 -> 6 | X39: =$E39*2 -> 6 | Y39: =$E39*2 -> 6 | Z39: =$E39*2 -> 6 | AA39: =$E39*2 -> 6 | AB39: =$E39*2 -> 6 | AC39: =$E39*2 -> 6 | AD39: =$E39*2 -> 6 | AH39: =$E39*2 -> 6 | AI39: 6 | AJ39: 6 | AK39: 6 | AN39: =$E39*2 -> 6 | AO39: 6 | AP39: 6 | AQ39: =$E39*2 -> 6 | AR39: =$E39*2 -> 6 | AS39: =$E39*2 -> 6 | AT39: =$E39*2 -> 6 | AU39: 6 | AV39: 6 | AY39: =$E39*2 -> 6 | AZ39: 6 | BA39: 6 | BC39: 6 | BD39: 6 | BE39: 6 | BF39: =$E39*2 -> 6 | BG39: 6 | BH39: 6 | BI39: 6 | BJ39: =$E39*2 -> 6 | BK39: =$E39*2 -> 6 | BM39: 6 | BN39: 6 | BO39: 6 | BP39: 6 | BQ39: 6 | BR39: 6 | BS39: 6 | BT39: 6 | BU39: 6 | BV39: =$E39*2 -> 6 | BW39: =$E39*2 -> 6 | BZ39: =$E39*2 -> 6 | CA39: =$E39*2 -> 6 | CB39: =$E39*2 -> 6 | CC39: =$E39*2 -> 6 | CD39: =$E39*2 -> 6 | CG39: =$E39*2 -> 6 | CH39: =$E39*2 -> 6 | CI39: =$E39*2 -> 6 | CJ39: =$E39*2 -> 6 | CM39: =$E39*2 -> 6 | CN39: =$E39*2 -> 6 | CO39: =$E39*2 -> 6 | CP39: =$E39*2 -> 6 | CR39: =$E39*2 -> 6 | CS39: =$E39*2 -> 6 | CU39: =$E39*2 -> 6 | CV39: =$E39*2 -> 6 | CW39: 6 | CX39: 6 | CY39: 6 | CZ39: 6 | DA39: 6 | DB39: 6 | DC39: 6
A40: Hugo Ekitike - Liverpool | D40: 12 | E40: =0+0+0 -> 0 | R40: =$E40*2 -> 0 | Z40: =$E40*2 -> 0 | AL40: =$E40*2 -> 0 | AM40: =$E40*2 -> 0 | AN40: 0 | AW40: 0 | AZ40: 0 | BE40: 0 | BY40: =$E40*2 -> 0 | BZ40: =$E40*2 -> 0 | CL40: =$E40*2 -> 0 | DC40: =$E40*2 -> 0
A41: Jean-Philippe Mateta - Crystal Palace | D41: 5 | E41: =0+3+0 -> 3 | BL41: =$E41*2 -> 6 | BY41: =$E41*2 -> 6 | CL41: =$E41*2 -> 6 | CT41: =$E41*2 -> 6 | CW41: =$E41*2 -> 6
A42: Jorgen Strand Larsen - Wolves | D42: 1 | E42: =0+0+1 -> 1 | BV42: =$E42*2 -> 2
A43: Justin Kluivert - Bournemouth | D43: 1 | E43: =1+0+0 -> 1 | N43: =$E43*2 -> 2
A44: Liam Delap - Chelsea | D44: 1 | E44: =0+0+0 -> 0 | CL44: =$E44*2 -> 0
A45: Matheus Cunha - Man United | D45: 5 | E45: =0+0+1 -> 1 | N45: =$E45*2 -> 2 | BB45: =$E45*2 -> 2 | CF45: =$E45*2 -> 2 | CK45: =$E45*2 -> 2 | CM45: =$E45*2 -> 2
A46: Mohamed Salah - Liverpool | D46: 83 | E46: =0+0+1 -> 1 | H46: =$E46*2 -> 2 | J46: =$E46*2 -> 2 | L46: =$E46*2 -> 2 | M46: =$E46*2 -> 2 | O46: =$E46*2 -> 2 | P46: =$E46*2 -> 2 | Q46: =$E46*2 -> 2 | R46: =$E46*2 -> 2 | S46: =$E46*2 -> 2 | T46: =$E46*2 -> 2 | U46: =$E46*2 -> 2 | V46: =$E46*2 -> 2 | X46: 2 | Y46: =$E46*2 -> 2 | Z46: =$E46*2 -> 2 | AA46: 2 | AB46: =$E46*2 -> 2 | AC46: =$E46*2 -> 2 | AD46: 2 | AE46: 2 | AF46: 2 | AG46: 2 | AH46: 2 | AJ46: =$E46*2 -> 2 | AL46: =$E46*2 -> 2 | AM46: 2 | AO46: 2 | AP46: 2 | AQ46: 2 | AR46: 2 | AS46: =$E46*2 -> 2 | AT46: 2 | AU46: 2 | AV46: 2 | AX46: =$E46*2 -> 2 | AY46: 2 | BA46: =$E46*2 -> 2 | BB46: 2 | BC46: 2 | BD46: 2 | BF46: =$E46*2 -> 2 | BG46: =$E46*2 -> 2 | BH46: 2 | BI46: =$E46*2 -> 2 | BJ46: =$E46*2 -> 2 | BK46: =$E46*2 -> 2 | BL46: =$E46*2 -> 2 | BM46: 2 | BN46: 2 | BO46: 2 | BP46: 2 | BR46: =$E46*2 -> 2 | BS46: 2 | BT46: 2 | BU46: 2 | BV46: =$E46*2 -> 2 | BW46: =$E46*2 -> 2 | BZ46: =$E46*2 -> 2 | CA46: 2 | CB46: =$E46*2 -> 2 | CC46: =$E46*2 -> 2 | CD46: 2 | CE46: =$E46*2 -> 2 | CG46: =$E46*2 -> 2 | CH46: =$E46*2 -> 2 | CI46: =$E46*2 -> 2 | CJ46: =$E46*2 -> 2 | CK46: =$E46*2 -> 2 | CM46: =$E46*2 -> 2 | CN46: =$E46*2 -> 2 | CO46: =$E46*2 -> 2 | CP46: =$E46*2 -> 2 | CQ46: =$E46*2 -> 2 | CR46: =$E46*2 -> 2 | CT46: =$E46*2 -> 2 | CU46: 2 | CV46: =$E46*2 -> 2 | CW46: 2 | CX46: =$E46*2 -> 2 | CZ46: 2 | DA46: 2 | DB46: =$E46*2 -> 2 | DC46: 2
A47: Ollie Watkins - Aston Villa | D47: 3 | E47: =0+0+0 -> 0 | AF47: 0 | BX47: =$E47*2 -> 0 | CN47: =$E47*2 -> 0
A48: Viktor Gyokeres - Arsenal | D48: 39 | E48: =0+0+0 -> 0 | H48: =$E48*2 -> 0 | I48: =$E48*2 -> 0 | J48: =$E48*2 -> 0 | O48: =$E48*2 -> 0 | Q48: =$E48*2 -> 0 | U48: =$E48*2 -> 0 | W48: =$E48*2 -> 0 | AC48: =$E48*2 -> 0 | AE48: =$E48*2 -> 0 | AG48: =$E48*2 -> 0 | AH48: 0 | AI48: 0 | AJ48: 0 | AK48: 0 | AL48: 0 | AQ48: =$E48*2 -> 0 | AU48: =$E48*2 -> 0 | AV48: 0 | AX48: =$E48*2 -> 0 | AZ48: =$E48*2 -> 0 | BB48: =$E48*2 -> 0 | BD48: =$E48*2 -> 0 | BI48: =$E48*2 -> 0 | BK48: =$E48*2 -> 0 | BP48: =$E48*2 -> 0 | BQ48: 0 | BR48: 0 | BS48: 0 | BU48: =$E48*2 -> 0 | BW48: =$E48*2 -> 0 | BY48: =$E48*2 -> 0 | CA48: =$E48*2 -> 0 | CK48: =$E48*2 -> 0 | CP48: =$E48*2 -> 0 | CQ48: =$E48*2 -> 0 | CV48: =$E48*2 -> 0 | CX48: =$E48*2 -> 0 | CY48: =$E48*2 -> 0 | DA48: =$E48*2 -> 0
A49: Yoane Wissa - Newcastle | D49: 1 | E49: =0+0+0 -> 0 | CO49: =$E49*2 -> 0
A51: Total Points - October | H51: =SUM(H$3:H50) -> 118 | I51: =SUM(I$3:I50) -> 101 | J51: =SUM(J$3:J50) -> 82 | K51: =SUM(K$3:K50) -> 81 | L51: =SUM(L$3:L50) -> 108 | M51: =SUM(M$3:M50) -> 113 | N51: =SUM(N$3:N50) -> 74 | O51: =SUM(O$3:O50) -> 62 | P51: =SUM(P$3:P50) -> 113 | Q51: =SUM(Q$3:Q50) -> 113 | R51: =SUM(R$3:R50) -> 93 | S51: =SUM(S$3:S50) -> 128 | T51: =SUM(T$3:T50) -> 118 | U51: =SUM(U$3:U50) -> 8 | V51: =SUM(V$3:V50) -> 68 | W51: =SUM(W$3:W50) -> 106 | X51: =SUM(X$3:X50) -> 103 | Y51: =SUM(Y$3:Y50) -> 109 | Z51: =SUM(Z$3:Z50) -> 128 | AA51: =SUM(AA$3:AA50) -> 73 | AB51: =SUM(AB$3:AB50) -> 108 | AC51: =SUM(AC$3:AC50) -> 113 | AD51: =SUM(AD$3:AD50) -> 104 | AE51: =SUM(AE$3:AE50) -> 127 | AF51: =SUM(AF$3:AF50) -> 112 | AG51: =SUM(AG$3:AG50) -> 87 | AH51: =SUM(AH$3:AH50) -> 103 | AI51: =SUM(AI$3:AI50) -> 6 | AJ51: =SUM(AJ$3:AJ50) -> 108 | AK51: =SUM(AK$3:AK50) -> 91 | AL51: =SUM(AL$3:AL50) -> 107 | AM51: =SUM(AM$3:AM50) -> 107 | AN51: =SUM(AN$3:AN50) -> 112 | AO51: =SUM(AO$3:AO50) -> 118 | AP51: =SUM(AP$3:AP50) -> 108 | AQ51: =SUM(AQ$3:AQ50) -> 83 | AR51: =SUM(AR$3:AR50) -> 103 | AS51: =SUM(AS$3:AS50) -> 103 | AT51: =SUM(AT$3:AT50) -> 103 | AU51: =SUM(AU$3:AU50) -> 108 | AV51: =SUM(AV$3:AV50) -> 88 | AW51: =SUM(AW$3:AW50) -> 90 | AX51: =SUM(AX$3:AX50) -> 97 | AY51: =SUM(AY$3:AY50) -> 128 | AZ51: =SUM(AZ$3:AZ50) -> 126 | BA51: =SUM(BA$3:BA50) -> 98 | BB51: =SUM(BB$3:BB50) -> 109 | BC51: =SUM(BC$3:BC50) -> 93 | BD51: =SUM(BD$3:BD50) -> 103 | BE51: =SUM(BE$3:BE50) -> 106 | BF51: =SUM(BF$3:BF50) -> 113 | BG51: =SUM(BG$3:BG50) -> 108 | BH51: =SUM(BH$3:BH50) -> 93 | BI51: =SUM(BI$3:BI50) -> 103 | BJ51: =SUM(BJ$3:BJ50) -> 103 | BK51: =SUM(BK$3:BK50) -> 83 | BL51: =SUM(BL$3:BL50) -> 113 | BM51: =SUM(BM$3:BM50) -> 108 | BN51: =SUM(BN$3:BN50) -> 108 | BO51: =SUM(BO$3:BO50) -> 128 | BP51: =SUM(BP$3:BP50) -> 103 | BQ51: =SUM(BQ$3:BQ50) -> 91 | BR51: =SUM(BR$3:BR50) -> 108 | BS51: =SUM(BS$3:BS50) -> 123 | BT51: =SUM(BT$3:BT50) -> 93 | BU51: =SUM(BU$3:BU50) -> 118 | BV51: =SUM(BV$3:BV50) -> 105 | BW51: =SUM(BW$3:BW50) -> 103 | BX51: =SUM(BX$3:BX50) -> 85 | BY51: =SUM(BY$3:BY50) -> 111 | BZ51: =SUM(BZ$3:BZ50) -> 118 | CA51: =SUM(CA$3:CA50) -> 93 | CB51: =SUM(CB$3:CB50) -> 98 | CC51: =SUM(CC$3:CC50) -> 93 | CD51: =SUM(CD$3:CD50) -> 129 | CE51: =SUM(CE$3:CE50) -> 107 | CF51: =SUM(CF$3:CF50) -> 107 | CG51: =SUM(CG$3:CG50) -> 78 | CH51: =SUM(CH$3:CH50) -> 113 | CI51: =SUM(CI$3:CI50) -> 113 | CJ51: =SUM(CJ$3:CJ50) -> 133 | CK51: =SUM(CK$3:CK50) -> 114 | CL51: =SUM(CL$3:CL50) -> 101 | CM51: =SUM(CM$3:CM50) -> 90 | CN51: =SUM(CN$3:CN50) -> 93 | CO51: =SUM(CO$3:CO50) -> 68 | CP51: =SUM(CP$3:CP50) -> 113 | CQ51: =SUM(CQ$3:CQ50) -> 102 | CR51: =SUM(CR$3:CR50) -> 103 | CS51: =SUM(CS$3:CS50) -> 122 | CT51: =SUM(CT$3:CT50) -> 98 | CU51: =SUM(CU$3:CU50) -> 113 | CV51: =SUM(CV$3:CV50) -> 128 | CW51: =SUM(CW$3:CW50) -> 94 | CX51: =SUM(CX$3:CX50) -> 68 | CY51: =SUM(CY$3:CY50) -> 112 | CZ51: =SUM(CZ$3:CZ50) -> 113 | DA51: =SUM(DA$3:DA50) -> 113 | DB51: =SUM(DB$3:DB50) -> 103 | DC51: =SUM(DC$3:DC50) -> 103

Sheet November
H1: Aaron Nealon | I1: Aidan Scanlon | J1: Aidan White | K1: Alain Verjans | L1: Anastas Popov | M1: Andy Dunne | N1: Benny McCarthy | O1: Billy McGinley | P1: Bobby Hynes | Q1: Brendan Maguire | R1: Brian Haughton | S1: Brian Hearne | T1: Brian Mullen | U1: Calvin McGettigan | V1: Caoimhin McEnteggart | W1: Carl Toner | X1: Caroline Carroll | Y1: Chris Keohan | Z1: Christina Morgan | AA1: Ciaran O'Hart | AB1: Colin Butterly | AC1: Con McSweeney | AD1: Craig Calvert | AE1: Craig Whelan | AF1: Daniel Dorrian | AG1: Darragh Kenny | AH1: Darren O'Gorman | AI1: Dave Lavelle | AJ1: Dave McGinley | AK1: David Cooney | AL1: David Doyle | AM1: David King | AN1: Derek McDonald | AO1: Dylan Delaney | AP1: Dylan O'Riordan | AQ1: Eamon Fox | AR1: Eamonn Gallagher | AS1: Eoghan Farrelly | AT1: Finbarr Corkery | AU1: Frank McSweeney | AV1: Gareth Pierpoint | AW1: Gary Donnelly | AX1: Gary Fitzpatrick | AY1: Gavin Goodwin | AZ1: Gavin Morgan | BA1: Gerry Draper | BB1: Gerry Moore | BC1: Graham Pierpoint | BD1: Greg Donaghy | BE1: Helen Fadian | BF1: Jack Draper | BG1: Jason Maloney | BH1: Javier Suarez | BI1: Jim Foley | BJ1: Jimmy Maguire | BK1: Joe Behan | BL1: Joe Turner | BM1: John Brophy | BN1: John Cafferkey | BO1: Johno Percy | BP1: Jonathan Fox | BQ1: Joseph Kavanagh | BR1: Joseph Leppla | BS1: Keith Nerney | BT1: Keith Ryan | BU1: Kev Dalton | BV1: Kevin Lawless | BW1: Kevin Nolan | BX1: Kieran Killeen | BY1: Liam Keohan | BZ1: Lionel Knott | CA1: Martin Kimmins | CB1: Micheal Joyce | CC1: Micheal Munnelly | CD1: Monica Collins | CE1: Niall Carroll | CF1: Paddy Devereux | CG1: Paul Foley | CH1: Paul Moore | CI1: Paul Prendergast | CJ1: Peter Lavelle | CK1: Phil Doyle | CL1: Philip Jordan | CM1: Phoebe Suarez Behan | CN1: Realtin Dunne | CO1: Rhea Suarez Behan | CP1: Richard Johnston | CQ1: Robert Foley | CR1: Robert Gaffney | CS1: Roisin Joyce | CT1: Sam Calvert | CU1: Sean Cafferkey | CV1: Sean Cleary | CW1: Sean O'Mairtin | CX1: Shane Horan | CY1: Simon Scanlon | CZ1: Thomas Nolan | DA1: Tommy Hamill | DB1: Tommy Tormey | DC1: Tommy Walsh
A2: Date | B2: Teams | F2: Time
A3: 2025-11-01 | B3: Brighton | C3: 3 | D3: 0 | E3: Leeds Utd | F3: 45962.625 | H3: 5 | I3: 5 | J3: 0 | K3: 5 | L3: 5 | M3: 5 | N3: 5 | O3: 10 | P3: 5 | Q3: 5 | R3: 5 | S3: 0 | T3: 5 | U3: - | V3: 0 | W3: 5 | X3: 5 | Y3: 5 | Z3: 5 | AA3: 5 | AB3: 0 | AC3: 5 | AD3: 5 | AE3: 0 | AF3: 5 | AG3: 5 | AH3: 5 | AI3: - | AJ3: 5 | AK3: 5 | AL3: 5 | AM3: 5 | AN3: 5 | AO3: 0 | AP3: 5 | AQ3: 5 | AR3: 5 | AS3: 0 | AT3: 5 | AU3: 5 | AV3: 5 | AW3: 0 | AX3: 5 | AY3: - | AZ3: 5 | BA3: 5 | BB3: 5 | BC3: 5 | BD3: 5 | BE3: 5 | BF3: 0 | BG3: 5 | BH3: 5 | BI3: 10 | BJ3: 0 | BK3: 5 | BL3: 5 | BM3: 5 | BN3: 5 | BO3: 5 | BP3: 5 | BQ3: 5 | BR3: 5 | BS3: 5 | BT3: 0 | BU3: 5 | BV3: 5 | BW3: 5 | BX3: 5 | BY3: 5 | BZ3: 5 | CA3: 5 | CB3: 0 | CC3: 5 | CD3: 5 | CE3: 0 | CF3: 0 | CG3: 5 | CH3: 5 | CI3: 5 | CJ3: 5 | CK3: 5 | CL3: 5 | CM3: 5 | CN3: 5 | CO3: 5 | CP3: 0 | CQ3: 5 | CR3: 5 | CS3: 5 | CT3: 5 | CU3: 10 | CV3: 5 | CW3: 5 | CX3: 5 | CY3: 5 | CZ3: 5 | DA3: 5 | DB3: 0 | DC3: 5
A4: 2025-11-01 | B4: Burnley | C4: 0 | D4: 2 | E4: Arsenal | F4: 45962.625 | H4: 10 | I4: 5 | J4: 10 | K4: 5 | L4: 10 | M4: 10 | N4: - | O4: 5 | P4: 10 | Q4: 10 | R4: 5 | S4: 10 | T4: 5 | U4: - | V4: 10 | W4: 10 | X4: 5 | Y4: 10 | Z4: 0 | AA4: 5 | AB4: 0 | AC4: 10 | AD4: 10 | AE4: 5 | AF4: 5 | AG4: 10 | AH4: 10 | AI4: - | AJ4: 5 | AK4: 5 | AL4: 10 | AM4: 0 | AN4: 5 | AO4: 5 | AP4: 5 | AQ4: 10 | AR4: 10 | AS4: 10 | AT4: 10 | AU4: 10 | AV4: 10 | AW4: 5 | AX4: 0 | AY4: - | AZ4: 10 | BA4: 10 | BB4: 5 | BC4: 10 | BD4: 10 | BE4: 5 | BF4: 10 | BG4: 10 | BH4: 5 | BI4: 10 | BJ4: 5 | BK4: 10 | BL4: 5 | BM4: 5 | BN4: 5 | BO4: 10 | BP4: 10 | BQ4: 5 | BR4: 5 | BS4: 10 | BT4: 5 | BU4: 5 | BV4: 5 | BW4: 5 | BX4: 10 | BY4: 5 | BZ4: 5 | CA4: 10 | CB4: 10 | CC4: 5 | CD4: 5 | CE4: 10 | CF4: 5 | CG4: 5 | CH4: 10 | CI4: 10 | CJ4: 5 | CK4: 5 | CL4: 10 | CM4: 5 | CN4: 10 | CO4: 5 | CP4: 5 | CQ4: 10 | CR4: 5 | CS4: 5 | CT4: 10 | CU4: 10 | CV4: 10 | CW4: 10 | CX4: 5 | CY4: 5 | CZ4: 0 | DA4: 10 | DB4: 5 | DC4: 10
A5: 2025-11-01 | B5: Crystal Palace | C5: 2 | D5: 0 | E5: Brentford | F5: 45962.625 | H5: 0 | I5: 0 | J5: 5 | K5: 5 | L5: 5 | M5: 0 | N5: - | O5: 5 | P5: 5 | Q5: 5 | R5: 0 | S5: 5 | T5: 0 | U5: - | V5: 0 | W5: 0 | X5: 5 | Y5: 5 | Z5: 5 | AA5: 10 | AB5: 0 | AC5: 5 | AD5: 5 | AE5: 0 | AF5: 5 | AG5: 5 | AH5: 5 | AI5: - | AJ5: 0 | AK5: 5 | AL5: 5 | AM5: 5 | AN5: 0 | AO5: 0 | AP5: 0 | AQ5: 5 | AR5: 5 | AS5: 0 | AT5: 0 | AU5: 0 | AV5: 10 | AW5: 5 | AX5: 5 | AY5: - | AZ5: 5 | BA5: 5 | BB5: 0 | BC5: 5 | BD5: 5 | BE5: 10 | BF5: 5 | BG5: 10 | BH5: 10 | BI5: 10 | BJ5: 0 | BK5: 0 | BL5: 5 | BM5: 0 | BN5: 5 | BO5: 5 | BP5: 5 | BQ5: 0 | BR5: 0 | BS5: 0 | BT5: 10 | BU5: 5 | BV5: 5 | BW5: 0 | BX5: 0 | BY5: 5 | BZ5: 0 | CA5: 0 | CB5: 5 | CC5: 0 | CD5: 0 | CE5: 5 | CF5: 5 | CG5: 0 | CH5: 0 | CI5: 5 | CJ5: 5 | CK5: 5 | CL5: 5 | CM5: 5 | CN5: 0 | CO5: 0 | CP5: 0 | CQ5: 5 | CR5: 5 | CS5: 0 | CT5: 5 | CU5: 10 | CV5: 5 | CW5: 5 | CX5: 0 | CY5: 10 | CZ5: 5 | DA5: 0 | DB5: 5 | DC5: 0
A6: 2025-11-01 | B6: Fulham | C6: 3 | D6: 0 | E6: Wolves | F6: 45962.625 | H6: 5 | I6: 0 | J6: 5 | K6: 5 | L6: 5 | M6: 5 | N6: - | O6: 5 | P6: 5 | Q6: 5 | R6: 5 | S6: 5 | T6: 5 | U6: - | V6: 0 | W6: 5 | X6: 5 | Y6: 5 | Z6: 5 | AA6: 0 | AB6: 0 | AC6: 5 | AD6: 5 | AE6: 5 | AF6: 5 | AG6: 5 | AH6: 5 | AI6: - | AJ6: 5 | AK6: 0 | AL6: 10 | AM6: 5 | AN6: 5 | AO6: 5 | AP6: 0 | AQ6: 5 | AR6: 5 | AS6: 5 | AT6: 0 | AU6: 5 | AV6: 5 | AW6: 0 | AX6: 5 | AY6: - | AZ6: 5 | BA6: 5 | BB6: 5 | BC6: 5 | BD6: 5 | BE6: 5 | BF6: 5 | BG6: 5 | BH6: 0 | BI6: 5 | BJ6: 5 | BK6: 5 | BL6: 5 | BM6: 5 | BN6: 5 | BO6: 0 | BP6: 5 | BQ6: 5 | BR6: 5 | BS6: 5 | BT6: 5 | BU6: 5 | BV6: 0 | BW6: 0 | BX6: 5 | BY6: 5 | BZ6: 5 | CA6: 0 | CB6: 0 | CC6: 0 | CD6: 5 | CE6: 5 | CF6: 0 | CG6: 10 | CH6: 5 | CI6: 5 | CJ6: 5 | CK6: 5 | CL6: 5 | CM6: 5 | CN6: 10 | CO6: 0 | CP6: 5 | CQ6: 5 | CR6: 5 | CS6: 5 | CT6: 5 | CU6: 5 | CV6: 5 | CW6: 5 | CX6: 5 | CY6: 5 | CZ6: 5 | DA6: 5 | DB6: 5 | DC6: 5
A7: 2025-11-01 | B7: Nott'm Forest | C7: 2 | D7: 2 | E7: Man Utd | F7: 45962.625 | H7: 0 | I7: 0 | J7: 0 | K7: 5 | L7: 0 | M7: 0 | N7: - | O7: 0 | P7: 0 | Q7: 0 | R7: 0 | S7: 0 | T7: 0 | U7: - | V7: 0 | W7: 0 | X7: 0 | Y7: 5 | Z7: 0 | AA7: 0 | AB7: 5 | AC7: 5 | AD7: 0 | AE7: 0 | AF7: 5 | AG7: 5 | AH7: 0 | AI7: - | AJ7: 0 | AK7: 0 | AL7: 0 | AM7: 0 | AN7: 0 | AO7: 0 | AP7: 0 | AQ7: 0 | AR7: 10 | AS7: 0 | AT7: 0 | AU7: 0 | AV7: 10 | AW7: 5 | AX7: 0 | AY7: - | AZ7: 5 | BA7: 0 | BB7: 0 | BC7: 5 | BD7: 0 | BE7: 0 | BF7: 0 | BG7: 0 | BH7: 10 | BI7: 0 | BJ7: 0 | BK7: 0 | BL7: 0 | BM7: 0 | BN7: 0 | BO7: 0 | BP7: 0 | BQ7: 5 | BR7: 0 | BS7: 0 | BT7: 0 | BU7: 0 | BV7: 0 | BW7: 0 | BX7: 0 | BY7: 0 | BZ7: 0 | CA7: 0 | CB7: 5 | CC7: 0 | CD7: 0 | CE7: 5 | CF7: 0 | CG7: 10 | CH7: 0 | CI7: 5 | CJ7: 0 | CK7: 0 | CL7: 0 | CM7: 0 | CN7: 5 | CO7: 0 | CP7: 0 | CQ7: 0 | CR7: 5 | CS7: 0 | CT7: 0 | CU7: 0 | CV7: 0 | CW7: 10 | CX7: 5 | CY7: 0 | CZ7: 0 | DA7: 5 | DB7: 0 | DC7: 5
A8: 2025-11-01 | B8: Spurs | C8: 0 | D8: 1 | E8: Chelsea | F8: 17:30:00 | H8: 5 | I8: 5 | J8: 0 | K8: 0 | L8: 0 | M8: 0 | N8: - | O8: 0 | P8: 0 | Q8: 5 | R8: 0 | S8: 0 | T8: 0 | U8: - | V8: 0 | W8: 0 | X8: 0 | Y8: 0 | Z8: 0 | AA8: 0 | AB8: 0 | AC8: 0 | AD8: 0 | AE8: 0 | AF8: 0 | AG8: 0 | AH8: 0 | AI8: - | AJ8: 0 | AK8: 5 | AL8: 0 | AM8: 0 | AN8: 0 | AO8: 0 | AP8: 5 | AQ8: 0 | AR8: 0 | AS8: 5 | AT8: 0 | AU8: 0 | AV8: 0 | AW8: 0 | AX8: 0 | AY8: - | AZ8: 0 | BA8: 0 | BB8: 0 | BC8: 0 | BD8: 5 | BE8: 0 | BF8: 5 | BG8: 0 | BH8: 0 | BI8: 5 | BJ8: 0 | BK8: 0 | BL8: 0 | BM8: 0 | BN8: 0 | BO8: 0 | BP8: 0 | BQ8: 0 | BR8: 0 | BS8: 5 | BT8: 0 | BU8: 0 | BV8: 0 | BW8: 0 | BX8: 0 | BY8: 5 | BZ8: 0 | CA8: 0 | CB8: 5 | CC8: 5 | CD8: 5 | CE8: 5 | CF8: 0 | CG8: 0 | CH8: 0 | CI8: 0 | CJ8: 0 | CK8: 0 | CL8: 0 | CM8: 5 | CN8: 5 | CO8: 5 | CP8: 0 | CQ8: 0 | CR8: 0 | CS8: 0 | CT8: 0 | CU8: 0 | CV8: 0 | CW8: 0 | CX8: 0 | CY8: 0 | CZ8: 5 | DA8: 5 | DB8: 0 | DC8: 0
A9: 2025-11-01 | B9: Liverpool | C9: 2 | D9: 0 | E9: Aston Villa | F9: 20:00:00 | H9: 0 | I9: 0 | J9: 5 | K9: 5 | L9: 5 | M9: 5 | N9: - | O9: 0 | P9: 5 | Q9: 0 | R9: 5 | S9: 5 | T9: 0 | U9: - | V9: 10 | W9: 0 | X9: 5 | Y9: 5 | Z9: 5 | AA9: 5 | AB9: 0 | AC9: 5 | AD9: 0 | AE9: 5 | AF9: 5 | AG9: 5 | AH9: 5 | AI9: - | AJ9: 5 | AK9: 0 | AL9: 10 | AM9: 5 | AN9: 0 | AO9: 5 | AP9: 5 | AQ9: 0 | AR9: 5 | AS9: 10 | AT9: 0 | AU9: 5 | AV9: 5 | AW9: 5 | AX9: 5 | AY9: - | AZ9: 0 | BA9: 5 | BB9: 0 | BC9: 5 | BD9: 10 | BE9: 5 | BF9: 0 | BG9: 5 | BH9: 5 | BI9: 0 | BJ9: 5 | BK9: 5 | BL9: 5 | BM9: 5 | BN9: 5 | BO9: 5 | BP9: 5 | BQ9: 5 | BR9: 5 | BS9: 5 | BT9: 0 | BU9: 5 | BV9: 5 | BW9: 5 | BX9: 5 | BY9: 0 | BZ9: 10 | CA9: 0 | CB9: 0 | CC9: 5 | CD9: 5 | CE9: 5 | CF9: 5 | CG9: 10 | CH9: 5 | CI9: 5 | CJ9: 5 | CK9: 5 | CL9: 5 | CM9: 5 | CN9: 5 | CO9: 5 | CP9: 5 | CQ9: 5 | CR9: 5 | CS9: 5 | CT9: 0 | CU9: 5 | CV9: 0 | CW9: 10 | CX9: 5 | CY9: 0 | CZ9: 5 | DA9: 5 | DB9: 0 | DC9: 5
A10: 2025-11-02 | B10: West Ham | C10: 3 | D10: 1 | E10: Newcastle | F10: 14:00:00 | H10: 0 | I10: 0 | J10: 0 | K10: 0 | L10: 0 | M10: 0 | N10: - | O10: 0 | P10: 0 | Q10: 0 | R10: 0 | S10: 0 | T10: 0 | U10: - | V10: 0 | W10: 0 | X10: 0 | Y10: 0 | Z10: 5 | AA10: 0 | AB10: 0 | AC10: 0 | AD10: 0 | AE10: 0 | AF10: 0 | AG10: 0 | AH10: 0 | AI10: - | AJ10: 0 | AK10: 0 | AL10: 0 | AM10: 5 | AN10: 0 | AO10: 0 | AP10: 0 | AQ10: 0 | AR10: 5 | AS10: 0 | AT10: 0 | AU10: 0 | AV10: 0 | AW10: 0 | AX10: 10 | AY10: - | AZ10: 0 | BA10: 0 | BB10: 0 | BC10: 0 | BD10: 0 | BE10: 0 | BF10: 0 | BG10: 0 | BH10: 0 | BI10: 0 | BJ10: 5 | BK10: 0 | BL10: 0 | BM10: 0 | BN10: 0 | BO10: 0 | BP10: 0 | BQ10: 0 | BR10: 0 | BS10: 0 | BT10: 0 | BU10: 0 | BV10: 5 | BW10: 0 | BX10: 0 | BY10: 0 | BZ10: 0 | CA10: 0 | CB10: 0 | CC10: 0 | CD10: 0 | CE10: 0 | CF10: 0 | CG10: 0 | CH10: 0 | CI10: 0 | CJ10: 0 | CK10: 0 | CL10: 5 | CM10: 0 | CN10: 0 | CO10: 5 | CP10: 0 | CQ10: 0 | CR10: 0 | CS10: 0 | CT10: 0 | CU10: 0 | CV10: 0 | CW10: 0 | CX10: 0 | CY10: 0 | CZ10: 0 | DA10: 0 | DB10: 0 | DC10: 0
A11: 2025-11-02 | B11: Man City | C11: 3 | D11: 1 | E11: Bournemouth | F11: 16:30:00 | H11: 5 | I11: 10 | J11: 0 | K11: 10 | L11: 5 | M11: 5 | N11: - | O11: 5 | P11: 5 | Q11: 5 | R11: 0 | S11: 5 | T11: 5 | U11: - | V11: 5 | W11: 5 | X11: 5 | Y11: 10 | Z11: 5 | AA11: 10 | AB11: 0 | AC11: 5 | AD11: 5 | AE11: 5 | AF11: 5 | AG11: 5 | AH11: 5 | AI11: - | AJ11: 5 | AK11: 0 | AL11: 5 | AM11: 5 | AN11: 10 | AO11: 10 | AP11: 10 | AQ11: 5 | AR11: 5 | AS11: 5 | AT11: 5 | AU11: 5 | AV11: 5 | AW11: 5 | AX11: 10 | AY11: - | AZ11: 5 | BA11: 5 | BB11: 0 | BC11: 5 | BD11: 5 | BE11: 5 | BF11: 0 | BG11: 5 | BH11: 0 | BI11: 0 | BJ11: 5 | BK11: 5 | BL11: 5 | BM11: 5 | BN11: 5 | BO11: 10 | BP11: 5 | BQ11: 5 | BR11: 0 | BS11: 5 | BT11: 0 | BU11: 5 | BV11: 5 | BW11: 0 | BX11: 5 | BY11: 0 | BZ11: 0 | CA11: 0 | CB11: 10 | CC11: 0 | CD11: 5 | CE11: 0 | CF11: 10 | CG11: 10 | CH11: 5 | CI11: 5 | CJ11: 5 | CK11: 5 | CL11: 5 | CM11: 0 | CN11: 5 | CO11: 0 | CP11: 5 | CQ11: 10 | CR11: 5 | CS11: 10 | CT11: 0 | CU11: 5 | CV11: 5 | CW11: 10 | CX11: 10 | CY11: 5 | CZ11: 5 | DA11: 5 | DB11: 5 | DC11: 10
A12: 2025-11-03 | B12: Sunderland | C12: 1 | D12: 1 | E12: Everton | F12: 20:00:00 | H12: 0 | I12: 5 | J12: 10 | K12: 0 | L12: 0 | M12: 0 | N12: - | O12: 0 | P12: 10 | Q12: 10 | R12: 0 | S12: 5 | T12: 10 | U12: - | V12: 10 | W12: 10 | X12: 10 | Y12: 10 | Z12: 0 | AA12: 0 | AB12: 10 | AC12: 10 | AD12: 0 | AE12: 10 | AF12: 10 | AG12: 0 | AH12: 0 | AI12: - | AJ12: 10 | AK12: 0 | AL12: 0 | AM12: 0 | AN12: 0 | AO12: 0 | AP12: 10 | AQ12: 0 | AR12: 0 | AS12: 0 | AT12: 0 | AU12: 0 | AV12: 10 | AW12: 0 | AX12: 0 | AY12: - | AZ12: 0 | BA12: 0 | BB12: 0 | BC12: 0 | BD12: 0 | BE12: 0 | BF12: 0 | BG12: 10 | BH12: 0 | BI12: 10 | BJ12: 0 | BK12: 0 | BL12: 0 | BM12: 10 | BN12: 10 | BO12: 0 | BP12: 10 | BQ12: 10 | BR12: 0 | BS12: 0 | BT12: 0 | BU12: 0 | BV12: 0 | BW12: 10 | BX12: 0 | BY12: 0 | BZ12: 10 | CA12: 5 | CB12: 0 | CC12: 10 | CD12: 10 | CE12: 0 | CF12: 0 | CG12: 0 | CH12: 0 | CI12: 10 | CJ12: 10 | CK12: 0 | CL12: 10 | CM12: 0 | CN12: 5 | CO12: 0 | CP12: 0 | CQ12: 10 | CR12: 10 | CS12: 0 | CT12: 0 | CU12: 10 | CV12: 0 | CW12: 5 | CX12: 0 | CY12: 5 | CZ12: 10 | DA12: 10 | DB12: 0 | DC12: 0
A13: 2025-11-08 | B13: Spurs | C13: 2 | D13: 2 | E13: Man Utd | F13: 12:30:00 | H13: 5 | I13: 0 | J13: 10 | K13: 0 | L13: 0 | M13: 0 | N13: 0 | O13: 0 | P13: 5 | Q13: 0 | R13: 10 | S13: 0 | T13: 5 | U13: - | V13: 5 | W13: 5 | X13: 0 | Y13: 0 | Z13: 0 | AA13: 5 | AB13: 5 | AC13: 5 | AD13: 0 | AE13: 5 | AF13: 0 | AG13: 0 | AH13: 0 | AI13: - | AJ13: 5 | AK13: 10 | AL13: 0 | AM13: 0 | AN13: 10 | AO13: 0 | AP13: 10 | AQ13: 0 | AR13: 0 | AS13: 0 | AT13: 5 | AU13: 0 | AV13: 0 | AW13: 0 | AX13: 10 | AY13: - | AZ13: 0 | BA13: 0 | BB13: 5 | BC13: 5 | BD13: 0 | BE13: 0 | BF13: 0 | BG13: 5 | BH13: 10 | BI13: 5 | BJ13: 0 | BK13: 0 | BL13: 0 | BM13: 0 | BN13: 5 | BO13: 0 | BP13: 0 | BQ13: 0 | BR13: 10 | BS13: 0 | BT13: 0 | BU13: 0 | BV13: 0 | BW13: 5 | BX13: 0 | BY13: 0 | BZ13: 0 | CA13: 0 | CB13: 0 | CC13: 0 | CD13: 10 | CE13: 10 | CF13: 0 | CG13: 0 | CH13: 0 | CI13: 0 | CJ13: 5 | CK13: 0 | CL13: 0 | CM13: 0 | CN13: 0 | CO13: 10 | CP13: 0 | CQ13: 10 | CR13: 10 | CS13: 5 | CT13: 0 | CU13: 0 | CV13: 0 | CW13: 0 | CX13: 10 | CY13: 0 | CZ13: 10 | DA13: 5 | DB13: 0 | DC13: 0
A14: 2025-11-08 | B14: Everton | C14: 2 | D14: 0 | E14: Fulham | F14: 45969.625 | H14: 5 | I14: 10 | J14: 0 | K14: 5 | L14: 5 | M14: 10 | N14: 0 | O14: 5 | P14: 0 | Q14: 0 | R14: 0 | S14: 0 | T14: 5 | U14: - | V14: 0 | W14: 5 | X14: 5 | Y14: 5 | Z14: 5 | AA14: 5 | AB14: 0 | AC14: 0 | AD14: 5 | AE14: 5 | AF14: 5 | AG14: 5 | AH14: 10 | AI14: - | AJ14: 5 | AK14: 5 | AL14: 5 | AM14: 5 | AN14: 5 | AO14: 5 | AP14: 0 | AQ14: 5 | AR14: 10 | AS14: 5 | AT14: 5 | AU14: 0 | AV14: 0 | AW14: 5 | AX14: 5 | AY14: - | AZ14: 5 | BA14: 0 | BB14: 5 | BC14: 5 | BD14: 5 | BE14: 10 | BF14: 0 | BG14: 0 | BH14: 5 | BI14: 5 | BJ14: 0 | BK14: 0 | BL14: 5 | BM14: 5 | BN14: 5 | BO14: 0 | BP14: 5 | BQ14: 5 | BR14: 5 | BS14: 5 | BT14: 0 | BU14: 10 | BV14: 0 | BW14: 5 | BX14: 5 | BY14: 5 | BZ14: 5 | CA14: 0 | CB14: 0 | CC14: 5 | CD14: 0 | CE14: 0 | CF14: 0 | CG14: 0 | CH14: 0 | CI14: 5 | CJ14: 5 | CK14: 5 | CL14: 5 | CM14: 0 | CN14: 0 | CO14: 0 | CP14: 5 | CQ14: 5 | CR14: 0 | CS14: 5 | CT14: 5 | CU14: 5 | CV14: 5 | CW14: 0 | CX14: 10 | CY14: 5 | CZ14: 0 | DA14: 0 | DB14: 5 | DC14: 0
A15: 2025-11-08 | B15: West Ham | C15: 3 | D15: 2 | E15: Burnley | F15: 45969.625 | H15: 0 | I15: 5 | J15: 5 | K15: 5 | L15: 5 | M15: 0 | N15: 5 | O15: 5 | P15: 5 | Q15: 0 | R15: 5 | S15: 0 | T15: 5 | U15: - | V15: 0 | W15: 5 | X15: 5 | Y15: 5 | Z15: 5 | AA15: 5 | AB15: 0 | AC15: 5 | AD15: 0 | AE15: 0 | AF15: 5 | AG15: 5 | AH15: 0 | AI15: - | AJ15: 0 | AK15: 5 | AL15: 5 | AM15: 5 | AN15: 5 | AO15: 5 | AP15: 5 | AQ15: 5 | AR15: 5 | AS15: 0 | AT15: 0 | AU15: 5 | AV15: 5 | AW15: 5 | AX15: 0 | AY15: - | AZ15: 5 | BA15: 5 | BB15: 0 | BC15: 5 | BD15: 5 | BE15: 5 | BF15: 0 | BG15: 5 | BH15: 5 | BI15: 5 | BJ15: 5 | BK15: 5 | BL15: 5 | BM15: 0 | BN15: 5 | BO15: 5 | BP15: 5 | BQ15: 5 | BR15: 0 | BS15: 5 | BT15: 0 | BU15: 5 | BV15: 0 | BW15: 5 | BX15: 5 | BY15: 5 | BZ15: 5 | CA15: 0 | CB15: 0 | CC15: 0 | CD15: 5 | CE15: 5 | CF15: 0 | CG15: 5 | CH15: 0 | CI15: 5 | CJ15: 5 | CK15: 0 | CL15: 5 | CM15: 0 | CN15: 0 | CO15: 0 | CP15: 5 | CQ15: 0 | CR15: 5 | CS15: 5 | CT15: 5 | CU15: 5 | CV15: 5 | CW15: 5 | CX15: 5 | CY15: 0 | CZ15: 5 | DA15: 5 | DB15: 5 | DC15: 5
A16: 2025-11-08 | B16: Sunderland | C16: 2 | D16: 2 | E16: Arsenal | F16: 17:30:00 | H16: 0 | I16: 0 | J16: 0 | K16: 0 | L16: 0 | M16: 0 | N16: 0 | O16: 0 | P16: 0 | Q16: 0 | R16: 0 | S16: 0 | T16: 0 | U16: - | V16: 0 | W16: 0 | X16: 0 | Y16: 0 | Z16: 0 | AA16: 0 | AB16: 5 | AC16: 0 | AD16: 0 | AE16: 0 | AF16: 0 | AG16: 0 | AH16: 0 | AI16: - | AJ16: 0 | AK16: 0 | AL16: 0 | AM16: 0 | AN16: 0 | AO16: 0 | AP16: 0 | AQ16: 0 | AR16: 0 | AS16: 0 | AT16: 0 | AU16: 0 | AV16: 0 | AW16: 0 | AX16: 0 | AY16: - | AZ16: 0 | BA16: 0 | BB16: 5 | BC16: 0 | BD16: 0 | BE16: 0 | BF16: 0 | BG16: 0 | BH16: 5 | BI16: 0 | BJ16: 0 | BK16: 0 | BL16: 0 | BM16: 0 | BN16: 0 | BO16: 0 | BP16: 0 | BQ16: 0 | BR16: 0 | BS16: 0 | BT16: 0 | BU16: 0 | BV16: 0 | BW16: 0 | BX16: 0 | BY16: 0 | BZ16: 0 | CA16: 0 | CB16: 0 | CC16: 0 | CD16: 0 | CE16: 0 | CF16: 0 | CG16: 0 | CH16: 0 | CI16: 0 | CJ16: 0 | CK16: 5 | CL16: 0 | CM16: 0 | CN16: 0 | CO16: 0 | CP16: 0 | CQ16: 0 | CR16: 0 | CS16: 0 | CT16: 0 | CU16: 0 | CV16: 0 | CW16: 0 | CX16: 0 | CY16: 5 | CZ16: 0 | DA16: 0 | DB16: 0 | DC16: 0
A17: 2025-11-08 | B17: Chelsea | C17: 3 | D17: 0 | E17: Wolves | F17: 20:00:00 | H17: 5 | I17: 5 | J17: 10 | K17: 5 | L17: 5 | M17: 10 | N17: 5 | O17: 10 | P17: 5 | Q17: 10 | R17: 5 | S17: 5 | T17: 10 | U17: - | V17: 0 | W17: 5 | X17: 5 | Y17: 10 | Z17: 5 | AA17: 5 | AB17: 0 | AC17: 5 | AD17: 10 | AE17: 5 | AF17: 5 | AG17: 5 | AH17: 10 | AI17: - | AJ17: 5 | AK17: 5 | AL17: 5 | AM17: 5 | AN17: 5 | AO17: 5 | AP17: 5 | AQ17: 5 | AR17: 5 | AS17: 5 | AT17: 5 | AU17: 5 | AV17: 5 | AW17: 5 | AX17: 5 | AY17: - | AZ17: 5 | BA17: 10 | BB17: 0 | BC17: 5 | BD17: 5 | BE17: 10 | BF17: 5 | BG17: 5 | BH17: 5 | BI17: 5 | BJ17: 5 | BK17: 5 | BL17: 5 | BM17: 5 | BN17: 5 | BO17: 10 | BP17: 5 | BQ17: 5 | BR17: 10 | BS17: 10 | BT17: 5 | BU17: 5 | BV17: 5 | BW17: 5 | BX17: 5 | BY17: 5 | BZ17: 5 | CA17: 5 | CB17: 5 | CC17: 5 | CD17: 5 | CE17: 5 | CF17: 5 | CG17: 5 | CH17: 10 | CI17: 5 | CJ17: 5 | CK17: 5 | CL17: 5 | CM17: 0 | CN17: 5 | CO17: 5 | CP17: 5 | CQ17: 5 | CR17: 5 | CS17: 5 | CT17: 10 | CU17: 10 | CV17: 10 | CW17: 5 | CX17: 5 | CY17: 5 | CZ17: 10 | DA17: 5 | DB17: 5 | DC17: 5
A18: 2025-11-09 | B18: Aston Villa | C18: 4 | D18: 0 | E18: Bournemouth | F18: 14:00:00 | H18: 0 | I18: 5 | J18: 5 | K18: 0 | L18: 0 | M18: 5 | N18: 0 | O18: 5 | P18: 5 | Q18: 0 | R18: 5 | S18: 0 | T18: 0 | U18: - | V18: 0 | W18: 0 | X18: 0 | Y18: 5 | Z18: 5 | AA18: 5 | AB18: 0 | AC18: 0 | AD18: 0 | AE18: 0 | AF18: 0 | AG18: 5 | AH18: 0 | AI18: - | AJ18: 5 | AK18: 0 | AL18: 5 | AM18: 5 | AN18: 5 | AO18: 5 | AP18: 0 | AQ18: 0 | AR18: 5 | AS18: 0 | AT18: 0 | AU18: 0 | AV18: 0 | AW18: 0 | AX18: 0 | AY18: - | AZ18: 5 | BA18: 0 | BB18: 5 | BC18: 0 | BD18: 0 | BE18: 5 | BF18: 0 | BG18: 0 | BH18: 5 | BI18: 0 | BJ18: 0 | BK18: 0 | BL18: 0 | BM18: 5 | BN18: 5 | BO18: 0 | BP18: 5 | BQ18: 5 | BR18: 0 | BS18: 0 | BT18: 0 | BU18: 5 | BV18: 0 | BW18: 0 | BX18: 0 | BY18: 5 | BZ18: 0 | CA18: 0 | CB18: 0 | CC18: 0 | CD18: 5 | CE18: 0 | CF18: 0 | CG18: 0 | CH18: 0 | CI18: 5 | CJ18: 5 | CK18: 5 | CL18: 5 | CM18: 0 | CN18: 5 | CO18: 0 | CP18: 5 | CQ18: 0 | CR18: 5 | CS18: 0 | CT18: 0 | CU18: 5 | CV18: 0 | CW18: 0 | CX18: 5 | CY18: 0 | CZ18: 0 | DA18: 0 | DB18: 5 | DC18: 0
A19: 2025-11-09 | B19: Brentford | C19: 3 | D19: 1 | E19: Newcastle | F19: 14:00:00 | H19: 5 | I19: 5 | J19: 0 | K19: 5 | L19: 0 | M19: 5 | N19: 0 | O19: 0 | P19: 0 | Q19: 5 | R19: 0 | S19: 0 | T19: 0 | U19: - | V19: 0 | W19: 0 | X19: 0 | Y19: 0 | Z19: 5 | AA19: 0 | AB19: 0 | AC19: 0 | AD19: 0 | AE19: 0 | AF19: 0 | AG19: 5 | AH19: 0 | AI19: - | AJ19: 0 | AK19: 0 | AL19: 5 | AM19: 5 | AN19: 5 | AO19: 5 | AP19: 5 | AQ19: 0 | AR19: 5 | AS19: 5 | AT19: 0 | AU19: 5 | AV19: 0 | AW19: 5 | AX19: 5 | AY19: - | AZ19: 5 | BA19: 5 | BB19: 0 | BC19: 0 | BD19: 0 | BE19: 0 | BF19: 0 | BG19: 0 | BH19: 0 | BI19: 0 | BJ19: 0 | BK19: 5 | BL19: 5 | BM19: 5 | BN19: 0 | BO19: 0 | BP19: 0 | BQ19: 0 | BR19: 0 | BS19: 5 | BT19: 0 | BU19: 0 | BV19: 5 | BW19: 5 | BX19: 5 | BY19: 5 | BZ19: 5 | CA19: 5 | CB19: 0 | CC19: 5 | CD19: 0 | CE19: 5 | CF19: 5 | CG19: 5 | CH19: 0 | CI19: 0 | CJ19: 0 | CK19: 0 | CL19: 0 | CM19: 0 | CN19: 0 | CO19: 0 | CP19: 0 | CQ19: 0 | CR19: 0 | CS19: 5 | CT19: 0 | CU19: 0 | CV19: 5 | CW19: 0 | CX19: 0 | CY19: 0 | CZ19: 5 | DA19: 0 | DB19: 5 | DC19: 0
A20: 2025-11-09 | B20: Crystal Palace | C20: 0 | D20: 0 | E20: Brighton | F20: 14:00:00 | H20: 0 | I20: 0 | J20: 0 | K20: 0 | L20: 0 | M20: 0 | N20: 0 | O20: 0 | P20: 0 | Q20: 0 | R20: 5 | S20: 0 | T20: 0 | U20: - | V20: 5 | W20: 0 | X20: 0 | Y20: 5 | Z20: 0 | AA20: 0 | AB20: 5 | AC20: 0 | AD20: 0 | AE20: 0 | AF20: 5 | AG20: 0 | AH20: 0 | AI20: - | AJ20: 5 | AK20: 5 | AL20: 0 | AM20: 0 | AN20: 0 | AO20: 0 | AP20: 5 | AQ20: 5 | AR20: 0 | AS20: 5 | AT20: 5 | AU20: 5 | AV20: 0 | AW20: 5 | AX20: 5 | AY20: - | AZ20: 0 | BA20: 0 | BB20: 0 | BC20: 0 | BD20: 0 | BE20: 0 | BF20: 0 | BG20: 5 | BH20: 5 | BI20: 0 | BJ20: 0 | BK20: 10 | BL20: 0 | BM20: 0 | BN20: 0 | BO20: 5 | BP20: 5 | BQ20: 0 | BR20: 5 | BS20: 0 | BT20: 0 | BU20: 0 | BV20: 0 | BW20: 0 | BX20: 5 | BY20: 0 | BZ20: 5 | CA20: 5 | CB20: 0 | CC20: 5 | CD20: 5 | CE20: 5 | CF20: 0 | CG20: 5 | CH20: 0 | CI20: 5 | CJ20: 0 | CK20: 0 | CL20: 0 | CM20: 0 | CN20: 0 | CO20: 0 | CP20: 0 | CQ20: 0 | CR20: 0 | CS20: 5 | CT20: 0 | CU20: 0 | CV20: 0 | CW20: 0 | CX20: 0 | CY20: 0 | CZ20: 0 | DA20: 0 | DB20: 0 | DC20: 0
A21: 2025-11-09 | B21: Nott'm Forest | C21: 3 | D21: 1 | E21: Leeds Utd | F21: 14:00:00 | H21: 5 | I21: 5 | J21: 0 | K21: 5 | L21: 5 | M21: 5 | N21: 5 | O21: 0 | P21: 5 | Q21: 5 | R21: 5 | S21: 0 | T21: 5 | U21: - | V21: 5 | W21: 5 | X21: 5 | Y21: 5 | Z21: 5 | AA21: 5 | AB21: 0 | AC21: 5 | AD21: 5 | AE21: 0 | AF21: 5 | AG21: 5 | AH21: 0 | AI21: - | AJ21: 5 | AK21: 5 | AL21: 5 | AM21: 5 | AN21: 0 | AO21: 5 | AP21: 5 | AQ21: 5 | AR21: 5 | AS21: 5 | AT21: 0 | AU21: 5 | AV21: 5 | AW21: 5 | AX21: 5 | AY21: - | AZ21: 0 | BA21: 5 | BB21: 5 | BC21: 5 | BD21: 0 | BE21: 5 | BF21: 0 | BG21: 5 | BH21: 5 | BI21: 5 | BJ21: 0 | BK21: 5 | BL21: 5 | BM21: 5 | BN21: 5 | BO21: 5 | BP21: 5 | BQ21: 5 | BR21: 0 | BS21: 5 | BT21: 0 | BU21: 5 | BV21: 0 | BW21: 5 | BX21: 5 | BY21: 5 | BZ21: 5 | CA21: 5 | CB21: 0 | CC21: 5 | CD21: 0 | CE21: 5 | CF21: 5 | CG21: 0 | CH21: 5 | CI21: 5 | CJ21: 5 | CK21: 5 | CL21: 5 | CM21: 0 | CN21: 5 | CO21: 0 | CP21: 5 | CQ21: 0 | CR21: 5 | CS21: 0 | CT21: 5 | CU21: 5 | CV21: 5 | CW21: 5 | CX21: 10 | CY21: 5 | CZ21: 5 | DA21: 0 | DB21: 5 | DC21: 5
A22: 2025-11-09 | B22: Man City | C22: 3 | D22: 0 | E22: Liverpool | F22: 16:30:00 | H22: 0 | I22: 5 | J22: 5 | K22: 0 | L22: 5 | M22: 0 | N22: 0 | O22: 5 | P22: 0 | Q22: 5 | R22: 0 | S22: 5 | T22: 5 | U22: - | V22: 0 | W22: 5 | X22: 0 | Y22: 0 | Z22: 5 | AA22: 0 | AB22: 0 | AC22: 5 | AD22: 5 | AE22: 0 | AF22: 0 | AG22: 5 | AH22: 0 | AI22: - | AJ22: 0 | AK22: 0 | AL22: 5 | AM22: 5 | AN22: 5 | AO22: 5 | AP22: 0 | AQ22: 5 | AR22: 5 | AS22: 5 | AT22: 5 | AU22: 0 | AV22: 0 | AW22: 0 | AX22: 0 | AY22: - | AZ22: 5 | BA22: 5 | BB22: 5 | BC22: 0 | BD22: 0 | BE22: 0 | BF22: 5 | BG22: 0 | BH22: 0 | BI22: 0 | BJ22: 0 | BK22: 5 | BL22: 0 | BM22: 5 | BN22: 0 | BO22: 0 | BP22: 0 | BQ22: 0 | BR22: 0 | BS22: 5 | BT22: 5 | BU22: 0 | BV22: 0 | BW22: 5 | BX22: 5 | BY22: 5 | BZ22: 0 | CA22: 5 | CB22: 5 | CC22: 0 | CD22: 0 | CE22: 0 | CF22: 0 | CG22: 0 | CH22: 0 | CI22: 0 | CJ22: 0 | CK22: 5 | CL22: 5 | CM22: 0 | CN22: 0 | CO22: 0 | CP22: 0 | CQ22: 0 | CR22: 0 | CS22: 5 | CT22: 5 | CU22: 0 | CV22: 5 | CW22: 0 | CX22: 0 | CY22: 5 | CZ22: 0 | DA22: 0 | DB22: 5 | DC22: 5
A23: 2025-11-22 | B23: Burnley | C23: 0 | D23: 2 | E23: Chelsea | F23: 12:30:00 | H23: 10 | I23: 5 | J23: 0 | K23: 5 | L23: 5 | M23: 10 | N23: - | O23: 10 | P23: 10 | Q23: 5 | R23: 5 | S23: 5 | T23: 10 | U23: 5 | V23: 0 | W23: 5 | X23: 10 | Y23: 10 | Z23: 0 | AA23: 5 | AB23: 0 | AC23: 10 | AD23: 10 | AE23: 5 | AF23: 10 | AG23: 10 | AH23: 5 | AI23: - | AJ23: 5 | AK23: 10 | AL23: 0 | AM23: - | AN23: 5 | AO23: 0 | AP23: 5 | AQ23: 5 | AR23: 10 | AS23: 5 | AT23: 5 | AU23: 10 | AV23: 10 | AW23: 0 | AX23: 0 | AY23: - | AZ23: 10 | BA23: 5 | BB23: 5 | BC23: 10 | BD23: 0 | BE23: 10 | BF23: 10 | BG23: 0 | BH23: 5 | BI23: 10 | BJ23: 5 | BK23: 10 | BL23: 10 | BM23: 5 | BN23: 10 | BO23: 10 | BP23: 5 | BQ23: 10 | BR23: 10 | BS23: 0 | BT23: 5 | BU23: 5 | BV23: 10 | BW23: 0 | BX23: 0 | BY23: 10 | BZ23: 10 | CA23: 0 | CB23: 5 | CC23: 5 | CD23: 10 | CE23: 5 | CF23: 10 | CG23: 5 | CH23: 5 | CI23: 5 | CJ23: 5 | CK23: 5 | CL23: 5 | CM23: 5 | CN23: 5 | CO23: 0 | CP23: 5 | CQ23: 5 | CR23: 5 | CS23: 5 | CT23: 5 | CU23: 5 | CV23: 0 | CW23: 5 | CX23: 5 | CY23: 5 | CZ23: 5 | DA23: 10 | DB23: 5 | DC23: 5
A24: 2025-11-22 | B24: Bournemouth | C24: 2 | D24: 2 | E24: West Ham | F24: 45983.625 | H24: 5 | I24: 0 | J24: 0 | K24: 0 | L24: 0 | M24: 5 | N24: - | O24: 5 | P24: 0 | Q24: 0 | R24: 0 | S24: 0 | T24: 0 | U24: 0 | V24: 0 | W24: 5 | X24: 10 | Y24: 0 | Z24: 0 | AA24: 0 | AB24: 5 | AC24: 0 | AD24: 0 | AE24: 0 | AF24: 0 | AG24: 5 | AH24: 10 | AI24: - | AJ24: 0 | AK24: 0 | AL24: 0 | AM24: - | AN24: 10 | AO24: 0 | AP24: 0 | AQ24: 0 | AR24: 0 | AS24: 5 | AT24: 0 | AU24: 0 | AV24: 0 | AW24: 0 | AX24: 0 | AY24: - | AZ24: 0 | BA24: 0 | BB24: 0 | BC24: 0 | BD24: 0 | BE24: 0 | BF24: 0 | BG24: 0 | BH24: 0 | BI24: 0 | BJ24: 10 | BK24: 0 | BL24: 0 | BM24: 0 | BN24: 0 | BO24: 0 | BP24: 0 | BQ24: 5 | BR24: 0 | BS24: 0 | BT24: 0 | BU24: 0 | BV24: 0 | BW24: 0 | BX24: 5 | BY24: 0 | BZ24: 0 | CA24: 0 | CB24: 0 | CC24: 0 | CD24: 0 | CE24: 0 | CF24: 0 | CG24: 10 | CH24: 0 | CI24: 0 | CJ24: 0 | CK24: 0 | CL24: 0 | CM24: 0 | CN24: 0 | CO24: 0 | CP24: 0 | CQ24: 0 | CR24: 0 | CS24: 0 | CT24: 0 | CU24: 0 | CV24: 0 | CW24: 0 | CX24: 0 | CY24: 10 | CZ24: 0 | DA24: 0 | DB24: 0 | DC24: 10
A25: 2025-11-22 | B25: Brighton | C25: 2 | D25: 1 | E25: Brentford | F25: 45983.625 | H25: 10 | I25: 0 | J25: 10 | K25: 0 | L25: 5 | M25: 0 | N25: - | O25: 5 | P25: 0 | Q25: 10 | R25: 10 | S25: 0 | T25: 0 | U25: 5 | V25: 0 | W25: 0 | X25: 10 | Y25: 5 | Z25: 10 | AA25: 0 | AB25: 0 | AC25: 0 | AD25: 0 | AE25: 0 | AF25: 0 | AG25: 0 | AH25: 10 | AI25: - | AJ25: 5 | AK25: 5 | AL25: 10 | AM25: - | AN25: 10 | AO25: 10 | AP25: 10 | AQ25: 10 | AR25: 10 | AS25: 0 | AT25: 0 | AU25: 0 | AV25: 10 | AW25: 0 | AX25: 0 | AY25: - | AZ25: 10 | BA25: 5 | BB25: 0 | BC25: 10 | BD25: 10 | BE25: 0 | BF25: 10 | BG25: 10 | BH25: 5 | BI25: 0 | BJ25: 0 | BK25: 0 | BL25: 5 | BM25: 0 | BN25: 0 | BO25: 0 | BP25: 10 | BQ25: 10 | BR25: 10 | BS25: 10 | BT25: 5 | BU25: 0 | BV25: 0 | BW25: 10 | BX25: 0 | BY25: 5 | BZ25: 0 | CA25: 0 | CB25: 0 | CC25: 0 | CD25: 10 | CE25: 0 | CF25: 0 | CG25: 0 | CH25: 5 | CI25: 10 | CJ25: 0 | CK25: 5 | CL25: 5 | CM25: 0 | CN25: 0 | CO25: 10 | CP25: 10 | CQ25: 0 | CR25: 10 | CS25: 10 | CT25: 0 | CU25: 10 | CV25: 5 | CW25: 5 | CX25: 5 | CY25: 10 | CZ25: 0 | DA25: 0 | DB25: 10 | DC25: 10
A26: 2025-11-22 | B26: Fulham | C26: 1 | D26: 0 | E26: Sunderland | F26: 45983.625 | H26: 10 | I26: 0 | J26: 0 | K26: 10 | L26: 0 | M26: 5 | N26: - | O26: 0 | P26: 5 | Q26: 10 | R26: 5 | S26: 0 | T26: 0 | U26: 0 | V26: 0 | W26: 10 | X26: 5 | Y26: 5 | Z26: 5 | AA26: 5 | AB26: 0 | AC26: 5 | AD26: 0 | AE26: 0 | AF26: 5 | AG26: 0 | AH26: 5 | AI26: - | AJ26: 0 | AK26: 0 | AL26: 5 | AM26: - | AN26: 0 | AO26: 5 | AP26: 0 | AQ26: 0 | AR26: 0 | AS26: 0 | AT26: 0 | AU26: 0 | AV26: 10 | AW26: 0 | AX26: 10 | AY26: - | AZ26: 0 | BA26: 10 | BB26: 0 | BC26: 0 | BD26: 5 | BE26: 5 | BF26: 0 | BG26: 5 | BH26: 5 | BI26: 0 | BJ26: 0 | BK26: 0 | BL26: 10 | BM26: 0 | BN26: 5 | BO26: 0 | BP26: 10 | BQ26: 10 | BR26: 10 | BS26: 0 | BT26: 0 | BU26: 5 | BV26: 0 | BW26: 5 | BX26: 0 | BY26: 0 | BZ26: 0 | CA26: 0 | CB26: 0 | CC26: 0 | CD26: 10 | CE26: 0 | CF26: 0 | CG26: 5 | CH26: 0 | CI26: 0 | CJ26: 5 | CK26: 0 | CL26: 10 | CM26: 0 | CN26: 0 | CO26: 5 | CP26: 0 | CQ26: 0 | CR26: 5 | CS26: 0 | CT26: 0 | CU26: 10 | CV26: 5 | CW26: 10 | CX26: 0 | CY26: 0 | CZ26: 5 | DA26: 0 | DB26: 0 | DC26: 0
A27: 2025-11-22 | B27: Liverpool | C27: 0 | D27: 3 | E27: Nott'm Forest | F27: 45983.625 | H27: 0 | I27: 0 | J27: 0 | K27: 0 | L27: 0 | M27: 0 | N27: - | O27: 5 | P27: 0 | Q27: 0 | R27: 0 | S27: 0 | T27: 0 | U27: 0 | V27: 0 | W27: 0 | X27: 0 | Y27: 0 | Z27: 0 | AA27: 0 | AB27: 0 | AC27: 0 | AD27: 0 | AE27: 0 | AF27: 0 | AG27: 0 | AH27: 0 | AI27: - | AJ27: 0 | AK27: 0 | AL27: 0 | AM27: - | AN27: 0 | AO27: 0 | AP27: 0 | AQ27: 0 | AR27: 0 | AS27: 0 | AT27: 0 | AU27: 0 | AV27: 0 | AW27: 0 | AX27: 0 | AY27: - | AZ27: 0 | BA27: 0 | BB27: 0 | BC27: 0 | BD27: 0 | BE27: 0 | BF27: 0 | BG27: 0 | BH27: 0 | BI27: 0 | BJ27: 0 | BK27: 0 | BL27: 0 | BM27: 0 | BN27: 0 | BO27: 0 | BP27: 0 | BQ27: 0 | BR27: 0 | BS27: 0 | BT27: 0 | BU27: 0 | BV27: 0 | BW27: 0 | BX27: 0 | BY27: 0 | BZ27: 0 | CA27: 0 | CB27: 0 | CC27: 0 | CD27: 0 | CE27: 0 | CF27: 0 | CG27: 0 | CH27: 0 | CI27: 0 | CJ27: 0 | CK27: 0 | CL27: 0 | CM27: 0 | CN27: 0 | CO27: 0 | CP27: 0 | CQ27: 0 | CR27: 0 | CS27: 0 | CT27: 0 | CU27: 0 | CV27: 0 | CW27: 0 | CX27: 0 | CY27: 0 | CZ27: 0 | DA27: 0 | DB27: 0 | DC27: 0
A28: 2025-11-22 | B28: Wolves | C28: 0 | D28: 2 | E28: Crystal Palace | F28: 45983.625 | H28: 0 | I28: 5 | J28: 10 | K28: 5 | L28: 5 | M28: 10 | N28: - | O28: 5 | P28: 5 | Q28: 5 | R28: 5 | S28: 10 | T28: 10 | U28: 10 | V28: 5 | W28: 10 | X28: 10 | Y28: 5 | Z28: 0 | AA28: 0 | AB28: 0 | AC28: 10 | AD28: 5 | AE28: 5 | AF28: 5 | AG28: 5 | AH28: 10 | AI28: - | AJ28: 5 | AK28: 5 | AL28: 0 | AM28: - | AN28: 5 | AO28: 0 | AP28: 5 | AQ28: 10 | AR28: 0 | AS28: 5 | AT28: 5 | AU28: 10 | AV28: 0 | AW28: 10 | AX28: 5 | AY28: - | AZ28: 5 | BA28: 10 | BB28: 0 | BC28: 5 | BD28: 0 | BE28: 0 | BF28: 5 | BG28: 0 | BH28: 0 | BI28: 10 | BJ28: 10 | BK28: 5 | BL28: 5 | BM28: 0 | BN28: 0 | BO28: 5 | BP28: 5 | BQ28: 5 | BR28: 5 | BS28: 10 | BT28: 10 | BU28: 10 | BV28: 10 | BW28: 10 | BX28: 0 | BY28: 10 | BZ28: 5 | CA28: 5 | CB28: 10 | CC28: 5 | CD28: 0 | CE28: 10 | CF28: 5 | CG28: 0 | CH28: 0 | CI28: 5 | CJ28: 10 | CK28: 0 | CL28: 5 | CM28: 0 | CN28: 5 | CO28: 0 | CP28: 0 | CQ28: 5 | CR28: 5 | CS28: 5 | CT28: 5 | CU28: 0 | CV28: 0 | CW28: 5 | CX28: 0 | CY28: 5 | CZ28: 5 | DA28: 0 | DB28: 5 | DC28: 5
A29: 2025-11-22 | B29: Newcastle | C29: 2 | D29: 1 | E29: Man City | F29: 17:30:00 | H29: 0 | I29: 0 | J29: 0 | K29: 0 | L29: 0 | M29: 0 | N29: - | O29: 0 | P29: 0 | Q29: 0 | R29: 0 | S29: 0 | T29: 0 | U29: 0 | V29: 0 | W29: 0 | X29: 0 | Y29: 0 | Z29: 10 | AA29: 0 | AB29: 0 | AC29: 0 | AD29: 0 | AE29: 0 | AF29: 0 | AG29: 0 | AH29: 0 | AI29: - | AJ29: 0 | AK29: 0 | AL29: 10 | AM29: - | AN29: 0 | AO29: 10 | AP29: 0 | AQ29: 0 | AR29: 0 | AS29: 0 | AT29: 0 | AU29: 0 | AV29: 0 | AW29: 10 | AX29: 0 | AY29: - | AZ29: 0 | BA29: 0 | BB29: 0 | BC29: 0 | BD29: 10 | BE29: 0 | BF29: 0 | BG29: 10 | BH29: 0 | BI29: 0 | BJ29: 0 | BK29: 0 | BL29: 0 | BM29: 5 | BN29: 0 | BO29: 0 | BP29: 0 | BQ29: 5 | BR29: 0 | BS29: 0 | BT29: 0 | BU29: 0 | BV29: 0 | BW29: 0 | BX29: 0 | BY29: 0 | BZ29: 0 | CA29: 0 | CB29: 0 | CC29: 0 | CD29: 0 | CE29: 0 | CF29: 0 | CG29: 0 | CH29: 0 | CI29: 0 | CJ29: 0 | CK29: 0 | CL29: 0 | CM29: 0 | CN29: 0 | CO29: 0 | CP29: 0 | CQ29: 0 | CR29: 0 | CS29: 0 | CT29: 0 | CU29: 0 | CV29: 5 | CW29: 0 | CX29: 0 | CY29: 0 | CZ29: 0 | DA29: 0 | DB29: 0 | DC29: 0
A30: 2025-11-23 | B30: Leeds Utd | C30: 1 | D30: 2 | E30: Aston Villa | F30: 14:00:00 | H30: 10 | I30: 5 | J30: 10 | K30: 0 | L30: 10 | M30: 0 | N30: - | O30: 5 | P30: 10 | Q30: 0 | R30: 10 | S30: 10 | T30: 10 | U30: 5 | V30: 0 | W30: 5 | X30: 5 | Y30: 0 | Z30: 0 | AA30: 0 | AB30: 0 | AC30: 10 | AD30: 10 | AE30: 0 | AF30: 0 | AG30: 10 | AH30: 5 | AI30: - | AJ30: 0 | AK30: 5 | AL30: 0 | AM30: - | AN30: 0 | AO30: 0 | AP30: 0 | AQ30: 10 | AR30: 0 | AS30: 0 | AT30: 5 | AU30: 10 | AV30: 5 | AW30: 5 | AX30: 10 | AY30: - | AZ30: 0 | BA30: 10 | BB30: 0 | BC30: 10 | BD30: 0 | BE30: 0 | BF30: 0 | BG30: 0 | BH30: 0 | BI30: 10 | BJ30: 10 | BK30: 0 | BL30: 0 | BM30: 0 | BN30: 5 | BO30: 5 | BP30: 5 | BQ30: 5 | BR30: 0 | BS30: 5 | BT30: 10 | BU30: 10 | BV30: 5 | BW30: 10 | BX30: 0 | BY30: 10 | BZ30: 10 | CA30: 0 | CB30: 0 | CC30: 5 | CD30: 0 | CE30: 10 | CF30: 5 | CG30: 5 | CH30: 0 | CI30: 10 | CJ30: 0 | CK30: 0 | CL30: 5 | CM30: 0 | CN30: 0 | CO30: 0 | CP30: 10 | CQ30: 0 | CR30: 10 | CS30: 0 | CT30: 0 | CU30: 10 | CV30: 0 | CW30: 10 | CX30: 10 | CY30: 5 | CZ30: 5 | DA30: 0 | DB30: 0 | DC30: 10
A31: 2025-11-23 | B31: Arsenal | C31: 4 | D31: 1 | E31: Spurs | F31: 16:30:00 | H31: 0 | I31: 0 | J31: 5 | K31: 0 | L31: 5 | M31: 5 | N31: - | O31: 5 | P31: 5 | Q31: 5 | R31: 5 | S31: 5 | T31: 5 | U31: 5 | V31: 0 | W31: 5 | X31: 5 | Y31: 5 | Z31: 5 | AA31: 0 | AB31: 0 | AC31: 5 | AD31: 5 | AE31: 0 | AF31: 0 | AG31: 5 | AH31: 5 | AI31: - | AJ31: 5 | AK31: 0 | AL31: 5 | AM31: - | AN31: 5 | AO31: 5 | AP31: 5 | AQ31: 5 | AR31: 5 | AS31: 5 | AT31: 5 | AU31: 5 | AV31: 5 | AW31: 0 | AX31: 5 | AY31: - | AZ31: 5 | BA31: 5 | BB31: 5 | BC31: 5 | BD31: 5 | BE31: 5 | BF31: 5 | BG31: 5 | BH31: 5 | BI31: 5 | BJ31: 5 | BK31: 5 | BL31: 5 | BM31: 5 | BN31: 5 | BO31: 5 | BP31: 5 | BQ31: 5 | BR31: 5 | BS31: 5 | BT31: 5 | BU31: 5 | BV31: 5 | BW31: 5 | BX31: 0 | BY31: 5 | BZ31: 5 | CA31: 5 | CB31: 5 | CC31: 5 | CD31: 5 | CE31: 0 | CF31: 0 | CG31: 5 | CH31: 5 | CI31: 5 | CJ31: 5 | CK31: 5 | CL31: 5 | CM31: 5 | CN31: 5 | CO31: 5 | CP31: 5 | CQ31: 5 | CR31: 5 | CS31: 5 | CT31: 5 | CU31: 5 | CV31: 5 | CW31: 5 | CX31: 0 | CY31: 0 | CZ31: 5 | DA31: 5 | DB31: 5 | DC31: 5
A32: 2025-11-24 | B32: Man Utd | C32: 0 | D32: 1 | E32: Everton | F32: 20:00:00 | H32: 0 | I32: 0 | J32: 0 | K32: 0 | L32: 0 | M32: 0 | N32: - | O32: 5 | P32: 0 | Q32: 0 | R32: 0 | S32: 0 | T32: 0 | U32: 0 | V32: 0 | W32: 0 | X32: 0 | Y32: 0 | Z32: 0 | AA32: 0 | AB32: - | AC32: 0 | AD32: 0 | AE32: 0 | AF32: 0 | AG32: 0 | AH32: 0 | AI32: - | AJ32: 0 | AK32: 0 | AL32: 0 | AM32: - | AN32: 0 | AO32: 0 | AP32: 0 | AQ32: 0 | AR32: 0 | AS32: 0 | AT32: 0 | AU32: 0 | AV32: 0 | AW32: 0 | AX32: 0 | AY32: - | AZ32: 0 | BA32: 0 | BB32: 0 | BC32: 0 | BD32: 0 | BE32: 0 | BF32: 0 | BG32: 0 | BH32: 0 | BI32: 0 | BJ32: 0 | BK32: 0 | BL32: 0 | BM32: 0 | BN32: 0 | BO32: 0 | BP32: 0 | BQ32: 0 | BR32: 0 | BS32: 0 | BT32: 0 | BU32: 0 | BV32: 0 | BW32: 0 | BX32: 0 | BY32: 0 | BZ32: 0 | CA32: 0 | CB32: 0 | CC32: 0 | CD32: 0 | CE32: 0 | CF32: 0 | CG32: 0 | CH32: 0 | CI32: 0 | CJ32: 0 | CK32: 0 | CL32: 0 | CM32: 0 | CN32: 5 | CO32: 0 | CP32: 5 | CQ32: 0 | CR32: 0 | CS32: 0 | CT32: 0 | CU32: 0 | CV32: 0 | CW32: 0 | CX32: 0 | CY32: 0 | CZ32: 0 | DA32: 0 | DB32: 0 | DC32: 0
A33: 2025-11-29 | B33: Brentford | C33: 3 | D33: 1 | E33: Burnley | F33: 45990.625 | H33: 5 | I33: 5 | J33: 5 | K33: 5 | L33: 5 | M33: 5 | N33: - | O33: 5 | P33: 5 | Q33: 5 | R33: 5 | S33: 5 | T33: 5 | U33: - | V33: 0 | W33: 5 | X33: 5 | Y33: 5 | Z33: 5 | AA33: 5 | AB33: - | AC33: 5 | AD33: 5 | AE33: 5 | AF33: 10 | AG33: 5 | AH33: 5 | AI33: - | AJ33: 5 | AK33: 5 | AL33: 5 | AM33: - | AN33: 5 | AO33: 5 | AP33: 5 | AQ33: 5 | AR33: 5 | AS33: 5 | AT33: 5 | AU33: 5 | AV33: 5 | AW33: 5 | AX33: 5 | AY33: - | AZ33: 5 | BA33: 5 | BB33: 5 | BC33: 5 | BD33: 10 | BE33: 5 | BF33: 5 | BG33: 5 | BH33: 5 | BI33: 5 | BJ33: 5 | BK33: 5 | BL33: 5 | BM33: 5 | BN33: 5 | BO33: 5 | BP33: 5 | BQ33: 5 | BR33: 10 | BS33: 5 | BT33: 0 | BU33: 5 | BV33: 5 | BW33: 5 | BX33: 5 | BY33: 5 | BZ33: 10 | CA33: 5 | CB33: 0 | CC33: 10 | CD33: 5 | CE33: 10 | CF33: 5 | CG33: 5 | CH33: 5 | CI33: 5 | CJ33: 5 | CK33: 5 | CL33: 0 | CM33: 0 | CN33: 5 | CO33: 0 | CP33: 5 | CQ33: 5 | CR33: 5 | CS33: 5 | CT33: 0 | CU33: 5 | CV33: 5 | CW33: 5 | CX33: 5 | CY33: 0 | CZ33: 5 | DA33: 5 | DB33: 5 | DC33: 10
A34: 2025-11-29 | B34: Man City | C34: 3 | D34: 2 | E34: Leeds Utd | F34: 45990.625 | H34: 5 | I34: 5 | J34: 5 | K34: 5 | L34: 5 | M34: 5 | N34: - | O34: 5 | P34: 5 | Q34: 5 | R34: 5 | S34: 5 | T34: 5 | U34: - | V34: 5 | W34: 5 | X34: 5 | Y34: 5 | Z34: 5 | AA34: 5 | AB34: - | AC34: 5 | AD34: 5 | AE34: 5 | AF34: 5 | AG34: 5 | AH34: 5 | AI34: - | AJ34: 5 | AK34: 5 | AL34: 5 | AM34: - | AN34: 5 | AO34: 5 | AP34: 5 | AQ34: 5 | AR34: 5 | AS34: 5 | AT34: 5 | AU34: 5 | AV34: 5 | AW34: 5 | AX34: 5 | AY34: - | AZ34: 5 | BA34: 5 | BB34: 5 | BC34: 5 | BD34: 5 | BE34: 5 | BF34: 5 | BG34: 5 | BH34: 5 | BI34: 5 | BJ34: 5 | BK34: 5 | BL34: 5 | BM34: 5 | BN34: 5 | BO34: 5 | BP34: 5 | BQ34: 5 | BR34: 5 | BS34: 5 | BT34: 5 | BU34: 5 | BV34: 5 | BW34: 5 | BX34: 5 | BY34: 5 | BZ34: 5 | CA34: 5 | CB34: 5 | CC34: 5 | CD34: 5 | CE34: 5 | CF34: 5 | CG34: 5 | CH34: 5 | CI34: 5 | CJ34: 5 | CK34: 5 | CL34: 5 | CM34: 10 | CN34: 5 | CO34: 5 | CP34: 5 | CQ34: 5 | CR34: 5 | CS34: 5 | CT34: 0 | CU34: 5 | CV34: 5 | CW34: 5 | CX34: 5 | CY34: 0 | CZ34: 5 | DA34: 5 | DB34: 5 | DC34: 5
A35: 2025-11-29 | B35: Sunderland | C35: 3 | D35: 2 | E35: Bournemouth | F35: 45990.625 | H35: 5 | I35: 5 | J35: 0 | K35: 0 | L35: 5 | M35: 5 | N35: - | O35: 5 | P35: 0 | Q35: 0 | R35: 0 | S35: 0 | T35: 5 | U35: - | V35: 0 | W35: 5 | X35: 0 | Y35: 0 | Z35: 5 | AA35: 0 | AB35: - | AC35: 0 | AD35: 0 | AE35: 5 | AF35: 0 | AG35: 5 | AH35: 0 | AI35: - | AJ35: 0 | AK35: 0 | AL35: - | AM35: - | AN35: 5 | AO35: 5 | AP35: 5 | AQ35: 0 | AR35: 5 | AS35: 5 | AT35: 0 | AU35: 0 | AV35: 0 | AW35: 0 | AX35: 5 | AY35: - | AZ35: 5 | BA35: 0 | BB35: 5 | BC35: 0 | BD35: 0 | BE35: 5 | BF35: 5 | BG35: 0 | BH35: 0 | BI35: 0 | BJ35: 0 | BK35: 5 | BL35: 0 | BM35: 0 | BN35: 0 | BO35: 0 | BP35: 0 | BQ35: 0 | BR35: 0 | BS35: 0 | BT35: 5 | BU35: 5 | BV35: 0 | BW35: 0 | BX35: 0 | BY35: 5 | BZ35: 0 | CA35: 0 | CB35: 5 | CC35: 0 | CD35: 0 | CE35: 0 | CF35: 0 | CG35: 0 | CH35: 5 | CI35: 5 | CJ35: 0 | CK35: 5 | CL35: 5 | CM35: 5 | CN35: 5 | CO35: 0 | CP35: 5 | CQ35: 0 | CR35: 0 | CS35: 0 | CT35: 0 | CU35: 0 | CV35: 5 | CW35: 5 | CX35: 0 | CY35: 0 | CZ35: 0 | DA35: 0 | DB35: 5 | DC35: 0
A36: 2025-11-29 | B36: Everton | C36: 1 | D36: 4 | E36: Newcastle | F36: 17:30:00 | H36: 0 | I36: 0 | J36: 0 | K36: 0 | L36: 0 | M36: 0 | N36: - | O36: 5 | P36: 0 | Q36: 0 | R36: 5 | S36: 0 | T36: 0 | U36: - | V36: 0 | W36: 5 | X36: 0 | Y36: 0 | Z36: 0 | AA36: 0 | AB36: - | AC36: 0 | AD36: 5 | AE36: 0 | AF36: 5 | AG36: 0 | AH36: 0 | AI36: - | AJ36: 0 | AK36: 0 | AL36: - | AM36: - | AN36: 0 | AO36: 0 | AP36: 0 | AQ36: 0 | AR36: 0 | AS36: 0 | AT36: 0 | AU36: 5 | AV36: 5 | AW36: 5 | AX36: 0 | AY36: - | AZ36: 0 | BA36: 0 | BB36: 0 | BC36: 0 | BD36: 5 | BE36: 0 | BF36: 0 | BG36: 0 | BH36: 0 | BI36: 0 | BJ36: 5 | BK36: 0 | BL36: 0 | BM36: 0 | BN36: 5 | BO36: 0 | BP36: 0 | BQ36: 5 | BR36: 5 | BS36: 5 | BT36: 5 | BU36: 5 | BV36: 0 | BW36: 0 | BX36: 5 | BY36: 5 | BZ36: 0 | CA36: 0 | CB36: 0 | CC36: 5 | CD36: 0 | CE36: 0 | CF36: 0 | CG36: 0 | CH36: 0 | CI36: 0 | CJ36: 0 | CK36: 5 | CL36: 0 | CM36: 5 | CN36: 0 | CO36: 0 | CP36: 0 | CQ36: 0 | CR36: 5 | CS36: 0 | CT36: 0 | CU36: 5 | CV36: 0 | CW36: 0 | CX36: 0 | CY36: 0 | CZ36: 0 | DA36: 0 | DB36: 0 | DC36: 5
A37: 2025-11-29 | B37: Spurs | C37: 1 | D37: 2 | E37: Fulham | F37: 20:00:00 | H37: 0 | I37: 0 | J37: 0 | K37: 0 | L37: 0 | M37: 0 | N37: - | O37: 0 | P37: 0 | Q37: 0 | R37: 0 | S37: 0 | T37: 0 | U37: - | V37: 0 | W37: 0 | X37: 0 | Y37: 0 | Z37: 0 | AA37: 0 | AB37: - | AC37: 0 | AD37: 0 | AE37: 0 | AF37: 0 | AG37: 0 | AH37: 0 | AI37: - | AJ37: 0 | AK37: 0 | AL37: - | AM37: - | AN37: 0 | AO37: 0 | AP37: 0 | AQ37: 0 | AR37: 0 | AS37: 0 | AT37: 0 | AU37: 0 | AV37: 0 | AW37: 0 | AX37: 10 | AY37: - | AZ37: 0 | BA37: 0 | BB37: 0 | BC37: 0 | BD37: 0 | BE37: 0 | BF37: 0 | BG37: 0 | BH37: 0 | BI37: 10 | BJ37: 0 | BK37: 0 | BL37: 0 | BM37: 0 | BN37: 0 | BO37: 0 | BP37: 0 | BQ37: 0 | BR37: 0 | BS37: 0 | BT37: 0 | BU37: 0 | BV37: 0 | BW37: 0 | BX37: 0 | BY37: 0 | BZ37: 0 | CA37: 10 | CB37: 10 | CC37: 0 | CD37: 0 | CE37: 10 | CF37: 0 | CG37: 0 | CH37: 0 | CI37: 0 | CJ37: 0 | CK37: 0 | CL37: 0 | CM37: 5 | CN37: 0 | CO37: 0 | CP37: 0 | CQ37: 0 | CR37: 0 | CS37: 0 | CT37: 0 | CU37: 0 | CV37: 0 | CW37: 0 | CX37: 0 | CY37: 0 | CZ37: 0 | DA37: 0 | DB37: 5 | DC37: 0
A38: 2025-11-30 | B38: Crystal Palace | C38: 1 | D38: 2 | E38: Man Utd | F38: 12:00:00 | H38: 0 | I38: 0 | J38: 10 | K38: 0 | L38: 0 | M38: 0 | N38: - | O38: 0 | P38: 0 | Q38: 10 | R38: 0 | S38: 0 | T38: 0 | U38: - | V38: 0 | W38: 0 | X38: 0 | Y38: 0 | Z38: 0 | AA38: 0 | AB38: - | AC38: 0 | AD38: 0 | AE38: 0 | AF38: 0 | AG38: 0 | AH38: 0 | AI38: - | AJ38: 0 | AK38: 0 | AL38: - | AM38: - | AN38: 0 | AO38: 0 | AP38: 0 | AQ38: 0 | AR38: 0 | AS38: 0 | AT38: 0 | AU38: 0 | AV38: 0 | AW38: 0 | AX38: 0 | AY38: - | AZ38: 0 | BA38: 0 | BB38: 0 | BC38: 0 | BD38: 0 | BE38: 10 | BF38: 0 | BG38: 0 | BH38: 10 | BI38: 10 | BJ38: 0 | BK38: 0 | BL38: 0 | BM38: 0 | BN38: 10 | BO38: 0 | BP38: 0 | BQ38: 0 | BR38: 0 | BS38: 10 | BT38: 10 | BU38: 0 | BV38: 0 | BW38: 0 | BX38: 0 | BY38: 10 | BZ38: 0 | CA38: 0 | CB38: 0 | CC38: 0 | CD38: 10 | CE38: 0 | CF38: 10 | CG38: 0 | CH38: 0 | CI38: 0 | CJ38: 0 | CK38: 10 | CL38: 0 | CM38: 5 | CN38: 0 | CO38: 5 | CP38: 10 | CQ38: 0 | CR38: 0 | CS38: 0 | CT38: 0 | CU38: 10 | CV38: 0 | CW38: 0 | CX38: 0 | CY38: 0 | CZ38: 0 | DA38: 0 | DB38: 0 | DC38: 0
A39: 2025-11-30 | B39: Aston Villa | C39: 1 | D39: 0 | E39: Wolves | F39: 14:05:00 | H39: 5 | I39: 0 | J39: 5 | K39: 5 | L39: 5 | M39: 5 | N39: - | O39: 5 | P39: 5 | Q39: 5 | R39: 5 | S39: 5 | T39: 5 | U39: - | V39: 0 | W39: 10 | X39: 5 | Y39: 5 | Z39: 5 | AA39: 5 | AB39: - | AC39: 5 | AD39: 5 | AE39: 5 | AF39: 5 | AG39: 5 | AH39: 5 | AI39: - | AJ39: 5 | AK39: 5 | AL39: - | AM39: - | AN39: 5 | AO39: 5 | AP39: 10 | AQ39: 5 | AR39: 5 | AS39: 10 | AT39: 5 | AU39: 5 | AV39: 5 | AW39: 5 | AX39: 5 | AY39: - | AZ39: 5 | BA39: 5 | BB39: 5 | BC39: 5 | BD39: 5 | BE39: 5 | BF39: 5 | BG39: 5 | BH39: 5 | BI39: 5 | BJ39: 5 | BK39: 5 | BL39: 5 | BM39: 5 | BN39: 5 | BO39: 5 | BP39: 5 | BQ39: 5 | BR39: 5 | BS39: 5 | BT39: 5 | BU39: 5 | BV39: 5 | BW39: 5 | BX39: 5 | BY39: 5 | BZ39: 0 | CA39: 5 | CB39: 5 | CC39: 5 | CD39: 10 | CE39: 5 | CF39: 5 | CG39: 10 | CH39: 5 | CI39: 5 | CJ39: 5 | CK39: 5 | CL39: 5 | CM39: 0 | CN39: 5 | CO39: 0 | CP39: 5 | CQ39: 5 | CR39: 5 | CS39: 5 | CT39: 0 | CU39: 5 | CV39: 5 | CW39: 5 | CX39: 5 | CY39: 0 | CZ39: 5 | DA39: 5 | DB39: 5 | DC39: 5
A40: 2025-11-30 | B40: Nott'm Forest | C40: 0 | D40: 2 | E40: Brighton | F40: 14:05:00 | H40: 0 | I40: 0 | J40: 0 | K40: 0 | L40: 0 | M40: 0 | N40: - | O40: 10 | P40: 5 | Q40: 0 | R40: 0 | S40: 0 | T40: 0 | U40: - | V40: 0 | W40: 0 | X40: 0 | Y40: 5 | Z40: 0 | AA40: 0 | AB40: - | AC40: 0 | AD40: 0 | AE40: 0 | AF40: 0 | AG40: 0 | AH40: 0 | AI40: - | AJ40: 0 | AK40: 0 | AL40: - | AM40: - | AN40: 0 | AO40: 0 | AP40: 0 | AQ40: 0 | AR40: 0 | AS40: 0 | AT40: 0 | AU40: 0 | AV40: 0 | AW40: 0 | AX40: 0 | AY40: - | AZ40: 0 | BA40: 0 | BB40: 0 | BC40: 0 | BD40: 0 | BE40: 0 | BF40: 0 | BG40: 0 | BH40: 10 | BI40: 5 | BJ40: 0 | BK40: 0 | BL40: 0 | BM40: 0 | BN40: 0 | BO40: 0 | BP40: 0 | BQ40: 0 | BR40: 0 | BS40: 5 | BT40: 5 | BU40: 0 | BV40: 0 | BW40: 0 | BX40: 0 | BY40: 0 | BZ40: 0 | CA40: 0 | CB40: 0 | CC40: 0 | CD40: 0 | CE40: 0 | CF40: 0 | CG40: 5 | CH40: 0 | CI40: 0 | CJ40: 0 | CK40: 0 | CL40: 0 | CM40: 0 | CN40: 0 | CO40: 10 | CP40: 0 | CQ40: 5 | CR40: 0 | CS40: 5 | CT40: 0 | CU40: 0 | CV40: 0 | CW40: 0 | CX40: 0 | CY40: 0 | CZ40: 0 | DA40: 0 | DB40: 0 | DC40: 0
A41: 2025-11-30 | B41: West Ham | C41: 0 | D41: 2 | E41: Liverpool | F41: 14:05:00 | H41: 5 | I41: 0 | J41: 5 | K41: 5 | L41: 5 | M41: 5 | N41: - | O41: 0 | P41: 0 | Q41: 0 | R41: 5 | S41: 10 | T41: 0 | U41: - | V41: 0 | W41: 5 | X41: 5 | Y41: 5 | Z41: 0 | AA41: 10 | AB41: - | AC41: 5 | AD41: 0 | AE41: 5 | AF41: 5 | AG41: 5 | AH41: 5 | AI41: - | AJ41: 5 | AK41: 0 | AL41: - | AM41: - | AN41: 5 | AO41: 0 | AP41: 5 | AQ41: 0 | AR41: 0 | AS41: 5 | AT41: 0 | AU41: 10 | AV41: 5 | AW41: 10 | AX41: 5 | AY41: - | AZ41: 0 | BA41: 0 | BB41: 0 | BC41: 5 | BD41: 5 | BE41: 5 | BF41: 10 | BG41: 5 | BH41: 0 | BI41: 0 | BJ41: 0 | BK41: 5 | BL41: 5 | BM41: 0 | BN41: 5 | BO41: 0 | BP41: 5 | BQ41: 5 | BR41: 5 | BS41: 5 | BT41: 0 | BU41: 5 | BV41: 5 | BW41: 5 | BX41: 5 | BY41: 0 | BZ41: 5 | CA41: 10 | CB41: 0 | CC41: 5 | CD41: 5 | CE41: 0 | CF41: 5 | CG41: 5 | CH41: 5 | CI41: 5 | CJ41: 10 | CK41: 0 | CL41: 10 | CM41: 5 | CN41: 5 | CO41: 5 | CP41: 5 | CQ41: 5 | CR41: 5 | CS41: 5 | CT41: 0 | CU41: 5 | CV41: 0 | CW41: 0 | CX41: 5 | CY41: 0 | CZ41: 5 | DA41: 5 | DB41: 0 | DC41: 5
A42: 2025-11-30 | B42: Chelsea | C42: 1 | D42: 1 | E42: Arsenal | F42: 16:30:00 | H42: 0 | I42: 5 | J42: 0 | K42: 10 | L42: 10 | M42: 0 | N42: - | O42: 5 | P42: 10 | Q42: 5 | R42: 0 | S42: 10 | T42: 0 | U42: - | V42: 5 | W42: 0 | X42: 0 | Y42: 5 | Z42: 0 | AA42: 10 | AB42: - | AC42: 0 | AD42: 0 | AE42: 5 | AF42: 5 | AG42: 0 | AH42: 5 | AI42: - | AJ42: 10 | AK42: 0 | AL42: - | AM42: - | AN42: 5 | AO42: - | AP42: 0 | AQ42: 0 | AR42: 0 | AS42: 0 | AT42: 0 | AU42: 10 | AV42: 0 | AW42: 0 | AX42: 10 | AY42: - | AZ42: 0 | BA42: 0 | BB42: 0 | BC42: 10 | BD42: 0 | BE42: 10 | BF42: 0 | BG42: 5 | BH42: 10 | BI42: 10 | BJ42: 5 | BK42: 0 | BL42: 10 | BM42: 0 | BN42: 10 | BO42: 0 | BP42: 0 | BQ42: 0 | BR42: 5 | BS42: 0 | BT42: 0 | BU42: 0 | BV42: 10 | BW42: 0 | BX42: 5 | BY42: 0 | BZ42: 5 | CA42: 0 | CB42: 0 | CC42: 5 | CD42: 0 | CE42: 10 | CF42: 10 | CG42: 0 | CH42: 5 | CI42: 0 | CJ42: 0 | CK42: 0 | CL42: 0 | CM42: 0 | CN42: 5 | CO42: 10 | CP42: 5 | CQ42: 0 | CR42: 5 | CS42: 0 | CT42: 10 | CU42: 0 | CV42: 0 | CW42: 0 | CX42: 5 | CY42: 10 | CZ42: 0 | DA42: 10 | DB42: 0 | DC42: 0
A44: Golden Boots
A45: Alexander Isak - Liverpool | D45: =COUNT(H45:JB45) -> 31 | E45: =0+0+0+0 -> 0 | I45: =$E45*2 -> 0 | K45: =$E45*2 -> 0 | M45: =$E45*2 -> 0 | P45: =$E45*2 -> 0 | T45: =$E45*2 -> 0 | AB45: =$E45*2 -> 0 | AE45: =$E45*2 -> 0 | AF45: 0 | AI45: 0 | AM45: =$E45*2 -> 0 | AO45: 0 | AP45: 0 | AR45: 0 | AS45: 0 | AT45: 0 | AW45: =$E45*2 -> 0 | AX45: 0 | AY45: 0 | BF45: 0 | BH45: 0 | BJ45: =$E45*2 -> 0 | BN45: =$E45*2 -> 0 | BQ45: 0 | CE45: =$E45*2 -> 0 | CF45: =$E45*2 -> 0 | CG45: =$E45*2 -> 0 | CH45: =$E45*2 -> 0 | CI45: =$E45*2 -> 0 | CR45: =$E45*2 -> 0 | CU45: =$E45*2 -> 0 | CZ45: =$E45*2 -> 0
A46: Bryan Mbeumo - Man United | D46: 6 | E46: =0+1+0+0 -> 1 | Y46: =$E46*2 -> 2 | AD46: 2 | AN46: 2 | CD46: =$E46*2 -> 2 | CS46: =$E46*2 -> 2 | CY46: =$E46*2 -> 2
A47: Chris Wood - Nottingham Forest | D47: 5 | E47: =0+0+0+0 -> 0 | S47: =$E47*2 -> 0 | V47: =$E47*2 -> 0 | BX47: =$E47*2 -> 0 | CC47: =$E47*2 -> 0 | DB47: =$E47*2 -> 0
A48: Cole Palmer - Chelsea | D48: 27 | E48: =0+0+0+0 -> 0 | J48: =$E48*2 -> 0 | K48: =$E48*2 -> 0 | L48: =$E48*2 -> 0 | N48: =$E48*2 -> 0 | O48: =$E48*2 -> 0 | W48: =$E48*2 -> 0 | X48: =$E48*2 -> 0 | AA48: =$E48*2 -> 0 | AG48: 0 | AK48: =$E48*2 -> 0 | AW48: =$E48*2 -> 0 | BA48: 0 | BC48: =$E48*2 -> 0 | BE48: =$E48*2 -> 0 | BG48: 0 | BL48: =$E48*2 -> 0 | BM48: =$E48*2 -> 0 | BO48: 0 | BT48: 0 | BX48: =$E48*2 -> 0 | CB48: =$E48*2 -> 0 | CE48: =$E48*2 -> 0 | CF48: =$E48*2 -> 0 | CJ48: =$E48*2 -> 0 | CQ48: =$E48*2 -> 0 | CS48: =$E48*2 -> 0 | CT48: =$E48*2 -> 0
A49: Erling Haaland - Man City | D49: 80 | E49: =2+1+0+0 -> 3 | H49: =$E49*2 -> 6 | I49: =$E49*2 -> 6 | K49: =$E49*2 -> 6 | L49: =$E49*2 -> 6 | M49: =$E49*2 -> 6 | P49: =$E49*2 -> 6 | Q49: 6 | R49: 6 | S49: 6 | T49: 6 | U49: =$E49*2 -> 6 | V49: 6 | W49: =$E49*2 -> 6 | X49: =$E49*2 -> 6 | Y49: =$E49*2 -> 6 | Z49: =$E49*2 -> 6 | AA49: =$E49*2 -> 6 | AB49: =$E49*2 -> 6 | AC49: =$E49*2 -> 6 | AD49: =$E49*2 -> 6 | AH49: =$E49*2 -> 6 | AI49: 6 | AJ49: 6 | AK49: 6 | AN49: =$E49*2 -> 6 | AO49: 6 | AP49: 6 | AQ49: =$E49*2 -> 6 | AR49: =$E49*2 -> 6 | AS49: =$E49*2 -> 6 | AT49: =$E49*2 -> 6 | AU49: 6 | AV49: 6 | AY49: =$E49*2 -> 6 | AZ49: 6 | BA49: 6 | BC49: 6 | BD49: 6 | BE49: 6 | BF49: =$E49*2 -> 6 | BG49: 6 | BH49: 6 | BI49: 6 | BJ49: =$E49*2 -> 6 | BK49: =$E49*2 -> 6 | BM49: 6 | BN49: 6 | BO49: 6 | BP49: 6 | BQ49: 6 | BR49: 6 | BS49: 6 | BT49: 6 | BU49: 6 | BV49: =$E49*2 -> 6 | BW49: =$E49*2 -> 6 | BZ49: =$E49*2 -> 6 | CA49: =$E49*2 -> 6 | CB49: =$E49*2 -> 6 | CC49: =$E49*2 -> 6 | CD49: =$E49*2 -> 6 | CG49: =$E49*2 -> 6 | CH49: =$E49*2 -> 6 | CI49: =$E49*2 -> 6 | CJ49: =$E49*2 -> 6 | CM49: =$E49*2 -> 6 | CN49: =$E49*2 -> 6 | CO49: =$E49*2 -> 6 | CP49: =$E49*2 -> 6 | CR49: =$E49*2 -> 6 | CS49: =$E49*2 -> 6 | CU49: =$E49*2 -> 6 | CV49: =$E49*2 -> 6 | CW49: 6 | CX49: 6 | CY49: 6 | CZ49: 6 | DA49: 6 | DB49: 6 | DC49: 6
A50: Hugo Ekitike - Liverpool | D50: 12 | E50: =0+0+0+0 -> 0 | R50: =$E50*2 -> 0 | Z50: =$E50*2 -> 0 | AL50: =$E50*2 -> 0 | AM50: =$E50*2 -> 0 | AN50: 0 | AW50: 0 | AZ50: 0 | BE50: 0 | BY50: =$E50*2 -> 0 | BZ50: =$E50*2 -> 0 | CL50: =$E50*2 -> 0 | DC50: =$E50*2 -> 0
A51: Jean-Philippe Mateta - Crystal Palace | D51: 5 | E51: =1+0+0+1 -> 2 | BL51: =$E51*2 -> 4 | BY51: =$E51*2 -> 4 | CL51: =$E51*2 -> 4 | CT51: =$E51*2 -> 4 | CW51: =$E51*2 -> 4
A52: Jorgen Strand Larsen - Wolves | D52: 1 | E52: =0+0+0+0 -> 0 | BV52: =$E52*2 -> 0
A53: Justin Kluivert - Bournemouth | D53: 1 | E53: =0+0+0+0 -> 0 | N53: =$E53*2 -> 0
A54: Liam Delap - Chelsea | D54: 1 | E54: =0+0+0+0 -> 0 | CL54: =$E54*2 -> 0
A55: Matheus Cunha - Man United | D55: 5 | E55: =0+0+0+0 -> 0 | N55: =$E55*2 -> 0 | BB55: =$E55*2 -> 0 | CF55: =$E55*2 -> 0 | CK55: =$E55*2 -> 0 | CM55: =$E55*2 -> 0
A56: Mohamed Salah - Liverpool | D56: 83 | E56: =1+0+0+0 -> 1 | H56: =$E56*2 -> 2 | J56: =$E56*2 -> 2 | L56: =$E56*2 -> 2 | M56: =$E56*2 -> 2 | O56: =$E56*2 -> 2 | P56: =$E56*2 -> 2 | Q56: =$E56*2 -> 2 | R56: =$E56*2 -> 2 | S56: =$E56*2 -> 2 | T56: =$E56*2 -> 2 | U56: =$E56*2 -> 2 | V56: =$E56*2 -> 2 | X56: 2 | Y56: =$E56*2 -> 2 | Z56: =$E56*2 -> 2 | AA56: 2 | AB56: =$E56*2 -> 2 | AC56: =$E56*2 -> 2 | AD56: 2 | AE56: 2 | AF56: 2 | AG56: 2 | AH56: 2 | AJ56: =$E56*2 -> 2 | AL56: =$E56*2 -> 2 | AM56: 2 | AO56: 2 | AP56: 2 | AQ56: 2 | AR56: 2 | AS56: =$E56*2 -> 2 | AT56: 2 | AU56: 2 | AV56: 2 | AX56: =$E56*2 -> 2 | AY56: 2 | BA56: =$E56*2 -> 2 | BB56: 2 | BC56: 2 | BD56: 2 | BF56: =$E56*2 -> 2 | BG56: =$E56*2 -> 2 | BH56: 2 | BI56: =$E56*2 -> 2 | BJ56: =$E56*2 -> 2 | BK56: =$E56*2 -> 2 | BL56: =$E56*2 -> 2 | BM56: 2 | BN56: 2 | BO56: 2 | BP56: 2 | BR56: =$E56*2 -> 2 | BS56: 2 | BT56: 2 | BU56: 2 | BV56: =$E56*2 -> 2 | BW56: =$E56*2 -> 2 | BZ56: =$E56*2 -> 2 | CA56: 2 | CB56: =$E56*2 -> 2 | CC56: =$E56*2 -> 2 | CD56: 2 | CE56: =$E56*2 -> 2 | CG56: =$E56*2 -> 2 | CH56: =$E56*2 -> 2 | CI56: =$E56*2 -> 2 | CJ56: =$E56*2 -> 2 | CK56: =$E56*2 -> 2 | CM56: =$E56*2 -> 2 | CN56: =$E56*2 -> 2 | CO56: =$E56*2 -> 2 | CP56: =$E56*2 -> 2 | CQ56: =$E56*2 -> 2 | CR56: =$E56*2 -> 2 | CT56: =$E56*2 -> 2 | CU56: 2 | CV56: =$E56*2 -> 2 | CW56: 2 | CX56: =$E56*2 -> 2 | CZ56: 2 | DA56: 2 | DB56: =$E56*2 -> 2 | DC56: 2
A57: Ollie Watkins - Aston Villa | D57: 3 | E57: =0+0+0+0 -> 0 | AF57: 0 | BX57: =$E57*2 -> 0 | CN57: =$E57*2 -> 0
A58: Viktor Gyokeres - Arsenal | D58: 39 | E58: =1+0+0+0 -> 1 | H58: =$E58*2 -> 2 | I58: =$E58*2 -> 2 | J58: =$E58*2 -> 2 | O58: =$E58*2 -> 2 | Q58: =$E58*2 -> 2 | U58: =$E58*2 -> 2 | W58: =$E58*2 -> 2 | AC58: =$E58*2 -> 2 | AE58: =$E58*2 -> 2 | AG58: =$E58*2 -> 2 | AH58: 2 | AI58: 2 | AJ58: 2 | AK58: 2 | AL58: 2 | AQ58: =$E58*2 -> 2 | AU58: =$E58*2 -> 2 | AV58: 2 | AX58: =$E58*2 -> 2 | AZ58: =$E58*2 -> 2 | BB58: =$E58*2 -> 2 | BD58: =$E58*2 -> 2 | BI58: =$E58*2 -> 2 | BK58: =$E58*2 -> 2 | BP58: =$E58*2 -> 2 | BQ58: 2 | BR58: 2 | BS58: 2 | BU58: =$E58*2 -> 2 | BW58: =$E58*2 -> 2 | BY58: =$E58*2 -> 2 | CA58: =$E58*2 -> 2 | CK58: =$E58*2 -> 2 | CP58: =$E58*2 -> 2 | CQ58: =$E58*2 -> 2 | CV58: =$E58*2 -> 2 | CX58: =$E58*2 -> 2 | CY58: =$E58*2 -> 2 | DA58: =$E58*2 -> 2
A59: Yoane Wissa - Newcastle | D59: 1 | E59: =0+0+0 -> 0 | CO59: =$E59*2 -> 0
A61: Total Points - November | H61: =SUM(H$3:H60) -> 135 | I61: =SUM(I$3:I60) -> 113 | J61: =SUM(J$3:J60) -> 139 | K61: =SUM(K$3:K60) -> 121 | L61: =SUM(L$3:L60) -> 133 | M61: =SUM(M$3:M60) -> 133 | N61: =SUM(N$3:N60) -> 20 | O61: =SUM(O$3:O60) -> 149 | P61: =SUM(P$3:P60) -> 143 | Q61: =SUM(Q$3:Q60) -> 145 | R61: =SUM(R$3:R60) -> 128 | S61: =SUM(S$3:S60) -> 118 | T61: =SUM(T$3:T60) -> 128 | U61: =SUM(U$3:U60) -> 40 | V61: =SUM(V$3:V60) -> 73 | W61: =SUM(W$3:W60) -> 148 | X61: =SUM(X$3:X60) -> 143 | Y61: =SUM(Y$3:Y60) -> 160 | Z61: =SUM(Z$3:Z60) -> 123 | AA61: =SUM(AA$3:AA60) -> 118 | AB61: =SUM(AB$3:AB60) -> 43 | AC61: =SUM(AC$3:AC60) -> 145 | AD61: =SUM(AD$3:AD60) -> 115 | AE61: =SUM(AE$3:AE60) -> 89 | AF61: =SUM(AF$3:AF60) -> 127 | AG61: =SUM(AG$3:AG60) -> 139 | AH61: =SUM(AH$3:AH60) -> 140 | AI61: =SUM(AI$3:AI60) -> 8 | AJ61: =SUM(AJ$3:AJ60) -> 125 | AK61: =SUM(AK$3:AK60) -> 103 | AL61: =SUM(AL$3:AL60) -> 124 | AM61: =SUM(AM$3:AM60) -> 67 | AN61: =SUM(AN$3:AN60) -> 138 | AO61: =SUM(AO$3:AO60) -> 118 | AP61: =SUM(AP$3:AP60) -> 138 | AQ61: =SUM(AQ$3:AQ60) -> 125 | AR61: =SUM(AR$3:AR60) -> 143 | AS61: =SUM(AS$3:AS60) -> 123 | AT61: =SUM(AT$3:AT60) -> 88 | AU61: =SUM(AU$3:AU60) -> 140 | AV61: =SUM(AV$3:AV60) -> 150 | AW61: =SUM(AW$3:AW60) -> 110 | AX61: =SUM(AX$3:AX60) -> 154 | AY61: =SUM(AY$3:AY60) -> 8 | AZ61: =SUM(AZ$3:AZ60) -> 123 | BA61: =SUM(BA$3:BA60) -> 133 | BB61: =SUM(BB$3:BB60) -> 79 | BC61: =SUM(BC$3:BC60) -> 143 | BD61: =SUM(BD$3:BD60) -> 130 | BE61: =SUM(BE$3:BE60) -> 141 | BF61: =SUM(BF$3:BF60) -> 103 | BG61: =SUM(BG$3:BG60) -> 138 | BH61: =SUM(BH$3:BH60) -> 153 | BI61: =SUM(BI$3:BI60) -> 170 | BJ61: =SUM(BJ$3:BJ60) -> 108 | BK61: =SUM(BK$3:BK60) -> 120 | BL61: =SUM(BL$3:BL60) -> 126 | BM61: =SUM(BM$3:BM60) -> 103 | BN61: =SUM(BN$3:BN60) -> 148 | BO61: =SUM(BO$3:BO60) -> 108 | BP61: =SUM(BP$3:BP60) -> 145 | BQ61: =SUM(BQ$3:BQ60) -> 153 | BR61: =SUM(BR$3:BR60) -> 135 | BS61: =SUM(BS$3:BS60) -> 150 | BT61: =SUM(BT$3:BT60) -> 108 | BU61: =SUM(BU$3:BU60) -> 135 | BV61: =SUM(BV$3:BV60) -> 108 | BW61: =SUM(BW$3:BW60) -> 130 | BX61: =SUM(BX$3:BX60) -> 100 | BY61: =SUM(BY$3:BY60) -> 141 | BZ61: =SUM(BZ$3:BZ60) -> 128 | CA61: =SUM(CA$3:CA60) -> 100 | CB61: =SUM(CB$3:CB60) -> 98 | CC61: =SUM(CC$3:CC60) -> 118 | CD61: =SUM(CD$3:CD60) -> 150 | CE61: =SUM(CE$3:CE60) -> 137 | CF61: =SUM(CF$3:CF60) -> 100 | CG61: =SUM(CG$3:CG60) -> 138 | CH61: =SUM(CH$3:CH60) -> 98 | CI61: =SUM(CI$3:CI60) -> 148 | CJ61: =SUM(CJ$3:CJ60) -> 128 | CK61: =SUM(CK$3:CK60) -> 114 | CL61: =SUM(CL$3:CL60) -> 144 | CM61: =SUM(CM$3:CM60) -> 83 | CN61: =SUM(CN$3:CN60) -> 123 | CO61: =SUM(CO$3:CO60) -> 103 | CP61: =SUM(CP$3:CP60) -> 130 | CQ61: =SUM(CQ$3:CQ60) -> 114 | CR61: =SUM(CR$3:CR60) -> 153 | CS61: =SUM(CS$3:CS60) -> 123 | CT61: =SUM(CT$3:CT60) -> 86 | CU61: =SUM(CU$3:CU60) -> 168 | CV61: =SUM(CV$3:CV60) -> 115 | CW61: =SUM(CW$3:CW60) -> 147 | CX61: =SUM(CX$3:CX60) -> 135 | CY61: =SUM(CY$3:CY60) -> 115 | CZ61: =SUM(CZ$3:CZ60) -> 128 | DA61: =SUM(DA$3:DA60) -> 120 | DB61: =SUM(DB$3:DB60) -> 113 | DC61: =SUM(DC$3:DC60) -> 143

Sheet December
H1: Aaron Nealon | I1: Aidan Scanlon | J1: Aidan White | K1: Alain Verjans | L1: Anastas Popov | M1: Andy Dunne | N1: Benny McCarthy | O1: Billy McGinley | P1: Bobby Hynes | Q1: Brendan Maguire | R1: Brian Haughton | S1: Brian Hearne | T1: Brian Mullen | U1: Calvin McGettigan | V1: Caoimhin McEnteggart | W1: Carl Toner | X1: Caroline Carroll | Y1: Chris Keohan | Z1: Christina Morgan | AA1: Ciaran O'Hart | AB1: Colin Butterly | AC1: Con McSweeney | AD1: Craig Calvert | AE1: Craig Whelan | AF1: Daniel Dorrian | AG1: Darragh Kenny | AH1: Darren O'Gorman | AI1: Dave Lavelle | AJ1: Dave McGinley | AK1: David Cooney | AL1: David Doyle | AM1: David King | AN1: Derek McDonald | AO1: Dylan Delaney | AP1: Dylan O'Riordan | AQ1: Eamon Fox | AR1: Eamonn Gallagher | AS1: Eoghan Farrelly | AT1: Finbarr Corkery | AU1: Frank McSweeney | AV1: Gareth Pierpoint | AW1: Gary Donnelly | AX1: Gary Fitzpatrick | AY1: Gavin Goodwin | AZ1: Gavin Morgan | BA1: Gerry Draper | BB1: Gerry Moore | BC1: Graham Pierpoint | BD1: Greg Donaghy | BE1: Helen Fadian | BF1: Jack Draper | BG1: Jason Maloney | BH1: Javier Suarez | BI1: Jim Foley | BJ1: Jimmy Maguire | BK1: Joe Behan | BL1: Joe Turner | BM1: John Brophy | BN1: John Cafferkey | BO1: Johno Percy | BP1: Jonathan Fox | BQ1: Joseph Kavanagh | BR1: Joseph Leppla | BS1: Keith Nerney | BT1: Keith Ryan | BU1: Kev Dalton | BV1: Kevin Lawless | BW1: Kevin Nolan | BX1: Kieran Killeen | BY1: Liam Keohan | BZ1: Lionel Knott | CA1: Martin Kimmins | CB1: Micheal Joyce | CC1: Micheal Munnelly | CD1: Monica Collins | CE1: Niall Carroll | CF1: Paddy Devereux | CG1: Paul Foley | CH1: Paul Moore | CI1: Paul Prendergast | CJ1: Peter Lavelle | CK1: Phil Doyle | CL1: Philip Jordan | CM1: Phoebe Suarez Behan | CN1: Realtin Dunne | CO1: Rhea Suarez Behan | CP1: Richard Johnston | CQ1: Robert Foley | CR1: Robert Gaffney | CS1: Roisin Joyce | CT1: Sam Calvert | CU1: Sean Cafferkey | CV1: Sean Cleary | CW1: Sean O'Mairtin | CX1: Shane Horan | CY1: Simon Scanlon | CZ1: Thomas Nolan | DA1: Tommy Hamill | DB1: Tommy Tormey | DC1: Tommy Walsh
A2: Date | B2: Teams | F2: Time
A3: 2025-12-02 | B3: Bournemouth | C3: 0 | D3: 1 | E3: Everton | F3: 19:30:00 | H3: 0 | I3: 5 | J3: 0 | K3: 0 | L3: 0 | M3: 0 | N3: - | O3: 0 | P3: 0 | Q3: 0 | R3: 0 | S3: 0 | T3: 0 | U3: - | V3: 0 | W3: 0 | X3: 0 | Y3: 0 | Z3: 0 | AA3: 0 | AB3: - | AC3: 0 | AD3: 0 | AE3: 0 | AF3: 0 | AG3: 0 | AH3: 0 | AI3: - | AJ3: 0 | AK3: 0 | AL3: 5 | AM3: - | AN3: 0 | AO3: - | AP3: 0 | AQ3: 0 | AR3: 0 | AS3: 0 | AT3: 0 | AU3: 0 | AV3: 0 | AW3: 0 | AX3: 0 | AY3: - | AZ3: 0 | BA3: 0 | BB3: 0 | BC3: 0 | BD3: 0 | BE3: 0 | BF3: 0 | BG3: 0 | BH3: 0 | BI3: 0 | BJ3: 0 | BK3: 0 | BL3: 0 | BM3: 0 | BN3: 0 | BO3: 0 | BP3: 0 | BQ3: 0 | BR3: 0 | BS3: 0 | BT3: 0 | BU3: 0 | BV3: 0 | BW3: 0 | BX3: 0 | BY3: 0 | BZ3: 0 | CA3: 0 | CB3: 0 | CC3: 0 | CD3: 0 | CE3: 5 | CF3: 10 | CG3: 0 | CH3: 0 | CI3: 0 | CJ3: 0 | CK3: 0 | CL3: 0 | CM3: 0 | CN3: 0 | CO3: 5 | CP3: 0 | CQ3: 0 | CR3: 0 | CS3: 0 | CT3: 0 | CU3: 0 | CV3: 0 | CW3: 0 | CX3: 0 | CY3: 0 | CZ3: 0 | DA3: 0 | DB3: 0 | DC3: 0
A4: 2025-12-02 | B4: Fulham | C4: 4 | D4: 5 | E4: Man City | F4: 19:30:00 | H4: 5 | I4: 5 | J4: 5 | K4: 5 | L4: 5 | M4: 0 | N4: - | O4: 5 | P4: 5 | Q4: 5 | R4: 5 | S4: 5 | T4: 5 | U4: - | V4: 5 | W4: 5 | X4: 0 | Y4: 5 | Z4: 0 | AA4: 5 | AB4: - | AC4: 5 | AD4: 5 | AE4: 5 | AF4: 5 | AG4: 5 | AH4: 5 | AI4: - | AJ4: 5 | AK4: 5 | AL4: 5 | AM4: - | AN4: 5 | AO4: - | AP4: 0 | AQ4: 5 | AR4: 5 | AS4: 5 | AT4: 5 | AU4: 5 | AV4: 5 | AW4: 0 | AX4: 5 | AY4: - | AZ4: 5 | BA4: 5 | BB4: 0 | BC4: 5 | BD4: 5 | BE4: 5 | BF4: 5 | BG4: 5 | BH4: 5 | BI4: 5 | BJ4: 0 | BK4: 5 | BL4: 5 | BM4: 0 | BN4: 5 | BO4: 5 | BP4: 0 | BQ4: 5 | BR4: 5 | BS4: 0 | BT4: 5 | BU4: 0 | BV4: 5 | BW4: 5 | BX4: 5 | BY4: 5 | BZ4: 0 | CA4: 5 | CB4: 5 | CC4: 5 | CD4: 5 | CE4: 0 | CF4: 5 | CG4: 5 | CH4: 5 | CI4: 5 | CJ4: 5 | CK4: 5 | CL4: 5 | CM4: 5 | CN4: 0 | CO4: 5 | CP4: 0 | CQ4: 5 | CR4: 5 | CS4: 5 | CT4: 0 | CU4: 5 | CV4: 5 | CW4: 5 | CX4: 5 | CY4: 0 | CZ4: 0 | DA4: 5 | DB4: 0 | DC4: 5
A5: 2025-12-02 | B5: Newcastle | C5: 2 | D5: 2 | E5: Spurs | F5: 20:15:00 | H5: 0 | I5: 0 | J5: 5 | K5: 5 | L5: 0 | M5: 0 | N5: - | O5: 0 | P5: 0 | Q5: 0 | R5: 0 | S5: 0 | T5: 5 | U5: - | V5: 10 | W5: 0 | X5: 0 | Y5: 0 | Z5: 0 | AA5: 5 | AB5: - | AC5: 0 | AD5: 0 | AE5: 0 | AF5: 10 | AG5: 0 | AH5: 0 | AI5: - | AJ5: 0 | AK5: 0 | AL5: 0 | AM5: - | AN5: 0 | AO5: - | AP5: 0 | AQ5: 0 | AR5: 0 | AS5: 0 | AT5: 0 | AU5: 0 | AV5: 0 | AW5: 0 | AX5: 0 | AY5: - | AZ5: 0 | BA5: 0 | BB5: 0 | BC5: 0 | BD5: 0 | BE5: 0 | BF5: 0 | BG5: 10 | BH5: 0 | BI5: 0 | BJ5: 0 | BK5: 0 | BL5: 0 | BM5: 10 | BN5: 0 | BO5: 0 | BP5: 0 | BQ5: 0 | BR5: 0 | BS5: 0 | BT5: 0 | BU5: 0 | BV5: 0 | BW5: 0 | BX5: 0 | BY5: 0 | BZ5: 0 | CA5: 0 | CB5: 0 | CC5: 0 | CD5: 0 | CE5: 0 | CF5: 0 | CG5: 10 | CH5: 0 | CI5: 0 | CJ5: 0 | CK5: 0 | CL5: 0 | CM5: 10 | CN5: 5 | CO5: 0 | CP5: 0 | CQ5: 0 | CR5: 10 | CS5: 0 | CT5: 5 | CU5: 0 | CV5: 0 | CW5: 0 | CX5: 0 | CY5: 5 | CZ5: 0 | DA5: 5 | DB5: 0 | DC5: 0
A6: 2025-12-03 | B6: Arsenal | C6: 2 | D6: 0 | E6: Brentford | F6: 19:30:00 | H6: 5 | I6: 0 | J6: 5 | K6: 5 | L6: 10 | M6: 5 | N6: - | O6: 5 | P6: 10 | Q6: 10 | R6: 5 | S6: 10 | T6: 5 | U6: - | V6: 5 | W6: 10 | X6: 5 | Y6: 5 | Z6: 5 | AA6: 10 | AB6: - | AC6: 5 | AD6: 5 | AE6: 10 | AF6: 5 | AG6: 10 | AH6: 10 | AI6: - | AJ6: 10 | AK6: 5 | AL6: 5 | AM6: - | AN6: 5 | AO6: - | AP6: 5 | AQ6: 5 | AR6: 10 | AS6: 0 | AT6: 5 | AU6: 5 | AV6: 5 | AW6: 5 | AX6: 5 | AY6: - | AZ6: 5 | BA6: 10 | BB6: 5 | BC6: 10 | BD6: 10 | BE6: 10 | BF6: 10 | BG6: 10 | BH6: 10 | BI6: 10 | BJ6: 10 | BK6: 10 | BL6: 10 | BM6: 10 | BN6: 5 | BO6: 10 | BP6: 10 | BQ6: 10 | BR6: 5 | BS6: 10 | BT6: 10 | BU6: 5 | BV6: 10 | BW6: 10 | BX6: 5 | BY6: 10 | BZ6: 5 | CA6: 5 | CB6: 0 | CC6: 5 | CD6: 10 | CE6: 10 | CF6: 0 | CG6: 0 | CH6: 0 | CI6: 5 | CJ6: 10 | CK6: 10 | CL6: 10 | CM6: 5 | CN6: 5 | CO6: 5 | CP6: 5 | CQ6: 10 | CR6: 5 | CS6: 10 | CT6: 0 | CU6: 5 | CV6: 5 | CW6: 5 | CX6: 5 | CY6: 10 | CZ6: 5 | DA6: 10 | DB6: 5 | DC6: 5
A7: 2025-12-03 | B7: Brighton | C7: 3 | D7: 4 | E7: Aston Villa | F7: 19:30:00 | H7: 0 | I7: 5 | J7: 5 | K7: 0 | L7: 0 | M7: 0 | N7: - | O7: 0 | P7: 0 | Q7: 0 | R7: 0 | S7: 0 | T7: 0 | U7: - | V7: 0 | W7: 0 | X7: 0 | Y7: 0 | Z7: 0 | AA7: 0 | AB7: - | AC7: 0 | AD7: 0 | AE7: 0 | AF7: 0 | AG7: 5 | AH7: 0 | AI7: - | AJ7: 0 | AK7: 0 | AL7: 0 | AM7: - | AN7: 0 | AO7: - | AP7: 0 | AQ7: 0 | AR7: 0 | AS7: 0 | AT7: 0 | AU7: 0 | AV7: 0 | AW7: 5 | AX7: 0 | AY7: - | AZ7: 0 | BA7: 0 | BB7: 0 | BC7: 0 | BD7: 0 | BE7: 5 | BF7: 0 | BG7: 0 | BH7: 0 | BI7: 0 | BJ7: 0 | BK7: 0 | BL7: 0 | BM7: 0 | BN7: 0 | BO7: 0 | BP7: 5 | BQ7: 0 | BR7: 0 | BS7: 5 | BT7: 0 | BU7: 0 | BV7: 0 | BW7: 0 | BX7: 0 | BY7: 5 | BZ7: 0 | CA7: 0 | CB7: 0 | CC7: 0 | CD7: 0 | CE7: 0 | CF7: 5 | CG7: 0 | CH7: 0 | CI7: 0 | CJ7: 0 | CK7: 5 | CL7: 0 | CM7: 5 | CN7: 0 | CO7: 0 | CP7: 0 | CQ7: 0 | CR7: 0 | CS7: 0 | CT7: 0 | CU7: 0 | CV7: 0 | CW7: 0 | CX7: 0 | CY7: 0 | CZ7: 5 | DA7: 0 | DB7: 0 | DC7: 0
A8: 2025-12-03 | B8: Burnley | C8: 0 | D8: 1 | E8: Crystal Palace | F8: 19:30:00 | H8: 0 | I8: 5 | J8: 5 | K8: 0 | L8: 10 | M8: 10 | N8: - | O8: 5 | P8: 0 | Q8: 0 | R8: 5 | S8: 5 | T8: 10 | U8: - | V8: 0 | W8: 10 | X8: 5 | Y8: 5 | Z8: 0 | AA8: 0 | AB8: - | AC8: 5 | AD8: 5 | AE8: 5 | AF8: 5 | AG8: 5 | AH8: 0 | AI8: - | AJ8: 0 | AK8: 0 | AL8: 5 | AM8: - | AN8: 5 | AO8: - | AP8: 0 | AQ8: 10 | AR8: 0 | AS8: 5 | AT8: 10 | AU8: 5 | AV8: 5 | AW8: 5 | AX8: 5 | AY8: - | AZ8: 10 | BA8: 5 | BB8: 0 | BC8: 5 | BD8: 5 | BE8: 0 | BF8: 5 | BG8: 5 | BH8: 5 | BI8: 5 | BJ8: 0 | BK8: 0 | BL8: 0 | BM8: 0 | BN8: 5 | BO8: 5 | BP8: 10 | BQ8: 5 | BR8: 5 | BS8: 10 | BT8: 0 | BU8: 5 | BV8: 10 | BW8: 5 | BX8: 5 | BY8: 10 | BZ8: 5 | CA8: 0 | CB8: 5 | CC8: 5 | CD8: 0 | CE8: 0 | CF8: 10 | CG8: 5 | CH8: 0 | CI8: 5 | CJ8: 5 | CK8: 5 | CL8: 10 | CM8: 0 | CN8: 0 | CO8: 5 | CP8: 0 | CQ8: 5 | CR8: 0 | CS8: 0 | CT8: 0 | CU8: 0 | CV8: 5 | CW8: 5 | CX8: 5 | CY8: 5 | CZ8: 10 | DA8: 10 | DB8: 0 | DC8: 5
A9: 2025-12-03 | B9: Wolves | C9: 0 | D9: 1 | E9: Nott'm Forest | F9: 19:30:00 | H9: 0 | I9: 5 | J9: 0 | K9: 0 | L9: 5 | M9: 0 | N9: - | O9: 5 | P9: 0 | Q9: 5 | R9: 10 | S9: 0 | T9: 5 | U9: - | V9: 0 | W9: 10 | X9: 5 | Y9: 10 | Z9: 0 | AA9: 0 | AB9: - | AC9: 5 | AD9: 5 | AE9: 0 | AF9: 0 | AG9: 5 | AH9: 0 | AI9: - | AJ9: 0 | AK9: 5 | AL9: 5 | AM9: - | AN9: 0 | AO9: - | AP9: 0 | AQ9: 10 | AR9: 0 | AS9: 10 | AT9: 5 | AU9: 5 | AV9: 5 | AW9: 0 | AX9: 5 | AY9: - | AZ9: 10 | BA9: 0 | BB9: 0 | BC9: 10 | BD9: 0 | BE9: 5 | BF9: 5 | BG9: 5 | BH9: 0 | BI9: 0 | BJ9: 0 | BK9: 5 | BL9: 0 | BM9: 5 | BN9: 0 | BO9: 0 | BP9: 10 | BQ9: 10 | BR9: 0 | BS9: 5 | BT9: 10 | BU9: 5 | BV9: 10 | BW9: 10 | BX9: 0 | BY9: 5 | BZ9: 0 | CA9: 10 | CB9: 10 | CC9: 5 | CD9: 0 | CE9: 5 | CF9: 10 | CG9: 0 | CH9: 10 | CI9: 0 | CJ9: 5 | CK9: 0 | CL9: 0 | CM9: 0 | CN9: 5 | CO9: 0 | CP9: 5 | CQ9: 5 | CR9: 5 | CS9: 0 | CT9: 0 | CU9: 0 | CV9: 5 | CW9: 5 | CX9: 0 | CY9: 5 | CZ9: 10 | DA9: 0 | DB9: 0 | DC9: 5
A10: 2025-12-03 | B10: Leeds Utd | C10: 3 | D10: 1 | E10: Chelsea | F10: 20:15:00 | H10: 0 | I10: 0 | J10: 0 | K10: 0 | L10: 0 | M10: 0 | N10: - | O10: 0 | P10: 0 | Q10: 0 | R10: 0 | S10: 0 | T10: 0 | U10: - | V10: 0 | W10: 0 | X10: 0 | Y10: 0 | Z10: 5 | AA10: 0 | AB10: - | AC10: 0 | AD10: 0 | AE10: 0 | AF10: 0 | AG10: 0 | AH10: 0 | AI10: - | AJ10: 0 | AK10: 0 | AL10: 0 | AM10: - | AN10: 0 | AO10: - | AP10: 0 | AQ10: 0 | AR10: 0 | AS10: 0 | AT10: 0 | AU10: 0 | AV10: 0 | AW10: 0 | AX10: 0 | AY10: - | AZ10: 0 | BA10: 0 | BB10: 0 | BC10: 0 | BD10: 0 | BE10: 0 | BF10: 0 | BG10: 0 | BH10: 0 | BI10: 0 | BJ10: 5 | BK10: 0 | BL10: 0 | BM10: 0 | BN10: 0 | BO10: 0 | BP10: 0 | BQ10: 0 | BR10: 0 | BS10: 0 | BT10: 0 | BU10: 5 | BV10: 0 | BW10: 0 | BX10: 0 | BY10: 0 | BZ10: 0 | CA10: 0 | CB10: 0 | CC10: 0 | CD10: 0 | CE10: 0 | CF10: 0 | CG10: 0 | CH10: 0 | CI10: 0 | CJ10: 0 | CK10: 0 | CL10: 0 | CM10: 0 | CN10: 0 | CO10: 0 | CP10: 0 | CQ10: 0 | CR10: 0 | CS10: 0 | CT10: 0 | CU10: 0 | CV10: 0 | CW10: 0 | CX10: 0 | CY10: 0 | CZ10: 0 | DA10: 0 | DB10: 5 | DC10: 0
A11: 2025-12-03 | B11: Liverpool | C11: 1 | D11: 1 | E11: Sunderland | F11: 20:15:00 | H11: 0 | I11: 5 | J11: 0 | K11: 0 | L11: 0 | M11: 0 | N11: - | O11: 0 | P11: 0 | Q11: 0 | R11: 0 | S11: 0 | T11: 0 | U11: - | V11: 0 | W11: 0 | X11: 0 | Y11: 0 | Z11: 0 | AA11: 0 | AB11: - | AC11: 0 | AD11: 0 | AE11: 0 | AF11: 0 | AG11: 0 | AH11: 0 | AI11: - | AJ11: 0 | AK11: 5 | AL11: 10 | AM11: - | AN11: 0 | AO11: - | AP11: 0 | AQ11: 0 | AR11: 0 | AS11: 0 | AT11: 0 | AU11: 0 | AV11: 0 | AW11: 0 | AX11: 10 | AY11: - | AZ11: 0 | BA11: 0 | BB11: 0 | BC11: 0 | BD11: 0 | BE11: 0 | BF11: 0 | BG11: 0 | BH11: 0 | BI11: 10 | BJ11: 0 | BK11: 0 | BL11: 0 | BM11: 0 | BN11: 0 | BO11: 0 | BP11: 0 | BQ11: 0 | BR11: 0 | BS11: 0 | BT11: 10 | BU11: 0 | BV11: 0 | BW11: 0 | BX11: 0 | BY11: 0 | BZ11: 0 | CA11: 0 | CB11: 5 | CC11: 0 | CD11: 0 | CE11: 0 | CF11: 0 | CG11: 0 | CH11: 0 | CI11: 0 | CJ11: 0 | CK11: 0 | CL11: 0 | CM11: 0 | CN11: 0 | CO11: 0 | CP11: 0 | CQ11: 0 | CR11: 0 | CS11: 0 | CT11: 10 | CU11: 0 | CV11: 0 | CW11: 0 | CX11: 0 | CY11: 0 | CZ11: 0 | DA11: 0 | DB11: 0 | DC11: 0
A12: 2025-12-04 | B12: Man Utd | C12: 1 | D12: 1 | E12: West Ham | F12: 20:00:00 | H12: 0 | I12: 0 | J12: 0 | K12: 0 | L12: 0 | M12: 0 | N12: - | O12: 0 | P12: 0 | Q12: 0 | R12: 0 | S12: 0 | T12: 0 | U12: - | V12: 0 | W12: 0 | X12: 0 | Y12: 0 | Z12: 0 | AA12: 0 | AB12: - | AC12: 0 | AD12: 0 | AE12: 0 | AF12: 0 | AG12: 0 | AH12: 0 | AI12: - | AJ12: 0 | AK12: 0 | AL12: 0 | AM12: - | AN12: 0 | AO12: - | AP12: 0 | AQ12: 0 | AR12: 0 | AS12: 0 | AT12: 0 | AU12: 0 | AV12: 0 | AW12: 0 | AX12: 0 | AY12: - | AZ12: 0 | BA12: 0 | BB12: 0 | BC12: 0 | BD12: 0 | BE12: 0 | BF12: 0 | BG12: 0 | BH12: 0 | BI12: 0 | BJ12: 0 | BK12: 0 | BL12: 0 | BM12: 10 | BN12: 0 | BO12: 0 | BP12: 0 | BQ12: 0 | BR12: 0 | BS12: 0 | BT12: 0 | BU12: 0 | BV12: 0 | BW12: 0 | BX12: 10 | BY12: 0 | BZ12: 0 | CA12: 0 | CB12: 0 | CC12: 10 | CD12: 0 | CE12: 5 | CF12: 0 | CG12: 0 | CH12: 0 | CI12: 0 | CJ12: 0 | CK12: 0 | CL12: 0 | CM12: 0 | CN12: 0 | CO12: 0 | CP12: 0 | CQ12: 0 | CR12: 0 | CS12: 0 | CT12: 10 | CU12: 0 | CV12: 0 | CW12: 0 | CX12: 5 | CY12: 0 | CZ12: 0 | DA12: 0 | DB12: 0 | DC12: 5
A13: 2025-12-06 | B13: Aston Villa | C13: 2 | D13: 1 | E13: Arsenal | F13: 12:30:00 | H13: 0 | I13: 0 | J13: 5 | K13: 0 | L13: 0 | M13: 10 | N13: - | O13: 0 | P13: 0 | Q13: 0 | R13: 0 | S13: 0 | T13: 0 | U13: - | V13: 0 | W13: 5 | X13: 10 | Y13: 0 | Z13: 10 | AA13: 0 | AB13: - | AC13: 0 | AD13: 5 | AE13: 0 | AF13: 5 | AG13: 0 | AH13: 10 | AI13: - | AJ13: 0 | AK13: 0 | AL13: - | AM13: - | AN13: 0 | AO13: - | AP13: 0 | AQ13: 0 | AR13: 5 | AS13: 5 | AT13: 0 | AU13: 10 | AV13: 10 | AW13: 0 | AX13: 10 | AY13: - | AZ13: 10 | BA13: 0 | BB13: 0 | BC13: 0 | BD13: 0 | BE13: 0 | BF13: 0 | BG13: 0 | BH13: 0 | BI13: 10 | BJ13: 0 | BK13: 0 | BL13: 0 | BM13: 0 | BN13: 0 | BO13: 0 | BP13: 0 | BQ13: 0 | BR13: 0 | BS13: 0 | BT13: 5 | BU13: 0 | BV13: 0 | BW13: 0 | BX13: 0 | BY13: 0 | BZ13: 0 | CA13: 0 | CB13: 0 | CC13: 0 | CD13: 0 | CE13: 5 | CF13: 0 | CG13: 0 | CH13: 0 | CI13: 0 | CJ13: 0 | CK13: 0 | CL13: 0 | CM13: 5 | CN13: 0 | CO13: 5 | CP13: 0 | CQ13: 0 | CR13: 10 | CS13: 0 | CT13: 0 | CU13: 0 | CV13: 5 | CW13: 0 | CX13: 10 | CY13: 0 | CZ13: 0 | DA13: 0 | DB13: 0 | DC13: 10
A14: 2025-12-06 | B14: Bournemouth | C14: 0 | D14: 0 | E14: Chelsea | F14: 45997.625 | H14: 5 | I14: 0 | J14: 5 | K14: 0 | L14: 0 | M14: 0 | N14: - | O14: 0 | P14: 0 | Q14: 5 | R14: 0 | S14: 0 | T14: 5 | U14: - | V14: 5 | W14: 0 | X14: 0 | Y14: 0 | Z14: 0 | AA14: 0 | AB14: - | AC14: 5 | AD14: 5 | AE14: 0 | AF14: 0 | AG14: 5 | AH14: 0 | AI14: - | AJ14: 5 | AK14: 0 | AL14: - | AM14: - | AN14: 0 | AO14: - | AP14: 0 | AQ14: 0 | AR14: 0 | AS14: 0 | AT14: 0 | AU14: 0 | AV14: 0 | AW14: 5 | AX14: 0 | AY14: - | AZ14: 0 | BA14: 0 | BB14: 0 | BC14: 0 | BD14: 0 | BE14: 5 | BF14: 0 | BG14: 5 | BH14: 0 | BI14: 5 | BJ14: 5 | BK14: 0 | BL14: 5 | BM14: 0 | BN14: 0 | BO14: 0 | BP14: 0 | BQ14: 5 | BR14: 5 | BS14: 0 | BT14: 0 | BU14: 0 | BV14: 5 | BW14: 0 | BX14: 5 | BY14: 0 | BZ14: 0 | CA14: 0 | CB14: 0 | CC14: 0 | CD14: 0 | CE14: 0 | CF14: 0 | CG14: 0 | CH14: 0 | CI14: 5 | CJ14: 0 | CK14: 0 | CL14: 0 | CM14: 0 | CN14: 5 | CO14: 0 | CP14: 0 | CQ14: 0 | CR14: 0 | CS14: 5 | CT14: 5 | CU14: 0 | CV14: 0 | CW14: 0 | CX14: 0 | CY14: 5 | CZ14: 0 | DA14: 0 | DB14: 0 | DC14: 5
A15: 2025-12-06 | B15: Everton | C15: 3 | D15: 0 | E15: Nott'm Forest | F15: 45997.625 | H15: 0 | I15: 5 | J15: 5 | K15: 5 | L15: 5 | M15: 5 | N15: - | O15: 0 | P15: 5 | Q15: 5 | R15: 0 | S15: 5 | T15: 5 | U15: - | V15: 0 | W15: 0 | X15: 0 | Y15: 5 | Z15: 5 | AA15: 5 | AB15: - | AC15: 0 | AD15: 0 | AE15: 5 | AF15: 5 | AG15: 5 | AH15: 5 | AI15: - | AJ15: 5 | AK15: 5 | AL15: - | AM15: - | AN15: 5 | AO15: - | AP15: 5 | AQ15: 5 | AR15: 5 | AS15: 5 | AT15: 0 | AU15: 0 | AV15: 5 | AW15: 5 | AX15: 5 | AY15: - | AZ15: 5 | BA15: 5 | BB15: 5 | BC15: 5 | BD15: 5 | BE15: 5 | BF15: 5 | BG15: 0 | BH15: 5 | BI15: 5 | BJ15: 0 | BK15: 0 | BL15: 5 | BM15: 5 | BN15: 0 | BO15: 5 | BP15: 5 | BQ15: 5 | BR15: 0 | BS15: 5 | BT15: 5 | BU15: 0 | BV15: 5 | BW15: 0 | BX15: 0 | BY15: 0 | BZ15: 0 | CA15: 0 | CB15: 0 | CC15: 5 | CD15: 5 | CE15: 0 | CF15: 0 | CG15: 5 | CH15: 0 | CI15: 5 | CJ15: 0 | CK15: 5 | CL15: 5 | CM15: 5 | CN15: 5 | CO15: 5 | CP15: 0 | CQ15: 5 | CR15: 5 | CS15: 5 | CT15: 0 | CU15: 5 | CV15: 0 | CW15: 0 | CX15: 5 | CY15: 0 | CZ15: 0 | DA15: 0 | DB15: 0 | DC15: 0
A16: 2025-12-06 | B16: Man City | C16: 3 | D16: 0 | E16: Sunderland | F16: 45997.625 | H16: 5 | I16: 5 | J16: 5 | K16: 5 | L16: 5 | M16: 5 | N16: - | O16: 0 | P16: 5 | Q16: 10 | R16: 10 | S16: 5 | T16: 5 | U16: - | V16: 5 | W16: 5 | X16: 5 | Y16: 10 | Z16: 5 | AA16: 5 | AB16: - | AC16: 5 | AD16: 5 | AE16: 10 | AF16: 5 | AG16: 5 | AH16: 10 | AI16: - | AJ16: 5 | AK16: 0 | AL16: - | AM16: - | AN16: 5 | AO16: - | AP16: 0 | AQ16: 5 | AR16: 5 | AS16: 5 | AT16: 5 | AU16: 5 | AV16: 5 | AW16: 5 | AX16: 5 | AY16: - | AZ16: 10 | BA16: 5 | BB16: 5 | BC16: 5 | BD16: 5 | BE16: 10 | BF16: 5 | BG16: 5 | BH16: 5 | BI16: 5 | BJ16: 5 | BK16: 5 | BL16: 5 | BM16: 5 | BN16: 10 | BO16: 5 | BP16: 5 | BQ16: 5 | BR16: 5 | BS16: 5 | BT16: 5 | BU16: 10 | BV16: 5 | BW16: 5 | BX16: 5 | BY16: 5 | BZ16: 5 | CA16: 5 | CB16: 5 | CC16: 5 | CD16: 5 | CE16: 0 | CF16: 0 | CG16: 5 | CH16: 5 | CI16: 5 | CJ16: 5 | CK16: 5 | CL16: 5 | CM16: 5 | CN16: 5 | CO16: 5 | CP16: 5 | CQ16: 5 | CR16: 5 | CS16: 5 | CT16: 0 | CU16: 5 | CV16: 5 | CW16: 5 | CX16: 5 | CY16: 0 | CZ16: 5 | DA16: 5 | DB16: 0 | DC16: 5
A17: 2025-12-06 | B17: Newcastle | C17: 2 | D17: 1 | E17: Burnley | F17: 45997.625 | H17: 10 | I17: 10 | J17: 10 | K17: 5 | L17: 10 | M17: 5 | N17: - | O17: 10 | P17: 10 | Q17: 10 | R17: 10 | S17: 10 | T17: 10 | U17: - | V17: 0 | W17: 10 | X17: 10 | Y17: 10 | Z17: 5 | AA17: 10 | AB17: - | AC17: 10 | AD17: 10 | AE17: 10 | AF17: 10 | AG17: 10 | AH17: 10 | AI17: - | AJ17: 10 | AK17: 5 | AL17: - | AM17: - | AN17: 5 | AO17: - | AP17: 5 | AQ17: 10 | AR17: 10 | AS17: 10 | AT17: 10 | AU17: 5 | AV17: 5 | AW17: 0 | AX17: 10 | AY17: - | AZ17: 10 | BA17: 10 | BB17: 5 | BC17: 10 | BD17: 5 | BE17: 5 | BF17: 10 | BG17: 10 | BH17: 10 | BI17: 5 | BJ17: 5 | BK17: 10 | BL17: 10 | BM17: 5 | BN17: 10 | BO17: 5 | BP17: 5 | BQ17: 10 | BR17: 10 | BS17: 10 | BT17: 10 | BU17: 5 | BV17: 5 | BW17: 5 | BX17: 5 | BY17: 5 | BZ17: 10 | CA17: 10 | CB17: 5 | CC17: 5 | CD17: 5 | CE17: 5 | CF17: 0 | CG17: 5 | CH17: 10 | CI17: 10 | CJ17: 10 | CK17: 10 | CL17: 10 | CM17: 5 | CN17: 10 | CO17: 5 | CP17: 5 | CQ17: 10 | CR17: 5 | CS17: 10 | CT17: 0 | CU17: 5 | CV17: 5 | CW17: 10 | CX17: 5 | CY17: 0 | CZ17: 5 | DA17: 10 | DB17: 10 | DC17: 10
A18: 2025-12-06 | B18: Spurs | C18: 2 | D18: 0 | E18: Brentford | F18: 45997.625 | H18: 5 | I18: 0 | J18: 5 | K18: 0 | L18: 5 | M18: 0 | N18: - | O18: 10 | P18: 0 | Q18: 5 | R18: 5 | S18: 0 | T18: 5 | U18: - | V18: 0 | W18: 0 | X18: 0 | Y18: 0 | Z18: 5 | AA18: 5 | AB18: - | AC18: 0 | AD18: 5 | AE18: 5 | AF18: 10 | AG18: 0 | AH18: 10 | AI18: - | AJ18: 5 | AK18: 5 | AL18: - | AM18: - | AN18: 0 | AO18: - | AP18: 5 | AQ18: 0 | AR18: 10 | AS18: 0 | AT18: 5 | AU18: 0 | AV18: 5 | AW18: 5 | AX18: 0 | AY18: - | AZ18: 5 | BA18: 0 | BB18: 0 | BC18: 5 | BD18: 0 | BE18: 5 | BF18: 5 | BG18: 5 | BH18: 0 | BI18: 0 | BJ18: 0 | BK18: 0 | BL18: 0 | BM18: 0 | BN18: 5 | BO18: 5 | BP18: 5 | BQ18: 5 | BR18: 5 | BS18: 0 | BT18: 10 | BU18: 0 | BV18: 0 | BW18: 0 | BX18: 5 | BY18: 0 | BZ18: 5 | CA18: 0 | CB18: 10 | CC18: 0 | CD18: 0 | CE18: 0 | CF18: 0 | CG18: 5 | CH18: 5 | CI18: 5 | CJ18: 10 | CK18: 0 | CL18: 10 | CM18: 5 | CN18: 5 | CO18: 5 | CP18: 5 | CQ18: 0 | CR18: 5 | CS18: 5 | CT18: 0 | CU18: 5 | CV18: 0 | CW18: 5 | CX18: 5 | CY18: - | CZ18: 5 | DA18: 5 | DB18: 0 | DC18: 0
A19: 2025-12-06 | B19: Leeds Utd | C19: 3 | D19: 3 | E19: Liverpool | F19: 17:30:00 | H19: 0 | I19: 0 | J19: 0 | K19: 0 | L19: 0 | M19: 0 | N19: - | O19: 0 | P19: 0 | Q19: 5 | R19: 0 | S19: 0 | T19: 5 | U19: - | V19: 5 | W19: 0 | X19: 0 | Y19: 0 | Z19: 0 | AA19: 5 | AB19: - | AC19: 0 | AD19: 0 | AE19: 0 | AF19: 0 | AG19: 0 | AH19: 0 | AI19: - | AJ19: 5 | AK19: 0 | AL19: - | AM19: - | AN19: 5 | AO19: - | AP19: 0 | AQ19: 5 | AR19: 0 | AS19: 0 | AT19: 0 | AU19: 0 | AV19: 0 | AW19: 0 | AX19: 5 | AY19: - | AZ19: 0 | BA19: 0 | BB19: 5 | BC19: 0 | BD19: 0 | BE19: 0 | BF19: 0 | BG19: 0 | BH19: 0 | BI19: 0 | BJ19: 5 | BK19: 5 | BL19: 0 | BM19: 0 | BN19: 0 | BO19: 5 | BP19: 0 | BQ19: 0 | BR19: 0 | BS19: 0 | BT19: 0 | BU19: 0 | BV19: 5 | BW19: 0 | BX19: 0 | BY19: 5 | BZ19: 0 | CA19: 0 | CB19: 5 | CC19: 0 | CD19: 5 | CE19: 0 | CF19: 0 | CG19: 0 | CH19: 0 | CI19: 0 | CJ19: 0 | CK19: 0 | CL19: 0 | CM19: 0 | CN19: 0 | CO19: 0 | CP19: 0 | CQ19: 0 | CR19: 0 | CS19: 0 | CT19: 5 | CU19: 0 | CV19: 0 | CW19: 0 | CX19: 0 | CY19: - | CZ19: 0 | DA19: 5 | DB19: 0 | DC19: 0
A20: 2025-12-07 | B20: Brighton | C20: 1 | D20: 1 | E20: West Ham | F20: 14:00:00 | H20: 0 | I20: 0 | J20: 0 | K20: 0 | L20: 0 | M20: 0 | N20: - | O20: 0 | P20: 0 | Q20: 0 | R20: 0 | S20: 0 | T20: 0 | U20: - | V20: 10 | W20: 0 | X20: 0 | Y20: 0 | Z20: 0 | AA20: 0 | AB20: - | AC20: 0 | AD20: 0 | AE20: 10 | AF20: 0 | AG20: 0 | AH20: 10 | AI20: - | AJ20: 0 | AK20: 0 | AL20: - | AM20: - | AN20: 0 | AO20: - | AP20: 0 | AQ20: 0 | AR20: 0 | AS20: 10 | AT20: 0 | AU20: 0 | AV20: 0 | AW20: 5 | AX20: 0 | AY20: - | AZ20: 0 | BA20: 0 | BB20: 0 | BC20: 0 | BD20: 0 | BE20: 0 | BF20: 0 | BG20: 10 | BH20: 0 | BI20: 0 | BJ20: 5 | BK20: 0 | BL20: 0 | BM20: 0 | BN20: 0 | BO20: 0 | BP20: 0 | BQ20: 0 | BR20: 0 | BS20: 0 | BT20: 0 | BU20: 0 | BV20: 0 | BW20: 0 | BX20: 5 | BY20: 0 | BZ20: 0 | CA20: 0 | CB20: 0 | CC20: 5 | CD20: 0 | CE20: 10 | CF20: 0 | CG20: 0 | CH20: 0 | CI20: 0 | CJ20: 0 | CK20: 0 | CL20: 0 | CM20: 0 | CN20: 0 | CO20: 0 | CP20: 0 | CQ20: 0 | CR20: 0 | CS20: 0 | CT20: 10 | CU20: 0 | CV20: 0 | CW20: 0 | CX20: 0 | CY20: - | CZ20: 10 | DA20: 0 | DB20: 0 | DC20: 0
A21: 2025-12-07 | B21: Fulham | C21: 1 | D21: 2 | E21: Crystal Palace | F21: 16:30:00 | H21: 0 | I21: 0 | J21: 10 | K21: 0 | L21: 5 | M21: 10 | N21: - | O21: 5 | P21: 0 | Q21: 0 | R21: 0 | S21: 10 | T21: 0 | U21: - | V21: 0 | W21: 0 | X21: 0 | Y21: 0 | Z21: 0 | AA21: 0 | AB21: - | AC21: 0 | AD21: 10 | AE21: 0 | AF21: 0 | AG21: 0 | AH21: 10 | AI21: - | AJ21: 0 | AK21: 10 | AL21: - | AM21: - | AN21: 10 | AO21: - | AP21: 5 | AQ21: 0 | AR21: 0 | AS21: 5 | AT21: 0 | AU21: 10 | AV21: 0 | AW21: 5 | AX21: 0 | AY21: - | AZ21: 0 | BA21: 0 | BB21: 0 | BC21: 10 | BD21: 0 | BE21: 10 | BF21: 0 | BG21: 0 | BH21: 0 | BI21: 5 | BJ21: 0 | BK21: 0 | BL21: 0 | BM21: 0 | BN21: 0 | BO21: 0 | BP21: 0 | BQ21: 0 | BR21: 10 | BS21: 0 | BT21: 0 | BU21: 5 | BV21: 0 | BW21: 5 | BX21: 0 | BY21: 5 | BZ21: 0 | CA21: 10 | CB21: 0 | CC21: 5 | CD21: 0 | CE21: 0 | CF21: 5 | CG21: 10 | CH21: 0 | CI21: 0 | CJ21: 0 | CK21: 10 | CL21: 0 | CM21: 0 | CN21: 0 | CO21: 0 | CP21: 0 | CQ21: 0 | CR21: 0 | CS21: 0 | CT21: 0 | CU21: 0 | CV21: 10 | CW21: 0 | CX21: 0 | CY21: - | CZ21: 5 | DA21: 0 | DB21: 0 | DC21: 10
A22: 2025-12-08 | B22: Wolves | C22: 1 | D22: 4 | E22: Man Utd | F22: 20:00:00 | H22: 5 | I22: 5 | J22: 5 | K22: 5 | L22: 5 | M22: 5 | N22: - | O22: 5 | P22: 0 | Q22: 5 | R22: 5 | S22: 5 | T22: 5 | U22: - | V22: 5 | W22: 5 | X22: 5 | Y22: 5 | Z22: 0 | AA22: 5 | AB22: - | AC22: 5 | AD22: 5 | AE22: 5 | AF22: - | AG22: 5 | AH22: 5 | AI22: - | AJ22: 5 | AK22: 5 | AL22: - | AM22: - | AN22: 5 | AO22: - | AP22: 0 | AQ22: 5 | AR22: 0 | AS22: 5 | AT22: 5 | AU22: 5 | AV22: 5 | AW22: 5 | AX22: 5 | AY22: - | AZ22: 5 | BA22: 5 | BB22: 5 | BC22: 5 | BD22: 5 | BE22: 5 | BF22: 5 | BG22: 5 | BH22: 0 | BI22: 5 | BJ22: 5 | BK22: 5 | BL22: 5 | BM22: 0 | BN22: 5 | BO22: 5 | BP22: 5 | BQ22: 0 | BR22: 5 | BS22: 5 | BT22: 0 | BU22: 5 | BV22: 5 | BW22: 5 | BX22: 0 | BY22: 5 | BZ22: 5 | CA22: 5 | CB22: 5 | CC22: 5 | CD22: 5 | CE22: 0 | CF22: - | CG22: 10 | CH22: 5 | CI22: 5 | CJ22: 5 | CK22: 5 | CL22: 5 | CM22: 0 | CN22: 5 | CO22: 0 | CP22: 5 | CQ22: 5 | CR22: 5 | CS22: 5 | CT22: - | CU22: 5 | CV22: 5 | CW22: 5 | CX22: 0 | CY22: - | CZ22: 5 | DA22: 0 | DB22: 0 | DC22: 5
A23: 2025-12-13 | B23: Chelsea | C23: 2 | D23: 0 | E23: Everton | F23: 46004.625 | H23: 0 | I23: 0 | J23: 5 | K23: 5 | L23: 10 | M23: 0 | N23: - | O23: 0 | P23: 5 | Q23: 10 | R23: 10 | S23: 5 | T23: 5 | U23: - | V23: 5 | W23: 5 | X23: 5 | Y23: 10 | Z23: 5 | AA23: 5 | AB23: - | AC23: 5 | AD23: 5 | AE23: 10 | AF23: 5 | AG23: 0 | AH23: 5 | AI23: - | AJ23: 5 | AK23: 5 | AL23: - | AM23: - | AN23: 5 | AO23: - | AP23: 5 | AQ23: 5 | AR23: 10 | AS23: 5 | AT23: 0 | AU23: 5 | AV23: 5 | AW23: 0 | AX23: 5 | AY23: - | AZ23: 10 | BA23: 0 | BB23: 0 | BC23: 10 | BD23: 5 | BE23: 10 | BF23: 10 | BG23: 10 | BH23: 10 | BI23: 5 | BJ23: 5 | BK23: 5 | BL23: 5 | BM23: 10 | BN23: 5 | BO23: 10 | BP23: 5 | BQ23: 10 | BR23: 5 | BS23: 5 | BT23: 5 | BU23: 10 | BV23: 5 | BW23: 5 | BX23: 5 | BY23: 5 | BZ23: 5 | CA23: 5 | CB23: 5 | CC23: 5 | CD23: 5 | CE23: 0 | CF23: 5 | CG23: 5 | CH23: 10 | CI23: 0 | CJ23: 10 | CK23: 5 | CL23: 10 | CM23: 5 | CN23: 10 | CO23: 5 | CP23: 5 | CQ23: 5 | CR23: 5 | CS23: 5 | CT23: - | CU23: 10 | CV23: 10 | CW23: 5 | CX23: 5 | CY23: 5 | CZ23: 5 | DA23: 5 | DB23: 5 | DC23: 10
A24: 2025-12-13 | B24: Liverpool | C24: 2 | D24: 0 | E24: Brighton | F24: 46004.625 | H24: 0 | I24: 5 | J24: 5 | K24: 5 | L24: 5 | M24: 10 | N24: - | O24: 0 | P24: 5 | Q24: 0 | R24: 5 | S24: 0 | T24: 0 | U24: - | V24: 5 | W24: 10 | X24: 10 | Y24: 10 | Z24: 5 | AA24: 10 | AB24: - | AC24: 5 | AD24: 10 | AE24: 5 | AF24: 5 | AG24: 5 | AH24: 5 | AI24: - | AJ24: 0 | AK24: 0 | AL24: - | AM24: - | AN24: 5 | AO24: - | AP24: 5 | AQ24: 0 | AR24: 10 | AS24: 5 | AT24: 5 | AU24: 10 | AV24: 5 | AW24: 5 | AX24: 5 | AY24: - | AZ24: 5 | BA24: 0 | BB24: 0 | BC24: 5 | BD24: 5 | BE24: 5 | BF24: 10 | BG24: 5 | BH24: 5 | BI24: 0 | BJ24: 10 | BK24: 5 | BL24: 5 | BM24: 0 | BN24: 10 | BO24: 0 | BP24: 5 | BQ24: 10 | BR24: 5 | BS24: 5 | BT24: 0 | BU24: 5 | BV24: 5 | BW24: 0 | BX24: 10 | BY24: 5 | BZ24: 10 | CA24: 5 | CB24: 5 | CC24: 0 | CD24: 5 | CE24: 5 | CF24: 5 | CG24: 5 | CH24: 5 | CI24: 5 | CJ24: 10 | CK24: 0 | CL24: 5 | CM24: 0 | CN24: 10 | CO24: 0 | CP24: 5 | CQ24: 5 | CR24: 5 | CS24: 5 | CT24: - | CU24: 5 | CV24: 5 | CW24: 5 | CX24: 5 | CY24: 0 | CZ24: 5 | DA24: 5 | DB24: 5 | DC24: 0
A25: 2025-12-13 | B25: Burnley | C25: 2 | D25: 3 | E25: Fulham | F25: 17:30:00 | H25: 0 | I25: 5 | J25: 5 | K25: 0 | L25: 0 | M25: 5 | N25: - | O25: 5 | P25: 5 | Q25: 0 | R25: 5 | S25: 0 | T25: 5 | U25: - | V25: 0 | W25: 5 | X25: 5 | Y25: 5 | Z25: 0 | AA25: 0 | AB25: - | AC25: 5 | AD25: 5 | AE25: 5 | AF25: 5 | AG25: 0 | AH25: 0 | AI25: - | AJ25: 0 | AK25: 0 | AL25: - | AM25: - | AN25: 5 | AO25: - | AP25: 0 | AQ25: 5 | AR25: 0 | AS25: 5 | AT25: 5 | AU25: 5 | AV25: 5 | AW25: 5 | AX25: 0 | AY25: - | AZ25: 0 | BA25: 5 | BB25: 5 | BC25: 0 | BD25: 5 | BE25: 5 | BF25: 5 | BG25: 5 | BH25: 0 | BI25: 5 | BJ25: 5 | BK25: 0 | BL25: 0 | BM25: 0 | BN25: 0 | BO25: 5 | BP25: 5 | BQ25: 5 | BR25: 5 | BS25: 5 | BT25: 5 | BU25: 5 | BV25: 0 | BW25: 0 | BX25: 5 | BY25: 0 | BZ25: 0 | CA25: 0 | CB25: 5 | CC25: 0 | CD25: 0 | CE25: 5 | CF25: 5 | CG25: 5 | CH25: 0 | CI25: 5 | CJ25: 5 | CK25: 0 | CL25: 5 | CM25: 0 | CN25: 0 | CO25: 0 | CP25: 0 | CQ25: 5 | CR25: 5 | CS25: 0 | CT25: - | CU25: 0 | CV25: 5 | CW25: 5 | CX25: 0 | CY25: 5 | CZ25: 5 | DA25: 0 | DB25: 0 | DC25: 5
A26: 2025-12-13 | B26: Arsenal | C26: 2 | D26: 1 | E26: Wolves | F26: 20:00:00 | H26: 5 | I26: 5 | J26: 5 | K26: 5 | L26: 5 | M26: 5 | N26: - | O26: 5 | P26: 5 | Q26: 5 | R26: 5 | S26: 5 | T26: 5 | U26: - | V26: 10 | W26: 5 | X26: 5 | Y26: 5 | Z26: 10 | AA26: 5 | AB26: - | AC26: 5 | AD26: 5 | AE26: 5 | AF26: 5 | AG26: 5 | AH26: 5 | AI26: - | AJ26: 5 | AK26: 5 | AL26: - | AM26: - | AN26: 5 | AO26: - | AP26: 5 | AQ26: 5 | AR26: 5 | AS26: 5 | AT26: 5 | AU26: 5 | AV26: 5 | AW26: 5 | AX26: 5 | AY26: - | AZ26: 5 | BA26: 5 | BB26: 5 | BC26: 5 | BD26: 5 | BE26: 5 | BF26: 5 | BG26: 5 | BH26: 5 | BI26: 5 | BJ26: 5 | BK26: 5 | BL26: 5 | BM26: 5 | BN26: 5 | BO26: 5 | BP26: 5 | BQ26: 5 | BR26: 5 | BS26: 5 | BT26: 5 | BU26: 5 | BV26: 5 | BW26: 5 | BX26: 5 | BY26: 10 | BZ26: 5 | CA26: 5 | CB26: 5 | CC26: 5 | CD26: 5 | CE26: 5 | CF26: 10 | CG26: 5 | CH26: 5 | CI26: 5 | CJ26: 5 | CK26: 5 | CL26: 5 | CM26: 5 | CN26: 5 | CO26: 10 | CP26: 10 | CQ26: 5 | CR26: 5 | CS26: 5 | CT26: - | CU26: 5 | CV26: 5 | CW26: 5 | CX26: 10 | CY26: 5 | CZ26: 5 | DA26: 5 | DB26: 10 | DC26: 5
A27: 2025-12-14 | B27: Crystal Palace | C27: 0 | D27: 3 | E27: Man City | F27: 46004.625 | H27: 5 | I27: 5 | J27: 5 | K27: 5 | L27: 5 | M27: 5 | N27: - | O27: 0 | P27: 5 | Q27: 5 | R27: 5 | S27: 5 | T27: 5 | U27: - | V27: 0 | W27: 5 | X27: 5 | Y27: 5 | Z27: 0 | AA27: 5 | AB27: - | AC27: 5 | AD27: 5 | AE27: 5 | AF27: 0 | AG27: 5 | AH27: 5 | AI27: - | AJ27: 5 | AK27: 0 | AL27: - | AM27: - | AN27: 0 | AO27: - | AP27: 5 | AQ27: 5 | AR27: 0 | AS27: 5 | AT27: 5 | AU27: 5 | AV27: 5 | AW27: 5 | AX27: 0 | AY27: - | AZ27: 5 | BA27: 0 | BB27: 5 | BC27: 0 | BD27: 5 | BE27: 5 | BF27: 5 | BG27: 0 | BH27: 5 | BI27: 5 | BJ27: 5 | BK27: 5 | BL27: 5 | BM27: 0 | BN27: 5 | BO27: 5 | BP27: 5 | BQ27: 0 | BR27: 5 | BS27: 5 | BT27: 0 | BU27: 5 | BV27: 5 | BW27: 10 | BX27: 5 | BY27: 0 | BZ27: 0 | CA27: 0 | CB27: 5 | CC27: 0 | CD27: 0 | CE27: 0 | CF27: 5 | CG27: 5 | CH27: 0 | CI27: 0 | CJ27: 5 | CK27: 5 | CL27: 5 | CM27: 5 | CN27: 0 | CO27: 5 | CP27: 5 | CQ27: 5 | CR27: 0 | CS27: 5 | CT27: - | CU27: 5 | CV27: 5 | CW27: 0 | CX27: 0 | CY27: 5 | CZ27: 5 | DA27: 0 | DB27: 0 | DC27: 5
A28: 2025-12-14 | B28: Nott'm Forest | C28: 3 | D28: 0 | E28: Spurs | F28: 14:00:00 | H28: 0 | I28: 5 | J28: 0 | K28: 0 | L28: 0 | M28: 5 | N28: - | O28: 5 | P28: 0 | Q28: 0 | R28: 0 | S28: 0 | T28: 0 | U28: - | V28: 5 | W28: 0 | X28: 0 | Y28: 0 | Z28: 5 | AA28: 0 | AB28: - | AC28: 0 | AD28: 5 | AE28: 0 | AF28: 0 | AG28: 0 | AH28: 0 | AI28: - | AJ28: 0 | AK28: 0 | AL28: - | AM28: - | AN28: 0 | AO28: - | AP28: 0 | AQ28: 0 | AR28: 0 | AS28: 0 | AT28: 0 | AU28: 5 | AV28: 0 | AW28: 0 | AX28: 5 | AY28: - | AZ28: 5 | BA28: 5 | BB28: 0 | BC28: 0 | BD28: 0 | BE28: 0 | BF28: 0 | BG28: 0 | BH28: 0 | BI28: 0 | BJ28: 0 | BK28: 0 | BL28: 5 | BM28: 5 | BN28: 0 | BO28: 0 | BP28: 0 | BQ28: 5 | BR28: 0 | BS28: 0 | BT28: 0 | BU28: 5 | BV28: 0 | BW28: 0 | BX28: 0 | BY28: 5 | BZ28: 0 | CA28: 0 | CB28: 0 | CC28: 0 | CD28: 0 | CE28: 0 | CF28: 0 | CG28: 0 | CH28: 5 | CI28: 0 | CJ28: 0 | CK28: 5 | CL28: 0 | CM28: 0 | CN28: 5 | CO28: 0 | CP28: 0 | CQ28: 0 | CR28: 0 | CS28: 5 | CT28: - | CU28: 5 | CV28: 0 | CW28: 5 | CX28: 5 | CY28: 0 | CZ28: 0 | DA28: 0 | DB28: 5 | DC28: 0
A29: 2025-12-14 | B29: Sunderland | C29: 1 | D29: 0 | E29: Newcastle | F29: 14:00:00 | H29: 10 | I29: 0 | J29: 0 | K29: 0 | L29: 10 | M29: 0 | N29: - | O29: 5 | P29: 0 | Q29: 10 | R29: 0 | S29: 0 | T29: 0 | U29: - | V29: 5 | W29: 0 | X29: 0 | Y29: 0 | Z29: 5 | AA29: 0 | AB29: - | AC29: 5 | AD29: 0 | AE29: 0 | AF29: 5 | AG29: 0 | AH29: 0 | AI29: - | AJ29: 0 | AK29: 5 | AL29: - | AM29: - | AN29: 5 | AO29: - | AP29: 5 | AQ29: 5 | AR29: 0 | AS29: 10 | AT29: 0 | AU29: 0 | AV29: 0 | AW29: 0 | AX29: 5 | AY29: - | AZ29: 5 | BA29: 5 | BB29: 10 | BC29: 0 | BD29: 0 | BE29: 0 | BF29: 5 | BG29: 0 | BH29: 0 | BI29: 0 | BJ29: 0 | BK29: 0 | BL29: 10 | BM29: 0 | BN29: 0 | BO29: 0 | BP29: 0 | BQ29: 0 | BR29: 0 | BS29: 0 | BT29: 0 | BU29: 0 | BV29: 0 | BW29: 0 | BX29: 0 | BY29: 5 | BZ29: 0 | CA29: 0 | CB29: 0 | CC29: 0 | CD29: 0 | CE29: 0 | CF29: 0 | CG29: 0 | CH29: 10 | CI29: 0 | CJ29: 0 | CK29: 0 | CL29: 5 | CM29: 5 | CN29: 0 | CO29: 0 | CP29: 5 | CQ29: 5 | CR29: 0 | CS29: 0 | CT29: - | CU29: 0 | CV29: 0 | CW29: 0 | CX29: 5 | CY29: 0 | CZ29: 0 | DA29: 5 | DB29: 5 | DC29: 0
A30: 2025-12-14 | B30: West Ham | C30: 2 | D30: 3 | E30: Aston Villa | F30: 14:00:00 | H30: 5 | I30: 5 | J30: 5 | K30: 5 | L30: 5 | M30: 0 | N30: - | O30: 5 | P30: 0 | Q30: 5 | R30: 5 | S30: 5 | T30: 5 | U30: - | V30: 0 | W30: 5 | X30: 5 | Y30: 5 | Z30: 0 | AA30: 5 | AB30: - | AC30: 5 | AD30: 5 | AE30: 5 | AF30: 5 | AG30: 5 | AH30: 5 | AI30: - | AJ30: 5 | AK30: 5 | AL30: - | AM30: - | AN30: 5 | AO30: - | AP30: 5 | AQ30: 5 | AR30: 5 | AS30: 5 | AT30: 5 | AU30: 5 | AV30: 5 | AW30: 5 | AX30: 0 | AY30: - | AZ30: 5 | BA30: 5 | BB30: 5 | BC30: 5 | BD30: 5 | BE30: 5 | BF30: 5 | BG30: 5 | BH30: 0 | BI30: 5 | BJ30: 5 | BK30: 5 | BL30: 5 | BM30: 5 | BN30: 0 | BO30: 0 | BP30: 5 | BQ30: 5 | BR30: 5 | BS30: 5 | BT30: 5 | BU30: 5 | BV30: 5 | BW30: 5 | BX30: 5 | BY30: 0 | BZ30: 5 | CA30: 5 | CB30: 5 | CC30: 5 | CD30: 5 | CE30: 0 | CF30: 5 | CG30: 5 | CH30: 5 | CI30: 5 | CJ30: 5 | CK30: 5 | CL30: 5 | CM30: 5 | CN30: 0 | CO30: 0 | CP30: 0 | CQ30: 5 | CR30: 5 | CS30: 5 | CT30: - | CU30: 0 | CV30: 5 | CW30: 10 | CX30: 0 | CY30: 5 | CZ30: 5 | DA30: 5 | DB30: 0 | DC30: 5
A31: 2025-12-14 | B31: Brentford | C31: 1 | D31: 1 | E31: Leeds Utd | F31: 16:30:00 | H31: 10 | I31: 0 | J31: 10 | K31: 10 | L31: 0 | M31: 0 | N31: - | O31: 0 | P31: 0 | Q31: 0 | R31: 0 | S31: 5 | T31: 10 | U31: - | V31: 0 | W31: 10 | X31: 0 | Y31: 10 | Z31: 0 | AA31: 0 | AB31: - | AC31: 0 | AD31: 10 | AE31: 0 | AF31: 0 | AG31: 0 | AH31: 0 | AI31: - | AJ31: 10 | AK31: 0 | AL31: - | AM31: - | AN31: 10 | AO31: - | AP31: 10 | AQ31: 0 | AR31: 0 | AS31: 0 | AT31: 0 | AU31: 0 | AV31: 0 | AW31: 0 | AX31: 0 | AY31: - | AZ31: 0 | BA31: 0 | BB31: 0 | BC31: 0 | BD31: 0 | BE31: 0 | BF31: 0 | BG31: 0 | BH31: 10 | BI31: 0 | BJ31: 0 | BK31: 0 | BL31: 0 | BM31: 0 | BN31: 0 | BO31: 0 | BP31: 0 | BQ31: 0 | BR31: 0 | BS31: 0 | BT31: 10 | BU31: 0 | BV31: 0 | BW31: 0 | BX31: 0 | BY31: 0 | BZ31: 0 | CA31: 0 | CB31: 10 | CC31: 0 | CD31: 5 | CE31: 0 | CF31: 0 | CG31: 0 | CH31: 0 | CI31: 0 | CJ31: 0 | CK31: 0 | CL31: 0 | CM31: 0 | CN31: 0 | CO31: 0 | CP31: 0 | CQ31: 0 | CR31: 0 | CS31: 0 | CT31: - | CU31: 0 | CV31: 0 | CW31: 0 | CX31: 0 | CY31: 0 | CZ31: 10 | DA31: 0 | DB31: - | DC31: 0
A32: 2025-12-15 | B32: Man Utd | E32: Bournemouth | F32: 20:00:00
A33: 2025-12-20 | B33: Newcastle | E33: Chelsea | F33: 12:30:00
A34: 2025-12-20 | B34: Bournemouth | E34: Burnley | F34: 46011.625
A35: 2025-12-20 | B35: Brighton | E35: Sunderland | F35: 46011.625
A36: 2025-12-20 | B36: Man City | E36: West Ham | F36: 46011.625
A37: 2025-12-20 | B37: Wolves | E37: Brentford | F37: 46011.625
A38: 2025-12-20 | B38: Spurs | E38: Liverpool | F38: 17:30:00
A39: 2025-12-20 | B39: Everton | E39: Arsenal | F39: 20:00:00
A40: 2025-12-20 | B40: Leeds Utd | E40: Crystal Palace | F40: 20:00:00
A41: 2025-12-21 | B41: Aston Villa | E41: Man Utd | F41: 16:30:00
A42: 2025-12-22 | B42: Fulham | E42: Nott'm Forest | F42: 20:00:00
A43: 2025-12-26 | B43: Man Utd | E43: Newcastle | F43: 20:00:00
A44: 2025-12-27 | B44: Nott'm Forest | E44: Man City | F44: 12:30:00
A45: 2025-12-27 | B45: Arsenal | E45: Brighton | F45: 46018.625
A46: 2025-12-27 | B46: Brentford | E46: Bournemouth | F46: 46018.625
A47: 2025-12-27 | B47: Burnley | E47: Everton | F47: 46018.625
A48: 2025-12-27 | B48: Liverpool | E48: Wolves | F48: 46018.625
A49: 2025-12-27 | B49: West Ham | E49: Fulham | F49: 46018.625
A50: 2025-12-27 | B50: Chelsea | E50: Aston Villa | F50: 17:30:00
A51: 2025-12-28 | B51: Sunderland | E51: Leeds Utd | F51: 14:00:00
A52: 2025-12-28 | B52: Crystal Palace | E52: Spurs | F52: 16:30:00
A53: 2025-12-30 | B53: Arsenal | E53: Aston Villa | F53: 46021.83333
A54: 2025-12-30 | B54: Brentford | E54: Spurs | F54: 46021.83333
A55: 2025-12-30 | B55: Burnley | E55: Newcastle | F55: 46021.83333
A56: 2025-12-30 | B56: Chelsea | E56: Bournemouth | F56: 46021.83333
A57: 2025-12-30 | B57: Crystal Palace | E57: Fulham | F57: 46021.83333
A58: 2025-12-30 | B58: Liverpool | E58: Leeds Utd | F58: 46021.83333
A59: 2025-12-30 | B59: Man Utd | E59: Wolves | F59: 46021.83333
A60: 2025-12-30 | B60: Nott'm Forest | E60: Everton | F60: 46021.83333
A61: 2025-12-30 | B61: Sunderland | E61: Man City | F61: 46021.83333
A62: 2025-12-30 | B62: West Ham | E62: Brighton | F62: 46021.83333
A64: Golden Boots
A65: Alexander Isak - Liverpool | D65: =COUNT(H65:JB65) -> 31 | E65: =0+0+0 -> 0 | I65: =$E65*2 -> 0 | K65: =$E65*2 -> 0 | M65: =$E65*2 -> 0 | P65: =$E65*2 -> 0 | T65: =$E65*2 -> 0 | AB65: =$E65*2 -> 0 | AE65: =$E65*2 -> 0 | AF65: 0 | AI65: 0 | AM65: =$E65*2 -> 0 | AO65: 0 | AP65: 0 | AR65: 0 | AS65: 0 | AT65: 0 | AW65: =$E65*2 -> 0 | AX65: 0 | AY65: 0 | BF65: 0 | BH65: 0 | BJ65: =$E65*2 -> 0 | BN65: =$E65*2 -> 0 | BQ65: 0 | CE65: =$E65*2 -> 0 | CF65: =$E65*2 -> 0 | CG65: =$E65*2 -> 0 | CH65: =$E65*2 -> 0 | CI65: =$E65*2 -> 0 | CR65: =$E65*2 -> 0 | CU65: =$E65*2 -> 0 | CZ65: =$E65*2 -> 0
A66: Bryan Mbeumo - Man United | D66: 6 | E66: =0+1 -> 1 | Y66: =$E66*2 -> 2 | AD66: 2 | AN66: 2 | CD66: =$E66*2 -> 2 | CS66: =$E66*2 -> 2 | CY66: =$E66*2 -> 2
A67: Chris Wood - Nottingham Forest | D67: 5 | E67: =0+0+0 -> 0 | S67: =$E67*2 -> 0 | V67: =$E67*2 -> 0 | BX67: =$E67*2 -> 0 | CC67: =$E67*2 -> 0 | DB67: =$E67*2 -> 0
A68: Cole Palmer - Chelsea | D68: 27 | E68: =0+0+1 -> 1 | J68: =$E68*2 -> 2 | K68: =$E68*2 -> 2 | L68: =$E68*2 -> 2 | N68: =$E68*2 -> 2 | O68: =$E68*2 -> 2 | W68: =$E68*2 -> 2 | X68: =$E68*2 -> 2 | AA68: =$E68*2 -> 2 | AG68: 2 | AK68: =$E68*2 -> 2 | AW68: =$E68*2 -> 2 | BA68: 2 | BC68: =$E68*2 -> 2 | BE68: =$E68*2 -> 2 | BG68: 2 | BL68: =$E68*2 -> 2 | BM68: =$E68*2 -> 2 | BO68: 2 | BT68: 2 | BX68: =$E68*2 -> 2 | CB68: =$E68*2 -> 2 | CE68: =$E68*2 -> 2 | CF68: =$E68*2 -> 2 | CJ68: =$E68*2 -> 2 | CQ68: =$E68*2 -> 2 | CS68: =$E68*2 -> 2 | CT68: =$E68*2 -> 2
A69: Erling Haaland - Man City | D69: 80 | E69: =1+0+2 -> 3 | H69: =$E69*2 -> 6 | I69: =$E69*2 -> 6 | K69: =$E69*2 -> 6 | L69: =$E69*2 -> 6 | M69: =$E69*2 -> 6 | P69: =$E69*2 -> 6 | Q69: 6 | R69: 6 | S69: 6 | T69: 6 | U69: =$E69*2 -> 6 | V69: 6 | W69: =$E69*2 -> 6 | X69: =$E69*2 -> 6 | Y69: =$E69*2 -> 6 | Z69: =$E69*2 -> 6 | AA69: =$E69*2 -> 6 | AB69: =$E69*2 -> 6 | AC69: =$E69*2 -> 6 | AD69: =$E69*2 -> 6 | AH69: =$E69*2 -> 6 | AI69: 6 | AJ69: 6 | AK69: 6 | AN69: =$E69*2 -> 6 | AO69: 6 | AP69: 6 | AQ69: =$E69*2 -> 6 | AR69: =$E69*2 -> 6 | AS69: =$E69*2 -> 6 | AT69: =$E69*2 -> 6 | AU69: 6 | AV69: 6 | AY69: =$E69*2 -> 6 | AZ69: 6 | BA69: 6 | BC69: 6 | BD69: 6 | BE69: 6 | BF69: =$E69*2 -> 6 | BG69: 6 | BH69: 6 | BI69: 6 | BJ69: =$E69*2 -> 6 | BK69: =$E69*2 -> 6 | BM69: 6 | BN69: 6 | BO69: 6 | BP69: 6 | BQ69: 6 | BR69: 6 | BS69: 6 | BT69: 6 | BU69: 6 | BV69: =$E69*2 -> 6 | BW69: =$E69*2 -> 6 | BZ69: =$E69*2 -> 6 | CA69: =$E69*2 -> 6 | CB69: =$E69*2 -> 6 | CC69: =$E69*2 -> 6 | CD69: =$E69*2 -> 6 | CG69: =$E69*2 -> 6 | CH69: =$E69*2 -> 6 | CI69: =$E69*2 -> 6 | CJ69: =$E69*2 -> 6 | CM69: =$E69*2 -> 6 | CN69: =$E69*2 -> 6 | CO69: =$E69*2 -> 6 | CP69: =$E69*2 -> 6 | CR69: =$E69*2 -> 6 | CS69: =$E69*2 -> 6 | CU69: =$E69*2 -> 6 | CV69: =$E69*2 -> 6 | CW69: 6 | CX69: 6 | CY69: 6 | CZ69: 6 | DA69: 6 | DB69: 6 | DC69: 6
A70: Hugo Ekitike - Liverpool | D70: 12 | E70: =0+2+2 -> 4 | R70: =$E70*2 -> 8 | Z70: =$E70*2 -> 8 | AL70: =$E70*2 -> 8 | AM70: =$E70*2 -> 8 | AN70: 8 | AW70: 8 | AZ70: 8 | BE70: 8 | BY70: =$E70*2 -> 8 | BZ70: =$E70*2 -> 8 | CL70: =$E70*2 -> 8 | DC70: =$E70*2 -> 8
A71: Jean-Philippe Mateta - Crystal Palace | D71: 5 | E71: =0+0+0 -> 0 | BL71: =$E71*2 -> 0 | BY71: =$E71*2 -> 0 | CL71: =$E71*2 -> 0 | CT71: =$E71*2 -> 0 | CW71: =$E71*2 -> 0
A72: Jorgen Strand Larsen - Wolves | D72: 1 | E72: =0+0+0 -> 0 | BV72: =$E72*2 -> 0
A73: Justin Kluivert - Bournemouth | D73: 1 | E73: =0+0 -> 0 | N73: =$E73*2 -> 0
A74: Liam Delap - Chelsea | D74: 1 | E74: =0+0+0 -> 0 | CL74: =$E74*2 -> 0
A75: Matheus Cunha - Man United | D75: 5 | E75: 0 | N75: =$E75*2 -> 0 | BB75: =$E75*2 -> 0 | CF75: =$E75*2 -> 0 | CK75: =$E75*2 -> 0 | CM75: =$E75*2 -> 0
A76: Mohamed Salah - Liverpool | D76: 83 | E76: =0+0+0 -> 0 | H76: =$E76*2 -> 0 | J76: =$E76*2 -> 0 | L76: =$E76*2 -> 0 | M76: =$E76*2 -> 0 | O76: =$E76*2 -> 0 | P76: =$E76*2 -> 0 | Q76: =$E76*2 -> 0 | R76: =$E76*2 -> 0 | S76: =$E76*2 -> 0 | T76: =$E76*2 -> 0 | U76: =$E76*2 -> 0 | V76: =$E76*2 -> 0 | X76: 0 | Y76: =$E76*2 -> 0 | Z76: =$E76*2 -> 0 | AA76: 0 | AB76: =$E76*2 -> 0 | AC76: =$E76*2 -> 0 | AD76: 0 | AE76: 0 | AF76: 0 | AG76: 0 | AH76: 0 | AJ76: =$E76*2 -> 0 | AL76: =$E76*2 -> 0 | AM76: 0 | AO76: 0 | AP76: 0 | AQ76: 0 | AR76: 0 | AS76: =$E76*2 -> 0 | AT76: 0 | AU76: 0 | AV76: 0 | AX76: =$E76*2 -> 0 | AY76: 0 | BA76: =$E76*2 -> 0 | BB76: 0 | BC76: 0 | BD76: 0 | BF76: =$E76*2 -> 0 | BG76: =$E76*2 -> 0 | BH76: 0 | BI76: =$E76*2 -> 0 | BJ76: =$E76*2 -> 0 | BK76: =$E76*2 -> 0 | BL76: =$E76*2 -> 0 | BM76: 0 | BN76: 0 | BO76: 0 | BP76: 0 | BR76: =$E76*2 -> 0 | BS76: 0 | BT76: 0 | BU76: 0 | BV76: =$E76*2 -> 0 | BW76: =$E76*2 -> 0 | BZ76: =$E76*2 -> 0 | CA76: 0 | CB76: =$E76*2 -> 0 | CC76: =$E76*2 -> 0 | CD76: 0 | CE76: =$E76*2 -> 0 | CG76: =$E76*2 -> 0 | CH76: =$E76*2 -> 0 | CI76: =$E76*2 -> 0 | CJ76: =$E76*2 -> 0 | CK76: =$E76*2 -> 0 | CM76: =$E76*2 -> 0 | CN76: =$E76*2 -> 0 | CO76: =$E76*2 -> 0 | CP76: =$E76*2 -> 0 | CQ76: =$E76*2 -> 0 | CR76: =$E76*2 -> 0 | CT76: =$E76*2 -> 0 | CU76: 0 | CV76: =$E76*2 -> 0 | CW76: 0 | CX76: =$E76*2 -> 0 | CZ76: 0 | DA76: 0 | DB76: =$E76*2 -> 0 | DC76: 0
A77: Ollie Watkins - Aston Villa | D77: 3 | E77: =2+0+0 -> 2 | AF77: 4 | BX77: =$E77*2 -> 4 | CN77: =$E77*2 -> 4
A78: Viktor Gyokeres - Arsenal | D78: 39 | E78: =0+0+0 -> 0 | H78: =$E78*2 -> 0 | I78: =$E78*2 -> 0 | J78: =$E78*2 -> 0 | O78: =$E78*2 -> 0 | Q78: =$E78*2 -> 0 | U78: =$E78*2 -> 0 | W78: =$E78*2 -> 0 | AC78: =$E78*2 -> 0 | AE78: =$E78*2 -> 0 | AG78: =$E78*2 -> 0 | AH78: 0 | AI78: 0 | AJ78: 0 | AK78: 0 | AL78: 0 | AQ78: =$E78*2 -> 0 | AU78: =$E78*2 -> 0 | AV78: 0 | AX78: =$E78*2 -> 0 | AZ78: =$E78*2 -> 0 | BB78: =$E78*2 -> 0 | BD78: =$E78*2 -> 0 | BI78: =$E78*2 -> 0 | BK78: =$E78*2 -> 0 | BP78: =$E78*2 -> 0 | BQ78: 0 | BR78: 0 | BS78: 0 | BU78: =$E78*2 -> 0 | BW78: =$E78*2 -> 0 | BY78: =$E78*2 -> 0 | CA78: =$E78*2 -> 0 | CK78: =$E78*2 -> 0 | CP78: =$E78*2 -> 0 | CQ78: =$E78*2 -> 0 | CV78: =$E78*2 -> 0 | CX78: =$E78*2 -> 0 | CY78: =$E78*2 -> 0 | DA78: =$E78*2 -> 0
A79: Yoane Wissa - Newcastle | D79: 1 | E79: =0+0+0 -> 0 | CO79: =$E79*2 -> 0
A81: Total Points - December | H81: =SUM(H$3:H80) -> 81 | I81: =SUM(I$3:I80) -> 91 | J81: =SUM(J$3:J80) -> 117 | K81: =SUM(K$3:K80) -> 78 | L81: =SUM(L$3:L80) -> 113 | M81: =SUM(M$3:M80) -> 91 | N81: =SUM(N$3:N80) -> 2 | O81: =SUM(O$3:O80) -> 77 | P81: =SUM(P$3:P80) -> 66 | Q81: =SUM(Q$3:Q80) -> 106 | R81: =SUM(R$3:R80) -> 104 | S81: =SUM(S$3:S80) -> 86 | T81: =SUM(T$3:T80) -> 111 | U81: =SUM(U$3:U80) -> 6 | V81: =SUM(V$3:V80) -> 86 | W81: =SUM(W$3:W80) -> 113 | X81: =SUM(X$3:X80) -> 88 | Y81: =SUM(Y$3:Y80) -> 113 | Z81: =SUM(Z$3:Z80) -> 84 | AA81: =SUM(AA$3:AA80) -> 93 | AB81: =SUM(AB$3:AB80) -> 6 | AC81: =SUM(AC$3:AC80) -> 86 | AD81: =SUM(AD$3:AD80) -> 123 | AE81: =SUM(AE$3:AE80) -> 100 | AF81: =SUM(AF$3:AF80) -> 94 | AG81: =SUM(AG$3:AG80) -> 82 | AH81: =SUM(AH$3:AH80) -> 116 | AI81: =SUM(AI$3:AI80) -> 6 | AJ81: =SUM(AJ$3:AJ80) -> 91 | AK81: =SUM(AK$3:AK80) -> 78 | AL81: =SUM(AL$3:AL80) -> 43 | AM81: =SUM(AM$3:AM80) -> 8 | AN81: =SUM(AN$3:AN80) -> 106 | AO81: =SUM(AO$3:AO80) -> 6 | AP81: =SUM(AP$3:AP80) -> 71 | AQ81: =SUM(AQ$3:AQ80) -> 96 | AR81: =SUM(AR$3:AR80) -> 86 | AS81: =SUM(AS$3:AS80) -> 111 | AT81: =SUM(AT$3:AT80) -> 81 | AU81: =SUM(AU$3:AU80) -> 101 | AV81: =SUM(AV$3:AV80) -> 91 | AW81: =SUM(AW$3:AW80) -> 85 | AX81: =SUM(AX$3:AX80) -> 95 | AY81: =SUM(AY$3:AY80) -> 6 | AZ81: =SUM(AZ$3:AZ80) -> 129 | BA81: =SUM(BA$3:BA80) -> 78 | BB81: =SUM(BB$3:BB80) -> 60 | BC81: =SUM(BC$3:BC80) -> 103 | BD81: =SUM(BD$3:BD80) -> 76 | BE81: =SUM(BE$3:BE80) -> 121 | BF81: =SUM(BF$3:BF80) -> 106 | BG81: =SUM(BG$3:BG80) -> 113 | BH81: =SUM(BH$3:BH80) -> 81 | BI81: =SUM(BI$3:BI80) -> 101 | BJ81: =SUM(BJ$3:BJ80) -> 86 | BK81: =SUM(BK$3:BK80) -> 76 | BL81: =SUM(BL$3:BL80) -> 87 | BM81: =SUM(BM$3:BM80) -> 83 | BN81: =SUM(BN$3:BN80) -> 76 | BO81: =SUM(BO$3:BO80) -> 83 | BP81: =SUM(BP$3:BP80) -> 96 | BQ81: =SUM(BQ$3:BQ80) -> 106 | BR81: =SUM(BR$3:BR80) -> 91 | BS81: =SUM(BS$3:BS80) -> 91 | BT81: =SUM(BT$3:BT80) -> 108 | BU81: =SUM(BU$3:BU80) -> 91 | BV81: =SUM(BV$3:BV80) -> 96 | BW81: =SUM(BW$3:BW80) -> 81 | BX81: =SUM(BX$3:BX80) -> 91 | BY81: =SUM(BY$3:BY80) -> 98 | BZ81: =SUM(BZ$3:BZ80) -> 74 | CA81: =SUM(CA$3:CA80) -> 76 | CB81: =SUM(CB$3:CB80) -> 103 | CC81: =SUM(CC$3:CC80) -> 81 | CD81: =SUM(CD$3:CD80) -> 73 | CE81: =SUM(CE$3:CE80) -> 62 | CF81: =SUM(CF$3:CF80) -> 82 | CG81: =SUM(CG$3:CG80) -> 96 | CH81: =SUM(CH$3:CH80) -> 86 | CI81: =SUM(CI$3:CI80) -> 76 | CJ81: =SUM(CJ$3:CJ80) -> 103 | CK81: =SUM(CK$3:CK80) -> 85 | CL81: =SUM(CL$3:CL80) -> 108 | CM81: =SUM(CM$3:CM80) -> 81 | CN81: =SUM(CN$3:CN80) -> 90 | CO81: =SUM(CO$3:CO80) -> 71 | CP81: =SUM(CP$3:CP80) -> 66 | CQ81: =SUM(CQ$3:CQ80) -> 87 | CR81: =SUM(CR$3:CR80) -> 91 | CS81: =SUM(CS$3:CS80) -> 90 | CT81: =SUM(CT$3:CT80) -> 47 | CU81: =SUM(CU$3:CU80) -> 71 | CV81: =SUM(CV$3:CV80) -> 91 | CW81: =SUM(CW$3:CW80) -> 86 | CX81: =SUM(CX$3:CX80) -> 86 | CY81: =SUM(CY$3:CY80) -> 63 | CZ81: =SUM(CZ$3:CZ80) -> 111 | DA81: =SUM(DA$3:DA80) -> 86 | DB81: =SUM(DB$3:DB80) -> 56 | DC81: =SUM(DC$3:DC80) -> 114

Sheet January
A2: Date | B2: Teams | F2: Time
A3: 2026-01-03 | B3: Aston Villa | E3: Nott'm Forest | F3: 46025.625
A4: 2026-01-03 | B4: Bournemouth | E4: Arsenal | F4: 46025.625
A5: 2026-01-03 | B5: Brighton | E5: Burnley | F5: 46025.625
A6: 2026-01-03 | B6: Everton | E6: Brentford | F6: 46025.625
A7: 2026-01-03 | B7: Fulham | E7: Liverpool | F7: 46025.625
A8: 2026-01-03 | B8: Leeds Utd | E8: Man Utd | F8: 46025.625
A9: 2026-01-03 | B9: Man City | E9: Chelsea | F9: 46025.625
A10: 2026-01-03 | B10: Newcastle | E10: Crystal Palace | F10: 46025.625
A11: 2026-01-03 | B11: Spurs | E11: Sunderland | F11: 46025.625
A12: 2026-01-03 | B12: Wolves | E12: West Ham | F12: 46025.625
A13: 2026-01-07 | B13: Arsenal | E13: Liverpool | F13: 46029.83333
A14: 2026-01-07 | B14: Bournemouth | E14: Spurs | F14: 46029.83333
A15: 2026-01-07 | B15: Brentford | E15: Sunderland | F15: 46029.83333
A16: 2026-01-07 | B16: Burnley | E16: Man Utd | F16: 46029.83333
A17: 2026-01-07 | B17: Crystal Palace | E17: Aston Villa | F17: 46029.83333
A18: 2026-01-07 | B18: Everton | E18: Wolves | F18: 46029.83333
A19: 2026-01-07 | B19: Fulham | E19: Chelsea | F19: 46029.83333
A20: 2026-01-07 | B20: Man City | E20: Brighton | F20: 46029.83333
A21: 2026-01-07 | B21: Newcastle | E21: Leeds Utd | F21: 46029.83333
A22: 2026-01-07 | B22: West Ham | E22: Nott'm Forest | F22: 46029.83333
A23: 2026-01-17 | B23: Aston Villa | E23: Everton | F23: 46039.625
A24: 2026-01-17 | B24: Brighton | E24: Bournemouth | F24: 46039.625
A25: 2026-01-17 | B25: Chelsea | E25: Brentford | F25: 46039.625
A26: 2026-01-17 | B26: Leeds Utd | E26: Fulham | F26: 46039.625
A27: 2026-01-17 | B27: Liverpool | E27: Burnley | F27: 46039.625
A28: 2026-01-17 | B28: Man Utd | E28: Man City | F28: 46039.625
A29: 2026-01-17 | B29: Nott'm Forest | E29: Arsenal | F29: 46039.625
A30: 2026-01-17 | B30: Spurs | E30: West Ham | F30: 46039.625
A31: 2026-01-17 | B31: Sunderland | E31: Crystal Palace | F31: 46039.625
A32: 2026-01-17 | B32: Wolves | E32: Newcastle | F32: 46039.625
A33: 2026-01-24 | B33: Arsenal | E33: Man Utd | F33: 46046.625
A34: 2026-01-24 | B34: Bournemouth | E34: Liverpool | F34: 46046.625
A35: 2026-01-24 | B35: Brentford | E35: Nott'm Forest | F35: 46046.625
A36: 2026-01-24 | B36: Burnley | E36: Spurs | F36: 46046.625
A37: 2026-01-24 | B37: Crystal Palace | E37: Chelsea | F37: 46046.625
A38: 2026-01-24 | B38: Everton | E38: Leeds Utd | F38: 46046.625
A39: 2026-01-24 | B39: Fulham | E39: Brighton | F39: 46046.625
A40: 2026-01-24 | B40: Man City | E40: Wolves | F40: 46046.625
A41: 2026-01-24 | B41: Newcastle | E41: Aston Villa | F41: 46046.625
A42: 2026-01-24 | B42: West Ham | E42: Sunderland | F42: 46046.625
A43: 2026-01-31 | B43: Aston Villa | E43: Brentford | F43: 46053.625
A44: 2026-01-31 | B44: Brighton | E44: Everton | F44: 46053.625
A45: 2026-01-31 | B45: Chelsea | E45: West Ham | F45: 46053.625
A46: 2026-01-31 | B46: Leeds Utd | E46: Arsenal | F46: 46053.625
A47: 2026-01-31 | B47: Liverpool | E47: Newcastle | F47: 46053.625
A48: 2026-01-31 | B48: Man Utd | E48: Fulham | F48: 46053.625
A49: 2026-01-31 | B49: Nott'm Forest | E49: Crystal Palace | F49: 46053.625
A50: 2026-01-31 | B50: Spurs | E50: Man City | F50: 46053.625
A51: 2026-01-31 | B51: Sunderland | E51: Burnley | F51: 46053.625
A52: 2026-01-31 | B52: Wolves | E52: Bournemouth | F52: 46053.625

Sheet February
A2: Date | B2: Teams | F2: Time
A3: 2026-02-07 | B3: Arsenal | E3: Sunderland | F3: 46060.625
A4: 2026-02-07 | B4: Bournemouth | E4: Aston Villa | F4: 46060.625
A5: 2026-02-07 | B5: Brighton | E5: Crystal Palace | F5: 46060.625
A6: 2026-02-07 | B6: Burnley | E6: West Ham | F6: 46060.625
A7: 2026-02-07 | B7: Fulham | E7: Everton | F7: 46060.625
A8: 2026-02-07 | B8: Leeds Utd | E8: Nott'm Forest | F8: 46060.625
A9: 2026-02-07 | B9: Liverpool | E9: Man City | F9: 46060.625
A10: 2026-02-07 | B10: Man Utd | E10: Spurs | F10: 46060.625
A11: 2026-02-07 | B11: Newcastle | E11: Brentford | F11: 46060.625
A12: 2026-02-07 | B12: Wolves | E12: Chelsea | F12: 46060.625
A13: 2026-02-11 | B13: Aston Villa | E13: Brighton | F13: 46064.83333
A14: 2026-02-11 | B14: Brentford | E14: Arsenal | F14: 46064.83333
A15: 2026-02-11 | B15: Chelsea | E15: Leeds Utd | F15: 46064.83333
A16: 2026-02-11 | B16: Crystal Palace | E16: Burnley | F16: 46064.83333
A17: 2026-02-11 | B17: Everton | E17: Bournemouth | F17: 46064.83333
A18: 2026-02-11 | B18: Man City | E18: Fulham | F18: 46064.83333
A19: 2026-02-11 | B19: Nott'm Forest | E19: Wolves | F19: 46064.83333
A20: 2026-02-11 | B20: Spurs | E20: Newcastle | F20: 46064.83333
A21: 2026-02-11 | B21: Sunderland | E21: Liverpool | F21: 46064.83333
A22: 2026-02-11 | B22: West Ham | E22: Man Utd | F22: 46064.83333
A23: 2026-02-21 | B23: Aston Villa | E23: Leeds Utd | F23: 46074.625
A24: 2026-02-21 | B24: Brentford | E24: Brighton | F24: 46074.625
A25: 2026-02-21 | B25: Chelsea | E25: Burnley | F25: 46074.625
A26: 2026-02-21 | B26: Crystal Palace | E26: Wolves | F26: 46074.625
A27: 2026-02-21 | B27: Everton | E27: Man Utd | F27: 46074.625
A28: 2026-02-21 | B28: Man City | E28: Newcastle | F28: 46074.625
A29: 2026-02-21 | B29: Nott'm Forest | E29: Liverpool | F29: 46074.625
A30: 2026-02-21 | B30: Spurs | E30: Arsenal | F30: 46074.625
A31: 2026-02-21 | B31: Sunderland | E31: Fulham | F31: 46074.625
A32: 2026-02-21 | B32: West Ham | E32: Bournemouth | F32: 46074.625
A33: 2026-02-28 | B33: Arsenal | E33: Chelsea | F33: 46081.625
A34: 2026-02-28 | B34: Bournemouth | E34: Sunderland | F34: 46081.625
A35: 2026-02-28 | B35: Brighton | E35: Nott'm Forest | F35: 46081.625
A36: 2026-02-28 | B36: Burnley | E36: Brentford | F36: 46081.625
A37: 2026-02-28 | B37: Fulham | E37: Spurs | F37: 46081.625
A38: 2026-02-28 | B38: Leeds Utd | E38: Man City | F38: 46081.625
A39: 2026-02-28 | B39: Liverpool | E39: West Ham | F39: 46081.625
A40: 2026-02-28 | B40: Man Utd | E40: Crystal Palace | F40: 46081.625
A41: 2026-02-28 | B41: Newcastle | E41: Everton | F41: 46081.625
A42: 2026-02-28 | B42: Wolves | E42: Aston Villa | F42: 46081.625

Sheet March
A2: Date | B2: Teams | F2: Time
A3: 2026-03-04 | B3: Aston Villa | E3: Chelsea | F3: 46085.83333
A4: 2026-03-04 | B4: Bournemouth | E4: Brentford | F4: 46085.83333
A5: 2026-03-04 | B5: Brighton | E5: Arsenal | F5: 46085.83333
A6: 2026-03-04 | B6: Everton | E6: Burnley | F6: 46085.83333
A7: 2026-03-04 | B7: Fulham | E7: West Ham | F7: 46085.83333
A8: 2026-03-04 | B8: Leeds Utd | E8: Sunderland | F8: 46085.83333
A9: 2026-03-04 | B9: Man City | E9: Nott'm Forest | F9: 46085.83333
A10: 2026-03-04 | B10: Newcastle | E10: Man Utd | F10: 46085.83333
A11: 2026-03-04 | B11: Spurs | E11: Crystal Palace | F11: 46085.83333
A12: 2026-03-04 | B12: Wolves | E12: Liverpool | F12: 46085.83333
A13: 2026-03-14 | B13: Arsenal | E13: Everton | F13: 46095.625
A14: 2026-03-14 | B14: Brentford | E14: Wolves | F14: 46095.625
A15: 2026-03-14 | B15: Burnley | E15: Bournemouth | F15: 46095.625
A16: 2026-03-14 | B16: Chelsea | E16: Newcastle | F16: 46095.625
A17: 2026-03-14 | B17: Crystal Palace | E17: Leeds Utd | F17: 46095.625
A18: 2026-03-14 | B18: Liverpool | E18: Spurs | F18: 46095.625
A19: 2026-03-14 | B19: Man Utd | E19: Aston Villa | F19: 46095.625
A20: 2026-03-14 | B20: Nott'm Forest | E20: Fulham | F20: 46095.625
A21: 2026-03-14 | B21: Sunderland | E21: Brighton | F21: 46095.625
A22: 2026-03-14 | B22: West Ham | E22: Man City | F22: 46095.625
A23: 2026-03-21 | B23: Aston Villa | E23: West Ham | F23: 46102.625
A24: 2026-03-21 | B24: Bournemouth | E24: Man Utd | F24: 46102.625
A25: 2026-03-21 | B25: Brighton | E25: Liverpool | F25: 46102.625
A26: 2026-03-21 | B26: Everton | E26: Chelsea | F26: 46102.625
A27: 2026-03-21 | B27: Fulham | E27: Burnley | F27: 46102.625
A28: 2026-03-21 | B28: Leeds Utd | E28: Brentford | F28: 46102.625
A29: 2026-03-21 | B29: Man City | E29: Crystal Palace | F29: 46102.625
A30: 2026-03-21 | B30: Newcastle | E30: Sunderland | F30: 46102.625
A31: 2026-03-21 | B31: Spurs | E31: Nott'm Forest | F31: 46102.625
A32: 2026-03-21 | B32: Wolves | E32: Arsenal | F32: 46102.625

Sheet April
A2: Date | B2: Teams | F2: Time
A3: 2026-04-11 | B3: Arsenal | E3: Bournemouth | F3: 46123.625
A4: 2026-04-11 | B4: Brentford | E4: Everton | F4: 46123.625
A5: 2026-04-11 | B5: Burnley | E5: Brighton | F5: 46123.625
A6: 2026-04-11 | B6: Chelsea | E6: Man City | F6: 46123.625
A7: 2026-04-11 | B7: Crystal Palace | E7: Newcastle | F7: 46123.625
A8: 2026-04-11 | B8: Liverpool | E8: Fulham | F8: 46123.625
A9: 2026-04-11 | B9: Man Utd | E9: Leeds Utd | F9: 46123.625
A10: 2026-04-11 | B10: Nott'm Forest | E10: Aston Villa | F10: 46123.625
A11: 2026-04-11 | B11: Sunderland | E11: Spurs | F11: 46123.625
A12: 2026-04-11 | B12: West Ham | E12: Wolves | F12: 46123.625
A13: 2026-04-18 | B13: Aston Villa | E13: Sunderland | F13: 46130.625
A14: 2026-04-18 | B14: Brentford | E14: Fulham | F14: 46130.625
A15: 2026-04-18 | B15: Chelsea | E15: Man Utd | F15: 46130.625
A16: 2026-04-18 | B16: Crystal Palace | E16: West Ham | F16: 46130.625
A17: 2026-04-18 | B17: Everton | E17: Liverpool | F17: 46130.625
A18: 2026-04-18 | B18: Leeds Utd | E18: Wolves | F18: 46130.625
A19: 2026-04-18 | B19: Man City | E19: Arsenal | F19: 46130.625
A20: 2026-04-18 | B20: Newcastle | E20: Bournemouth | F20: 46130.625
A21: 2026-04-18 | B21: Nott'm Forest | E21: Burnley | F21: 46130.625
A22: 2026-04-18 | B22: Spurs | E22: Brighton | F22: 46130.625
A23: 2026-04-25 | B23: Arsenal | E23: Newcastle | F23: 46137.625
A24: 2026-04-25 | B24: Bournemouth | E24: Leeds Utd | F24: 46137.625
A25: 2026-04-25 | B25: Brighton | E25: Chelsea | F25: 46137.625
A26: 2026-04-25 | B26: Burnley | E26: Man City | F26: 46137.625
A27: 2026-04-25 | B27: Fulham | E27: Aston Villa | F27: 46137.625
A28: 2026-04-25 | B28: Liverpool | E28: Crystal Palace | F28: 46137.625
A29: 2026-04-25 | B29: Man Utd | E29: Brentford | F29: 46137.625
A30: 2026-04-25 | B30: Sunderland | E30: Nott'm Forest | F30: 46137.625
A31: 2026-04-25 | B31: West Ham | E31: Everton | F31: 46137.625
A32: 2026-04-25 | B32: Wolves | E32: Spurs | F32: 46137.625

Sheet May
A2: Date | B2: Teams | F2: Time
A3: 2026-05-02 | B3: Arsenal | E3: Fulham | F3: 46144.625
A4: 2026-05-02 | B4: Aston Villa | E4: Spurs | F4: 46144.625
A5: 2026-05-02 | B5: Bournemouth | E5: Crystal Palace | F5: 46144.625
A6: 2026-05-02 | B6: Brentford | E6: West Ham | F6: 46144.625
A7: 2026-05-02 | B7: Chelsea | E7: Nott'm Forest | F7: 46144.625
A8: 2026-05-02 | B8: Everton | E8: Man City | F8: 46144.625
A9: 2026-05-02 | B9: Leeds Utd | E9: Burnley | F9: 46144.625
A10: 2026-05-02 | B10: Man Utd | E10: Liverpool | F10: 46144.625
A11: 2026-05-02 | B11: Newcastle | E11: Brighton | F11: 46144.625
A12: 2026-05-02 | B12: Wolves | E12: Sunderland | F12: 46144.625
A13: 2026-05-09 | B13: Brighton | E13: Wolves | F13: 46151.625
A14: 2026-05-09 | B14: Burnley | E14: Aston Villa | F14: 46151.625
A15: 2026-05-09 | B15: Crystal Palace | E15: Everton | F15: 46151.625
A16: 2026-05-09 | B16: Fulham | E16: Bournemouth | F16: 46151.625
A17: 2026-05-09 | B17: Liverpool | E17: Chelsea | F17: 46151.625
A18: 2026-05-09 | B18: Man City | E18: Brentford | F18: 46151.625
A19: 2026-05-09 | B19: Nott'm Forest | E19: Newcastle | F19: 46151.625
A20: 2026-05-09 | B20: Spurs | E20: Leeds Utd | F20: 46151.625
A21: 2026-05-09 | B21: Sunderland | E21: Man Utd | F21: 46151.625
A22: 2026-05-09 | B22: West Ham | E22: Arsenal | F22: 46151.625
A23: 2026-05-17 | B23: Arsenal | E23: Burnley | F23: 46159.625
A24: 2026-05-17 | B24: Aston Villa | E24: Liverpool | F24: 46159.625
A25: 2026-05-17 | B25: Bournemouth | E25: Man City | F25: 46159.625
A26: 2026-05-17 | B26: Brentford | E26: Crystal Palace | F26: 46159.625
A27: 2026-05-17 | B27: Chelsea | E27: Spurs | F27: 46159.625
A28: 2026-05-17 | B28: Everton | E28: Sunderland | F28: 46159.625
A29: 2026-05-17 | B29: Leeds Utd | E29: Brighton | F29: 46159.625
A30: 2026-05-17 | B30: Man Utd | E30: Nott'm Forest | F30: 46159.625
A31: 2026-05-17 | B31: Newcastle | E31: West Ham | F31: 46159.625
A32: 2026-05-17 | B32: Wolves | E32: Fulham | F32: 46159.625
A33: 2026-05-24 | B33: Brighton | E33: Man Utd | F33: 46166.66667
A34: 2026-05-24 | B34: Burnley | E34: Wolves | F34: 46166.66667
A35: 2026-05-24 | B35: Crystal Palace | E35: Arsenal | F35: 46166.66667
A36: 2026-05-24 | B36: Fulham | E36: Newcastle | F36: 46166.66667
A37: 2026-05-24 | B37: Liverpool | E37: Brentford | F37: 46166.66667
A38: 2026-05-24 | B38: Man City | E38: Aston Villa | F38: 46166.66667
A39: 2026-05-24 | B39: Nott'm Forest | E39: Bournemouth | F39: 46166.66667
A40: 2026-05-24 | B40: Spurs | E40: Everton | F40: 46166.66667
A41: 2026-05-24 | B41: Sunderland | E41: Chelsea | F41: 46166.66667
A42: 2026-05-24 | B42: West Ham | E42: Leeds Utd | F42: 46166.66667

Sheet Jokers
A1: No. | B1: Player | C1: Team Name | D1: Joker | E1: 1 | F1: 2 | G1: 3 | H1: 4 | I1: 5 | J1: 6 | K1: 7 | L1: 8 | M1: 9 | N1: 10 | O1: 11 | P1: 12 | Q1: 13 | R1: 14 | S1: 15 | T1: 16 | U1: 17 | V1: 18 | W1: 19 | X1: 20 | Y1: 21 | Z1: 22 | AA1: 23 | AB1: 24 | AC1: 25 | AD1: 26 | AE1: 27 | AF1: 28 | AG1: 29 | AH1: 30 | AI1: Total
A2: 1 | B2: Aaron Nealon | C2: Backstreet Moyes | AI2: =COUNTIF(E2:AH2,"a") -> 0
A3: 2 | B3: Aidan Scanlon | C3: St Pats | AI3: 0
A4: 3 | B4: Aidan White | C4: The Emery Board | D4: 1-0 | E4: a | AI4: 1
A5: 4 | B5: Alain Verjans | C5: TheCoysAreBackInTown | AI5: 0
A6: 5 | B6: Anastas Popov | C6: Golden State Saints | D6: 1-0 | E6: a | F6: a | G6: a | AI6: 3
A7: 6 | B7: Andy Dunne | C7: Escape To Victory FC | AI7: 0
A8: 7 | B8: Benny McCarthy | C8: Brendan's Navigators | D8: 2-1 | E8: a | F8: a | G8: a | H8: a | I8: a | J8: a | K8: a | L8: a | M8: a | N8: a | O8: a | P8: a | Q8: a | R8: a | S8: a | T8: a | U8: a | V8: a | W8: a | X8: a | Y8: a | Z8: a | AA8: a | AB8: a | AC8: a | AD8: a | AE8: a | AF8: a | AG8: a | AH8: a | AI8: 30
A9: 8 | B9: Billy McGinley | C9: Seagulls Flying High | D9: 0-0 | E9: a | AI9: 1
A10: 9 | B10: Bobby Hynes | C10: Born To Run | D10: 2-1 | E10: a | F10: a | AI10: 2
A11: 10 | B11: Brendan Maguire | C11: Cantthinkofone | AI11: 0
A12: 11 | B12: Brian Haughton | C12: Poolabu | D12: 1-1 | E12: a | F12: a | G12: a | H12: a | I12: a | J12: a | K12: a | L12: a | M12: a | N12: a | AI12: 10
A13: 12 | B13: Brian Hearne | C13: Team Phoenix | D13: 1-0 | E13: a | AI13: 1
A14: 13 | B14: Brian Mullen | C14: Are They My Feet? | D14: 2-1 | E14: a | F14: a | G14: a | H14: a | I14: a | J14: a | K14: a | L14: a | M14: a | N14: a | AI14: 10
A15: 14 | B15: Calvin McGettigan | C15: Right Behind United | D15: 0-0 | E15: a | F15: a | G15: a | H15: a | I15: a | J15: a | K15: a | L15: a | M15: a | N15: a | O15: a | P15: a | Q15: a | R15: a | S15: a | T15: a | U15: a | V15: a | W15: a | X15: a | Y15: a | Z15: a | AA15: a | AB15: a | AC15: a | AD15: a | AE15: a | AF15: a | AG15: a | AH15: a | AI15: =COUNTIF(E15:AH15,"a") -> 30
A16: 15 | B16: Caoimhin McEnteggart | C16: Macs Marvels | D16: 2-1 | E16: a | F16: a | G16: a | H16: a | I16: a | J16: a | K16: a | L16: a | M16: a | N16: a | O16: a | P16: a | Q16: a | R16: a | S16: a | T16: a | U16: a | V16: a | W16: a | X16: a | AI16: =COUNTIF(E16:AH16,"a") -> 20
A17: 16 | B17: Carl Toner | C17: COYI | D17: 1-0 | E17: a | F17: a | G17: a | H17: a | I17: a | J17: a | K17: a | L17: a | M17: a | N17: a | O17: a | AI17: 11
A18: 17 | B18: Caroline Carroll | C18: Glenview | D18: 2-1 | E18: a | AI18: 1
A19: 18 | B19: Chris Keohan | C19: Nancy's Warriors | D19: 2-0 | E19: a | F19: a | G19: a | H19: a | I19: a | J19: a | K19: a | L19: a | M19: a | N19: a | O19: a | P19: a | Q19: a | R19: a | S19: a | T19: a | U19: a | V19: a | W19: a | X19: a | AI19: 20
A20: 19 | B20: Christina Morgan | C20: I'll Try 2-1 Again This Year | D20: 2-1 | E20: a | F20: a | G20: a | H20: a | AI20: 4
A21: 20 | B21: Ciaran O'Hart | C21: Riverchapel Plate | D21: 1-1 | E21: a | F21: a | G21: a | H21: a | I21: a | J21: a | K21: a | L21: a | M21: a | N21: a | AI21: 10
A22: 21 | B22: Colin Butterly | C22: Butters FC | D22: 1-1 | E22: a | F22: a | G22: a | H22: a | I22: a | J22: a | K22: a | L22: a | M22: a | N22: a | O22: a | P22: a | Q22: a | R22: a | S22: a | T22: a | U22: a | V22: a | W22: a | X22: a | Y22: a | Z22: a | AA22: a | AB22: a | AC22: a | AD22: a | AE22: a | AF22: a | AG22: a | AH22: a | AI22: 30
A23: 22 | B23: Con McSweeney | C23: Queer-Hawks | AI23: 0
A24: 23 | B24: Craig Calvert | C24: Cunha Win A Few Games United? | D24: 2-0 | E24: a | F24: a | AI24: 2
A25: 24 | B25: Craig Whelan | C25: Saints | AI25: 0
A26: 25 | B26: Daniel Dorrian | C26: Donegallad97 | D26: 2-0 | E26: a | F26: a | G26: a | H26: a | I26: a | J26: a | K26: a | L26: a | M26: a | N26: a | O26: a | P26: a | Q26: a | R26: a | S26: a | T26: a | U26: a | V26: a | W26: a | X26: a | Y26: a | Z26: a | AA26: a | AB26: a | AC26: a | AD26: a | AE26: a | AF26: a | AG26: a | AH26: a | AI26: 30
A27: 26 | B27: Darragh Kenny | C27: Tony Fitz | AI27: 0
A28: 27 | B28: Darren O'Gorman | C28: Pass n Move | D28: 2-1 | E28: a | F28: a | G28: a | AI28: 3
A29: 28 | B29: Dave Lavelle | C29: Isak Is A Red | D29: 2-0 | E29: a | F29: a | G29: a | H29: a | I29: a | J29: a | K29: a | L29: a | M29: a | N29: a | O29: a | P29: a | Q29: a | R29: a | S29: a | T29: a | U29: a | V29: a | W29: a | X29: a | Y29: a | Z29: a | AA29: a | AB29: a | AC29: a | AD29: a | AE29: a | AF29: a | AG29: a | AH29: a | AI29: 30
A30: 29 | B30: Dave McGinley | C30: Reservoir Dubs | D30: 2-1 | E30: a | AI30: 1
A31: 30 | B31: David Cooney | C31: London Is Blue | AI31: 0
A32: 31 | B32: David Doyle | C32: Ekitike Max | D32: 2-1 | E32: a | F32: a | G32: a | H32: a | I32: a | J32: a | K32: a | L32: a | M32: a | N32: a | O32: a | P32: a | Q32: a | R32: a | S32: a | T32: a | U32: a | V32: a | W32: a | X32: a | Y32: a | Z32: a | AA32: a | AB32: a | AC32: a | AD32: a | AE32: a | AF32: a | AG32: a | AH32: a | AI32: 30
A33: 32 | B33: David King | C33: Alisson Wonderland | D33: 2-1 | E33: a | F33: a | G33: a | H33: a | I33: a | J33: a | K33: a | L33: a | M33: a | N33: a | O33: a | P33: a | Q33: a | R33: a | S33: a | T33: a | U33: a | V33: a | W33: a | X33: a | Y33: a | Z33: a | AA33: a | AB33: a | AC33: a | AD33: a | AE33: a | AF33: a | AG33: a | AH33: a | AI33: 30
A34: 33 | B34: Derek McDonald | C34: United We Stand | D34: 2-1 | E34: a | F34: a | AI34: 2
A35: 34 | B35: Dylan Delaney | C35: Amorin's At The Wheel | D35: 2-1 | E35: a | F35: a | G35: a | H35: a | I35: a | J35: a | K35: a | L35: a | M35: a | N35: a | O35: a | P35: a | Q35: a | R35: a | S35: a | T35: a | U35: a | V35: a | W35: a | X35: a | Y35: a | Z35: a | AA35: a | AB35: a | AC35: a | AD35: a | AE35: a | AF35: a | AG35: a | AH35: a | AI35: 30
A36: 35 | B36: Dylan O'Riordan | C36: Friday Night Slots | D36: 1-0 | E36: a | F36: a | G36: a | H36: a | I36: a | J36: a | K36: a | L36: a | M36: a | N36: a | AI36: 10
A37: 36 | B37: Eamon Fox | C37: Deus Ex Machina | D37: 1-1 | E37: a | F37: a | G37: a | H37: a | I37: a | J37: a | K37: a | L37: a | M37: a | AI37: 9
A38: 37 | B38: Eamonn Gallagher | C38: Gally's Prem Hoops | D38: 2-0 | E38: a | F38: a | G38: a | H38: a | I38: a | J38: a | K38: a | L38: a | M38: a | N38: a | O38: a | P38: a | Q38: a | R38: a | S38: a | T38: a | U38: a | V38: a | W38: a | X38: a | Y38: a | Z38: a | AA38: a | AB38: a | AC38: a | AD38: a | AE38: a | AF38: a | AG38: a | AH38: a | AI38: 30
A39: 38 | B39: Eoghan Farrelly | C39: Maybe This Year | D39: 1-0 | E39: a | AI39: 1
A40: 39 | B40: Finbarr Corkery | C40: Firies FC | AI40: 0
A41: 40 | B41: Frank McSweeney | C41: Poolabu 1 | D41: 1-0 | E41: a | AI41: 1
A42: 41 | B42: Gareth Pierpoint | C42: Wirtz A Fortune | AI42: 0
A43: 42 | B43: Gary Donnelly | C43: Drop It Like It's Slot | D43: 2-1 | E43: a | F43: a | G43: a | AI43: 3
A44: 43 | B44: Gary Fitzpatrick | C44: Can't Get Any Wirtz | D44: 3-1 | E44: a | F44: a | G44: a | H44: a | I44: a | J44: a | K44: a | L44: a | M44: a | N44: a | O44: a | P44: a | Q44: a | R44: a | S44: a | T44: a | U44: a | V44: a | W44: a | X44: a | AI44: 20
A45: 44 | B45: Gavin Goodwin | C45: Gorey United | D45: 2-1 | E45: a | F45: a | G45: a | H45: a | I45: a | J45: a | K45: a | L45: a | M45: a | N45: a | O45: a | P45: a | Q45: a | R45: a | S45: a | T45: a | U45: a | V45: a | W45: a | X45: a | Y45: a | Z45: a | AA45: a | AB45: a | AC45: a | AD45: a | AE45: a | AF45: a | AG45: a | AH45: a | AI45: 30
A46: 45 | B46: Gavin Morgan | C46: FC Lorem Ipsum | AI46: 0
A47: 46 | B47: Gerry Draper | C47: Everton10 | AI47: 0
A48: 47 | B48: Gerry Moore | C48: Victor! For Mikel | AI48: 0
A49: 48 | B49: Graham Pierpoint | C49: Que Salah Salah | AI49: 0
A50: 49 | B50: Greg Donaghy | C50: Champagne Super Rovers | D50: 2-1 | E50: a | F50: a | G50: a | H50: a | I50: a | J50: a | K50: a | L50: a | M50: a | N50: a | O50: a | P50: a | Q50: a | R50: a | S50: a | T50: a | AI50: 16
A51: 50 | B51: Helen Fadian | C51: Keelwestkats | AI51: 0
A52: 51 | B52: Jack Draper | C52: Always Losing | AI52: 0
A53: 52 | B53: Jason Maloney | C53: Time Out Hoops | D53: 2-1 | E53: a | F53: a | G53: a | H53: a | I53: a | J53: a | K53: a | L53: a | M53: a | N53: a | AI53: 10
A54: 53 | B54: Javier Suarez | C54: Loseronius FC | AI54: 0
A55: 54 | B55: Jim Foley | C55: Ronaldo's A Cod | D55: 3-0 | E55: a | F55: a | AI55: 2
A56: 55 | B56: Jimmy Maguire | C56: Jimmy's Jewels | D56: 2-0 | E56: a | F56: a | G56: a | H56: a | I56: a | J56: a | K56: a | L56: a | M56: a | N56: a | AI56: 10
A57: 56 | B57: Joe Behan | C57: NC750X | D57: 1-0 | E57: a | AI57: 1
A58: 57 | B58: Joe Turner | C58: The Coutinho Money | AI58: 0
A59: 58 | B59: John Brophy | C59: Carrig ABU | D59: 1-0 | E59: a | AI59: 1
A60: 59 | B60: John Cafferkey | C60: Beach Boys | AI60: 0
A61: 60 | B61: Johno Percy | C61: Moves Like Agger | AI61: 0
A62: 61 | B62: Jonathan Fox | C62: He's A Lad From Portugal, Better Than Figo Don’t You Know | D62: 1-0 | E62: a | F62: a | AI62: 2
A63: 62 | B63: Joseph Kavanagh | C63: CherryOrchardThieves | AI63: 0
A64: 63 | B64: Joseph Leppla | C64: Play Jaya Frimpong | AI64: 0
A65: 64 | B65: Keith Nerney | C65: Now I'm A Baleba | D65: 1-0 | E65: a | F65: a | G65: a | H65: a | I65: a | J65: a | K65: a | L65: a | M65: a | N65: a | O65: a | P65: a | Q65: a | R65: a | S65: a | T65: a | U65: a | V65: a | W65: a | X65: a | Y65: a | AI65: 21
A66: 65 | B66: Keith Ryan | C66: Cunha Please Hurry Up | D66: 2-0 | E66: a | F66: a | G66: a | H66: a | I66: a | J66: a | K66: a | L66: a | M66: a | N66: a | AI66: 10
A67: 66 | B67: Kev Dalton | C67: Don't Know Why I Bother! | D67: 2-1 | E67: a | F67: a | G67: a | AI67: 3
A68: 67 | B68: Kevin Lawless | C68: Delays FC | D68: 1-0 | E68: a | F68: a | G68: a | H68: a | I68: a | J68: a | K68: a | L68: a | M68: a | N68: a | O68: a | P68: a | Q68: a | AI68: 13
A69: 68 | B69: Kevin Nolan | C69: Frimpong Frimpong | D69: 1-0 | E69: a | F69: a | G69: a | H69: a | I69: a | AI69: 5
A70: 69 | B70: Kieran Killeen | C70: Olde Gold Gloom | D70: 1-1 | E70: a | F70: a | G70: a | H70: a | I70: a | J70: a | K70: a | L70: a | M70: a | N70: a | AI70: 10
A71: 70 | B71: Liam Keohan | C71: Stranger Wings | D71: 2-1 | E71: a | F71: a | G71: a | H71: a | I71: a | J71: a | K71: a | L71: a | M71: a | N71: a | O71: a | P71: a | Q71: a | R71: a | S71: a | T71: a | U71: a | V71: a | W71: a | X71: a | Y71: a | Z71: a | AA71: a | AB71: a | AC71: a | AD71: a | AE71: a | AF71: a | AG71: a | AH71: a | AI71: 30
A72: 71 | B72: Lionel Knott | C72: Knott's Landing | D72: 2-1 | E72: a | F72: a | G72: a | AI72: 3
A73: 72 | B73: Martin Kimmins | C73: Los Pollos Hermanos | D73: 1-1 | E73: a | AI73: 1
A74: 73 | B74: Micheal Joyce | C74: Whiter Shade Of Pale | AI74: 0
A75: 74 | B75: Micheal Munnelly | C75: The Cunning Stunts | D75: 2-1 | E75: a | F75: a | AI75: 2
A76: 75 | B76: Monica Collins | C76: Monchester United | AI76: 0
A77: 76 | B77: Niall Carroll | C77: Yellow Bellies | D77: 2-0 | E77: a | AI77: 1
A78: 77 | B78: Paddy Devereux | C78: Wirtz The Story Lads | D78: 0-1 | E78: a | F78: a | G78: a | H78: a | I78: a | J78: a | K78: a | L78: a | M78: a | N78: a | O78: a | P78: a | Q78: a | R78: a | S78: a | T78: a | U78: a | V78: a | W78: a | X78: a | Y78: a | Z78: a | AA78: a | AB78: a | AC78: a | AD78: a | AE78: a | AF78: a | AG78: a | AH78: a | AI78: 30
A79: 78 | B79: Paul Foley | C79: Foley's Sublime 11 | D79: 2-0 | E79: a | AI79: 1
A80: 79 | B80: Paul Moore | C80: Wirtz The Story, Morning Glory | AI80: 0
A81: 80 | B81: Paul Prendergast | C81: The Untouchables | AI81: 0
A82: 81 | B82: Peter Lavelle | C82: Lavfavs | D82: 2-1 | E82: a | F82: a | G82: a | H82: a | I82: a | J82: a | K82: a | L82: a | M82: a | N82: a | O82: a | AI82: 11
A83: 82 | B83: Phil Doyle | C83: FC Muertos Erraticos | AI83: 0
A84: 83 | B84: Philip Jordan | C84: Frankie's Army | AI84: =COUNTIF(E84:AH84,"a") -> 0
A85: 84 | B85: Phoebe Suarez Behan | C85: Unicorn FC | D85: 1-0 | E85: a | F85: a | G85: a | H85: a | I85: a | J85: a | K85: a | L85: a | M85: a | N85: a | O85: a | P85: a | Q85: a | R85: a | S85: a | T85: a | U85: a | V85: a | W85: a | X85: a | Y85: a | AI85: 21
A86: 85 | B86: Realtin Dunne | C86: Little Stars FC | D86: 2-1 | E86: a | F86: a | G86: a | H86: a | I86: a | J86: a | K86: a | L86: a | M86: a | N86: a | O86: a | P86: a | Q86: a | R86: a | S86: a | T86: a | U86: a | V86: a | W86: a | X86: a | Y86: a | Z86: a | AA86: a | AB86: a | AC86: a | AD86: a | AE86: a | AF86: a | AG86: a | AH86: a | AI86: 30
A87: 86 | B87: Rhea Suarez Behan | C87: Rhea's Reds | D87: 1-0 | E87: a | F87: a | G87: a | H87: a | I87: a | J87: a | K87: a | L87: a | M87: a | N87: a | O87: a | P87: a | Q87: a | R87: a | S87: a | T87: a | U87: a | V87: a | W87: a | X87: a | Y87: a | Z87: a | AI87: 22
A88: 87 | B88: Richard Johnston | C88: Oumuamua FC | D88: 2-1 | E88: a | F88: a | G88: a | H88: a | I88: a | AI88: 5
A89: 88 | B89: Robert Foley | C89: Alisson Wonderland | D89: 2-1 | E89: a | AI89: 1
A90: 89 | B90: Robert Gaffney | C90: Fiorentina Turner | AI90: 0
A91: 90 | B91: Roisin Joyce | C91: Joyce's Choices | AI91: 0
A92: 91 | B92: Sam Calvert | C92: Samchester United | D92: 1-1 | E92: a | F92: a | G92: a | H92: a | I92: a | J92: a | K92: a | L92: a | M92: a | N92: a | O92: a | P92: a | Q92: a | R92: a | S92: a | T92: a | U92: a | V92: a | W92: a | X92: a | Y92: a | Z92: a | AA92: a | AB92: a | AC92: a | AD92: a | AE92: a | AF92: a | AG92: a | AH92: a | AI92: 30
A93: 92 | B93: Sean Cafferkey | C93: Yoryies | AI93: 0
A94: 93 | B94: Sean Cleary | C94: Sean's Stars | D94: 2-0 | E94: a | F94: a | G94: a | H94: a | I94: a | J94: a | K94: a | L94: a | M94: a | N94: a | O94: a | P94: a | Q94: a | R94: a | S94: a | T94: a | U94: a | V94: a | W94: a | X94: a | Y94: a | Z94: a | AA94: a | AB94: a | AC94: a | AD94: a | AI94: 26
A95: 94 | B95: Sean O'Mairtin | C95: Creweless | AI95: 0
A96: 95 | B96: Shane Horan | C96: Welsh Xavi | D96: 2-1 | E96: a | F96: a | G96: a | H96: a | I96: a | J96: a | K96: a | L96: a | M96: a | N96: a | O96: a | P96: a | Q96: a | R96: a | S96: a | T96: a | U96: a | V96: a | W96: a | X96: a | Y96: a | Z96: a | AI96: 22
A97: 96 | B97: Simon Scanlon | C97: Amorin's United Red Devils | D97: 1-1 | E97: a | F97: a | G97: a | H97: a | I97: a | J97: a | K97: a | L97: a | M97: a | N97: a | O97: a | P97: a | Q97: a | R97: a | S97: a | T97: a | U97: a | V97: a | W97: a | X97: a | Y97: a | Z97: a | AA97: a | AB97: a | AC97: a | AD97: a | AE97: a | AF97: a | AG97: a | AH97: a | AI97: 30
A98: 97 | B98: Thomas Nolan | C98: Sons of Pitches | D98: 1-0 | E98: a | F98: a | G98: a | H98: a | I98: a | J98: a | K98: a | L98: a | M98: a | AI98: 9
A99: 98 | B99: Tommy Hamill | C99: Omeath All-Stars | AI99: 0
A100: 99 | B100: Tommy Tormey | C100: Shay Brennan's Testimonial XI | D100: 2-1 | E100: a | F100: a | G100: a | H100: a | I100: a | J100: a | K100: a | L100: a | M100: a | N100: a | O100: a | P100: a | Q100: a | R100: a | S100: a | T100: a | U100: a | V100: a | W100: a | X100: a | Y100: a | Z100: a | AA100: a | AB100: a | AC100: a | AD100: a | AE100: a | AF100: a | AG100: a | AH100: a | AI100: 30
A101: 100 | B101: Tommy Walsh | C101: Toon Army | D101: 2-1 | E101: a | F101: a | G101: a | H101: a | I101: a | J101: a | K101: a | AI101: 7
